Workbook

Sheet PI vs gap
A1: Measurement | B1: Hall
A2: Type | B2: Gap dependence
A4: Project | B4: ='10 mm'!B5 -> 504314
A5: PS serial no | B5: ='10 mm'!B7 -> 2410097
A7: Measurement date | B7: =LEFT('10 mm'!B4,10) -> 17-09-2024
A11: Nominal gap [mm] | B11: Encoder [counts] | C11: Encoder [mm] | D11: PI [T^2mm^3] | E11: PI spec [T^2mm^3] | F11: Encoder value at 10 mm gap:
A12: ='10 mm'!$B$53 -> 10 | B12: ='10 mm'!$B$55 -> 19.6817 | C12: =-1*($F$12-B12)+10 -> 10 | D12: ='10 mm'!$K$3 -> 10596.65072 | F12: 19.6817
A13: ='15 mm'!$B$53 -> 15 | B13: ='15 mm'!$B$55 -> 24.6809 | C13: =-1*($F$12-B13)+10 -> 14.9992 | D13: ='15 mm'!$K$3 -> 7251.494668
A14: ='20 mm'!$B$53 -> 20 | B14: ='20 mm'!$B$55 -> 29.6804 | C14: 19.9987 | D14: ='20 mm'!$K$3 -> 5019.745567
A15: ='30 mm'!$B$53 -> 30 | B15: ='30 mm'!$B$55 -> 39.6772 | C15: 29.9955 | D15: ='30 mm'!$K$3 -> 2478.467861
A16: ='100 mm'!$B$53 -> 100 | B16: ='100 mm'!$B$55 -> 109.6887 | C16: 100.007 | D16: ='100 mm'!$K$3 -> 40.03606381
A47: Measuring series at larger gaps:
A48: Reference magnet
A49: Tref | B49: 21.38 | C49: degC
A50: Hall ref field | B50: 0.505 | C50: T
A51: NMR ref field | B51: 0.50627 | C51: T
A53: Offset from Faro

Sheet 10 mm
A1: =IF('DF raw data'!A1="","",'DF raw data'!A1) -> Number of header lines | B1: =IF('DF raw data'!B1="","",'DF raw data'!B1) -> 54 | C1: =IF('DF raw data'!C1="","",'DF raw data'!C1) ->  | D1: =IF('DF raw data'!D1="","",'DF raw data'!D1) ->  | F1: T_coeff | G1: -0.001 | H1: /degC | J1: IBy total | K1: =J1267*1000 -> -0.5535171241 | L1: muTm | M1: =L1267*1000 -> -20.73046202 | R1: DF ref | S1: 1
A2: =IF('DF raw data'!A2="","",'DF raw data'!A2) -> Measured by | B2: =IF('DF raw data'!B2="","",'DF raw data'!B2) -> Danfysik | C2: =IF('DF raw data'!C2="","",'DF raw data'!C2) ->  | D2: =IF('DF raw data'!D2="","",'DF raw data'!D2) ->  | F2: Tcorr | G2: 20 | H2: degC | J2: JBy total | K2: =K1267 -> -1.904921349 | L2: muTm^2 | M2: =M1267 -> -6.417251967
A3: =IF('DF raw data'!A3="","",'DF raw data'!A3) -> Operator | B3: =IF('DF raw data'!B3="","",'DF raw data'!B3) -> PMHA | C3: =IF('DF raw data'!C3="","",'DF raw data'!C3) ->  | D3: =IF('DF raw data'!D3="","",'DF raw data'!D3) ->  | F3: Step | G3: =A68-A67 -> 0.5 | H3: mm | J3: PI total | K3: =N1267 -> 10596.65072 | L3: T^2mm^3
A4: =IF('DF raw data'!A4="","",'DF raw data'!A4) -> Data-time | B4: =IF('DF raw data'!B4="","",'DF raw data'!B4) -> 17-09-2024, 14:21:32 | C4: =IF('DF raw data'!C4="","",'DF raw data'!C4) ->  | D4: =IF('DF raw data'!D4="","",'DF raw data'!D4) -> 
A5: =IF('DF raw data'!A5="","",'DF raw data'!A5) -> Project | B5: =IF('DF raw data'!B5="","",'DF raw data'!B5) -> 504314 | C5: =IF('DF raw data'!C5="","",'DF raw data'!C5) ->  | D5: Bamb avr | F5: =(AVERAGE(B67:B107) + AVERAGE(B1227:B1267))/2 -> -2.805258415e-05 | G5: =(AVERAGE(C67:C107) + AVERAGE(C1227:C1267))/2 -> 0.0001112898805 | H5: =(AVERAGE(D67:D107) + AVERAGE(D1227:D1267))/2 -> -8.679233902e-06
A6: =IF('DF raw data'!A6="","",'DF raw data'!A6) -> Magnet type | B6: =IF('DF raw data'!B6="","",'DF raw data'!B6) -> Dipole | C6: =IF('DF raw data'!C6="","",'DF raw data'!C6) -> 
A7: =IF('DF raw data'!A7="","",'DF raw data'!A7) -> Magnet nr. | B7: =IF('DF raw data'!B7="","",'DF raw data'!B7) -> 2410097 | C7: =IF('DF raw data'!C7="","",'DF raw data'!C7) -> 
A8: =IF('DF raw data'!A8="","",'DF raw data'!A8) -> Meas. number | B8: =IF('DF raw data'!B8="","",'DF raw data'!B8) -> 551 | C8: =IF('DF raw data'!C8="","",'DF raw data'!C8) -> 
A9: =IF('DF raw data'!A9="","",'DF raw data'!A9) -> Add. info | B9: =IF('DF raw data'!B9="","",'DF raw data'!B9) -> X-alignment scan 3) | C9: =IF('DF raw data'!C9="","",'DF raw data'!C9) ->  | D9: =IF('DF raw data'!D9="","",'DF raw data'!D9) -> 
A10: =IF('DF raw data'!A10="","",'DF raw data'!A10) -> Device | B10: =IF('DF raw data'!B10="","",'DF raw data'!B10) -> (HAL) HALL-PROBE | C10: =IF('DF raw data'!C10="","",'DF raw data'!C10) ->  | D10: =IF('DF raw data'!D10="","",'DF raw data'!D10) -> 
A11: =IF('DF raw data'!A11="","",'DF raw data'!A11) -> Goal | B11: =IF('DF raw data'!B11="","",'DF raw data'!B11) -> (AXI) AXis Integral (Line, EFB) | C11: =IF('DF raw data'!C11="","",'DF raw data'!C11) ->  | D11: =IF('DF raw data'!D11="","",'DF raw data'!D11) -> 
A12: =IF('DF raw data'!A12="","",'DF raw data'!A12) -> Power supply mode | B12: =IF('DF raw data'!B12="","",'DF raw data'!B12) -> (PM) Permanent Magnet (no MPS in use) | C12: =IF('DF raw data'!C12="","",'DF raw data'!C12) ->  | D12: =IF('DF raw data'!D12="","",'DF raw data'!D12) -> 
A13: =IF('DF raw data'!A13="","",'DF raw data'!A13) -> Data format | B13: =IF('DF raw data'!B13="","",'DF raw data'!B13) -> Raw data text file | C13: =IF('DF raw data'!C13="","",'DF raw data'!C13) ->  | D13: =IF('DF raw data'!D13="","",'DF raw data'!D13) -> 
A14: =IF('DF raw data'!A14="","",'DF raw data'!A14) -> Direction of the pos. x-axis | B14: =IF('DF raw data'!B14="","",'DF raw data'!B14) -> See test program | C14: =IF('DF raw data'!C14="","",'DF raw data'!C14) ->  | D14: =IF('DF raw data'!D14="","",'DF raw data'!D14) -> 
A15: =IF('DF raw data'!A15="","",'DF raw data'!A15) -> Direction of the pos. y-axis | B15: =IF('DF raw data'!B15="","",'DF raw data'!B15) -> Vertical up | C15: =IF('DF raw data'!C15="","",'DF raw data'!C15) ->  | D15: =IF('DF raw data'!D15="","",'DF raw data'!D15) -> 
A16: =IF('DF raw data'!A16="","",'DF raw data'!A16) -> Direction of the pos. z-axis | B16: =IF('DF raw data'!B16="","",'DF raw data'!B16) -> See test program | C16: =IF('DF raw data'!C16="","",'DF raw data'!C16) ->  | D16: =IF('DF raw data'!D16="","",'DF raw data'!D16) -> 
A17: =IF('DF raw data'!A17="","",'DF raw data'!A17) -> Mapper type | B17: =IF('DF raw data'!B17="","",'DF raw data'!B17) -> Precision Hall Mapper | C17: =IF('DF raw data'!C17="","",'DF raw data'!C17) ->  | D17: =IF('DF raw data'!D17="","",'DF raw data'!D17) -> 
A18: =IF('DF raw data'!A18="","",'DF raw data'!A18) -> Mapper Danfysik Reg. Number | B18: =IF('DF raw data'!B18="","",'DF raw data'!B18) -> 2033-D (mapper 1) | C18: =IF('DF raw data'!C18="","",'DF raw data'!C18) ->  | D18: =IF('DF raw data'!D18="","",'DF raw data'!D18) -> 
A19: =IF('DF raw data'!A19="","",'DF raw data'!A19) -> Measurement consept | B19: =IF('DF raw data'!B19="","",'DF raw data'!B19) -> Square line grid | C19: =IF('DF raw data'!C19="","",'DF raw data'!C19) ->  | D19: =IF('DF raw data'!D19="","",'DF raw data'!D19) -> 
A20: =IF('DF raw data'!A20="","",'DF raw data'!A20) -> Mode | B20: =IF('DF raw data'!B20="","",'DF raw data'!B20) -> On-the-fly measurement | C20: =IF('DF raw data'!C20="","",'DF raw data'!C20) ->  | D20: =IF('DF raw data'!D20="","",'DF raw data'!D20) -> 
A21: =IF('DF raw data'!A21="","",'DF raw data'!A21) ->  | B21: =IF('DF raw data'!B21="","",'DF raw data'!B21) ->  | C21: =IF('DF raw data'!C21="","",'DF raw data'!C21) ->  | D21: =IF('DF raw data'!D21="","",'DF raw data'!D21) -> 
A22: =IF('DF raw data'!A22="","",'DF raw data'!A22) -> Probe Name | B22: =IF('DF raw data'!B22="","",'DF raw data'!B22) -> ID12_By | C22: =IF('DF raw data'!C22="","",'DF raw data'!C22) ->  | D22: =IF('DF raw data'!D22="","",'DF raw data'!D22) -> 
A23: =IF('DF raw data'!A23="","",'DF raw data'!A23) -> Probe Type | B23: =IF('DF raw data'!B23="","",'DF raw data'!B23) -> DF_ID_3D_Bxyz | C23: =IF('DF raw data'!C23="","",'DF raw data'!C23) ->  | D23: =IF('DF raw data'!D23="","",'DF raw data'!D23) -> 
A24: =IF('DF raw data'!A24="","",'DF raw data'!A24) -> Probe Danfysik Reg. Number | B24: =IF('DF raw data'!B24="","",'DF raw data'!B24) -> 2277 | C24: =IF('DF raw data'!C24="","",'DF raw data'!C24) ->  | D24: =IF('DF raw data'!D24="","",'DF raw data'!D24) -> 
A25: =IF('DF raw data'!A25="","",'DF raw data'!A25) -> Probe Axis | B25: =IF('DF raw data'!B25="","",'DF raw data'!B25) -> By | C25: =IF('DF raw data'!C25="","",'DF raw data'!C25) ->  | D25: =IF('DF raw data'!D25="","",'DF raw data'!D25) -> 
A26: =IF('DF raw data'!A26="","",'DF raw data'!A26) -> Probe Current Supply | B26: =IF('DF raw data'!B26="","",'DF raw data'!B26) -> 1825-D | C26: =IF('DF raw data'!C26="","",'DF raw data'!C26) ->  | D26: =IF('DF raw data'!D26="","",'DF raw data'!D26) -> 
A27: =IF('DF raw data'!A27="","",'DF raw data'!A27) -> Probe Gain Correction | B27: =IF('DF raw data'!B27="","",'DF raw data'!B27) -> 0.99606 | C27: =IF('DF raw data'!C27="","",'DF raw data'!C27) ->  | D27: =IF('DF raw data'!D27="","",'DF raw data'!D27) -> 
A28: =IF('DF raw data'!A28="","",'DF raw data'!A28) -> Probe Offset Correction | B28: =IF('DF raw data'!B28="","",'DF raw data'!B28) -> 0.0027513 | C28: =IF('DF raw data'!C28="","",'DF raw data'!C28) ->  | D28: =IF('DF raw data'!D28="","",'DF raw data'!D28) -> 
A29: =IF('DF raw data'!A29="","",'DF raw data'!A29) -> DVM Number | B29: =IF('DF raw data'!B29="","",'DF raw data'!B29) -> 2 | C29: =IF('DF raw data'!C29="","",'DF raw data'!C29) ->  | D29: =IF('DF raw data'!D29="","",'DF raw data'!D29) -> 
A30: =IF('DF raw data'!A30="","",'DF raw data'!A30) -> DVM Type | B30: =IF('DF raw data'!B30="","",'DF raw data'!B30) -> K2701 | C30: =IF('DF raw data'!C30="","",'DF raw data'!C30) ->  | D30: =IF('DF raw data'!D30="","",'DF raw data'!D30) -> 
A31: =IF('DF raw data'!A31="","",'DF raw data'!A31) -> DVM Danfysik Reg. Number | B31: =IF('DF raw data'!B31="","",'DF raw data'!B31) -> 1743-D | C31: =IF('DF raw data'!C31="","",'DF raw data'!C31) ->  | D31: =IF('DF raw data'!D31="","",'DF raw data'!D31) -> 
A32: =IF('DF raw data'!A32="","",'DF raw data'!A32) -> Probe Name | B32: =IF('DF raw data'!B32="","",'DF raw data'!B32) -> ID12_Bx | C32: =IF('DF raw data'!C32="","",'DF raw data'!C32) ->  | D32: =IF('DF raw data'!D32="","",'DF raw data'!D32) -> 
A33: =IF('DF raw data'!A33="","",'DF raw data'!A33) -> Probe Type | B33: =IF('DF raw data'!B33="","",'DF raw data'!B33) -> DF_ID_3D_Bxyz | C33: =IF('DF raw data'!C33="","",'DF raw data'!C33) ->  | D33: =IF('DF raw data'!D33="","",'DF raw data'!D33) -> 
A34: =IF('DF raw data'!A34="","",'DF raw data'!A34) -> Probe Danfysik Reg. Number | B34: =IF('DF raw data'!B34="","",'DF raw data'!B34) -> 2277 | C34: =IF('DF raw data'!C34="","",'DF raw data'!C34) ->  | D34: =IF('DF raw data'!D34="","",'DF raw data'!D34) -> 
A35: =IF('DF raw data'!A35="","",'DF raw data'!A35) -> Probe Axis | B35: =IF('DF raw data'!B35="","",'DF raw data'!B35) -> Bx | C35: =IF('DF raw data'!C35="","",'DF raw data'!C35) ->  | D35: =IF('DF raw data'!D35="","",'DF raw data'!D35) -> 
A36: =IF('DF raw data'!A36="","",'DF raw data'!A36) -> Probe Current Supply | B36: =IF('DF raw data'!B36="","",'DF raw data'!B36) -> 1825-D | C36: =IF('DF raw data'!C36="","",'DF raw data'!C36) ->  | D36: =IF('DF raw data'!D36="","",'DF raw data'!D36) -> 
A37: =IF('DF raw data'!A37="","",'DF raw data'!A37) -> Probe Gain Correction | B37: =IF('DF raw data'!B37="","",'DF raw data'!B37) -> 1 | C37: =IF('DF raw data'!C37="","",'DF raw data'!C37) ->  | D37: =IF('DF raw data'!D37="","",'DF raw data'!D37) -> 
A38: =IF('DF raw data'!A38="","",'DF raw data'!A38) -> Probe Offset Correction | B38: =IF('DF raw data'!B38="","",'DF raw data'!B38) -> -0.17549 | C38: =IF('DF raw data'!C38="","",'DF raw data'!C38) ->  | D38: =IF('DF raw data'!D38="","",'DF raw data'!D38) -> 
A39: =IF('DF raw data'!A39="","",'DF raw data'!A39) -> DVM Number | B39: =IF('DF raw data'!B39="","",'DF raw data'!B39) -> 3 | C39: =IF('DF raw data'!C39="","",'DF raw data'!C39) ->  | D39: =IF('DF raw data'!D39="","",'DF raw data'!D39) -> 
A40: =IF('DF raw data'!A40="","",'DF raw data'!A40) -> DVM Type | B40: =IF('DF raw data'!B40="","",'DF raw data'!B40) -> K2701 | C40: =IF('DF raw data'!C40="","",'DF raw data'!C40) ->  | D40: =IF('DF raw data'!D40="","",'DF raw data'!D40) -> 
A41: =IF('DF raw data'!A41="","",'DF raw data'!A41) -> DVM Danfysik Reg. Number | B41: =IF('DF raw data'!B41="","",'DF raw data'!B41) -> 1744-D | C41: =IF('DF raw data'!C41="","",'DF raw data'!C41) ->  | D41: =IF('DF raw data'!D41="","",'DF raw data'!D41) -> 
A42: =IF('DF raw data'!A42="","",'DF raw data'!A42) -> Probe Name | B42: =IF('DF raw data'!B42="","",'DF raw data'!B42) -> ID12_Bz | C42: =IF('DF raw data'!C42="","",'DF raw data'!C42) ->  | D42: =IF('DF raw data'!D42="","",'DF raw data'!D42) -> 
A43: =IF('DF raw data'!A43="","",'DF raw data'!A43) -> Probe Type | B43: =IF('DF raw data'!B43="","",'DF raw data'!B43) -> DF_ID_3D_Bxyz | C43: =IF('DF raw data'!C43="","",'DF raw data'!C43) ->  | D43: =IF('DF raw data'!D43="","",'DF raw data'!D43) -> 
A44: =IF('DF raw data'!A44="","",'DF raw data'!A44) -> Probe Danfysik Reg. Number | B44: =IF('DF raw data'!B44="","",'DF raw data'!B44) -> 2277 | C44: =IF('DF raw data'!C44="","",'DF raw data'!C44) ->  | D44: =IF('DF raw data'!D44="","",'DF raw data'!D44) -> 
A45: =IF('DF raw data'!A45="","",'DF raw data'!A45) -> Probe Axis | B45: =IF('DF raw data'!B45="","",'DF raw data'!B45) -> Bz | C45: =IF('DF raw data'!C45="","",'DF raw data'!C45) ->  | D45: =IF('DF raw data'!D45="","",'DF raw data'!D45) -> 
A46: =IF('DF raw data'!A46="","",'DF raw data'!A46) -> Probe Current Supply | B46: =IF('DF raw data'!B46="","",'DF raw data'!B46) -> 1825-D | C46: =IF('DF raw data'!C46="","",'DF raw data'!C46) ->  | D46: =IF('DF raw data'!D46="","",'DF raw data'!D46) -> 
A47: =IF('DF raw data'!A47="","",'DF raw data'!A47) -> Probe Gain Correction | B47: =IF('DF raw data'!B47="","",'DF raw data'!B47) -> 1 | C47: =IF('DF raw data'!C47="","",'DF raw data'!C47) ->  | D47: =IF('DF raw data'!D47="","",'DF raw data'!D47) -> 
A48: =IF('DF raw data'!A48="","",'DF raw data'!A48) -> Probe Offset Correction | B48: =IF('DF raw data'!B48="","",'DF raw data'!B48) -> 0.0073313 | C48: =IF('DF raw data'!C48="","",'DF raw data'!C48) ->  | D48: =IF('DF raw data'!D48="","",'DF raw data'!D48) -> 
A49: =IF('DF raw data'!A49="","",'DF raw data'!A49) -> DVM Number | B49: =IF('DF raw data'!B49="","",'DF raw data'!B49) -> 8 | C49: =IF('DF raw data'!C49="","",'DF raw data'!C49) ->  | D49: =IF('DF raw data'!D49="","",'DF raw data'!D49) -> 
A50: =IF('DF raw data'!A50="","",'DF raw data'!A50) -> DVM Type | B50: =IF('DF raw data'!B50="","",'DF raw data'!B50) -> K2700 | C50: =IF('DF raw data'!C50="","",'DF raw data'!C50) ->  | D50: =IF('DF raw data'!D50="","",'DF raw data'!D50) -> 
A51: =IF('DF raw data'!A51="","",'DF raw data'!A51) -> DVM Danfysik Reg. Number | B51: =IF('DF raw data'!B51="","",'DF raw data'!B51) -> 1756-D | C51: =IF('DF raw data'!C51="","",'DF raw data'!C51) ->  | D51: =IF('DF raw data'!D51="","",'DF raw data'!D51) -> 
A52: =IF('DF raw data'!A52="","",'DF raw data'!A52) -> NTC voltage | B52: =IF('DF raw data'!B52="","",'DF raw data'!B52) -> 0.41683 | C52: =IF('DF raw data'!C52="","",'DF raw data'!C52) ->  | D52: =IF('DF raw data'!D52="","",'DF raw data'!D52) -> 
A53: =IF('DF raw data'!A53="","",'DF raw data'!A53) -> PS-Gap: | B53: =IF('DF raw data'!B53="","",'DF raw data'!B53) -> 10 | C53: =IF('DF raw data'!C53="","",'DF raw data'!C53) ->  | D53: =IF('DF raw data'!D53="","",'DF raw data'!D53) -> 
A54: =IF('DF raw data'!A54="","",'DF raw data'!A54) -> PS-Temperature: | B54: =IF('DF raw data'!B54="","",'DF raw data'!B54) -> 23.5 | C54: =IF('DF raw data'!C54="","",'DF raw data'!C54) ->  | D54: =IF('DF raw data'!D54="","",'DF raw data'!D54) -> 
A55: =IF('DF raw data'!A55="","",'DF raw data'!A55) -> PS-Encoder: | B55: =IF('DF raw data'!B55="","",'DF raw data'!B55) -> 19.6817 | C55: =IF('DF raw data'!C55="","",'DF raw data'!C55) ->  | D55: =IF('DF raw data'!D55="","",'DF raw data'!D55) -> 
A56: =IF('DF raw data'!A56="","",'DF raw data'!A56) ->  | B56: =IF('DF raw data'!B56="","",'DF raw data'!B56) -> 
A57: =IF('DF raw data'!A57="","",'DF raw data'!A57) -> Monitor-Index | B57: =IF('DF raw data'!B57="","",'DF raw data'!B57) -> [1,1,4]
A58: =IF('DF raw data'!A58="","",'DF raw data'!A58) ->  | B58: =IF('DF raw data'!B58="","",'DF raw data'!B58) -> 
A59: =IF('DF raw data'!A59="","",'DF raw data'!A59) -> Time [s] | B59: =IF('DF raw data'!B59="","",'DF raw data'!B59) -> Y [mm]
A60: =IF('DF raw data'!A60="","",'DF raw data'!A60) ->  | B60: =IF('DF raw data'!B60="","",'DF raw data'!B60) -> 
A61: =IF('DF raw data'!A61="","",'DF raw data'!A61) -> 209.9 | B61: =IF('DF raw data'!B61="","",'DF raw data'!B61) -> 31.56
A62: =IF('DF raw data'!A62="","",'DF raw data'!A62) ->  | B62: =IF('DF raw data'!B62="","",'DF raw data'!B62) -> 
A63: =IF('DF raw data'!A63="","",'DF raw data'!A63) -> Measurement-Index | B63: =IF('DF raw data'!B63="","",'DF raw data'!B63) -> [1,1,1201,2]
A64: =IF('DF raw data'!A64="","",'DF raw data'!A64) ->  | B64: =IF('DF raw data'!B64="","",'DF raw data'!B64) -> 
A65: =IF('DF raw data'!A65="","",'DF raw data'!A65) -> Z [mm] | B65: =IF('DF raw data'!B65="","",'DF raw data'!B65) -> By [T] | C65: =IF('DF raw data'!C65="","",'DF raw data'!C65) -> Bx [T] | D65: =IF('DF raw data'!D65="","",'DF raw data'!D65) -> Bz [T] | F65: By_corr | G65: Bx_corr | H65: Bz_corr | J65: Iy | K65: Jy | L65: Ix | M65: Jx | N65: PI
A66: =IF('DF raw data'!A66="","",'DF raw data'!A66) -> [1, 0, 0, 0] | B66: =IF('DF raw data'!B66="","",'DF raw data'!B66) ->  | C66: =IF('DF raw data'!C66="","",'DF raw data'!C66) ->  | D66: =IF('DF raw data'!D66="","",'DF raw data'!D66) -> 
A67: =IF('DF raw data'!A67="","",'DF raw data'!A67) -> -300 | B67: =IF('DF raw data'!B67="","",'DF raw data'!B67) -> -1.69353e-05 | C67: =IF('DF raw data'!C67="","",'DF raw data'!C67) -> 0.000134196 | D67: =IF('DF raw data'!D67="","",'DF raw data'!D67) -> -1.19803e-05 | F67: =(1-$G$1*($B$54-$G$2))*(B67-F$5) -> 1.115619464e-05 | G67: =(1-$G$1*($B$54-$G$2))*(C67-G$5) -> 2.298629093e-05 | H67: =(1-$G$1*($B$54-$G$2))*(D67-H$5) -> -3.312619829e-06 | J67: =F67*$G$3+J66 -> 5.57809732e-06 | K67: =J67*$G$3+K66 -> 2.78904866e-06 | L67: =G67*$G$3+L66 -> 1.149314547e-05 | M67: =L67*$G$3+M66 -> 5.746572733e-06 | N67: =(J67^2+L67^2)*$G$3+N66 -> 8.16037812e-11
A68: =IF('DF raw data'!A68="","",'DF raw data'!A68) -> -299.5 | B68: =IF('DF raw data'!B68="","",'DF raw data'!B68) -> -3.039e-05 | C68: =IF('DF raw data'!C68="","",'DF raw data'!C68) -> 0.000130089 | D68: =IF('DF raw data'!D68="","",'DF raw data'!D68) -> -1.11682e-05 | F68: -2.345596809e-06 | G68: 1.886491643e-05 | H68: -2.497677479e-06 | J68: =F68*$G$3+J67 -> 4.405298916e-06 | K68: =J68*$G$3+K67 -> 4.991698118e-06 | L68: =G68*$G$3+L67 -> 2.092560368e-05 | M68: =L68*$G$3+M67 -> 1.620937457e-05 | N68: =(J68^2+L68^2)*$G$3+N67 -> 3.102475552e-10
A69: =IF('DF raw data'!A69="","",'DF raw data'!A69) -> -299 | B69: =IF('DF raw data'!B69="","",'DF raw data'!B69) -> -3.49396e-05 | C69: =IF('DF raw data'!C69="","",'DF raw data'!C69) -> 0.000132635 | D69: =IF('DF raw data'!D69="","",'DF raw data'!D69) -> -9.95256e-06 | F69: -6.911120409e-06 | G69: 2.141982743e-05 | H69: -1.277782739e-06 | J69: 9.497387113e-07 | K69: 5.466567474e-06 | L69: 3.16355174e-05 | M69: 3.202713327e-05 | N69: 8.111015374e-10
A70: =IF('DF raw data'!A70="","",'DF raw data'!A70) -> -298.5 | B70: =IF('DF raw data'!B70="","",'DF raw data'!B70) -> -2.43049e-05 | C70: =IF('DF raw data'!C70="","",'DF raw data'!C70) -> 0.000129778 | D70: =IF('DF raw data'!D70="","",'DF raw data'!D70) -> -9.4817e-06 | F70: 3.760801041e-06 | G70: 1.855282793e-05 | H70: -8.052747289e-07 | J70: 2.830139232e-06 | K70: 6.88163709e-06 | L70: 4.091193136e-05 | M70: 5.248309895e-05 | N70: 1.651999445e-09
A71: =IF('DF raw data'!A71="","",'DF raw data'!A71) -> -298 | B71: =IF('DF raw data'!B71="","",'DF raw data'!B71) -> -4.2373e-05 | C71: =IF('DF raw data'!C71="","",'DF raw data'!C71) -> 0.000139503 | D71: =IF('DF raw data'!D71="","",'DF raw data'!D71) -> -8.95931e-06 | F71: -1.437053731e-05 | G71: 2.831186543e-05 | H71: -2.810563639e-07 | J71: -4.355129423e-06 | K71: 4.704072378e-06 | L71: 5.506786408e-05 | M71: 8.001703099e-05 | N71: 3.177717848e-09
A72: =IF('DF raw data'!A72="","",'DF raw data'!A72) -> -297.5 | B72: =IF('DF raw data'!B72="","",'DF raw data'!B72) -> -2.94951e-05 | C72: =IF('DF raw data'!C72="","",'DF raw data'!C72) -> 0.000141367 | D72: =IF('DF raw data'!D72="","",'DF raw data'!D72) -> -8.29302e-06 | F72: -1.447564659e-06 | G72: 3.018238943e-05 | H72: 3.875656511e-07 | J72: -5.078911752e-06 | K72: 2.164616502e-06 | L72: 7.015905879e-05 | M72: 0.0001150965604 | N72: 5.651762286e-09
A73: =IF('DF raw data'!A73="","",'DF raw data'!A73) -> -297 | B73: =IF('DF raw data'!B73="","",'DF raw data'!B73) -> -3.05849e-05 | C73: =IF('DF raw data'!C73="","",'DF raw data'!C73) -> 0.000138151 | D73: =IF('DF raw data'!D73="","",'DF raw data'!D73) -> -8.21744e-06 | F73: -2.541178959e-06 | G73: 2.695513343e-05 | H73: 4.634101811e-07 | J73: -6.349501232e-06 | K73: -1.010134114e-06 | L73: 8.363662551e-05 | M73: 0.0001569148731 | N73: 9.169462932e-09
A74: =IF('DF raw data'!A74="","",'DF raw data'!A74) -> -296.5 | B74: =IF('DF raw data'!B74="","",'DF raw data'!B74) -> -2.27677e-05 | C74: =IF('DF raw data'!C74="","",'DF raw data'!C74) -> 0.000142873 | D74: =IF('DF raw data'!D74="","",'DF raw data'!D74) -> -8.95405e-06 | F74: 5.303381241e-06 | G74: 3.169366043e-05 | H74: -2.757779539e-07 | J74: -3.697810612e-06 | K74: -2.85903942e-06 | L74: 9.948345572e-05 | M74: 0.000206656601 | N74: 1.412477881e-08
A75: =IF('DF raw data'!A75="","",'DF raw data'!A75) -> -296 | B75: =IF('DF raw data'!B75="","",'DF raw data'!B75) -> -3.07121e-05 | C75: =IF('DF raw data'!C75="","",'DF raw data'!C75) -> 0.000149393 | D75: =IF('DF raw data'!D75="","",'DF raw data'!D75) -> -9.70724e-06 | F75: -2.668824159e-06 | G75: 3.823648043e-05 | H75: -1.031604119e-06 | J75: -5.032222691e-06 | K75: -5.375150765e-06 | L75: 0.0001186016959 | M75: 0.000265957449 | N75: 2.117062159e-08
A76: =IF('DF raw data'!A76="","",'DF raw data'!A76) -> -295.5 | B76: =IF('DF raw data'!B76="","",'DF raw data'!B76) -> -2.80849e-05 | C76: =IF('DF raw data'!C76="","",'DF raw data'!C76) -> 0.000147676 | D76: =IF('DF raw data'!D76="","",'DF raw data'!D76) -> -9.84047e-06 | F76: -3.242895915e-08 | G76: 3.651347093e-05 | H76: -1.165300424e-06 | J76: -5.048437171e-06 | K76: -7.899369351e-06 | L76: 0.0001368584314 | M76: 0.0003343866647 | N76: 3.054848007e-08
A77: =IF('DF raw data'!A77="","",'DF raw data'!A77) -> -295 | B77: =IF('DF raw data'!B77="","",'DF raw data'!B77) -> -4.16682e-05 | C77: =IF('DF raw data'!C77="","",'DF raw data'!C77) -> 0.000141052 | D77: =IF('DF raw data'!D77="","",'DF raw data'!D77) -> -8.94987e-06 | F77: -1.366327051e-05 | G77: 2.986628693e-05 | H77: -2.715833239e-07 | J77: -1.188007243e-05 | K77: -1.383940556e-05 | L77: 0.0001517915749 | M77: 0.0004102824521 | N77: 4.213938923e-08
A78: =IF('DF raw data'!A78="","",'DF raw data'!A78) -> -294.5 | B78: =IF('DF raw data'!B78="","",'DF raw data'!B78) -> -3.02006e-05 | C78: =IF('DF raw data'!C78="","",'DF raw data'!C78) -> 0.000137024 | D78: =IF('DF raw data'!D78="","",'DF raw data'!D78) -> -7.75581e-06 | F78: -2.155533909e-06 | G78: 2.582418893e-05 | H78: 9.266558861e-07 | J78: -1.295783938e-05 | K78: -2.031832525e-05 | L78: 0.0001647036693 | M78: 0.0004926342868 | N78: 5.578699138e-08
A79: =IF('DF raw data'!A79="","",'DF raw data'!A79) -> -294 | B79: =IF('DF raw data'!B79="","",'DF raw data'!B79) -> -3.01367e-05 | C79: =IF('DF raw data'!C79="","",'DF raw data'!C79) -> 0.000127916 | D79: =IF('DF raw data'!D79="","",'DF raw data'!D79) -> -7.40795e-06 | F79: -2.091410259e-06 | G79: 1.668431093e-05 | H79: 1.275733396e-06 | J79: -1.400354451e-05 | K79: -2.732009751e-05 | L79: 0.0001730458248 | M79: 0.0005791571992 | N79: 7.085746975e-08
A80: =IF('DF raw data'!A80="","",'DF raw data'!A80) -> -293.5 | B80: =IF('DF raw data'!B80="","",'DF raw data'!B80) -> -1.42468e-05 | C80: =IF('DF raw data'!C80="","",'DF raw data'!C80) -> 0.000135707 | D80: =IF('DF raw data'!D80="","",'DF raw data'!D80) -> -8.60611e-06 | F80: 1.385410439e-05 | G80: 2.450257943e-05 | H80: 7.33798361e-08 | J80: -7.076492314e-06 | K80: -3.085834367e-05 | L80: 0.0001852971145 | M80: 0.0006718057564 | N80: 8.805001844e-08
A81: =IF('DF raw data'!A81="","",'DF raw data'!A81) -> -293 | B81: =IF('DF raw data'!B81="","",'DF raw data'!B81) -> -2.12293e-05 | C81: =IF('DF raw data'!C81="","",'DF raw data'!C81) -> 0.000135165 | D81: =IF('DF raw data'!D81="","",'DF raw data'!D81) -> -1.00017e-05 | F81: 6.847165641e-06 | G81: 2.395868243e-05 | H81: -1.327094729e-06 | J81: -3.652909494e-06 | K81: -3.268479841e-05 | L81: 0.0001972764557 | M81: 0.0007704439843 | N81: 1.075156903e-07
A82: =IF('DF raw data'!A82="","",'DF raw data'!A82) -> -292.5 | B82: =IF('DF raw data'!B82="","",'DF raw data'!B82) -> -3.25056e-05 | C82: =IF('DF raw data'!C82="","",'DF raw data'!C82) -> 0.000124848 | D82: =IF('DF raw data'!D82="","",'DF raw data'!D82) -> -9.85441e-06 | F82: -4.468601409e-06 | G82: 1.360557293e-05 | H82: -1.179289214e-06 | J82: -5.887210198e-06 | K82: -3.562840351e-05 | L82: 0.0002040792422 | M82: 0.0008724836054 | N82: 1.283571885e-07
A83: =IF('DF raw data'!A83="","",'DF raw data'!A83) -> -292 | B83: =IF('DF raw data'!B83="","",'DF raw data'!B83) -> -3.4044e-05 | C83: =IF('DF raw data'!C83="","",'DF raw data'!C83) -> 0.000128967 | D83: =IF('DF raw data'!D83="","",'DF raw data'!D83) -> -8.67265e-06 | F83: -6.012385809e-06 | G83: 1.773898943e-05 | H83: 6.606946098e-09 | J83: -8.893403103e-06 | K83: -4.007510506e-05 | L83: 0.0002129487369 | M83: 0.0009789579738 | N83: 1.510703171e-07
A84: =IF('DF raw data'!A84="","",'DF raw data'!A84) -> -291.5 | B84: =IF('DF raw data'!B84="","",'DF raw data'!B84) -> -2.12248e-05 | C84: =IF('DF raw data'!C84="","",'DF raw data'!C84) -> 0.000136111 | D84: =IF('DF raw data'!D84="","",'DF raw data'!D84) -> -1.69399e-05 | F84: 6.851681391e-06 | G84: 2.490799343e-05 | H84: -8.289578429e-06 | J84: -5.467562407e-06 | K84: -4.280888627e-05 | L84: 0.0002254027336 | M84: 0.001091659341 | N84: 1.764884603e-07
A85: =IF('DF raw data'!A85="","",'DF raw data'!A85) -> -291 | B85: =IF('DF raw data'!B85="","",'DF raw data'!B85) -> -2.494e-05 | C85: =IF('DF raw data'!C85="","",'DF raw data'!C85) -> 0.000132472 | D85: =IF('DF raw data'!D85="","",'DF raw data'!D85) -> -1.83899e-05 | F85: 3.123478191e-06 | G85: 2.125625693e-05 | H85: -9.744653429e-06 | J85: -3.905823312e-06 | K85: -4.476179792e-05 | L85: 0.0002360308621 | M85: 0.001209674772 | N85: 2.04351372e-07
A86: =IF('DF raw data'!A86="","",'DF raw data'!A86) -> -290.5 | B86: =IF('DF raw data'!B86="","",'DF raw data'!B86) -> -2.5583e-05 | C86: =IF('DF raw data'!C86="","",'DF raw data'!C86) -> 0.000119751 | D86: =IF('DF raw data'!D86="","",'DF raw data'!D86) -> -1.47802e-05 | F86: 2.478227691e-06 | G86: 8.49073343e-06 | H86: -6.122319479e-06 | J86: -2.666709466e-06 | K86: -4.609515266e-05 | L86: 0.0002402762288 | M86: 0.001329812886 | N86: 2.332212607e-07
A87: =IF('DF raw data'!A87="","",'DF raw data'!A87) -> -290 | B87: =IF('DF raw data'!B87="","",'DF raw data'!B87) -> -2.28936e-05 | C87: =IF('DF raw data'!C87="","",'DF raw data'!C87) -> 0.000115461 | D87: =IF('DF raw data'!D87="","",'DF raw data'!D87) -> -1.2709e-05 | F87: 5.177040591e-06 | G87: 4.18571843e-06 | H87: -4.043870279e-06 | J87: -7.818917104e-08 | K87: -4.613424724e-05 | L87: 0.000242369088 | M87: 0.00145099743 | N87: 2.625926512e-07
A88: =IF('DF raw data'!A88="","",'DF raw data'!A88) -> -289.5 | B88: =IF('DF raw data'!B88="","",'DF raw data'!B88) -> -2.39191e-05 | C88: =IF('DF raw data'!C88="","",'DF raw data'!C88) -> 0.000114569 | D88: =IF('DF raw data'!D88="","",'DF raw data'!D88) -> -1.19093e-05 | F88: 4.147951341e-06 | G88: 3.29059643e-06 | H88: -3.241371329e-06 | J88: 1.995786499e-06 | K88: -4.513635399e-05 | L88: 0.0002440143862 | M88: 0.001573004623 | N88: 2.923661531e-07
A89: =IF('DF raw data'!A89="","",'DF raw data'!A89) -> -289 | B89: =IF('DF raw data'!B89="","",'DF raw data'!B89) -> -1.18724e-05 | C89: =IF('DF raw data'!C89="","",'DF raw data'!C89) -> 0.000117201 | D89: =IF('DF raw data'!D89="","",'DF raw data'!D89) -> -1.44135e-05 | F89: 1.623681479e-05 | G89: 5.93180843e-06 | H89: -5.754336029e-06 | J89: 1.011419389e-05 | K89: -4.007925704e-05 | L89: 0.0002469802905 | M89: 0.001696494768 | N89: 3.229169335e-07
A90: =IF('DF raw data'!A90="","",'DF raw data'!A90) -> -288.5 | B90: =IF('DF raw data'!B90="","",'DF raw data'!B90) -> -2.97407e-05 | C90: =IF('DF raw data'!C90="","",'DF raw data'!C90) -> 0.000125533 | D90: =IF('DF raw data'!D90="","",'DF raw data'!D90) -> -2.51281e-05 | F90: -1.694024259e-06 | G90: 1.429297043e-05 | H90: -1.650643713e-05 | J90: 9.267181765e-06 | K90: -3.544566616e-05 | L90: 0.0002541267757 | M90: 0.001823558156 | N90: 3.552500829e-07
A91: =IF('DF raw data'!A91="","",'DF raw data'!A91) -> -288 | B91: =IF('DF raw data'!B91="","",'DF raw data'!B91) -> -1.79569e-05 | C91: =IF('DF raw data'!C91="","",'DF raw data'!C91) -> 0.000120079 | D91: =IF('DF raw data'!D91="","",'DF raw data'!D91) -> -1.74538e-05 | F91: 1.013101904e-05 | G91: 8.81988143e-06 | H91: -8.805277079e-06 | J91: 1.433269129e-05 | K91: -2.827932052e-05 | L91: 0.0002585367164 | M91: 0.001952826514 | N91: 3.887734128e-07
A92: =IF('DF raw data'!A92="","",'DF raw data'!A92) -> -287.5 | B92: =IF('DF raw data'!B92="","",'DF raw data'!B92) -> -1.78951e-05 | C92: =IF('DF raw data'!C92="","",'DF raw data'!C92) -> 0.000119945 | D92: =IF('DF raw data'!D92="","",'DF raw data'!D92) -> -1.41959e-05 | F92: 1.019303534e-05 | G92: 8.68541243e-06 | H92: -5.535974429e-06 | J92: 1.942920896e-05 | K92: -1.856471604e-05 | L92: 0.0002628794226 | M92: 0.002084266226 | N92: 4.235149553e-07
A93: =IF('DF raw data'!A93="","",'DF raw data'!A93) -> -287 | B93: =IF('DF raw data'!B93="","",'DF raw data'!B93) -> -3.00627e-05 | C93: =IF('DF raw data'!C93="","",'DF raw data'!C93) -> 0.000125507 | D93: =IF('DF raw data'!D93="","",'DF raw data'!D93) -> -2.28022e-05 | F93: -2.017151259e-06 | G93: 1.426687943e-05 | H93: -1.417239648e-05 | J93: 1.842063333e-05 | K93: -9.354399377e-06 | L93: 0.0002700128623 | M93: 0.002219272657 | N93: 4.601380881e-07
A94: =IF('DF raw data'!A94="","",'DF raw data'!A94) -> -286.5 | B94: =IF('DF raw data'!B94="","",'DF raw data'!B94) -> -2.76936e-05 | C94: =IF('DF raw data'!C94="","",'DF raw data'!C94) -> 0.000131419 | D94: =IF('DF raw data'!D94="","",'DF raw data'!D94) -> -2.04441e-05 | F94: 3.602405909e-07 | G94: 2.019957143e-05 | H94: -1.180604313e-05 | J94: 1.860075362e-05 | K94: -5.402256585e-08 | L94: 0.000280112648 | M94: 0.002359328981 | N94: 4.995426299e-07
A95: =IF('DF raw data'!A95="","",'DF raw data'!A95) -> -286 | B95: =IF('DF raw data'!B95="","",'DF raw data'!B95) -> -2.39818e-05 | C95: =IF('DF raw data'!C95="","",'DF raw data'!C95) -> 0.000116949 | D95: =IF('DF raw data'!D95="","",'DF raw data'!D95) -> -1.38136e-05 | F95: 4.085031891e-06 | G95: 5.67892643e-06 | H95: -5.152336379e-06 | J95: 2.064326957e-05 | K95: 1.026761222e-05 | L95: 0.0002829521112 | M95: 0.002500805037 | N95: 5.397866508e-07
A96: =IF('DF raw data'!A96="","",'DF raw data'!A96) -> -285.5 | B96: =IF('DF raw data'!B96="","",'DF raw data'!B96) -> -3.10273e-05 | C96: =IF('DF raw data'!C96="","",'DF raw data'!C96) -> 0.000119168 | D96: =IF('DF raw data'!D96="","",'DF raw data'!D96) -> -1.71324e-05 | F96: -2.985127359e-06 | G96: 7.90569293e-06 | H96: -8.482752179e-06 | J96: 1.915070589e-05 | K96: 1.984296516e-05 | L96: 0.0002869049577 | M96: 0.002644257515 | N96: 5.811272529e-07
A97: =IF('DF raw data'!A97="","",'DF raw data'!A97) -> -285 | B97: =IF('DF raw data'!B97="","",'DF raw data'!B97) -> -3.10303e-05 | C97: =IF('DF raw data'!C97="","",'DF raw data'!C97) -> 0.000124924 | D97: =IF('DF raw data'!D97="","",'DF raw data'!D97) -> -1.25418e-05 | F97: -2.988137859e-06 | G97: 1.368183893e-05 | H97: -3.876085079e-06 | J97: 1.765663696e-05 | K97: 2.867128364e-05 | L97: 0.0002937458772 | M97: 0.002791130454 | N97: 6.244264515e-07
A98: =IF('DF raw data'!A98="","",'DF raw data'!A98) -> -284.5 | B98: =IF('DF raw data'!B98="","",'DF raw data'!B98) -> -2.2513e-05 | C98: =IF('DF raw data'!C98="","",'DF raw data'!C98) -> 0.000125912 | D98: =IF('DF raw data'!D98="","",'DF raw data'!D98) -> -6.37504e-06 | F98: 5.558972691e-06 | G98: 1.467329693e-05 | H98: 2.312258581e-06 | J98: 2.04361233e-05 | K98: 3.888934529e-05 | L98: 0.0003010825256 | M98: 0.002941671717 | N98: 6.699606127e-07
A99: =IF('DF raw data'!A99="","",'DF raw data'!A99) -> -284 | B99: =IF('DF raw data'!B99="","",'DF raw data'!B99) -> -3.29477e-05 | C99: =IF('DF raw data'!C99="","",'DF raw data'!C99) -> 0.000132151 | D99: =IF('DF raw data'!D99="","",'DF raw data'!D99) -> -1.96739e-05 | F99: -4.912248759e-06 | G99: 2.093413343e-05 | H99: -1.103314743e-05 | J99: 1.797999892e-05 | K99: 4.787934475e-05 | L99: 0.0003115495924 | M99: 0.003097446513 | N99: 7.186538271e-07
A100: =IF('DF raw data'!A100="","",'DF raw data'!A100) -> -283.5 | B100: =IF('DF raw data'!B100="","",'DF raw data'!B100) -> -2.20667e-05 | C100: =IF('DF raw data'!C100="","",'DF raw data'!C100) -> 0.000138944 | D100: =IF('DF raw data'!D100="","",'DF raw data'!D100) -> -3.20542e-06 | F100: 6.006834741e-06 | G100: 2.775090893e-05 | H100: 5.492972251e-06 | J100: 2.098341629e-05 | K100: 5.83710529e-05 | L100: 0.0003254250468 | M100: 0.003260159036 | N100: 7.718247096e-07
A101: =IF('DF raw data'!A101="","",'DF raw data'!A101) -> -283 | B101: =IF('DF raw data'!B101="","",'DF raw data'!B101) -> -2.78901e-05 | C101: =IF('DF raw data'!C101="","",'DF raw data'!C101) -> 0.000134789 | D101: =IF('DF raw data'!D101="","",'DF raw data'!D101) -> -1.36753e-05 | F101: 1.630528409e-07 | G101: 2.358136643e-05 | H101: -5.013552329e-06 | J101: 2.106494271e-05 | K101: 6.890352426e-05 | L101: 0.00033721573 | M101: 0.003428766901 | N101: 8.289037998e-07
A102: =IF('DF raw data'!A102="","",'DF raw data'!A102) -> -282.5 | B102: =IF('DF raw data'!B102="","",'DF raw data'!B102) -> -2.95555e-05 | C102: =IF('DF raw data'!C102="","",'DF raw data'!C102) -> 0.00011894 | D102: =IF('DF raw data'!D102="","",'DF raw data'!D102) -> -1.42513e-05 | F102: -1.508176059e-06 | G102: 7.67689493e-06 | H102: -5.591568329e-06 | J102: 2.031085469e-05 | K102: 7.90589516e-05 | L102: 0.0003410541775 | M102: 0.00359929399 | N102: 8.872690412e-07
A103: =IF('DF raw data'!A103="","",'DF raw data'!A103) -> -282 | B103: =IF('DF raw data'!B103="","",'DF raw data'!B103) -> -2.01393e-05 | C103: =IF('DF raw data'!C103="","",'DF raw data'!C103) -> 0.000118693 | D103: =IF('DF raw data'!D103="","",'DF raw data'!D103) -> -1.15051e-05 | F103: 7.940980641e-06 | G103: 7.42903043e-06 | H103: -2.835756629e-06 | J103: 2.428134501e-05 | K103: 9.119962411e-05 | L103: 0.0003447686927 | M103: 0.003771678337 | N103: 9.469965588e-07
A104: =IF('DF raw data'!A104="","",'DF raw data'!A104) -> -281.5 | B104: =IF('DF raw data'!B104="","",'DF raw data'!B104) -> -2.30865e-05 | C104: =IF('DF raw data'!C104="","",'DF raw data'!C104) -> 0.000123072 | D104: =IF('DF raw data'!D104="","",'DF raw data'!D104) -> -1.13443e-05 | F104: 4.983465441e-06 | G104: 1.182335693e-05 | H104: -2.674393829e-06 | J104: 2.677307773e-05 | K104: 0.000104586163 | L104: 0.0003506803712 | M104: 0.003947018522 | N104: 1.008843319e-06
A105: =IF('DF raw data'!A105="","",'DF raw data'!A105) -> -281 | B105: =IF('DF raw data'!B105="","",'DF raw data'!B105) -> -2.66025e-05 | C105: =IF('DF raw data'!C105="","",'DF raw data'!C105) -> 0.000122315 | D105: =IF('DF raw data'!D105="","",'DF raw data'!D105) -> -2.34541e-05 | F105: 1.455159441e-06 | G105: 1.106370743e-05 | H105: -1.482657813e-05 | J105: 2.750065745e-05 | K105: 0.0001183364917 | L105: 0.0003562122249 | M105: 0.004125124635 | N105: 1.072665037e-06
A106: =IF('DF raw data'!A106="","",'DF raw data'!A106) -> -280.5 | B106: =IF('DF raw data'!B106="","",'DF raw data'!B106) -> -2.66715e-05 | C106: =IF('DF raw data'!C106="","",'DF raw data'!C106) -> 0.000115183 | D106: =IF('DF raw data'!D106="","",'DF raw data'!D106) -> -1.59156e-05 | F106: 1.385917941e-06 | G106: 3.90674543e-06 | H106: -7.261693379e-06 | J106: 2.819361642e-05 | K106: 0.0001324332999 | L106: 0.0003581655976 | M106: 0.004304207433 | N106: 1.137203774e-06
A107: =IF('DF raw data'!A107="","",'DF raw data'!A107) -> -280 | B107: =IF('DF raw data'!B107="","",'DF raw data'!B107) -> -2.50065e-05 | C107: =IF('DF raw data'!C107="","",'DF raw data'!C107) -> 0.000115414 | D107: =IF('DF raw data'!D107="","",'DF raw data'!D107) -> -1.44069e-05 | F107: 3.056745441e-06 | G107: 4.13855393e-06 | H107: -5.747712929e-06 | J107: 2.972198914e-05 | K107: 0.0001472942945 | L107: 0.0003602348746 | M107: 0.004484324871 | N107: 1.202530055e-06
A108: =IF('DF raw data'!A108="","",'DF raw data'!A108) -> -279.5 | B108: =IF('DF raw data'!B108="","",'DF raw data'!B108) -> -3.96731e-05 | C108: =IF('DF raw data'!C108="","",'DF raw data'!C108) -> 0.00013101 | D108: =IF('DF raw data'!D108="","",'DF raw data'!D108) -> -2.27016e-05 | F108: -1.166118766e-05 | G108: 1.978913993e-05 | H108: -1.407144438e-05 | J108: 2.389139531e-05 | K108: 0.0001592399921 | L108: 0.0003701294445 | M108: 0.004669389593 | N108: 1.271313357e-06
A109: =IF('DF raw data'!A109="","",'DF raw data'!A109) -> -279 | B109: =IF('DF raw data'!B109="","",'DF raw data'!B109) -> -3.27495e-05 | C109: =IF('DF raw data'!C109="","",'DF raw data'!C109) -> 0.000137883 | D109: =IF('DF raw data'!D109="","",'DF raw data'!D109) -> -2.91615e-05 | F109: -4.713355059e-06 | G109: 2.668619543e-05 | H109: -2.055395403e-05 | J109: 2.153471778e-05 | K109: 0.000170007351 | L109: 0.0003834725423 | M109: 0.004861125864 | N109: 1.345070825e-06
A110: =IF('DF raw data'!A110="","",'DF raw data'!A110) -> -278.5 | B110: =IF('DF raw data'!B110="","",'DF raw data'!B110) -> -2.25597e-05 | C110: =IF('DF raw data'!C110="","",'DF raw data'!C110) -> 0.00013399 | D110: =IF('DF raw data'!D110="","",'DF raw data'!D110) -> -3.33217e-05 | F110: 5.512109241e-06 | G110: 2.277956993e-05 | H110: -2.472871473e-05 | J110: 2.42907724e-05 | K110: 0.0001821527372 | L110: 0.0003948623272 | M110: 0.005058557028 | N110: 1.423323974e-06
A111: =IF('DF raw data'!A111="","",'DF raw data'!A111) -> -278 | B111: =IF('DF raw data'!B111="","",'DF raw data'!B111) -> -3.01901e-05 | C111: =IF('DF raw data'!C111="","",'DF raw data'!C111) -> 0.00012738 | D111: =IF('DF raw data'!D111="","",'DF raw data'!D111) -> -2.40903e-05 | F111: -2.144997159e-06 | G111: 1.614643493e-05 | H111: -1.546500483e-05 | J111: 2.321827382e-05 | K111: 0.0001937618741 | L111: 0.0004029355447 | M111: 0.0052600248 | N111: 1.504772045e-06
A112: =IF('DF raw data'!A112="","",'DF raw data'!A112) -> -277.5 | B112: =IF('DF raw data'!B112="","",'DF raw data'!B112) -> -2.82677e-05 | C112: =IF('DF raw data'!C112="","",'DF raw data'!C112) -> 0.000128118 | D112: =IF('DF raw data'!D112="","",'DF raw data'!D112) -> -2.42689e-05 | F112: -2.158687591e-07 | G112: 1.688701793e-05 | H112: -1.564422993e-05 | J112: 2.311033944e-05 | K112: 0.0002053170438 | L112: 0.0004113790537 | M112: 0.005465714327 | N112: 1.589655452e-06
A113: =IF('DF raw data'!A113="","",'DF raw data'!A113) -> -277 | B113: =IF('DF raw data'!B113="","",'DF raw data'!B113) -> -1.93077e-05 | C113: =IF('DF raw data'!C113="","",'DF raw data'!C113) -> 0.000126671 | D113: =IF('DF raw data'!D113="","",'DF raw data'!D113) -> -9.4334e-06 | F113: 8.775491241e-06 | G113: 1.543495343e-05 | H113: -7.568056789e-07 | J113: 2.749808506e-05 | K113: 0.0002190660864 | L113: 0.0004190965304 | M113: 0.005675262592 | N113: 1.677854475e-06
A114: =IF('DF raw data'!A114="","",'DF raw data'!A114) -> -276.5 | B114: =IF('DF raw data'!B114="","",'DF raw data'!B114) -> -1.84057e-05 | C114: =IF('DF raw data'!C114="","",'DF raw data'!C114) -> 0.000114744 | D114: =IF('DF raw data'!D114="","",'DF raw data'!D114) -> -1.72263e-05 | F114: 9.680648241e-06 | G114: 3.46620893e-06 | H114: -8.576980829e-06 | J114: 3.233840918e-05 | K114: 0.000235235291 | L114: 0.0004208296348 | M114: 0.005885677409 | N114: 1.766926152e-06
A115: =IF('DF raw data'!A115="","",'DF raw data'!A115) -> -276 | B115: =IF('DF raw data'!B115="","",'DF raw data'!B115) -> -1.80232e-05 | C115: =IF('DF raw data'!C115="","",'DF raw data'!C115) -> 0.000122384 | D115: =IF('DF raw data'!D115="","",'DF raw data'!D115) -> -1.43491e-05 | F115: 1.006448699e-05 | G115: 1.113294893e-05 | H115: -5.689710629e-06 | J115: 3.737065268e-05 | K115: 0.0002539206173 | L115: 0.0004263961093 | M115: 0.006098875464 | N115: 1.858531256e-06
A116: =IF('DF raw data'!A116="","",'DF raw data'!A116) -> -275.5 | B116: =IF('DF raw data'!B116="","",'DF raw data'!B116) -> -1.76394e-05 | C116: =IF('DF raw data'!C116="","",'DF raw data'!C116) -> 0.000120912 | D116: =IF('DF raw data'!D116="","",'DF raw data'!D116) -> -1.33084e-05 | F116: 1.044963029e-05 | G116: 9.65579693e-06 | H116: -4.645368179e-06 | J116: 4.259546782e-05 | K116: 0.0002752183512 | L116: 0.0004312240078 | M116: 0.006314487468 | N116: 1.952415515e-06
A117: =IF('DF raw data'!A117="","",'DF raw data'!A117) -> -275 | B117: =IF('DF raw data'!B117="","",'DF raw data'!B117) -> -3.24411e-05 | C117: =IF('DF raw data'!C117="","",'DF raw data'!C117) -> 0.000115727 | D117: =IF('DF raw data'!D117="","",'DF raw data'!D117) -> -1.04413e-05 | F117: -4.403875659e-06 | G117: 4.45264943e-06 | H117: -1.768233329e-06 | J117: 4.039352999e-05 | K117: 0.0002954151162 | L117: 0.0004334503325 | M117: 0.006531212634 | N117: 2.047170929e-06
A118: =IF('DF raw data'!A118="","",'DF raw data'!A118) -> -274.5 | B118: =IF('DF raw data'!B118="","",'DF raw data'!B118) -> -2.61586e-05 | C118: =IF('DF raw data'!C118="","",'DF raw data'!C118) -> 0.000118211 | D118: =IF('DF raw data'!D118="","",'DF raw data'!D118) -> -1.6178e-05 | F118: 1.900613091e-06 | G118: 6.94534343e-06 | H118: -7.525011779e-06 | J118: 4.134383654e-05 | K118: 0.0003160870345 | L118: 0.0004369230042 | M118: 0.006749674136 | N118: 2.143476441e-06
A119: =IF('DF raw data'!A119="","",'DF raw data'!A119) -> -274 | B119: =IF('DF raw data'!B119="","",'DF raw data'!B119) -> -2.8341e-05 | C119: =IF('DF raw data'!C119="","",'DF raw data'!C119) -> 0.000126938 | D119: =IF('DF raw data'!D119="","",'DF raw data'!D119) -> -1.01607e-05 | F119: -2.894253091e-07 | G119: 1.570288793e-05 | H119: -1.486651229e-06 | J119: 4.119912388e-05 | K119: 0.0003366865964 | L119: 0.0004447744482 | M119: 0.00697206136 | N119: 2.24323728e-06
A120: =IF('DF raw data'!A120="","",'DF raw data'!A120) -> -273.5 | B120: =IF('DF raw data'!B120="","",'DF raw data'!B120) -> -2.53933e-05 | C120: =IF('DF raw data'!C120="","",'DF raw data'!C120) -> 0.000130166 | D120: =IF('DF raw data'!D120="","",'DF raw data'!D120) -> -1.07449e-05 | F120: 2.668591641e-06 | G120: 1.894218593e-05 | H120: -2.072895929e-06 | J120: 4.25334197e-05 | K120: 0.0003579533063 | L120: 0.0004542455411 | M120: 0.007199184131 | N120: 2.347311332e-06
A121: =IF('DF raw data'!A121="","",'DF raw data'!A121) -> -273 | B121: =IF('DF raw data'!B121="","",'DF raw data'!B121) -> -2.77596e-05 | C121: =IF('DF raw data'!C121="","",'DF raw data'!C121) -> 0.000123605 | D121: =IF('DF raw data'!D121="","",'DF raw data'!D121) -> -1.74346e-05 | F121: 2.940095909e-07 | G121: 1.235822243e-05 | H121: -8.786009879e-06 | J121: 4.26804245e-05 | K121: 0.0003792935185 | L121: 0.0004604246523 | M121: 0.007429396457 | N121: 2.454217572e-06
A122: =IF('DF raw data'!A122="","",'DF raw data'!A122) -> -272.5 | B122: =IF('DF raw data'!B122="","",'DF raw data'!B122) -> -1.02108e-05 | C122: =IF('DF raw data'!C122="","",'DF raw data'!C122) -> 0.000128283 | D122: =IF('DF raw data'!D122="","",'DF raw data'!D122) -> -8.12677e-06 | F122: 1.790423039e-05 | G122: 1.705259543e-05 | H122: 5.543975261e-07 | J122: 5.163253969e-05 | K122: 0.0004051097884 | L122: 0.0004689509501 | M122: 0.007663871932 | N122: 2.565508028e-06
A123: =IF('DF raw data'!A123="","",'DF raw data'!A123) -> -272 | B123: =IF('DF raw data'!B123="","",'DF raw data'!B123) -> -2.74983e-05 | C123: =IF('DF raw data'!C123="","",'DF raw data'!C123) -> 0.000123492 | D123: =IF('DF raw data'!D123="","",'DF raw data'!D123) -> -2.52139e-05 | F123: 5.562241409e-07 | G123: 1.224482693e-05 | H123: -1.659253743e-05 | J123: 5.191065176e-05 | K123: 0.0004310651142 | L123: 0.0004750733635 | M123: 0.007901408614 | N123: 2.679702736e-06
A124: =IF('DF raw data'!A124="","",'DF raw data'!A124) -> -271.5 | B124: =IF('DF raw data'!B124="","",'DF raw data'!B124) -> -2.23809e-05 | C124: =IF('DF raw data'!C124="","",'DF raw data'!C124) -> 0.00012368 | D124: =IF('DF raw data'!D124="","",'DF raw data'!D124) -> -1.24855e-05 | F124: 5.691535041e-06 | G124: 1.243348493e-05 | H124: -3.819588029e-06 | J124: 5.475641928e-05 | K124: 0.0004584433239 | L124: 0.000481290106 | M124: 0.008142053667 | N124: 2.797021952e-06
A125: =IF('DF raw data'!A125="","",'DF raw data'!A125) -> -271 | B125: =IF('DF raw data'!B125="","",'DF raw data'!B125) -> -2.72471e-05 | C125: =IF('DF raw data'!C125="","",'DF raw data'!C125) -> 0.000130462 | D125: =IF('DF raw data'!D125="","",'DF raw data'!D125) -> -1.73612e-05 | F125: 8.083033409e-07 | G125: 1.923922193e-05 | H125: -8.712352979e-06 | J125: 5.516057096e-05 | K125: 0.0004860236094 | L125: 0.0004909097169 | M125: 0.008387508525 | N125: 2.919039471e-06
A126: =IF('DF raw data'!A126="","",'DF raw data'!A126) -> -270.5 | B126: =IF('DF raw data'!B126="","",'DF raw data'!B126) -> -3.23703e-05 | C126: =IF('DF raw data'!C126="","",'DF raw data'!C126) -> 0.000125778 | D126: =IF('DF raw data'!D126="","",'DF raw data'!D126) -> -2.10708e-05 | F126: -4.332827859e-06 | G126: 1.453882793e-05 | H126: -1.243493658e-05 | J126: 5.299415703e-05 | K126: 0.0005125206879 | L126: 0.0004981791309 | M126: 0.008636598091 | N126: 3.044534885e-06
A127: =IF('DF raw data'!A127="","",'DF raw data'!A127) -> -270 | B127: =IF('DF raw data'!B127="","",'DF raw data'!B127) -> -2.24469e-05 | C127: =IF('DF raw data'!C127="","",'DF raw data'!C127) -> 0.000124794 | D127: =IF('DF raw data'!D127="","",'DF raw data'!D127) -> -9.77259e-06 | F127: 5.625304041e-06 | G127: 1.355138393e-05 | H127: -1.097182844e-06 | J127: 5.580680905e-05 | K127: 0.0005404240924 | L127: 0.0005049548229 | M127: 0.008889075502 | N127: 3.173581771e-06
A128: =IF('DF raw data'!A128="","",'DF raw data'!A128) -> -269.5 | B128: =IF('DF raw data'!B128="","",'DF raw data'!B128) -> -2.32802e-05 | C128: =IF('DF raw data'!C128="","",'DF raw data'!C128) -> 0.000125641 | D128: =IF('DF raw data'!D128="","",'DF raw data'!D128) -> -9.31805e-06 | F128: 4.789087491e-06 | G128: 1.440134843e-05 | H128: -6.410519539e-07 | J128: =F128*$G$3+J127 -> 5.820135279e-05 | K128: =J128*$G$3+K127 -> 0.0005695247688 | L128: =G128*$G$3+L127 -> 0.0005121554971 | M128: =L128*$G$3+M127 -> 0.009145153251 | N128: =(J128^2+L128^2)*$G$3+N127 -> 3.306427097e-06
A129: =IF('DF raw data'!A129="","",'DF raw data'!A129) -> -269 | B129: =IF('DF raw data'!B129="","",'DF raw data'!B129) -> -2.3848e-05 | C129: =IF('DF raw data'!C129="","",'DF raw data'!C129) -> 0.00011897 | D129: =IF('DF raw data'!D129="","",'DF raw data'!D129) -> -2.27437e-05 | F129: 4.219300191e-06 | G129: 7.70699993e-06 | H129: -1.411369173e-05 | J129: 6.031100289e-05 | K129: 0.0005996802702 | L129: 0.0005160089971 | M129: 0.009403157749 | N129: 3.441378448e-06
A130: =IF('DF raw data'!A130="","",'DF raw data'!A130) -> -268.5 | B130: =IF('DF raw data'!B130="","",'DF raw data'!B130) -> -1.88015e-05 | C130: =IF('DF raw data'!C130="","",'DF raw data'!C130) -> 0.000117885 | D130: =IF('DF raw data'!D130="","",'DF raw data'!D130) -> 4.0307e-07 | F130: 9.283462941e-06 | G130: 6.61820243e-06 | H130: 9.114091966e-06 | J130: 6.495273436e-05 | K130: 0.0006321566374 | L130: 0.0005193180983 | M130: 0.009662816798 | N130: 3.57833352e-06
A131: =IF('DF raw data'!A131="","",'DF raw data'!A131) -> -268 | B131: =IF('DF raw data'!B131="","",'DF raw data'!B131) -> -1.99497e-05 | C131: =IF('DF raw data'!C131="","",'DF raw data'!C131) -> 0.000113971 | D131: =IF('DF raw data'!D131="","",'DF raw data'!D131) -> -7.32583e-06 | F131: =(1-$G$1*($B$54-$G$2))*(B131-F$5) -> 8.131244241e-06 | G131: =(1-$G$1*($B$54-$G$2))*(C131-G$5) -> 2.69050343e-06 | H131: =(1-$G$1*($B$54-$G$2))*(D131-H$5) -> 1.358140816e-06 | J131: 6.901835648e-05 | K131: 0.0006666658157 | L131: 0.00052066335 | M131: 0.009923148473 | N131: 3.716260449e-06
A132: =IF('DF raw data'!A132="","",'DF raw data'!A132) -> -267.5 | B132: =IF('DF raw data'!B132="","",'DF raw data'!B132) -> -2.55881e-05 | C132: =IF('DF raw data'!C132="","",'DF raw data'!C132) -> 0.000112581 | D132: =IF('DF raw data'!D132="","",'DF raw data'!D132) -> -6.94966e-06 | F132: 2.473109841e-06 | G132: 1.29563843e-06 | H132: 1.735627411e-06 | J132: 7.02549114e-05 | K132: 0.0007017932714 | L132: 0.0005213111692 | M132: 0.01018380406 | N132: 3.854610993e-06
A133: =IF('DF raw data'!A133="","",'DF raw data'!A133) -> -267 | B133: =IF('DF raw data'!B133="","",'DF raw data'!B133) -> -2.7507e-05 | C133: =IF('DF raw data'!C133="","",'DF raw data'!C133) -> 0.000106971 | D133: =IF('DF raw data'!D133="","",'DF raw data'!D133) -> -1.17601e-05 | F133: 5.474936909e-07 | G133: -4.33399657e-06 | H133: -3.091649129e-06 | J133: 7.052865824e-05 | K133: 0.0007370576005 | L133: 0.0005191441709 | M133: 0.01044337614 | N133: 3.991853474e-06
A134: =IF('DF raw data'!A134="","",'DF raw data'!A134) -> -266.5 | B134: =IF('DF raw data'!B134="","",'DF raw data'!B134) -> -2.16729e-05 | C134: =IF('DF raw data'!C134="","",'DF raw data'!C134) -> 0.000106073 | D134: =IF('DF raw data'!D134="","",'DF raw data'!D134) -> -1.77844e-05 | F134: 6.402013041e-06 | G134: -5.23513957e-06 | H134: -9.137034179e-06 | J134: 7.372966476e-05 | K134: 0.0007739224329 | L134: 0.0005165266011 | M134: 0.01070163944 | N134: 4.12797137e-06
A135: =IF('DF raw data'!A135="","",'DF raw data'!A135) -> -266 | B135: =IF('DF raw data'!B135="","",'DF raw data'!B135) -> -2.41694e-05 | C135: =IF('DF raw data'!C135="","",'DF raw data'!C135) -> 0.000109228 | D135: =IF('DF raw data'!D135="","",'DF raw data'!D135) -> -2.11957e-05 | F135: 3.896775291e-06 | G135: -2.06909707e-06 | H135: -1.256027373e-05 | J135: 7.567805241e-05 | K135: 0.0008117614591 | L135: 0.0005154920526 | M135: 0.01095938547 | N135: 4.263700982e-06
A136: =IF('DF raw data'!A136="","",'DF raw data'!A136) -> -265.5 | B136: =IF('DF raw data'!B136="","",'DF raw data'!B136) -> -2.83346e-05 | C136: =IF('DF raw data'!C136="","",'DF raw data'!C136) -> 0.000111307 | D136: =IF('DF raw data'!D136="","",'DF raw data'!D136) -> -2.01113e-05 | F136: -2.830029091e-07 | G136: 1.717943049e-08 | H136: -1.147207833e-05 | J136: 7.553655095e-05 | K136: 0.0008495297345 | L136: 0.0005155006423 | M136: 0.01121713579 | N136: 4.399424324e-06
A137: =IF('DF raw data'!A137="","",'DF raw data'!A137) -> -265 | B137: =IF('DF raw data'!B137="","",'DF raw data'!B137) -> -2.4492e-05 | C137: =IF('DF raw data'!C137="","",'DF raw data'!C137) -> 0.000108608 | D137: =IF('DF raw data'!D137="","",'DF raw data'!D137) -> -1.74982e-05 | F137: 3.573046191e-06 | G137: -2.69126707e-06 | H137: -8.849832479e-06 | J137: 7.732307405e-05 | K137: 0.0008881912716 | L137: 0.0005141550088 | M137: 0.0114742133 | N137: 4.534591439e-06
A138: =IF('DF raw data'!A138="","",'DF raw data'!A138) -> -264.5 | B138: =IF('DF raw data'!B138="","",'DF raw data'!B138) -> -1.97524e-05 | C138: =IF('DF raw data'!C138="","",'DF raw data'!C138) -> 0.000114642 | D138: =IF('DF raw data'!D138="","",'DF raw data'!D138) -> -1.54839e-05 | F138: 8.329234791e-06 | G138: 3.36385193e-06 | H138: -6.828482429e-06 | J138: 8.148769145e-05 | K138: 0.0009289351173 | L138: 0.0005158369347 | M138: 0.01173213176 | N138: 4.670955433e-06
A139: =IF('DF raw data'!A139="","",'DF raw data'!A139) -> -264 | B139: =IF('DF raw data'!B139="","",'DF raw data'!B139) -> -1.01429e-05 | C139: =IF('DF raw data'!C139="","",'DF raw data'!C139) -> 0.000116162 | D139: =IF('DF raw data'!D139="","",'DF raw data'!D139) -> -1.37996e-05 | F139: 1.797236804e-05 | G139: 4.88917193e-06 | H139: -5.138287379e-06 | J139: 9.047387547e-05 | K139: 0.000974172055 | L139: 0.0005182815207 | M139: 0.01199127252 | N139: 4.809356061e-06
A140: =IF('DF raw data'!A140="","",'DF raw data'!A140) -> -263.5 | B140: =IF('DF raw data'!B140="","",'DF raw data'!B140) -> -2.22526e-05 | C140: =IF('DF raw data'!C140="","",'DF raw data'!C140) -> 0.0001193 | D140: =IF('DF raw data'!D140="","",'DF raw data'!D140) -> -1.2696e-05 | F140: 5.820284091e-06 | G140: 8.03815493e-06 | H140: -4.030824779e-06 | J140: 9.338401751e-05 | K140: 0.001020864064 | L140: 0.0005223005982 | M140: 0.01225242282 | N140: 4.950115306e-06
A141: =IF('DF raw data'!A141="","",'DF raw data'!A141) -> -263 | B141: =IF('DF raw data'!B141="","",'DF raw data'!B141) -> -1.23878e-05 | C141: =IF('DF raw data'!C141="","",'DF raw data'!C141) -> 0.00011586 | D141: =IF('DF raw data'!D141="","",'DF raw data'!D141) -> -1.01289e-05 | F141: 1.571961089e-05 | G141: 4.58611493e-06 | H141: -1.454739929e-06 | J141: 0.000101243823 | K141: 0.001071485975 | L141: 0.0005245936556 | M141: 0.01251471965 | N141: 5.092839714e-06
A142: =IF('DF raw data'!A142="","",'DF raw data'!A142) -> -262.5 | B142: =IF('DF raw data'!B142="","",'DF raw data'!B142) -> -2.46908e-05 | C142: =IF('DF raw data'!C142="","",'DF raw data'!C142) -> 0.000112546 | D142: =IF('DF raw data'!D142="","",'DF raw data'!D142) -> -7.5497e-06 | F142: 3.373550391e-06 | G142: 1.26051593e-06 | H142: 1.133487271e-06 | J142: 0.0001029305982 | K142: 0.001122951274 | L142: 0.0005252239136 | M142: 0.01277733161 | N142: 5.236067147e-06
A143: =IF('DF raw data'!A143="","",'DF raw data'!A143) -> -262 | B143: =IF('DF raw data'!B143="","",'DF raw data'!B143) -> -1.44388e-05 | C143: =IF('DF raw data'!C143="","",'DF raw data'!C143) -> 0.000112096 | D143: =IF('DF raw data'!D143="","",'DF raw data'!D143) -> -8.71985e-06 | F143: 1.366143239e-05 | G143: 8.089409305e-07 | H143: -4.07582539e-08 | J143: 0.0001097613143 | K143: 0.001177831932 | L143: 0.0005256283841 | M143: 0.0130401458 | N143: 5.380233519e-06
A144: =IF('DF raw data'!A144="","",'DF raw data'!A144) -> -261.5 | B144: =IF('DF raw data'!B144="","",'DF raw data'!B144) -> -1.87939e-05 | C144: =IF('DF raw data'!C144="","",'DF raw data'!C144) -> 0.000116778 | D144: =IF('DF raw data'!D144="","",'DF raw data'!D144) -> -1.13175e-05 | F144: 9.291089541e-06 | G144: 5.50732793e-06 | H144: -2.647500029e-06 | J144: 0.0001144068591 | K144: 0.001235035361 | L144: 0.000528382048 | M144: 0.01330433682 | N144: 5.526371778e-06
A145: =IF('DF raw data'!A145="","",'DF raw data'!A145) -> -261 | B145: =IF('DF raw data'!B145="","",'DF raw data'!B145) -> -2.18096e-05 | C145: =IF('DF raw data'!C145="","",'DF raw data'!C145) -> 0.000118941 | D145: =IF('DF raw data'!D145="","",'DF raw data'!D145) -> -4.57564e-06 | F145: 6.264834591e-06 | G145: 7.67789843e-06 | H145: 4.117956481e-06 | J145: 0.0001175392764 | K145: 0.001293804999 | L145: 0.0005322209973 | M145: 0.01357044732 | N145: 5.674909114e-06
A146: =IF('DF raw data'!A146="","",'DF raw data'!A146) -> -260.5 | B146: =IF('DF raw data'!B146="","",'DF raw data'!B146) -> -2.80138e-05 | C146: =IF('DF raw data'!C146="","",'DF raw data'!C146) -> 0.000117555 | D146: =IF('DF raw data'!D146="","",'DF raw data'!D146) -> -2.05298e-05 | F146: 3.891989085e-08 | G146: 6.28704743e-06 | H146: -1.189204308e-05 | J146: 0.0001175587364 | K146: 0.001352584367 | L146: 0.000535364521 | M146: 0.01383812958 | N146: 5.825126728e-06
A147: =IF('DF raw data'!A147="","",'DF raw data'!A147) -> -260 | B147: =IF('DF raw data'!B147="","",'DF raw data'!B147) -> -3.58325e-05 | C147: =IF('DF raw data'!C147="","",'DF raw data'!C147) -> 0.000120399 | D147: =IF('DF raw data'!D147="","",'DF raw data'!D147) -> -1.71199e-05 | F147: -7.807145559e-06 | G147: 9.14100143e-06 | H147: -8.470208429e-06 | J147: 0.0001136551636 | K147: 0.001409411949 | L147: 0.0005399350217 | M147: 0.01410809709 | N147: 5.977350389e-06
A148: =IF('DF raw data'!A148="","",'DF raw data'!A148) -> -259.5 | B148: =IF('DF raw data'!B148="","",'DF raw data'!B148) -> -2.14812e-05 | C148: =IF('DF raw data'!C148="","",'DF raw data'!C148) -> 0.000113199 | D148: =IF('DF raw data'!D148="","",'DF raw data'!D148) -> -1.6719e-05 | F148: 6.594383991e-06 | G148: 1.91580143e-06 | H148: -8.067905279e-06 | J148: 0.0001169523556 | K148: 0.001467888127 | L148: 0.0005408929224 | M148: 0.01437854355 | N148: 6.130471893e-06
A149: =IF('DF raw data'!A149="","",'DF raw data'!A149) -> -259 | B149: =IF('DF raw data'!B149="","",'DF raw data'!B149) -> -3.42328e-05 | C149: =IF('DF raw data'!C149="","",'DF raw data'!C149) -> 0.000109504 | D149: =IF('DF raw data'!D149="","",'DF raw data'!D149) -> -1.43745e-05 | F149: -6.201846609e-06 | G149: -1.79213107e-06 | H149: -5.715199529e-06 | J149: 0.0001138514323 | K149: 0.001524813843 | L149: 0.0005399968569 | M149: 0.01464854198 | N149: 6.28275127e-06
A150: =IF('DF raw data'!A150="","",'DF raw data'!A150) -> -258.5 | B150: =IF('DF raw data'!B150="","",'DF raw data'!B150) -> -2.93612e-05 | C150: =IF('DF raw data'!C150="","",'DF raw data'!C150) -> 0.000116943 | D150: =IF('DF raw data'!D150="","",'DF raw data'!D150) -> -1.76713e-05 | F150: -1.313196009e-06 | G150: 5.67290543e-06 | H150: -9.023538329e-06 | J150: 0.0001131948343 | K150: 0.00158141126 | L150: 0.0005428333096 | M150: 0.01491995864 | N150: 6.436491806e-06
A151: =IF('DF raw data'!A151="","",'DF raw data'!A151) -> -258 | B151: =IF('DF raw data'!B151="","",'DF raw data'!B151) -> -2.19309e-05 | C151: =IF('DF raw data'!C151="","",'DF raw data'!C151) -> 0.000114531 | D151: =IF('DF raw data'!D151="","",'DF raw data'!D151) -> -1.51016e-05 | F151: 6.143110041e-06 | G151: 3.25246343e-06 | H151: -6.444844379e-06 | J151: 0.0001162663893 | K151: 0.001639544455 | L151: 0.0005444595413 | M151: 0.01519218841 | N151: 6.591468839e-06
A152: =IF('DF raw data'!A152="","",'DF raw data'!A152) -> -257.5 | B152: =IF('DF raw data'!B152="","",'DF raw data'!B152) -> -3.24394e-05 | C152: =IF('DF raw data'!C152="","",'DF raw data'!C152) -> 0.000104314 | D152: =IF('DF raw data'!D152="","",'DF raw data'!D152) -> -1.30714e-05 | F152: -4.402169709e-06 | G152: -7.00029607e-06 | H152: -4.407538679e-06 | J152: 0.0001140653044 | K152: 0.001696577107 | L152: 0.0005409593933 | M152: 0.01546266811 | N152: 6.744292818e-06
A153: =IF('DF raw data'!A153="","",'DF raw data'!A153) -> -257 | B153: =IF('DF raw data'!B153="","",'DF raw data'!B153) -> -2.30839e-05 | C153: =IF('DF raw data'!C153="","",'DF raw data'!C153) -> 0.000110944 | D153: =IF('DF raw data'!D153="","",'DF raw data'!D153) -> -1.54398e-05 | F153: 4.986074541e-06 | G153: -3.470910695e-07 | H153: -6.784228079e-06 | J153: 0.0001165583417 | K153: 0.001754856278 | L153: 0.0005407858477 | M153: 0.01573306103 | N153: 6.897310408e-06
A154: =IF('DF raw data'!A154="","",'DF raw data'!A154) -> -256.5 | B154: =IF('DF raw data'!B154="","",'DF raw data'!B154) -> -2.81461e-05 | C154: =IF('DF raw data'!C154="","",'DF raw data'!C154) -> 0.000117431 | D154: =IF('DF raw data'!D154="","",'DF raw data'!D154) -> -1.42148e-05 | F154: -9.384315915e-08 | G154: 6.16261343e-06 | H154: -5.554940579e-06 | J154: 0.0001165114201 | K154: 0.001813111988 | L154: 0.0005438671544 | M154: 0.01600499461 | N154: 7.051993605e-06
A155: =IF('DF raw data'!A155="","",'DF raw data'!A155) -> -256 | B155: =IF('DF raw data'!B155="","",'DF raw data'!B155) -> -2.36644e-05 | C155: =IF('DF raw data'!C155="","",'DF raw data'!C155) -> 0.000118999 | D155: =IF('DF raw data'!D155="","",'DF raw data'!D155) -> -9.71541e-06 | F155: 4.403542791e-06 | G155: 7.73610143e-06 | H155: -1.039802714e-06 | J155: 0.0001187131915 | K155: 0.001872468584 | L155: 0.0005477352052 | M155: 0.01627886221 | N155: 7.209046943e-06
A156: =IF('DF raw data'!A156="","",'DF raw data'!A156) -> -255.5 | B156: =IF('DF raw data'!B156="","",'DF raw data'!B156) -> -2.44254e-05 | C156: =IF('DF raw data'!C156="","",'DF raw data'!C156) -> 0.000121476 | D156: =IF('DF raw data'!D156="","",'DF raw data'!D156) -> -2.1588e-05 | F156: 3.639879291e-06 | G156: 1.022177093e-05 | H156: -1.295394678e-05 | J156: 0.0001205331312 | K156: 0.001932735149 | L156: 0.0005528460906 | M156: 0.01655528525 | N156: 7.369130461e-06
A157: =IF('DF raw data'!A157="","",'DF raw data'!A157) -> -255 | B157: =IF('DF raw data'!B157="","",'DF raw data'!B157) -> -2.16679e-05 | C157: =IF('DF raw data'!C157="","",'DF raw data'!C157) -> 0.000120549 | D157: =IF('DF raw data'!D157="","",'DF raw data'!D157) -> -2.54635e-05 | F157: 6.407030541e-06 | G157: 9.29152643e-06 | H157: -1.684301103e-05 | J157: 0.0001237366464 | K157: 0.001994603473 | L157: 0.0005574918538 | M157: 0.01683403118 | N157: 7.532184423e-06
A158: =IF('DF raw data'!A158="","",'DF raw data'!A158) -> -254.5 | B158: =IF('DF raw data'!B158="","",'DF raw data'!B158) -> -2.8535e-05 | C158: =IF('DF raw data'!C158="","",'DF raw data'!C158) -> 0.000109435 | D158: =IF('DF raw data'!D158="","",'DF raw data'!D158) -> -7.28737e-06 | F158: -4.841043091e-07 | G158: -1.86137257e-06 | H158: 1.396735426e-06 | J158: 0.0001234945943 | K158: 0.00205635077 | L158: 0.0005565611676 | M158: 0.01711231176 | N158: 7.694690047e-06
A159: =IF('DF raw data'!A159="","",'DF raw data'!A159) -> -254 | B159: =IF('DF raw data'!B159="","",'DF raw data'!B159) -> -2.38527e-05 | C159: =IF('DF raw data'!C159="","",'DF raw data'!C159) -> 0.000106732 | D159: =IF('DF raw data'!D159="","",'DF raw data'!D159) -> -1.54592e-05 | F159: 4.214583741e-06 | G159: -4.57383307e-06 | H159: -6.803695979e-06 | J159: 0.0001256018861 | K159: 0.002119151713 | L159: 0.000554274251 | M159: 0.01738944889 | N159: 7.856187937e-06
A160: =IF('DF raw data'!A160="","",'DF raw data'!A160) -> -253.5 | B160: =IF('DF raw data'!B160="","",'DF raw data'!B160) -> -2.9425e-05 | C160: =IF('DF raw data'!C160="","",'DF raw data'!C160) -> 0.000117593 | D160: =IF('DF raw data'!D160="","",'DF raw data'!D160) -> -1.79718e-05 | F160: -1.377219309e-06 | G160: 6.32518043e-06 | H160: -9.325090079e-06 | J160: 0.0001249132765 | K160: 0.002181608351 | L160: 0.0005574368412 | M160: 0.01766816731 | N160: 8.019357516e-06
A161: =IF('DF raw data'!A161="","",'DF raw data'!A161) -> -253 | B161: =IF('DF raw data'!B161="","",'DF raw data'!B161) -> -3.22514e-05 | C161: =IF('DF raw data'!C161="","",'DF raw data'!C161) -> 0.000120526 | D161: =IF('DF raw data'!D161="","",'DF raw data'!D161) -> -6.91824e-06 | F161: -4.213511709e-06 | G161: 9.26844593e-06 | H161: 1.767157381e-06 | J161: 0.0001228065206 | K161: 0.002243011611 | L161: 0.0005620710642 | M161: 0.01794920284 | N161: 8.184860178e-06
A162: =IF('DF raw data'!A162="","",'DF raw data'!A162) -> -252.5 | B162: =IF('DF raw data'!B162="","",'DF raw data'!B162) -> -3.65998e-05 | C162: =IF('DF raw data'!C162="","",'DF raw data'!C162) -> 0.000113286 | D162: =IF('DF raw data'!D162="","",'DF raw data'!D162) -> -1.97843e-05 | F162: -8.577131109e-06 | G162: 2.00310593e-06 | H162: -1.114393383e-05 | J162: 0.0001185179551 | K162: 0.002302270589 | L162: 0.0005630726172 | M162: 0.01823073915 | N162: 8.350408817e-06
A163: =IF('DF raw data'!A163="","",'DF raw data'!A163) -> -252 | B163: =IF('DF raw data'!B163="","",'DF raw data'!B163) -> -3.26336e-05 | C163: =IF('DF raw data'!C163="","",'DF raw data'!C163) -> 0.000117566 | D163: =IF('DF raw data'!D163="","",'DF raw data'!D163) -> -1.03108e-05 | F163: -4.597049409e-06 | G163: 6.29808593e-06 | H163: -1.637276579e-06 | J163: 0.0001162194304 | K163: 0.002360380304 | L163: 0.0005662216601 | M163: 0.01851384998 | N163: 8.517465779e-06
A164: =IF('DF raw data'!A164="","",'DF raw data'!A164) -> -251.5 | B164: =IF('DF raw data'!B164="","",'DF raw data'!B164) -> -2.50669e-05 | C164: =IF('DF raw data'!C164="","",'DF raw data'!C164) -> 0.000123253 | D164: =IF('DF raw data'!D164="","",'DF raw data'!D164) -> -2.04165e-05 | F164: 2.996134041e-06 | G164: 1.200499043e-05 | H164: -1.177834653e-05 | J164: 0.0001177174974 | K164: 0.002419239053 | L164: 0.0005722241553 | M164: 0.01879996206 | N164: 8.688114725e-06
A165: =IF('DF raw data'!A165="","",'DF raw data'!A165) -> -251 | B165: =IF('DF raw data'!B165="","",'DF raw data'!B165) -> -2.79557e-05 | C165: =IF('DF raw data'!C165="","",'DF raw data'!C165) -> 0.000112984 | D165: =IF('DF raw data'!D165="","",'DF raw data'!D165) -> -1.17307e-05 | F165: 9.722324085e-08 | G165: 1.70004893e-06 | H165: -3.062146229e-06 | J165: 0.000117766109 | K165: 0.002478122107 | L165: 0.0005730741798 | M165: 0.01908649915 | N165: 8.859256161e-06
A166: =IF('DF raw data'!A166="","",'DF raw data'!A166) -> -250.5 | B166: =IF('DF raw data'!B166="","",'DF raw data'!B166) -> -2.712e-05 | C166: =IF('DF raw data'!C166="","",'DF raw data'!C166) -> 0.000119643 | D166: =IF('DF raw data'!D166="","",'DF raw data'!D166) -> -1.58356e-05 | F166: 9.358481909e-07 | G166: 8.38235543e-06 | H166: -7.181413379e-06 | J166: 0.0001182340331 | K166: 0.002537239124 | L166: 0.0005772653575 | M166: 0.01937513183 | N166: 9.032863451e-06
A167: =IF('DF raw data'!A167="","",'DF raw data'!A167) -> -250 | B167: =IF('DF raw data'!B167="","",'DF raw data'!B167) -> -3.46194e-05 | C167: =IF('DF raw data'!C167="","",'DF raw data'!C167) -> 0.000119552 | D167: =IF('DF raw data'!D167="","",'DF raw data'!D167) -> -1.10237e-05 | F167: -6.589799709e-06 | G167: 8.29103693e-06 | H167: -2.352671729e-06 | J167: 0.0001149391333 | K167: 0.002594708691 | L167: 0.000581410876 | M167: 0.01966583727 | N167: 9.208488257e-06
A168: =IF('DF raw data'!A168="","",'DF raw data'!A168) -> -249.5 | B168: =IF('DF raw data'!B168="","",'DF raw data'!B168) -> -1.77642e-05 | C168: =IF('DF raw data'!C168="","",'DF raw data'!C168) -> 0.000124667 | D168: =IF('DF raw data'!D168="","",'DF raw data'!D168) -> -1.8525e-05 | F168: 1.032439349e-05 | G168: 1.342393943e-05 | H168: -9.880226279e-06 | J168: 0.00012010133 | K168: 0.002654759356 | L168: 0.0005881228457 | M168: 0.01995989869 | N168: 9.388644662e-06
A169: =IF('DF raw data'!A169="","",'DF raw data'!A169) -> -249 | B169: =IF('DF raw data'!B169="","",'DF raw data'!B169) -> -3.33452e-05 | C169: =IF('DF raw data'!C169="","",'DF raw data'!C169) -> 0.000117036 | D169: =IF('DF raw data'!D169="","",'DF raw data'!D169) -> 1.52094e-08 | F169: -5.311140009e-06 | G169: 5.76623093e-06 | H169: 8.724873854e-06 | J169: 0.00011744576 | K169: 0.002713482236 | L169: 0.0005910059612 | M169: 0.02025540167 | N169: 9.570185439e-06
A170: =IF('DF raw data'!A170="","",'DF raw data'!A170) -> -248.5 | B170: =IF('DF raw data'!B170="","",'DF raw data'!B170) -> -2.87836e-05 | C170: =IF('DF raw data'!C170="","",'DF raw data'!C170) -> 0.000110165 | D170: =IF('DF raw data'!D170="","",'DF raw data'!D170) -> -1.91275e-05 | F170: -7.335744091e-07 | G170: -1.12881757e-06 | H170: -1.048483503e-05 | J170: 0.0001170789728 | K170: 0.002772021722 | L170: 0.0005904415524 | M170: 0.02055062245 | N170: 9.751349795e-06
A171: =IF('DF raw data'!A171="","",'DF raw data'!A171) -> -248 | B171: =IF('DF raw data'!B171="","",'DF raw data'!B171) -> -3.07125e-05 | C171: =IF('DF raw data'!C171="","",'DF raw data'!C171) -> 0.000113802 | D171: =IF('DF raw data'!D171="","",'DF raw data'!D171) -> -8.88802e-06 | F171: -2.669225559e-06 | G171: 2.52091193e-06 | H171: -2.095168489e-07 | J171: 0.00011574436 | K171: 0.002829893902 | L171: 0.0005917020084 | M171: 0.02084647345 | N171: 9.933103807e-06
A172: =IF('DF raw data'!A172="","",'DF raw data'!A172) -> -247.5 | B172: =IF('DF raw data'!B172="","",'DF raw data'!B172) -> -2.85978e-05 | C172: =IF('DF raw data'!C172="","",'DF raw data'!C172) -> 0.000109856 | D172: =IF('DF raw data'!D172="","",'DF raw data'!D172) -> -9.44405e-06 | F172: -5.471241091e-07 | G172: -1.43889907e-06 | H172: -7.674929539e-07 | J172: 0.000115470798 | K172: 0.002887629301 | L172: 0.0005909825588 | M172: 0.02114196473 | N172: 1.011440075e-05
A173: =IF('DF raw data'!A173="","",'DF raw data'!A173) -> -247 | B173: =IF('DF raw data'!B173="","",'DF raw data'!B173) -> -2.36049e-05 | C173: =IF('DF raw data'!C173="","",'DF raw data'!C173) -> 0.000104873 | D173: =IF('DF raw data'!D173="","",'DF raw data'!D173) -> -2.48491e-06 | F173: 4.463251041e-06 | G173: -6.43933957e-06 | H173: 6.216004036e-06 | J173: 0.0001177024235 | K173: 0.002946480513 | L173: 0.000587762889 | M173: 0.02143584617 | N173: 1.029406029e-05
A174: =IF('DF raw data'!A174="","",'DF raw data'!A174) -> -246.5 | B174: =IF('DF raw data'!B174="","",'DF raw data'!B174) -> -2.20616e-05 | C174: =IF('DF raw data'!C174="","",'DF raw data'!C174) -> 0.000108356 | D174: =IF('DF raw data'!D174="","",'DF raw data'!D174) -> -1.11021e-05 | F174: 6.011952591e-06 | G174: -2.94414907e-06 | H174: -2.431346129e-06 | J174: 0.0001207083998 | K174: 0.003006834713 | L174: 0.0005862908145 | M174: 0.02172899158 | N174: 1.047321401e-05
A175: =IF('DF raw data'!A175="","",'DF raw data'!A175) -> -246 | B175: =IF('DF raw data'!B175="","",'DF raw data'!B175) -> -3.34579e-05 | C175: =IF('DF raw data'!C175="","",'DF raw data'!C175) -> 0.000108828 | D175: =IF('DF raw data'!D175="","",'DF raw data'!D175) -> -2.37693e-05 | F175: -5.424234459e-06 | G175: -2.47049707e-06 | H175: -1.514288133e-05 | J175: 0.0001179962826 | K175: 0.003065832854 | L175: 0.000585055566 | M175: 0.02202151936 | N175: 1.065132058e-05
A176: =IF('DF raw data'!A176="","",'DF raw data'!A176) -> -245.5 | B176: =IF('DF raw data'!B176="","",'DF raw data'!B176) -> -2.13607e-05 | C176: =IF('DF raw data'!C176="","",'DF raw data'!C176) -> 0.000110202 | D176: =IF('DF raw data'!D176="","",'DF raw data'!D176) -> -5.05061e-06 | F176: 6.715305741e-06 | G176: -1.09168807e-06 | H176: 3.641324086e-06 | J176: 0.0001213539354 | K176: 0.003126509822 | L176: 0.0005845097219 | M176: 0.02231377422 | N176: 1.082950977e-05
A177: =IF('DF raw data'!A177="","",'DF raw data'!A177) -> -245 | B177: =IF('DF raw data'!B177="","",'DF raw data'!B177) -> -2.85952e-05 | C177: =IF('DF raw data'!C177="","",'DF raw data'!C177) -> 0.000106696 | D177: =IF('DF raw data'!D177="","",'DF raw data'!D177) -> -1.35537e-05 | F177: -5.445150091e-07 | G177: -4.60995907e-06 | H177: -4.891526729e-06 | J177: 0.0001210816779 | K177: 0.003187050661 | L177: 0.0005822047424 | M177: 0.0226048766 | N177: 1.100632134e-05
A178: =IF('DF raw data'!A178="","",'DF raw data'!A178) -> -244.5 | B178: =IF('DF raw data'!B178="","",'DF raw data'!B178) -> -3.26995e-05 | C178: =IF('DF raw data'!C178="","",'DF raw data'!C178) -> 0.000109335 | D178: =IF('DF raw data'!D178="","",'DF raw data'!D178) -> -7.31295e-06 | F178: -4.663180059e-06 | G178: -1.96172257e-06 | H178: 1.371065896e-06 | J178: 0.0001187500879 | K178: 0.003246425704 | L178: 0.0005812238811 | M178: 0.02289548854 | N178: 1.118228273e-05
A179: =IF('DF raw data'!A179="","",'DF raw data'!A179) -> -244 | B179: =IF('DF raw data'!B179="","",'DF raw data'!B179) -> -3.56461e-05 | C179: =IF('DF raw data'!C179="","",'DF raw data'!C179) -> 0.000109486 | D179: =IF('DF raw data'!D179="","",'DF raw data'!D179) -> -8.41174e-06 | F179: -7.620093159e-06 | G179: -1.81019407e-06 | H179: 2.684301311e-07 | J179: 0.0001149400413 | K179: 0.003303895725 | L179: 0.0005803187841 | M179: 0.02318564793 | N179: 1.135727328e-05
A180: =IF('DF raw data'!A180="","",'DF raw data'!A180) -> -243.5 | B180: =IF('DF raw data'!B180="","",'DF raw data'!B180) -> -1.61012e-05 | C180: =IF('DF raw data'!C180="","",'DF raw data'!C180) -> 0.000111197 | D180: =IF('DF raw data'!D180="","",'DF raw data'!D180) -> -1.43814e-05 | F180: 1.199321399e-05 | G180: -9.320556951e-08 | H180: -5.722123679e-06 | J180: 0.0001209366483 | K180: 0.003364364049 | L180: 0.0005802721813 | M180: 0.02347578402 | N180: 1.153294402e-05
A181: =IF('DF raw data'!A181="","",'DF raw data'!A181) -> -243 | B181: =IF('DF raw data'!B181="","",'DF raw data'!B181) -> -2.14771e-05 | C181: =IF('DF raw data'!C181="","",'DF raw data'!C181) -> 0.000109971 | D181: =IF('DF raw data'!D181="","",'DF raw data'!D181) -> -2.32635e-05 | F181: 6.598498341e-06 | G181: -1.32349657e-06 | H181: -1.463531103e-05 | J181: 0.0001242358975 | K181: 0.003426481998 | L181: 0.000579610433 | M181: 0.02376558924 | N181: 1.170863543e-05
A182: =IF('DF raw data'!A182="","",'DF raw data'!A182) -> -242.5 | B182: =IF('DF raw data'!B182="","",'DF raw data'!B182) -> -2.68049e-05 | C182: =IF('DF raw data'!C182="","",'DF raw data'!C182) -> 0.000112743 | D182: =IF('DF raw data'!D182="","",'DF raw data'!D182) -> -7.9191e-06 | F182: 1.252051041e-06 | G182: 1.45820543e-06 | H182: 7.627943711e-07 | J182: 0.000124861923 | K182: 0.00348891296 | L182: 0.0005803395357 | M182: 0.024055759 | N182: 1.188482767e-05
A183: =IF('DF raw data'!A183="","",'DF raw data'!A183) -> -242 | B183: =IF('DF raw data'!B183="","",'DF raw data'!B183) -> -2.91659e-05 | C183: =IF('DF raw data'!C183="","",'DF raw data'!C183) -> 0.000107007 | D183: =IF('DF raw data'!D183="","",'DF raw data'!D183) -> -2.24424e-05 | F183: -1.117212459e-06 | G183: -4.29787057e-06 | H183: -1.381133718e-05 | J183: 0.0001243033168 | K183: 0.003551064618 | L183: 0.0005781906004 | M183: 0.0243448543 | N183: 1.205970551e-05
A184: =IF('DF raw data'!A184="","",'DF raw data'!A184) -> -241.5 | B184: =IF('DF raw data'!B184="","",'DF raw data'!B184) -> -3.21176e-05 | C184: =IF('DF raw data'!C184="","",'DF raw data'!C184) -> 0.000106016 | D184: =IF('DF raw data'!D184="","",'DF raw data'!D184) -> -1.56474e-05 | F184: -4.079243409e-06 | G184: -5.29233907e-06 | H184: -6.992554679e-06 | J184: 0.0001222636951 | K184: 0.003612196465 | L184: 0.0005755444309 | M184: 0.02463262652 | N184: 1.223280541e-05
A185: =IF('DF raw data'!A185="","",'DF raw data'!A185) -> -241 | B185: =IF('DF raw data'!B185="","",'DF raw data'!B185) -> -2.97484e-05 | C185: =IF('DF raw data'!C185="","",'DF raw data'!C185) -> 0.000110962 | D185: =IF('DF raw data'!D185="","",'DF raw data'!D185) -> -1.35135e-05 | F185: -1.701751209e-06 | G185: -3.290280695e-07 | H185: -4.851186029e-06 | J185: 0.0001214128195 | K185: 0.003672902875 | L185: 0.0005753799169 | M185: 0.02492031648 | N185: 1.240570697e-05
A186: =IF('DF raw data'!A186="","",'DF raw data'!A186) -> -240.5 | B186: =IF('DF raw data'!B186="","",'DF raw data'!B186) -> -2.50064e-05 | C186: =IF('DF raw data'!C186="","",'DF raw data'!C186) -> 0.000122057 | D186: =IF('DF raw data'!D186="","",'DF raw data'!D186) -> -1.47824e-05 | F186: 3.056845791e-06 | G186: 1.080480443e-05 | H186: -6.124527179e-06 | J186: 0.0001229412424 | K186: 0.003734373496 | L186: 0.0005807823191 | M186: 0.02521070764 | N186: 1.25819183e-05
A187: =IF('DF raw data'!A187="","",'DF raw data'!A187) -> -240 | B187: =IF('DF raw data'!B187="","",'DF raw data'!B187) -> -2.5462e-05 | C187: =IF('DF raw data'!C187="","",'DF raw data'!C187) -> 0.000117744 | D187: =IF('DF raw data'!D187="","",'DF raw data'!D187) -> -3.9914e-06 | F187: 2.599651191e-06 | G187: 6.47670893e-06 | H187: 4.704241321e-06 | J187: 0.0001242410679 | K187: 0.00379649403 | L187: 0.0005840206735 | M187: 0.02550271797 | N187: 1.276017629e-05
A188: =IF('DF raw data'!A188="","",'DF raw data'!A188) -> -239.5 | B188: =IF('DF raw data'!B188="","",'DF raw data'!B188) -> -3.4812e-05 | C188: =IF('DF raw data'!C188="","",'DF raw data'!C188) -> 0.000114305 | D188: =IF('DF raw data'!D188="","",'DF raw data'!D188) -> -1.00889e-05 | F188: -6.783073809e-06 | G188: 3.02567243e-06 | H188: -1.414599929e-06 | J188: 0.000120849531 | K188: 0.003856918796 | L188: 0.0005855335098 | M188: 0.02579548473 | N188: 1.293890334e-05
A189: =IF('DF raw data'!A189="","",'DF raw data'!A189) -> -239 | B189: =IF('DF raw data'!B189="","",'DF raw data'!B189) -> -4.33983e-05 | C189: =IF('DF raw data'!C189="","",'DF raw data'!C189) -> 0.000113402 | D189: =IF('DF raw data'!D189="","",'DF raw data'!D189) -> -8.55072e-06 | F189: -1.539942586e-05 | G189: 2.11951193e-06 | H189: 1.289637011e-07 | J189: 0.0001131498181 | K189: 0.003913493705 | L189: 0.0005865932657 | M189: 0.02608878136 | N189: 1.311735061e-05
A190: =IF('DF raw data'!A190="","",'DF raw data'!A190) -> -238.5 | B190: =IF('DF raw data'!B190="","",'DF raw data'!B190) -> -3.19936e-05 | C190: =IF('DF raw data'!C190="","",'DF raw data'!C190) -> 0.00010362 | D190: =IF('DF raw data'!D190="","",'DF raw data'!D190) -> -9.3562e-06 | F190: -3.954809409e-06 | G190: -7.69672507e-06 | H190: -6.793354789e-07 | J190: 0.0001111724134 | K190: 0.003969079912 | L190: 0.0005827449032 | M190: 0.02638015381 | N190: 1.329332608e-05
A191: =IF('DF raw data'!A191="","",'DF raw data'!A191) -> -238 | B191: =IF('DF raw data'!B191="","",'DF raw data'!B191) -> -1.43776e-05 | C191: =IF('DF raw data'!C191="","",'DF raw data'!C191) -> 0.000108136 | D191: =IF('DF raw data'!D191="","",'DF raw data'!D191) -> -4.58923e-06 | F191: 1.372284659e-05 | G191: -3.16491907e-06 | H191: 4.104318916e-06 | J191: 0.0001180338367 | K191: 0.00402809683 | L191: 0.0005811624437 | M191: 0.02667073504 | N191: 1.346916696e-05
A192: =IF('DF raw data'!A192="","",'DF raw data'!A192) -> -237.5 | B192: =IF('DF raw data'!B192="","",'DF raw data'!B192) -> -2.88617e-05 | C192: =IF('DF raw data'!C192="","",'DF raw data'!C192) -> 0.000117376 | D192: =IF('DF raw data'!D192="","",'DF raw data'!D192) -> 2.2235e-06 | F192: -8.119477591e-07 | G192: 6.10742093e-06 | H192: 1.094089347e-05 | J192: =F192*$G$3+J191 -> 0.0001176278628 | K192: =J192*$G$3+K191 -> 0.004086910761 | L192: =G192*$G$3+L191 -> 0.0005842161541 | M192: =L192*$G$3+M191 -> 0.02696284311 | N192: =(J192^2+L192^2)*$G$3+N191 -> 1.364673938e-05
A193: =IF('DF raw data'!A193="","",'DF raw data'!A193) -> -237 | B193: =IF('DF raw data'!B193="","",'DF raw data'!B193) -> -3.91704e-05 | C193: =IF('DF raw data'!C193="","",'DF raw data'!C193) -> 0.000113261 | D193: =IF('DF raw data'!D193="","",'DF raw data'!D193) -> -7.86962e-06 | F193: -1.115672821e-05 | G193: 1.97801843e-06 | H193: 8.124475511e-07 | J193: 0.0001120494987 | K193: 0.004142935511 | L193: 0.0005852051633 | M193: 0.02725544569 | N193: 1.382424946e-05
A194: =IF('DF raw data'!A194="","",'DF raw data'!A194) -> -236.5 | B194: =IF('DF raw data'!B194="","",'DF raw data'!B194) -> -2.43022e-05 | C194: =IF('DF raw data'!C194="","",'DF raw data'!C194) -> 0.000115609 | D194: =IF('DF raw data'!D194="","",'DF raw data'!D194) -> -1.40992e-05 | F194: 3.763510491e-06 | G194: 4.33423643e-06 | H194: -5.438935979e-06 | J194: 0.000113931254 | K194: 0.004199901138 | L194: 0.0005873722816 | M194: 0.02754913183 | N194: 1.400324273e-05
A195: =IF('DF raw data'!A195="","",'DF raw data'!A195) -> -236 | B195: =IF('DF raw data'!B195="","",'DF raw data'!B195) -> -3.02608e-05 | C195: =IF('DF raw data'!C195="","",'DF raw data'!C195) -> 0.000116905 | D195: =IF('DF raw data'!D195="","",'DF raw data'!D195) -> -1.3849e-05 | F195: =(1-$G$1*($B$54-$G$2))*(B195-F$5) -> -2.215944609e-06 | G195: =(1-$G$1*($B$54-$G$2))*(C195-G$5) -> 5.63477243e-06 | H195: =(1-$G$1*($B$54-$G$2))*(D195-H$5) -> -5.187860279e-06 | J195: 0.0001128232817 | K195: 0.004256312779 | L195: 0.0005901896678 | M195: 0.02784422667 | N195: 1.41837692e-05
A196: =IF('DF raw data'!A196="","",'DF raw data'!A196) -> -235.5 | B196: =IF('DF raw data'!B196="","",'DF raw data'!B196) -> -3.21884e-05 | C196: =IF('DF raw data'!C196="","",'DF raw data'!C196) -> 0.000113414 | D196: =IF('DF raw data'!D196="","",'DF raw data'!D196) -> -5.06641e-06 | F196: -4.150291209e-06 | G196: 2.13155393e-06 | H196: 3.625468786e-06 | J196: 0.0001107481361 | K196: 0.004311686847 | L196: 0.0005912554447 | M196: 0.02813985439 | N196: 1.436469327e-05
A197: =IF('DF raw data'!A197="","",'DF raw data'!A197) -> -235 | B197: =IF('DF raw data'!B197="","",'DF raw data'!B197) -> -3.41114e-05 | C197: =IF('DF raw data'!C197="","",'DF raw data'!C197) -> 0.00011074 | D197: =IF('DF raw data'!D197="","",'DF raw data'!D197) -> -4.01776e-06 | F197: -6.080021709e-06 | G197: -5.518050695e-07 | H197: 4.677789061e-06 | J197: 0.0001077081252 | K197: 0.004365540909 | L197: 0.0005909795422 | M197: 0.02843534416 | N197: 1.45451222e-05
A198: =IF('DF raw data'!A198="","",'DF raw data'!A198) -> -234.5 | B198: =IF('DF raw data'!B198="","",'DF raw data'!B198) -> -2.7565e-05 | C198: =IF('DF raw data'!C198="","",'DF raw data'!C198) -> 0.000115106 | D198: =IF('DF raw data'!D198="","",'DF raw data'!D198) -> -2.1523e-05 | F198: 4.892906909e-07 | G198: 3.82947593e-06 | H198: -1.288871928e-05 | J198: 0.0001079527705 | K198: 0.004419517294 | L198: 0.0005928942802 | M198: 0.0287317913 | N198: 1.472671092e-05
A199: =IF('DF raw data'!A199="","",'DF raw data'!A199) -> -234 | B199: =IF('DF raw data'!B199="","",'DF raw data'!B199) -> -3.52522e-05 | C199: =IF('DF raw data'!C199="","",'DF raw data'!C199) -> 0.000123101 | D199: =IF('DF raw data'!D199="","",'DF raw data'!D199) -> -2.32763e-05 | F199: -7.224814509e-06 | G199: 1.185245843e-05 | H199: -1.464815583e-05 | J199: 0.0001043403633 | K199: 0.004471687476 | L199: 0.0005988205094 | M199: 0.02903120156 | N199: 1.491144737e-05
A200: =IF('DF raw data'!A200="","",'DF raw data'!A200) -> -233.5 | B200: =IF('DF raw data'!B200="","",'DF raw data'!B200) -> -2.36535e-05 | C200: =IF('DF raw data'!C200="","",'DF raw data'!C200) -> 0.000119364 | D200: =IF('DF raw data'!D200="","",'DF raw data'!D200) -> -2.65391e-05 | F200: 4.414480941e-06 | G200: 8.10237893e-06 | H200: -1.792237563e-05 | J200: 0.0001065476038 | K200: 0.004524961278 | L200: 0.0006028716988 | M200: 0.02933263741 | N200: 1.509885071e-05
... 1079 more rows

Sheet 15 mm
A1: =IF('DF raw data'!E1="","",'DF raw data'!E1) -> Number of header lines | B1: =IF('DF raw data'!F1="","",'DF raw data'!F1) -> 54 | C1: =IF('DF raw data'!C1="","",'DF raw data'!C1) ->  | D1: =IF('DF raw data'!D1="","",'DF raw data'!D1) ->  | F1: T_coeff | G1: -0.001 | H1: /degC | J1: IBy total | K1: =J1267*1000 -> 4.841947335 | L1: muTm | M1: =L1267*1000 -> -14.10329791 | R1: DF ref | S1: 1
A2: =IF('DF raw data'!E2="","",'DF raw data'!E2) -> Measured by | B2: =IF('DF raw data'!F2="","",'DF raw data'!F2) -> Danfysik | C2: =IF('DF raw data'!C2="","",'DF raw data'!C2) ->  | D2: =IF('DF raw data'!D2="","",'DF raw data'!D2) ->  | F2: Tcorr | G2: 20 | H2: degC | J2: JBy total | K2: =K1267 -> 0.5913488209 | L2: muTm^2 | M2: =M1267 -> -5.774660746
A3: =IF('DF raw data'!E3="","",'DF raw data'!E3) -> Operator | B3: =IF('DF raw data'!F3="","",'DF raw data'!F3) -> PMHA | C3: =IF('DF raw data'!C3="","",'DF raw data'!C3) ->  | D3: =IF('DF raw data'!D3="","",'DF raw data'!D3) ->  | F3: Step | G3: =A68-A67 -> 0.5 | H3: mm | J3: PI total | K3: =N1267 -> 7251.494668 | L3: T^2mm^3
A4: =IF('DF raw data'!E4="","",'DF raw data'!E4) -> Data-time | B4: =IF('DF raw data'!F4="","",'DF raw data'!F4) -> 17-09-2024, 15:26:06 | C4: =IF('DF raw data'!C4="","",'DF raw data'!C4) ->  | D4: =IF('DF raw data'!D4="","",'DF raw data'!D4) -> 
A5: =IF('DF raw data'!E5="","",'DF raw data'!E5) -> Project | B5: =IF('DF raw data'!F5="","",'DF raw data'!F5) -> 504314 | C5: =IF('DF raw data'!C5="","",'DF raw data'!C5) ->  | D5: Bamb avr | F5: =(AVERAGE(B67:B107) + AVERAGE(B1227:B1267))/2 -> -3.889391707e-05 | G5: =(AVERAGE(C67:C107) + AVERAGE(C1227:C1267))/2 -> 1.666724317e-05 | H5: =(AVERAGE(D67:D107) + AVERAGE(D1227:D1267))/2 -> -2.002305917e-05
A6: =IF('DF raw data'!E6="","",'DF raw data'!E6) -> Magnet type | B6: =IF('DF raw data'!F6="","",'DF raw data'!F6) -> Dipole | C6: =IF('DF raw data'!C6="","",'DF raw data'!C6) -> 
A7: =IF('DF raw data'!E7="","",'DF raw data'!E7) -> Magnet nr. | B7: =IF('DF raw data'!F7="","",'DF raw data'!F7) -> 2410097 | C7: =IF('DF raw data'!C7="","",'DF raw data'!C7) -> 
A8: =IF('DF raw data'!E8="","",'DF raw data'!E8) -> Meas. number | B8: =IF('DF raw data'!F8="","",'DF raw data'!F8) -> 563 | C8: =IF('DF raw data'!C8="","",'DF raw data'!C8) -> 
A9: =IF('DF raw data'!E9="","",'DF raw data'!E9) -> Add. info | B9: =IF('DF raw data'!F9="","",'DF raw data'!F9) ->  | C9: =IF('DF raw data'!C9="","",'DF raw data'!C9) ->  | D9: =IF('DF raw data'!D9="","",'DF raw data'!D9) -> 
A10: =IF('DF raw data'!E10="","",'DF raw data'!E10) -> Device | B10: =IF('DF raw data'!F10="","",'DF raw data'!F10) -> (HAL) HALL-PROBE | C10: =IF('DF raw data'!C10="","",'DF raw data'!C10) ->  | D10: =IF('DF raw data'!D10="","",'DF raw data'!D10) -> 
A11: =IF('DF raw data'!E11="","",'DF raw data'!E11) -> Goal | B11: =IF('DF raw data'!F11="","",'DF raw data'!F11) -> (AXI) AXis Integral (Line, EFB) | C11: =IF('DF raw data'!C11="","",'DF raw data'!C11) ->  | D11: =IF('DF raw data'!D11="","",'DF raw data'!D11) -> 
A12: =IF('DF raw data'!E12="","",'DF raw data'!E12) -> Power supply mode | B12: =IF('DF raw data'!F12="","",'DF raw data'!F12) -> (PM) Permanent Magnet (no MPS in use) | C12: =IF('DF raw data'!C12="","",'DF raw data'!C12) ->  | D12: =IF('DF raw data'!D12="","",'DF raw data'!D12) -> 
A13: =IF('DF raw data'!E13="","",'DF raw data'!E13) -> Data format | B13: =IF('DF raw data'!F13="","",'DF raw data'!F13) -> Raw data text file | C13: =IF('DF raw data'!C13="","",'DF raw data'!C13) ->  | D13: =IF('DF raw data'!D13="","",'DF raw data'!D13) -> 
A14: =IF('DF raw data'!E14="","",'DF raw data'!E14) -> Direction of the pos. x-axis | B14: =IF('DF raw data'!F14="","",'DF raw data'!F14) -> See test program | C14: =IF('DF raw data'!C14="","",'DF raw data'!C14) ->  | D14: =IF('DF raw data'!D14="","",'DF raw data'!D14) -> 
A15: =IF('DF raw data'!E15="","",'DF raw data'!E15) -> Direction of the pos. y-axis | B15: =IF('DF raw data'!F15="","",'DF raw data'!F15) -> Vertical up | C15: =IF('DF raw data'!C15="","",'DF raw data'!C15) ->  | D15: =IF('DF raw data'!D15="","",'DF raw data'!D15) -> 
A16: =IF('DF raw data'!E16="","",'DF raw data'!E16) -> Direction of the pos. z-axis | B16: =IF('DF raw data'!F16="","",'DF raw data'!F16) -> See test program | C16: =IF('DF raw data'!C16="","",'DF raw data'!C16) ->  | D16: =IF('DF raw data'!D16="","",'DF raw data'!D16) -> 
A17: =IF('DF raw data'!E17="","",'DF raw data'!E17) -> Mapper type | B17: =IF('DF raw data'!F17="","",'DF raw data'!F17) -> Precision Hall Mapper | C17: =IF('DF raw data'!C17="","",'DF raw data'!C17) ->  | D17: =IF('DF raw data'!D17="","",'DF raw data'!D17) -> 
A18: =IF('DF raw data'!E18="","",'DF raw data'!E18) -> Mapper Danfysik Reg. Number | B18: =IF('DF raw data'!F18="","",'DF raw data'!F18) -> 2033-D (mapper 1) | C18: =IF('DF raw data'!C18="","",'DF raw data'!C18) ->  | D18: =IF('DF raw data'!D18="","",'DF raw data'!D18) -> 
A19: =IF('DF raw data'!E19="","",'DF raw data'!E19) -> Measurement consept | B19: =IF('DF raw data'!F19="","",'DF raw data'!F19) -> Square line grid | C19: =IF('DF raw data'!C19="","",'DF raw data'!C19) ->  | D19: =IF('DF raw data'!D19="","",'DF raw data'!D19) -> 
A20: =IF('DF raw data'!E20="","",'DF raw data'!E20) -> Mode | B20: =IF('DF raw data'!F20="","",'DF raw data'!F20) -> On-the-fly measurement | C20: =IF('DF raw data'!C20="","",'DF raw data'!C20) ->  | D20: =IF('DF raw data'!D20="","",'DF raw data'!D20) -> 
A21: =IF('DF raw data'!E21="","",'DF raw data'!E21) ->  | B21: =IF('DF raw data'!F21="","",'DF raw data'!F21) ->  | C21: =IF('DF raw data'!C21="","",'DF raw data'!C21) ->  | D21: =IF('DF raw data'!D21="","",'DF raw data'!D21) -> 
A22: =IF('DF raw data'!E22="","",'DF raw data'!E22) -> Probe Name | B22: =IF('DF raw data'!F22="","",'DF raw data'!F22) -> ID12_By | C22: =IF('DF raw data'!C22="","",'DF raw data'!C22) ->  | D22: =IF('DF raw data'!D22="","",'DF raw data'!D22) -> 
A23: =IF('DF raw data'!E23="","",'DF raw data'!E23) -> Probe Type | B23: =IF('DF raw data'!F23="","",'DF raw data'!F23) -> DF_ID_3D_Bxyz | C23: =IF('DF raw data'!C23="","",'DF raw data'!C23) ->  | D23: =IF('DF raw data'!D23="","",'DF raw data'!D23) -> 
A24: =IF('DF raw data'!E24="","",'DF raw data'!E24) -> Probe Danfysik Reg. Number | B24: =IF('DF raw data'!F24="","",'DF raw data'!F24) -> 2277 | C24: =IF('DF raw data'!C24="","",'DF raw data'!C24) ->  | D24: =IF('DF raw data'!D24="","",'DF raw data'!D24) -> 
A25: =IF('DF raw data'!E25="","",'DF raw data'!E25) -> Probe Axis | B25: =IF('DF raw data'!F25="","",'DF raw data'!F25) -> By | C25: =IF('DF raw data'!C25="","",'DF raw data'!C25) ->  | D25: =IF('DF raw data'!D25="","",'DF raw data'!D25) -> 
A26: =IF('DF raw data'!E26="","",'DF raw data'!E26) -> Probe Current Supply | B26: =IF('DF raw data'!F26="","",'DF raw data'!F26) -> 1825-D | C26: =IF('DF raw data'!C26="","",'DF raw data'!C26) ->  | D26: =IF('DF raw data'!D26="","",'DF raw data'!D26) -> 
A27: =IF('DF raw data'!E27="","",'DF raw data'!E27) -> Probe Gain Correction | B27: =IF('DF raw data'!F27="","",'DF raw data'!F27) -> 0.99606 | C27: =IF('DF raw data'!C27="","",'DF raw data'!C27) ->  | D27: =IF('DF raw data'!D27="","",'DF raw data'!D27) -> 
A28: =IF('DF raw data'!E28="","",'DF raw data'!E28) -> Probe Offset Correction | B28: =IF('DF raw data'!F28="","",'DF raw data'!F28) -> 0.0027513 | C28: =IF('DF raw data'!C28="","",'DF raw data'!C28) ->  | D28: =IF('DF raw data'!D28="","",'DF raw data'!D28) -> 
A29: =IF('DF raw data'!E29="","",'DF raw data'!E29) -> DVM Number | B29: =IF('DF raw data'!F29="","",'DF raw data'!F29) -> 2 | C29: =IF('DF raw data'!C29="","",'DF raw data'!C29) ->  | D29: =IF('DF raw data'!D29="","",'DF raw data'!D29) -> 
A30: =IF('DF raw data'!E30="","",'DF raw data'!E30) -> DVM Type | B30: =IF('DF raw data'!F30="","",'DF raw data'!F30) -> K2701 | C30: =IF('DF raw data'!C30="","",'DF raw data'!C30) ->  | D30: =IF('DF raw data'!D30="","",'DF raw data'!D30) -> 
A31: =IF('DF raw data'!E31="","",'DF raw data'!E31) -> DVM Danfysik Reg. Number | B31: =IF('DF raw data'!F31="","",'DF raw data'!F31) -> 1743-D | C31: =IF('DF raw data'!C31="","",'DF raw data'!C31) ->  | D31: =IF('DF raw data'!D31="","",'DF raw data'!D31) -> 
A32: =IF('DF raw data'!E32="","",'DF raw data'!E32) -> Probe Name | B32: =IF('DF raw data'!F32="","",'DF raw data'!F32) -> ID12_Bx | C32: =IF('DF raw data'!C32="","",'DF raw data'!C32) ->  | D32: =IF('DF raw data'!D32="","",'DF raw data'!D32) -> 
A33: =IF('DF raw data'!E33="","",'DF raw data'!E33) -> Probe Type | B33: =IF('DF raw data'!F33="","",'DF raw data'!F33) -> DF_ID_3D_Bxyz | C33: =IF('DF raw data'!C33="","",'DF raw data'!C33) ->  | D33: =IF('DF raw data'!D33="","",'DF raw data'!D33) -> 
A34: =IF('DF raw data'!E34="","",'DF raw data'!E34) -> Probe Danfysik Reg. Number | B34: =IF('DF raw data'!F34="","",'DF raw data'!F34) -> 2277 | C34: =IF('DF raw data'!C34="","",'DF raw data'!C34) ->  | D34: =IF('DF raw data'!D34="","",'DF raw data'!D34) -> 
A35: =IF('DF raw data'!E35="","",'DF raw data'!E35) -> Probe Axis | B35: =IF('DF raw data'!F35="","",'DF raw data'!F35) -> Bx | C35: =IF('DF raw data'!C35="","",'DF raw data'!C35) ->  | D35: =IF('DF raw data'!D35="","",'DF raw data'!D35) -> 
A36: =IF('DF raw data'!E36="","",'DF raw data'!E36) -> Probe Current Supply | B36: =IF('DF raw data'!F36="","",'DF raw data'!F36) -> 1825-D | C36: =IF('DF raw data'!C36="","",'DF raw data'!C36) ->  | D36: =IF('DF raw data'!D36="","",'DF raw data'!D36) -> 
A37: =IF('DF raw data'!E37="","",'DF raw data'!E37) -> Probe Gain Correction | B37: =IF('DF raw data'!F37="","",'DF raw data'!F37) -> 1 | C37: =IF('DF raw data'!C37="","",'DF raw data'!C37) ->  | D37: =IF('DF raw data'!D37="","",'DF raw data'!D37) -> 
A38: =IF('DF raw data'!E38="","",'DF raw data'!E38) -> Probe Offset Correction | B38: =IF('DF raw data'!F38="","",'DF raw data'!F38) -> -0.17549 | C38: =IF('DF raw data'!C38="","",'DF raw data'!C38) ->  | D38: =IF('DF raw data'!D38="","",'DF raw data'!D38) -> 
A39: =IF('DF raw data'!E39="","",'DF raw data'!E39) -> DVM Number | B39: =IF('DF raw data'!F39="","",'DF raw data'!F39) -> 3 | C39: =IF('DF raw data'!C39="","",'DF raw data'!C39) ->  | D39: =IF('DF raw data'!D39="","",'DF raw data'!D39) -> 
A40: =IF('DF raw data'!E40="","",'DF raw data'!E40) -> DVM Type | B40: =IF('DF raw data'!F40="","",'DF raw data'!F40) -> K2701 | C40: =IF('DF raw data'!C40="","",'DF raw data'!C40) ->  | D40: =IF('DF raw data'!D40="","",'DF raw data'!D40) -> 
A41: =IF('DF raw data'!E41="","",'DF raw data'!E41) -> DVM Danfysik Reg. Number | B41: =IF('DF raw data'!F41="","",'DF raw data'!F41) -> 1744-D | C41: =IF('DF raw data'!C41="","",'DF raw data'!C41) ->  | D41: =IF('DF raw data'!D41="","",'DF raw data'!D41) -> 
A42: =IF('DF raw data'!E42="","",'DF raw data'!E42) -> Probe Name | B42: =IF('DF raw data'!F42="","",'DF raw data'!F42) -> ID12_Bz | C42: =IF('DF raw data'!C42="","",'DF raw data'!C42) ->  | D42: =IF('DF raw data'!D42="","",'DF raw data'!D42) -> 
A43: =IF('DF raw data'!E43="","",'DF raw data'!E43) -> Probe Type | B43: =IF('DF raw data'!F43="","",'DF raw data'!F43) -> DF_ID_3D_Bxyz | C43: =IF('DF raw data'!C43="","",'DF raw data'!C43) ->  | D43: =IF('DF raw data'!D43="","",'DF raw data'!D43) -> 
A44: =IF('DF raw data'!E44="","",'DF raw data'!E44) -> Probe Danfysik Reg. Number | B44: =IF('DF raw data'!F44="","",'DF raw data'!F44) -> 2277 | C44: =IF('DF raw data'!C44="","",'DF raw data'!C44) ->  | D44: =IF('DF raw data'!D44="","",'DF raw data'!D44) -> 
A45: =IF('DF raw data'!E45="","",'DF raw data'!E45) -> Probe Axis | B45: =IF('DF raw data'!F45="","",'DF raw data'!F45) -> Bz | C45: =IF('DF raw data'!C45="","",'DF raw data'!C45) ->  | D45: =IF('DF raw data'!D45="","",'DF raw data'!D45) -> 
A46: =IF('DF raw data'!E46="","",'DF raw data'!E46) -> Probe Current Supply | B46: =IF('DF raw data'!F46="","",'DF raw data'!F46) -> 1825-D | C46: =IF('DF raw data'!C46="","",'DF raw data'!C46) ->  | D46: =IF('DF raw data'!D46="","",'DF raw data'!D46) -> 
A47: =IF('DF raw data'!E47="","",'DF raw data'!E47) -> Probe Gain Correction | B47: =IF('DF raw data'!F47="","",'DF raw data'!F47) -> 1 | C47: =IF('DF raw data'!C47="","",'DF raw data'!C47) ->  | D47: =IF('DF raw data'!D47="","",'DF raw data'!D47) -> 
A48: =IF('DF raw data'!E48="","",'DF raw data'!E48) -> Probe Offset Correction | B48: =IF('DF raw data'!F48="","",'DF raw data'!F48) -> 0.0073313 | C48: =IF('DF raw data'!C48="","",'DF raw data'!C48) ->  | D48: =IF('DF raw data'!D48="","",'DF raw data'!D48) -> 
A49: =IF('DF raw data'!E49="","",'DF raw data'!E49) -> DVM Number | B49: =IF('DF raw data'!F49="","",'DF raw data'!F49) -> 8 | C49: =IF('DF raw data'!C49="","",'DF raw data'!C49) ->  | D49: =IF('DF raw data'!D49="","",'DF raw data'!D49) -> 
A50: =IF('DF raw data'!E50="","",'DF raw data'!E50) -> DVM Type | B50: =IF('DF raw data'!F50="","",'DF raw data'!F50) -> K2700 | C50: =IF('DF raw data'!C50="","",'DF raw data'!C50) ->  | D50: =IF('DF raw data'!D50="","",'DF raw data'!D50) -> 
A51: =IF('DF raw data'!E51="","",'DF raw data'!E51) -> DVM Danfysik Reg. Number | B51: =IF('DF raw data'!F51="","",'DF raw data'!F51) -> 1756-D | C51: =IF('DF raw data'!C51="","",'DF raw data'!C51) ->  | D51: =IF('DF raw data'!D51="","",'DF raw data'!D51) -> 
A52: =IF('DF raw data'!E52="","",'DF raw data'!E52) -> NTC voltage | B52: =IF('DF raw data'!F52="","",'DF raw data'!F52) -> 0.41683 | C52: =IF('DF raw data'!C52="","",'DF raw data'!C52) ->  | D52: =IF('DF raw data'!D52="","",'DF raw data'!D52) -> 
A53: =IF('DF raw data'!E53="","",'DF raw data'!E53) -> PS-Gap: | B53: =IF('DF raw data'!F53="","",'DF raw data'!F53) -> 15 | C53: =IF('DF raw data'!C53="","",'DF raw data'!C53) ->  | D53: =IF('DF raw data'!D53="","",'DF raw data'!D53) -> 
A54: =IF('DF raw data'!E54="","",'DF raw data'!E54) -> PS-Temperature: | B54: =IF('DF raw data'!F54="","",'DF raw data'!F54) -> 24.6 | C54: =IF('DF raw data'!C54="","",'DF raw data'!C54) ->  | D54: =IF('DF raw data'!D54="","",'DF raw data'!D54) -> 
A55: =IF('DF raw data'!E55="","",'DF raw data'!E55) -> PS-Encoder: | B55: =IF('DF raw data'!F55="","",'DF raw data'!F55) -> 24.6809 | C55: =IF('DF raw data'!C55="","",'DF raw data'!C55) ->  | D55: =IF('DF raw data'!D55="","",'DF raw data'!D55) -> 
A56: =IF('DF raw data'!E56="","",'DF raw data'!E56) ->  | B56: =IF('DF raw data'!F56="","",'DF raw data'!F56) -> 
A57: =IF('DF raw data'!E57="","",'DF raw data'!E57) -> Monitor-Index | B57: =IF('DF raw data'!F57="","",'DF raw data'!F57) -> [1,1,4]
A58: =IF('DF raw data'!E58="","",'DF raw data'!E58) ->  | B58: =IF('DF raw data'!F58="","",'DF raw data'!F58) -> 
A59: =IF('DF raw data'!E59="","",'DF raw data'!E59) -> Time [s] | B59: =IF('DF raw data'!F59="","",'DF raw data'!F59) -> Y [mm]
A60: =IF('DF raw data'!E60="","",'DF raw data'!E60) ->  | B60: =IF('DF raw data'!F60="","",'DF raw data'!F60) -> 
A61: =IF('DF raw data'!E61="","",'DF raw data'!E61) -> 209.4 | B61: =IF('DF raw data'!F61="","",'DF raw data'!F61) -> 31.56
A62: =IF('DF raw data'!E62="","",'DF raw data'!E62) ->  | B62: =IF('DF raw data'!F62="","",'DF raw data'!F62) -> 
A63: =IF('DF raw data'!E63="","",'DF raw data'!E63) -> Measurement-Index | B63: =IF('DF raw data'!F63="","",'DF raw data'!F63) -> [1,1,1201,2]
A64: =IF('DF raw data'!E64="","",'DF raw data'!E64) ->  | B64: =IF('DF raw data'!F64="","",'DF raw data'!F64) -> 
A65: =IF('DF raw data'!E65="","",'DF raw data'!E65) -> Z [mm] | B65: =IF('DF raw data'!F65="","",'DF raw data'!F65) -> By [T] | C65: =IF('DF raw data'!G65="","",'DF raw data'!G65) -> Bx [T] | D65: =IF('DF raw data'!H65="","",'DF raw data'!H65) -> Bz [T] | F65: By_corr | G65: Bx_corr | H65: Bz_corr | J65: Iy | K65: Jy | L65: Ix | M65: Jx | N65: PI
B66: =IF('DF raw data'!F66="","",'DF raw data'!F66) ->  | C66: =IF('DF raw data'!G66="","",'DF raw data'!G66) ->  | D66: =IF('DF raw data'!H66="","",'DF raw data'!H66) -> 
A67: =IF('DF raw data'!E67="","",'DF raw data'!E67) -> -300 | B67: =IF('DF raw data'!F67="","",'DF raw data'!F67) -> -4.27836e-05 | C67: =IF('DF raw data'!G67="","",'DF raw data'!G67) -> 2.73745e-05 | D67: =IF('DF raw data'!H67="","",'DF raw data'!H67) -> -3.02364e-05 | F67: =(1-$G$1*($B$54-$G$2))*(B67-F$5) -> -3.907575468e-06 | G67: =(1-$G$1*($B$54-$G$2))*(C67-G$5) -> 1.075651021e-05 | H67: =(1-$G$1*($B$54-$G$2))*(D67-H$5) -> -1.02603222e-05 | J67: =F67*$G$3+J66 -> -1.953787734e-06 | K67: =J67*$G$3+K66 -> -9.768938671e-07 | L67: =G67*$G$3+L66 -> 5.378255105e-06 | M67: =L67*$G$3+M66 -> 2.689127553e-06 | N67: =(J67^2+L67^2)*$G$3+N66 -> 1.637145724e-11
A68: =IF('DF raw data'!E68="","",'DF raw data'!E68) -> -299.5 | B68: =IF('DF raw data'!F68="","",'DF raw data'!F68) -> -4.36156e-05 | C68: =IF('DF raw data'!G68="","",'DF raw data'!G68) -> 2.362e-05 | D68: =IF('DF raw data'!H68="","",'DF raw data'!H68) -> -3.01269e-05 | F68: -4.743402668e-06 | G68: 6.984739511e-06 | H68: -1.01503185e-05 | J68: =F68*$G$3+J67 -> -4.325489068e-06 | K68: =J68*$G$3+K67 -> -3.139638401e-06 | L68: =G68*$G$3+L67 -> 8.870624861e-06 | M68: =L68*$G$3+M67 -> 7.124439983e-06 | N68: =(J68^2+L68^2)*$G$3+N67 -> 6.507037779e-11
A69: =IF('DF raw data'!E69="","",'DF raw data'!E69) -> -299 | B69: =IF('DF raw data'!F69="","",'DF raw data'!F69) -> -3.22098e-05 | C69: =IF('DF raw data'!G69="","",'DF raw data'!G69) -> 2.4571e-05 | D69: =IF('DF raw data'!H69="","",'DF raw data'!H69) -> -3.05166e-05 | F69: 6.714864012e-06 | G69: 7.940114111e-06 | H69: -1.054181112e-05 | J69: -9.680570624e-07 | K69: -3.623666932e-06 | L69: 1.284068192e-05 | M69: 1.354478094e-05 | N69: 1.479805011e-10
A70: =IF('DF raw data'!E70="","",'DF raw data'!E70) -> -298.5 | B70: =IF('DF raw data'!F70="","",'DF raw data'!F70) -> -2.98412e-05 | C70: =IF('DF raw data'!G70="","",'DF raw data'!G70) -> 2.56451e-05 | D70: =IF('DF raw data'!H70="","",'DF raw data'!H70) -> -3.14123e-05 | F70: 9.094359572e-06 | G70: 9.019154971e-06 | H70: -1.144163134e-05 | J70: 3.579122723e-06 | K70: -1.834105571e-06 | L70: 1.73502594e-05 | M70: 2.221991064e-05 | N70: 3.049013114e-10
A71: =IF('DF raw data'!E71="","",'DF raw data'!E71) -> -298 | B71: =IF('DF raw data'!F71="","",'DF raw data'!F71) -> -4.18849e-05 | C71: =IF('DF raw data'!G71="","",'DF raw data'!G71) -> 2.38626e-05 | D71: =IF('DF raw data'!H71="","",'DF raw data'!H71) -> -3.1512e-05 | F71: -3.004741448e-06 | G71: 7.228455471e-06 | H71: -1.154178996e-05 | J71: 2.076751999e-06 | K71: -7.957295711e-07 | L71: 2.096448714e-05 | M71: 3.270215421e-05 | N71: 5.268126213e-10
A72: =IF('DF raw data'!E72="","",'DF raw data'!E72) -> -297.5 | B72: =IF('DF raw data'!F72="","",'DF raw data'!F72) -> -3.68273e-05 | C72: =IF('DF raw data'!G72="","",'DF raw data'!G72) -> 2.64645e-05 | D72: =IF('DF raw data'!H72="","",'DF raw data'!H72) -> -3.0807e-05 | F72: 2.076123512e-06 | G72: 9.842324211e-06 | H72: -1.083354696e-05 | J72: 3.114813755e-06 | K72: 7.616773065e-07 | L72: 2.588564924e-05 | M72: 4.564497883e-05 | N72: 8.66697072e-10
A73: =IF('DF raw data'!E73="","",'DF raw data'!E73) -> -297 | B73: =IF('DF raw data'!F73="","",'DF raw data'!F73) -> -3.2274e-05 | C73: =IF('DF raw data'!G73="","",'DF raw data'!G73) -> 2.69571e-05 | D73: =IF('DF raw data'!H73="","",'DF raw data'!H73) -> -3.04447e-05 | F73: 6.650368692e-06 | G73: 1.033719017e-05 | H73: -1.046958038e-05 | J73: 6.439998101e-06 | K73: 3.981676357e-06 | L73: 3.105424433e-05 | M73: 6.117210099e-05 | N73: 1.369616905e-09
A74: =IF('DF raw data'!E74="","",'DF raw data'!E74) -> -296.5 | B74: =IF('DF raw data'!F74="","",'DF raw data'!F74) -> -3.27897e-05 | C74: =IF('DF raw data'!G74="","",'DF raw data'!G74) -> 2.24804e-05 | D74: =IF('DF raw data'!H74="","",'DF raw data'!H74) -> -3.11438e-05 | F74: 6.132296472e-06 | G74: 5.839897351e-06 | H74: -1.117189624e-05 | J74: 9.506146337e-06 | K74: 8.734749525e-06 | L74: 3.3974193e-05 | M74: 7.81591975e-05 | N74: 1.991923209e-09
A75: =IF('DF raw data'!E75="","",'DF raw data'!E75) -> -296 | B75: =IF('DF raw data'!F75="","",'DF raw data'!F75) -> -2.11874e-05 | C75: =IF('DF raw data'!G75="","",'DF raw data'!G75) -> 2.65794e-05 | D75: =IF('DF raw data'!H75="","",'DF raw data'!H75) -> -3.22901e-05 | F75: 1.778796705e-05 | G75: 9.957752751e-06 | H75: -1.232346922e-05 | J75: 1.840012986e-05 | K75: 1.793481446e-05 | L75: 3.895306938e-05 | M75: 9.763573219e-05 | N75: 2.919876406e-09
A76: =IF('DF raw data'!E76="","",'DF raw data'!E76) -> -295.5 | B76: =IF('DF raw data'!F76="","",'DF raw data'!F76) -> -4.81049e-05 | C76: =IF('DF raw data'!G76="","",'DF raw data'!G76) -> 3.54342e-05 | D76: =IF('DF raw data'!H76="","",'DF raw data'!H76) -> -3.21932e-05 | F76: -9.253353448e-06 | G76: 1.885328483e-05 | H76: -1.222612348e-05 | J76: 1.377345314e-05 | K76: 2.482154103e-05 | L76: 4.837971179e-05 | M76: 0.0001218255881 | N76: 4.185028668e-09
A77: =IF('DF raw data'!E77="","",'DF raw data'!E77) -> -295 | B77: =IF('DF raw data'!F77="","",'DF raw data'!F77) -> -3.71435e-05 | C77: =IF('DF raw data'!G77="","",'DF raw data'!G77) -> 3.52025e-05 | D77: =IF('DF raw data'!H77="","",'DF raw data'!H77) -> -3.12378e-05 | F77: 1.758468992e-06 | G77: 1.862051901e-05 | H77: -1.126632864e-05 | J77: 1.465268763e-05 | K77: 3.214788484e-05 | L77: 5.76899713e-05 | M77: 0.0001506705737 | N77: 5.95644569e-09
A78: =IF('DF raw data'!E78="","",'DF raw data'!E78) -> -294.5 | B78: =IF('DF raw data'!F78="","",'DF raw data'!F78) -> -3.60579e-05 | C78: =IF('DF raw data'!G78="","",'DF raw data'!G78) -> 2.35924e-05 | D78: =IF('DF raw data'!H78="","",'DF raw data'!H78) -> -3.09202e-05 | F78: 2.849062752e-06 | G78: 6.957012551e-06 | H78: -1.094726768e-05 | J78: 1.607721901e-05 | K78: 4.018649435e-05 | L78: 6.116847757e-05 | M78: 0.0001812548125 | N78: 7.9564755e-09
A79: =IF('DF raw data'!E79="","",'DF raw data'!E79) -> -294 | B79: =IF('DF raw data'!F79="","",'DF raw data'!F79) -> -3.3427e-05 | C79: =IF('DF raw data'!G79="","",'DF raw data'!G79) -> 2.14208e-05 | D79: =IF('DF raw data'!H79="","",'DF raw data'!H79) -> -3.13455e-05 | F79: 5.492064892e-06 | G79: 4.775423191e-06 | H79: -1.137452406e-05 | J79: 1.882325146e-05 | K79: 4.959812008e-05 | L79: 6.355618917e-05 | M79: 0.0002130329071 | N79: 1.015332749e-08
A80: =IF('DF raw data'!E80="","",'DF raw data'!E80) -> -293.5 | B80: =IF('DF raw data'!F80="","",'DF raw data'!F80) -> -3.97104e-05 | C80: =IF('DF raw data'!G80="","",'DF raw data'!G80) -> 2.19508e-05 | D80: =IF('DF raw data'!H80="","",'DF raw data'!H80) -> -3.1422e-05 | F80: -8.202387483e-07 | G80: 5.307861191e-06 | H80: -1.145137596e-05 | J80: 1.841313208e-05 | K80: 5.880468612e-05 | L80: 6.621011976e-05 | M80: 0.000246137967 | N80: 1.251473918e-08
A81: =IF('DF raw data'!E81="","",'DF raw data'!E81) -> -293 | B81: =IF('DF raw data'!F81="","",'DF raw data'!F81) -> -3.70794e-05 | C81: =IF('DF raw data'!G81="","",'DF raw data'!G81) -> 2.02949e-05 | D81: =IF('DF raw data'!H81="","",'DF raw data'!H81) -> -3.11684e-05 | F81: 1.822863852e-06 | G81: 3.644344051e-06 | H81: -1.11966094e-05 | J81: 1.932456401e-05 | K81: 6.846696812e-05 | L81: 6.803229179e-05 | M81: 0.0002801541129 | N81: 1.501565493e-08
A82: =IF('DF raw data'!E82="","",'DF raw data'!E82) -> -292.5 | B82: =IF('DF raw data'!F82="","",'DF raw data'!F82) -> -3.52889e-05 | C82: =IF('DF raw data'!G82="","",'DF raw data'!G82) -> 2.02561e-05 | D82: =IF('DF raw data'!H82="","",'DF raw data'!H82) -> -3.10651e-05 | F82: 3.621600152e-06 | G82: 3.605365571e-06 | H82: -1.109283422e-05 | J82: 2.113536408e-05 | K82: 7.903465016e-05 | L82: 6.983497458e-05 | M82: 0.0003150716002 | N82: 1.767746858e-08
A83: =IF('DF raw data'!E83="","",'DF raw data'!E83) -> -292 | B83: =IF('DF raw data'!F83="","",'DF raw data'!F83) -> -3.6695e-05 | C83: =IF('DF raw data'!G83="","",'DF raw data'!G83) -> 2.80276e-05 | D83: =IF('DF raw data'!H83="","",'DF raw data'!H83) -> -3.11916e-05 | F83: 2.209032092e-06 | G83: 1.141261447e-05 | H83: -1.121991612e-05 | J83: 2.223988013e-05 | K83: 9.015459023e-05 | L83: 7.554128181e-05 | M83: 0.0003528422411 | N83: 2.077801734e-08
A84: =IF('DF raw data'!E84="","",'DF raw data'!E84) -> -291.5 | B84: =IF('DF raw data'!F84="","",'DF raw data'!F84) -> -3.38232e-05 | C84: =IF('DF raw data'!G84="","",'DF raw data'!G84) -> 1.63508e-05 | D84: =IF('DF raw data'!H84="","",'DF raw data'!H84) -> -1.8439e-05 | F84: 5.094042372e-06 | G84: -3.178988093e-07 | H84: 1.591345844e-06 | J84: 2.478690132e-05 | K84: 0.0001025480409 | L84: 7.538233241e-05 | M84: 0.0003905334073 | N84: 2.39264606e-08
A85: =IF('DF raw data'!E85="","",'DF raw data'!E85) -> -291 | B85: =IF('DF raw data'!F85="","",'DF raw data'!F85) -> -3.68431e-05 | C85: =IF('DF raw data'!G85="","",'DF raw data'!G85) -> 1.9983e-05 | D85: =IF('DF raw data'!H85="","",'DF raw data'!H85) -> -3.15196e-07 | F85: 2.060250832e-06 | G85: 3.331009311e-06 | H85: 1.979851934e-05 | J85: 2.581702673e-05 | K85: 0.0001154565543 | L85: 7.704783706e-05 | M85: 0.0004290573258 | N85: 2.722790463e-08
A86: =IF('DF raw data'!E86="","",'DF raw data'!E86) -> -290.5 | B86: =IF('DF raw data'!F86="","",'DF raw data'!F86) -> -3.90194e-05 | C86: =IF('DF raw data'!G86="","",'DF raw data'!G86) -> 2.3066e-05 | D86: =IF('DF raw data'!H86="","",'DF raw data'!H86) -> -1.01401e-05 | F86: -1.260601483e-07 | G86: 6.428191111e-06 | H86: 9.928420784e-06 | J86: 2.575399666e-05 | K86: 0.0001283335526 | L86: 8.026193262e-05 | M86: 0.0004691882921 | N86: 3.078052772e-08
A87: =IF('DF raw data'!E87="","",'DF raw data'!E87) -> -290 | B87: =IF('DF raw data'!F87="","",'DF raw data'!F87) -> -5.02849e-05 | C87: =IF('DF raw data'!G87="","",'DF raw data'!G87) -> 1.33017e-05 | D87: =IF('DF raw data'!H87="","",'DF raw data'!H87) -> -2.29902e-05 | F87: -1.144338145e-05 | G87: -3.381024669e-06 | H87: -2.980789676e-06 | J87: 2.003230593e-05 | K87: 0.0001383497055 | L87: 7.857142028e-05 | M87: 0.0005084740023 | N87: 3.40679084e-08
A88: =IF('DF raw data'!E88="","",'DF raw data'!E88) -> -289.5 | B88: =IF('DF raw data'!F88="","",'DF raw data'!F88) -> -3.73543e-05 | C88: =IF('DF raw data'!G88="","",'DF raw data'!G88) -> 2.39739e-05 | D88: =IF('DF raw data'!H88="","",'DF raw data'!H88) -> -8.08465e-06 | F88: 1.546699312e-06 | G88: 7.340267451e-06 | H88: 1.199332585e-05 | J88: 2.080565559e-05 | K88: 0.0001487525333 | L88: 8.224155401e-05 | M88: 0.0005495947793 | N88: 3.766618266e-08
A89: =IF('DF raw data'!E89="","",'DF raw data'!E89) -> -289 | B89: =IF('DF raw data'!F89="","",'DF raw data'!F89) -> -3.24753e-05 | C89: =IF('DF raw data'!G89="","",'DF raw data'!G89) -> 1.90773e-05 | D89: =IF('DF raw data'!H89="","",'DF raw data'!H89) -> -1.67671e-05 | F89: 6.448142712e-06 | G89: 2.421143091e-06 | H89: 3.270936584e-06 | J89: 2.402972694e-05 | K89: 0.0001607673968 | L89: 8.345212555e-05 | M89: 0.000591320842 | N89: 4.143702517e-08
A90: =IF('DF raw data'!E90="","",'DF raw data'!E90) -> -288.5 | B90: =IF('DF raw data'!F90="","",'DF raw data'!F90) -> -3.59451e-05 | C90: =IF('DF raw data'!G90="","",'DF raw data'!G90) -> 1.80004e-05 | D90: =IF('DF raw data'!H90="","",'DF raw data'!H90) -> -7.11569e-06 | F90: 2.962381632e-06 | G90: 1.339289351e-06 | H90: 1.296674307e-05 | J90: 2.551091776e-05 | K90: 0.0001735228557 | L90: 8.412177023e-05 | M90: 0.0006333817272 | N90: 4.530066475e-08
A91: =IF('DF raw data'!E91="","",'DF raw data'!E91) -> -288 | B91: =IF('DF raw data'!F91="","",'DF raw data'!F91) -> -3.15798e-05 | C91: =IF('DF raw data'!G91="","",'DF raw data'!G91) -> 2.21707e-05 | D91: =IF('DF raw data'!H91="","",'DF raw data'!H91) -> -1.44488e-05 | F91: 7.347762012e-06 | G91: 5.528772731e-06 | H91: 5.599900764e-06 | J91: 2.918479877e-05 | K91: 0.0001881152551 | L91: 8.688615659e-05 | M91: 0.0006768248054 | N91: 4.950114309e-08
A92: =IF('DF raw data'!E92="","",'DF raw data'!E92) -> -287.5 | B92: =IF('DF raw data'!F92="","",'DF raw data'!F92) -> -3.74088e-05 | C92: =IF('DF raw data'!G92="","",'DF raw data'!G92) -> 1.93816e-05 | D92: =IF('DF raw data'!H92="","",'DF raw data'!H92) -> -2.27109e-05 | F92: 1.491948612e-06 | G92: 2.726842871e-06 | H92: -2.700204896e-06 | J92: 2.993077307e-05 | K92: 0.0002030806416 | L92: 8.824957803e-05 | M92: 0.0007209495945 | N92: 5.384306269e-08
A93: =IF('DF raw data'!E93="","",'DF raw data'!E93) -> -287 | B93: =IF('DF raw data'!F93="","",'DF raw data'!F93) -> -3.97778e-05 | C93: =IF('DF raw data'!G93="","",'DF raw data'!G93) -> 2.34314e-05 | D93: =IF('DF raw data'!H93="","",'DF raw data'!H93) -> -2.08775e-05 | F93: -8.879487883e-07 | G93: 6.795271951e-06 | H93: -8.583712559e-07 | J93: 2.948679868e-05 | K93: 0.000217824041 | L93: 9.1647214e-05 | M93: 0.0007667732015 | N93: 5.847740426e-08
A94: =IF('DF raw data'!E94="","",'DF raw data'!E94) -> -286.5 | B94: =IF('DF raw data'!F94="","",'DF raw data'!F94) -> -4.51578e-05 | C94: =IF('DF raw data'!G94="","",'DF raw data'!G94) -> 1.38087e-05 | D94: =IF('DF raw data'!H94="","",'DF raw data'!H94) -> -3.04197e-05 | F94: -6.292696788e-06 | G94: -2.871692469e-06 | H94: -1.044446538e-05 | J94: 2.634045028e-05 | K94: 0.0002309942661 | L94: 9.021136777e-05 | M94: 0.0008118788853 | N94: 6.289335936e-08
A95: =IF('DF raw data'!E95="","",'DF raw data'!E95) -> -286 | B95: =IF('DF raw data'!F95="","",'DF raw data'!F95) -> -3.95221e-05 | C95: =IF('DF raw data'!G95="","",'DF raw data'!G95) -> 9.28925e-06 | D95: =IF('DF raw data'!H95="","",'DF raw data'!H95) -> -2.0087e-05 | F95: -6.310725683e-07 | G95: -7.411931939e-06 | H95: -6.423495586e-08 | J95: 2.6024914e-05 | K95: 0.0002440067231 | L95: 8.65054018e-05 | M95: 0.0008551315862 | N95: 6.69735997e-08
A96: =IF('DF raw data'!E96="","",'DF raw data'!E96) -> -285.5 | B96: =IF('DF raw data'!F96="","",'DF raw data'!F96) -> -2.22251e-05 | C96: =IF('DF raw data'!G96="","",'DF raw data'!G96) -> 1.27383e-05 | D96: =IF('DF raw data'!H96="","",'DF raw data'!H96) -> -1.64575e-05 | F96: 1.674549363e-05 | G96: -3.947016309e-06 | H96: 3.581960744e-06 | J96: 3.439766082e-05 | K96: 0.0002612055535 | L96: 8.453189365e-05 | M96: 0.0008973975331 | N96: 7.113801976e-08
A97: =IF('DF raw data'!E97="","",'DF raw data'!E97) -> -285 | B97: =IF('DF raw data'!F97="","",'DF raw data'!F97) -> -3.4391e-05 | C97: =IF('DF raw data'!G97="","",'DF raw data'!G97) -> 2.15191e-05 | D97: =IF('DF raw data'!H97="","",'DF raw data'!H97) -> -2.78784e-05 | F97: 4.523630492e-06 | G97: 4.874175371e-06 | H97: -7.891475396e-06 | J97: 3.665947606e-05 | K97: 0.0002795352915 | L97: 8.696898133e-05 | M97: 0.0009408820237 | N97: 7.559178021e-08
A98: =IF('DF raw data'!E98="","",'DF raw data'!E98) -> -284.5 | B98: =IF('DF raw data'!F98="","",'DF raw data'!F98) -> -5.12449e-05 | C98: =IF('DF raw data'!G98="","",'DF raw data'!G98) -> 2.06581e-05 | D98: =IF('DF raw data'!H98="","",'DF raw data'!H98) -> -3.11304e-05 | F98: -1.240779745e-05 | G98: 4.009214771e-06 | H98: -1.11584346e-05 | J98: 3.045557734e-05 | K98: 0.0002947630802 | L98: 8.897358872e-05 | M98: 0.0009853688181 | N98: 8.001370105e-08
A99: =IF('DF raw data'!E99="","",'DF raw data'!E99) -> -284 | B99: =IF('DF raw data'!F99="","",'DF raw data'!F99) -> -4.72667e-05 | C99: =IF('DF raw data'!G99="","",'DF raw data'!G99) -> 1.59163e-05 | D99: =IF('DF raw data'!H99="","",'DF raw data'!H99) -> -3.41265e-05 | F99: -8.411297728e-06 | G99: -7.543975093e-07 | H99: -1.416831666e-05 | J99: 2.624992847e-05 | K99: 0.0003078880444 | L99: 8.859638996e-05 | M99: 0.001029667013 | N99: 8.428289058e-08
A100: =IF('DF raw data'!E100="","",'DF raw data'!E100) -> -283.5 | B100: =IF('DF raw data'!F100="","",'DF raw data'!F100) -> -3.89516e-05 | C100: =IF('DF raw data'!G100="","",'DF raw data'!G100) -> 2.56883e-05 | D100: =IF('DF raw data'!H100="","",'DF raw data'!H100) -> -1.47889e-05 | F100: -5.794826829e-08 | G100: 9.062553691e-06 | H100: 5.258236304e-06 | J100: 2.622095434e-05 | K100: 0.0003209985216 | L100: 9.312766681e-05 | M100: 0.001076230846 | N100: 8.896304096e-08
A101: =IF('DF raw data'!E101="","",'DF raw data'!E101) -> -283 | B101: =IF('DF raw data'!F101="","",'DF raw data'!F101) -> -3.00367e-05 | C101: =IF('DF raw data'!G101="","",'DF raw data'!G101) -> 2.37046e-05 | D101: =IF('DF raw data'!H101="","",'DF raw data'!H101) -> -2.31354e-05 | F101: 8.897960272e-06 | G101: 7.069728671e-06 | H101: -3.126657596e-06 | J101: 3.066993447e-05 | K101: 0.0003363334888 | L101: 9.666253114e-05 | M101: 0.001124562112 | N101: 9.410518587e-08
A102: =IF('DF raw data'!E102="","",'DF raw data'!E102) -> -282.5 | B102: =IF('DF raw data'!F102="","",'DF raw data'!F102) -> -3.43373e-05 | C102: =IF('DF raw data'!G102="","",'DF raw data'!G102) -> 1.78096e-05 | D102: =IF('DF raw data'!H102="","",'DF raw data'!H102) -> -1.51306e-05 | F102: 4.577577512e-06 | G102: 1.147611671e-06 | H102: 4.914964484e-06 | J102: 3.295872323e-05 | K102: 0.0003528128505 | L102: 9.723633698e-05 | M102: 0.001173180281 | N102: 9.93757772e-08
A103: =IF('DF raw data'!E103="","",'DF raw data'!E103) -> -282 | B103: =IF('DF raw data'!F103="","",'DF raw data'!F103) -> -2.83671e-05 | C103: =IF('DF raw data'!G103="","",'DF raw data'!G103) -> 1.49054e-05 | D103: =IF('DF raw data'!H103="","",'DF raw data'!H103) -> -2.87191e-05 | F103: 1.057524043e-05 | G103: -1.769947649e-06 | H103: -8.736042616e-06 | J103: 3.824634345e-05 | K103: 0.0003719360222 | L103: 9.635136315e-05 | M103: 0.001221355962 | N103: 1.047489612e-07
A104: =IF('DF raw data'!E104="","",'DF raw data'!E104) -> -281.5 | B104: =IF('DF raw data'!F104="","",'DF raw data'!F104) -> -3.88249e-05 | C104: =IF('DF raw data'!G104="","",'DF raw data'!G104) -> 1.82504e-05 | D104: =IF('DF raw data'!H104="","",'DF raw data'!H104) -> -1.24652e-05 | F104: 6.933455171e-08 | G104: 1.590439351e-06 | H104: 7.592625324e-06 | J104: 3.828101072e-05 | K104: 0.0003910765275 | L104: 9.714658283e-05 | M104: 0.001269929254 | N104: 1.102004084e-07
A105: =IF('DF raw data'!E105="","",'DF raw data'!E105) -> -281 | B105: =IF('DF raw data'!F105="","",'DF raw data'!F105) -> -3.49074e-05 | C105: =IF('DF raw data'!G105="","",'DF raw data'!G105) -> 3.01719e-05 | D105: =IF('DF raw data'!H105="","",'DF raw data'!H105) -> -2.20369e-05 | F105: 4.004855052e-06 | G105: 1.356677825e-05 | H105: -2.023104496e-06 | J105: 4.028343825e-05 | K105: 0.0004112182467 | L105: 0.000103929972 | M105: 0.00132189424 | N105: 1.164125056e-07
A106: =IF('DF raw data'!E106="","",'DF raw data'!E106) -> -280.5 | B106: =IF('DF raw data'!F106="","",'DF raw data'!F106) -> -3.10001e-05 | C106: =IF('DF raw data'!G106="","",'DF raw data'!G106) -> 2.968e-05 | D106: =IF('DF raw data'!H106="","",'DF raw data'!H106) -> -2.31413e-05 | F106: 7.930128632e-06 | G106: 1.307261551e-05 | H106: -3.132584736e-06 | J106: 4.424850256e-05 | K106: 0.0004333424979 | L106: 0.0001104662797 | M106: 0.001377127379 | N106: 1.234928701e-07
A107: =IF('DF raw data'!E107="","",'DF raw data'!E107) -> -280 | B107: =IF('DF raw data'!F107="","",'DF raw data'!F107) -> -3.45223e-05 | C107: =IF('DF raw data'!G107="","",'DF raw data'!G107) -> 2.20455e-05 | D107: =IF('DF raw data'!H107="","",'DF raw data'!H107) -> -2.30281e-05 | F107: 4.391726512e-06 | G107: 5.402996811e-06 | H107: -3.018864016e-06 | J107: 4.644436582e-05 | K107: 0.0004565646809 | L107: 0.0001131677781 | M107: 0.001433711268 | N107: 1.309748826e-07
A108: =IF('DF raw data'!E108="","",'DF raw data'!E108) -> -279.5 | B108: =IF('DF raw data'!F108="","",'DF raw data'!F108) -> -3.58178e-05 | C108: =IF('DF raw data'!G108="","",'DF raw data'!G108) -> 1.34881e-05 | D108: =IF('DF raw data'!H108="","",'DF raw data'!H108) -> -5.24792e-06 | F108: 3.090267212e-06 | G108: -3.193767229e-06 | H108: 1.484310481e-05 | J108: 4.798949943e-05 | K108: 0.0004805594306 | L108: 0.0001115708945 | M108: 0.001489496716 | N108: 1.383504109e-07
A109: =IF('DF raw data'!E109="","",'DF raw data'!E109) -> -279 | B109: =IF('DF raw data'!F109="","",'DF raw data'!F109) -> -3.90716e-05 | C109: =IF('DF raw data'!G109="","",'DF raw data'!G109) -> 2.06217e-05 | D109: =IF('DF raw data'!H109="","",'DF raw data'!H109) -> -2.32953e-05 | F109: -1.785002683e-07 | G109: 3.972647331e-06 | H109: -3.287293136e-06 | J109: 4.790024929e-05 | K109: 0.0005045095552 | L109: 0.0001135572182 | M109: 0.001546275325 | N109: 1.459452487e-07
A110: =IF('DF raw data'!E110="","",'DF raw data'!E110) -> -278.5 | B110: =IF('DF raw data'!F110="","",'DF raw data'!F110) -> -2.97227e-05 | C110: =IF('DF raw data'!G110="","",'DF raw data'!G110) -> 2.12287e-05 | D110: =IF('DF raw data'!H110="","",'DF raw data'!H110) -> -1.61961e-05 | F110: 9.213404672e-06 | G110: 4.582439531e-06 | H110: 3.844563184e-06 | J110: 5.250695163e-05 | K110: 0.000530763031 | L110: 0.0001158484379 | M110: 0.001604199544 | N110: 1.54034169e-07
A111: =IF('DF raw data'!E111="","",'DF raw data'!E111) -> -278 | B111: =IF('DF raw data'!F111="","",'DF raw data'!F111) -> -2.67709e-05 | C111: =IF('DF raw data'!G111="","",'DF raw data'!G111) -> 2.45261e-05 | D111: =IF('DF raw data'!H111="","",'DF raw data'!H111) -> -1.98089e-05 | F111: 1.217878295e-05 | G111: 7.895007571e-06 | H111: 2.151443041e-07 | J111: 5.85963431e-05 | K111: 0.0005600612026 | L111: 0.0001197959417 | M111: 0.001664097515 | N111: 1.629264685e-07
A112: =IF('DF raw data'!E112="","",'DF raw data'!E112) -> -277.5 | B112: =IF('DF raw data'!F112="","",'DF raw data'!F112) -> -3.62535e-05 | C112: =IF('DF raw data'!G112="","",'DF raw data'!G112) -> 1.55092e-05 | D112: =IF('DF raw data'!H112="","",'DF raw data'!H112) -> -2.53385e-05 | F112: 2.652562992e-06 | G112: -1.163370169e-06 | H112: -5.339891856e-06 | J112: 5.99226246e-05 | K112: 0.0005900225149 | L112: 0.0001192142566 | M112: 0.001723704643 | N112: 1.718278485e-07
A113: =IF('DF raw data'!E113="","",'DF raw data'!E113) -> -277 | B113: =IF('DF raw data'!F113="","",'DF raw data'!F113) -> -2.99723e-05 | C113: =IF('DF raw data'!G113="","",'DF raw data'!G113) -> 1.28272e-05 | D113: =IF('DF raw data'!H113="","",'DF raw data'!H113) -> -2.34064e-05 | F113: 8.962656512e-06 | G113: -3.857707369e-06 | H113: -3.398904196e-06 | J113: 6.440395286e-05 | K113: 0.0006222244913 | L113: 0.0001172854029 | M113: 0.001782347344 | N113: 1.807797159e-07
A114: =IF('DF raw data'!E114="","",'DF raw data'!E114) -> -276.5 | B114: =IF('DF raw data'!F114="","",'DF raw data'!F114) -> -4.2404e-05 | C114: =IF('DF raw data'!G114="","",'DF raw data'!G114) -> 1.15867e-05 | D114: =IF('DF raw data'!H114="","",'DF raw data'!H114) -> -2.7405e-05 | F114: -3.526229308e-06 | G114: -5.103913669e-06 | H114: -7.415897756e-06 | J114: 6.26408382e-05 | K114: 0.0006535449104 | L114: 0.0001147334461 | M114: 0.001839714067 | N114: 1.893235351e-07
A115: =IF('DF raw data'!E115="","",'DF raw data'!E115) -> -276 | B115: =IF('DF raw data'!F115="","",'DF raw data'!F115) -> -2.77329e-05 | C115: =IF('DF raw data'!G115="","",'DF raw data'!G115) -> 1.65859e-05 | D115: =IF('DF raw data'!H115="","",'DF raw data'!H115) -> -1.86724e-05 | F115: 1.121235775e-05 | G115: -8.171734932e-08 | H115: 1.356872204e-06 | J115: 6.824701708e-05 | K115: 0.000687668419 | L115: 0.0001146925874 | M115: 0.001897060361 | N115: 1.982295576e-07
A116: =IF('DF raw data'!E116="","",'DF raw data'!E116) -> -275.5 | B116: =IF('DF raw data'!F116="","",'DF raw data'!F116) -> -2.73477e-05 | C116: =IF('DF raw data'!G116="","",'DF raw data'!G116) -> 1.68986e-05 | D116: =IF('DF raw data'!H116="","",'DF raw data'!H116) -> -2.2302e-05 | F116: 1.159932967e-05 | G116: 2.324210707e-07 | H116: -2.289423956e-06 | J116: 7.404668191e-05 | K116: 0.0007246917599 | L116: 0.000114808798 | M116: 0.00195446476 | N116: 2.075615431e-07
A117: =IF('DF raw data'!E117="","",'DF raw data'!E117) -> -275 | B117: =IF('DF raw data'!F117="","",'DF raw data'!F117) -> -4.48469e-05 | C117: =IF('DF raw data'!G117="","",'DF raw data'!G117) -> 6.49465e-06 | D117: =IF('DF raw data'!H117="","",'DF raw data'!H117) -> -1.06116e-05 | F117: -5.980366648e-06 | G117: -1.02193871e-05 | H117: 9.454751884e-06 | J117: 7.105649859e-05 | K117: 0.0007602200092 | L117: 0.0001096991044 | M117: 0.002009314312 | N117: 2.161030029e-07
A118: =IF('DF raw data'!E118="","",'DF raw data'!E118) -> -274.5 | B118: =IF('DF raw data'!F118="","",'DF raw data'!F118) -> -4.14469e-05 | C118: =IF('DF raw data'!G118="","",'DF raw data'!G118) -> 4.07098e-06 | D118: =IF('DF raw data'!H118="","",'DF raw data'!H118) -> -2.09821e-05 | F118: -2.564726648e-06 | G118: -1.265420598e-05 | H118: -9.634524159e-07 | J118: 6.977413526e-05 | K118: 0.0007951070768 | L118: 0.0001033720014 | M118: 0.002061000313 | N118: 2.238801032e-07
A119: =IF('DF raw data'!E119="","",'DF raw data'!E119) -> -274 | B119: =IF('DF raw data'!F119="","",'DF raw data'!F119) -> -4.19572e-05 | C119: =IF('DF raw data'!G119="","",'DF raw data'!G119) -> 1.39404e-05 | D119: =IF('DF raw data'!H119="","",'DF raw data'!H119) -> -2.03326e-05 | F119: -3.077374028e-06 | G119: -2.739386649e-06 | H119: -3.109647159e-07 | J119: 6.823544825e-05 | K119: 0.000829224801 | L119: 0.0001020023081 | M119: 0.002112001467 | N119: 2.314103768e-07
A120: =IF('DF raw data'!E120="","",'DF raw data'!E120) -> -273.5 | B120: =IF('DF raw data'!F120="","",'DF raw data'!F120) -> -3.79884e-05 | C120: =IF('DF raw data'!G120="","",'DF raw data'!G120) -> 7.6417e-06 | D120: =IF('DF raw data'!H120="","",'DF raw data'!H120) -> -1.75591e-05 | F120: 9.096824517e-07 | G120: -9.067060669e-06 | H120: 2.475293384e-06 | J120: 6.869028948e-05 | K120: 0.0008635699457 | L120: 9.746877777e-05 | M120: 0.002160735856 | N120: 2.385196361e-07
A121: =IF('DF raw data'!E121="","",'DF raw data'!E121) -> -273 | B121: =IF('DF raw data'!F121="","",'DF raw data'!F121) -> -2.13854e-05 | C121: =IF('DF raw data'!G121="","",'DF raw data'!G121) -> 7.77199e-06 | D121: =IF('DF raw data'!H121="","",'DF raw data'!H121) -> -2.44216e-05 | F121: 1.758905625e-05 | G121: -8.936171335e-06 | H121: -4.418774116e-06 | J121: 7.74848176e-05 | K121: 0.0009023123545 | L121: 9.30006921e-05 | M121: 0.002207236202 | N121: 2.458461489e-07
A122: =IF('DF raw data'!E122="","",'DF raw data'!E122) -> -272.5 | B122: =IF('DF raw data'!F122="","",'DF raw data'!F122) -> -4.20191e-05 | C122: =IF('DF raw data'!G122="","",'DF raw data'!G122) -> 1.58702e-06 | D122: =IF('DF raw data'!H122="","",'DF raw data'!H122) -> -2.76823e-05 | F122: -3.139558768e-06 | G122: -1.51495922e-05 | H122: -7.694473336e-06 | J122: 7.591503822e-05 | K122: 0.0009402698736 | L122: 8.542589601e-05 | M122: 0.00224994915 | N122: 2.523764873e-07
A123: =IF('DF raw data'!E123="","",'DF raw data'!E123) -> -272 | B123: =IF('DF raw data'!F123="","",'DF raw data'!F123) -> -2.93919e-05 | C123: =IF('DF raw data'!G123="","",'DF raw data'!G123) -> 2.78414e-07 | D123: =IF('DF raw data'!H123="","",'DF raw data'!H123) -> -2.97059e-05 | F123: 9.545726352e-06 | G123: -1.646421778e-05 | H123: -9.727381896e-06 | J123: 8.068790139e-05 | K123: 0.0009806138243 | L123: 7.719378711e-05 | M123: 0.002288546044 | N123: 2.586111964e-07
A124: =IF('DF raw data'!E124="","",'DF raw data'!E124) -> -271.5 | B124: =IF('DF raw data'!F124="","",'DF raw data'!F124) -> -3.46537e-05 | C124: =IF('DF raw data'!G124="","",'DF raw data'!G124) -> 8.05507e-06 | D124: =IF('DF raw data'!H124="","",'DF raw data'!H124) -> -2.11928e-05 | F124: 4.259722072e-06 | G124: -8.651789167e-06 | H124: -1.175121636e-06 | J124: 8.281776243e-05 | K124: 0.001022022706 | L124: 7.286789253e-05 | M124: 0.00232497999 | N124: 2.646954522e-07
A125: =IF('DF raw data'!E125="","",'DF raw data'!E125) -> -271 | B125: =IF('DF raw data'!F125="","",'DF raw data'!F125) -> -4.60565e-05 | C125: =IF('DF raw data'!G125="","",'DF raw data'!G125) -> 7.71458e-06 | D125: =IF('DF raw data'!H125="","",'DF raw data'!H125) -> -2.37864e-05 | F125: -7.195530808e-06 | G125: -8.993845421e-06 | H125: -3.780652196e-06 | J125: 7.921999703e-05 | K125: 0.001061632704 | L125: 6.837096982e-05 | M125: 0.002359165475 | N125: 2.701706509e-07
A126: =IF('DF raw data'!E126="","",'DF raw data'!E126) -> -270.5 | B126: =IF('DF raw data'!F126="","",'DF raw data'!F126) -> -3.83075e-05 | C126: =IF('DF raw data'!G126="","",'DF raw data'!G126) -> 1.09379e-05 | D126: =IF('DF raw data'!H126="","",'DF raw data'!H126) -> -1.91429e-05 | F126: 5.891145917e-07 | G126: -5.755698149e-06 | H126: 8.842079041e-07 | J126: 7.951455432e-05 | K126: 0.001101389981 | L126: 6.549312074e-05 | M126: 0.002391912035 | N126: 2.754766075e-07
A127: =IF('DF raw data'!E127="","",'DF raw data'!E127) -> -270 | B127: =IF('DF raw data'!F127="","",'DF raw data'!F127) -> -3.67728e-05 | C127: =IF('DF raw data'!G127="","",'DF raw data'!G127) -> 1.9986e-05 | D127: =IF('DF raw data'!H127="","",'DF raw data'!H127) -> -1.21214e-05 | F127: 2.130874212e-06 | G127: 3.334023111e-06 | H127: 7.938006804e-06 | J127: 8.057999143e-05 | K127: 0.001141679977 | L127: 6.71601323e-05 | M127: 0.002425492101 | N127: 2.809784167e-07
A128: =IF('DF raw data'!E128="","",'DF raw data'!E128) -> -269.5 | B128: =IF('DF raw data'!F128="","",'DF raw data'!F128) -> -3.95258e-05 | C128: =IF('DF raw data'!G128="","",'DF raw data'!G128) -> 1.17919e-05 | D128: =IF('DF raw data'!H128="","",'DF raw data'!H128) -> -1.785e-05 | F128: -6.347895883e-07 | G128: -4.897769749e-06 | H128: 2.183055244e-06 | J128: 8.026259663e-05 | K128: 0.001181811275 | L128: 6.471124743e-05 | M128: 0.002457847725 | N128: 2.862932317e-07
A129: =IF('DF raw data'!E129="","",'DF raw data'!E129) -> -269 | B129: =IF('DF raw data'!F129="","",'DF raw data'!F129) -> -3.09411e-05 | C129: =IF('DF raw data'!G129="","",'DF raw data'!G129) -> 1.48476e-05 | D129: =IF('DF raw data'!H129="","",'DF raw data'!H129) -> -1.27709e-05 | F129: 7.989400032e-06 | G129: -1.828013529e-06 | H129: 7.285519104e-06 | J129: 8.425729665e-05 | K129: 0.001223939924 | L129: 6.379724066e-05 | M129: 0.002489746345 | N129: 2.918779217e-07
A130: =IF('DF raw data'!E130="","",'DF raw data'!E130) -> -268.5 | B130: =IF('DF raw data'!F130="","",'DF raw data'!F130) -> -4.4136e-05 | C130: =IF('DF raw data'!G130="","",'DF raw data'!G130) -> 1.83132e-05 | D130: =IF('DF raw data'!H130="","",'DF raw data'!H130) -> -2.34901e-05 | F130: -5.266196508e-06 | G130: 1.653528231e-06 | H130: -3.482989216e-06 | J130: 8.162419839e-05 | K130: 0.001264752023 | L130: 6.462400478e-05 | M130: 0.002522058348 | N130: 2.972973075e-07
A131: =IF('DF raw data'!E131="","",'DF raw data'!E131) -> -268 | B131: =IF('DF raw data'!F131="","",'DF raw data'!F131) -> -4.10643e-05 | C131: =IF('DF raw data'!G131="","",'DF raw data'!G131) -> 1.35336e-05 | D131: =IF('DF raw data'!H131="","",'DF raw data'!H131) -> -1.50591e-05 | F131: =(1-$G$1*($B$54-$G$2))*(B131-F$5) -> -2.180366688e-06 | G131: =(1-$G$1*($B$54-$G$2))*(C131-G$5) -> -3.148057929e-06 | H131: =(1-$G$1*($B$54-$G$2))*(D131-H$5) -> 4.986793384e-06 | J131: 8.053401505e-05 | K131: 0.00130501903 | L131: 6.304997581e-05 | M131: 0.002553583336 | N131: 3.025278211e-07
A132: =IF('DF raw data'!E132="","",'DF raw data'!E132) -> -267.5 | B132: =IF('DF raw data'!F132="","",'DF raw data'!F132) -> -4.3882e-05 | C132: =IF('DF raw data'!G132="","",'DF raw data'!G132) -> 4.62589e-06 | D132: =IF('DF raw data'!H132="","",'DF raw data'!H132) -> -1.95334e-05 | F132: -5.011028108e-06 | G132: -1.20967434e-05 | H132: 4.919116041e-07 | J132: =F132*$G$3+J131 -> 7.8028501e-05 | K132: =J132*$G$3+K131 -> 0.001344033281 | L132: =G132*$G$3+L131 -> 5.700160411e-05 | M132: =L132*$G$3+M131 -> 0.002582084138 | N132: =(J132^2+L132^2)*$G$3+N131 -> 3.07196636e-07
A133: =IF('DF raw data'!E133="","",'DF raw data'!E133) -> -267 | B133: =IF('DF raw data'!F133="","",'DF raw data'!F133) -> -3.95862e-05 | C133: =IF('DF raw data'!G133="","",'DF raw data'!G133) -> 1.21651e-05 | D133: =IF('DF raw data'!H133="","",'DF raw data'!H133) -> -2.16686e-05 | F133: -6.954674283e-07 | G133: -4.522853029e-06 | H133: -1.653110316e-06 | J133: 7.768076728e-05 | K133: 0.001382873664 | L133: 5.47401776e-05 | M133: 0.002609454226 | N133: 3.117120303e-07
A134: =IF('DF raw data'!E134="","",'DF raw data'!E134) -> -266.5 | B134: =IF('DF raw data'!F134="","",'DF raw data'!F134) -> -4.64441e-05 | C134: =IF('DF raw data'!G134="","",'DF raw data'!G134) -> 1.38233e-05 | D134: =IF('DF raw data'!H134="","",'DF raw data'!H134) -> -2.14099e-05 | F134: -7.584913768e-06 | G134: -2.857025309e-06 | H134: -1.393220296e-06 | J134: 7.38883104e-05 | K134: 0.00141981782 | L134: 5.331166494e-05 | M134: 0.002636110059 | N134: 3.158628383e-07
A135: =IF('DF raw data'!E135="","",'DF raw data'!E135) -> -266 | B135: =IF('DF raw data'!F135="","",'DF raw data'!F135) -> -4.10643e-05 | C135: =IF('DF raw data'!G135="","",'DF raw data'!G135) -> 9.59844e-06 | D135: =IF('DF raw data'!H135="","",'DF raw data'!H135) -> -1.52175e-05 | F135: -2.180366688e-06 | G135: -7.101319665e-06 | H135: 4.827664744e-06 | J135: 7.279812705e-05 | K135: 0.001456216883 | L135: 4.976100511e-05 | M135: 0.002660990562 | N135: 3.197507008e-07
A136: =IF('DF raw data'!E136="","",'DF raw data'!E136) -> -265.5 | B136: =IF('DF raw data'!F136="","",'DF raw data'!F136) -> -4.36291e-05 | C136: =IF('DF raw data'!G136="","",'DF raw data'!G136) -> 7.75419e-06 | D136: =IF('DF raw data'!H136="","",'DF raw data'!H136) -> -1.40396e-05 | F136: -4.756964768e-06 | G136: -8.954053215e-06 | H136: 6.010983084e-06 | J136: 7.041964467e-05 | K136: 0.001491426705 | L136: 4.52839785e-05 | M136: 0.002683632551 | N136: 3.232554833e-07
A137: =IF('DF raw data'!E137="","",'DF raw data'!E137) -> -265 | B137: =IF('DF raw data'!F137="","",'DF raw data'!F137) -> -4.04174e-05 | C137: =IF('DF raw data'!G137="","",'DF raw data'!G137) -> 1.16431e-05 | D137: =IF('DF raw data'!H137="","",'DF raw data'!H137) -> -2.45588e-05 | F137: -1.530490948e-06 | G137: -5.047254229e-06 | H137: -4.556605236e-06 | J137: 6.96543992e-05 | K137: 0.001526253905 | L137: 4.276035139e-05 | M137: 0.002705012726 | N137: 3.265955748e-07
A138: =IF('DF raw data'!E138="","",'DF raw data'!E138) -> -264.5 | B138: =IF('DF raw data'!F138="","",'DF raw data'!F138) -> -4.90758e-05 | C138: =IF('DF raw data'!G138="","",'DF raw data'!G138) -> 1.62067e-05 | D138: =IF('DF raw data'!H138="","",'DF raw data'!H138) -> -1.46964e-05 | F138: -1.022871959e-05 | G138: -4.626616693e-07 | H138: 5.351161804e-06 | J138: 6.45400394e-05 | K138: 0.001558523925 | L138: 4.252902055e-05 | M138: 0.002726277237 | N138: 3.295826419e-07
A139: =IF('DF raw data'!E139="","",'DF raw data'!E139) -> -264 | B139: =IF('DF raw data'!F139="","",'DF raw data'!F139) -> -2.70998e-05 | C139: =IF('DF raw data'!G139="","",'DF raw data'!G139) -> 1.80494e-05 | D139: =IF('DF raw data'!H139="","",'DF raw data'!H139) -> -7.39527e-06 | F139: 1.184837001e-05 | G139: 1.388514751e-06 | H139: 1.2685877e-05 | J139: 7.046422441e-05 | K139: 0.001593756037 | L139: 4.322327793e-05 | M139: 0.002747888876 | N139: 3.329993713e-07
A140: =IF('DF raw data'!E140="","",'DF raw data'!E140) -> -263.5 | B140: =IF('DF raw data'!F140="","",'DF raw data'!F140) -> -2.83043e-05 | C140: =IF('DF raw data'!G140="","",'DF raw data'!G140) -> 2.00311e-05 | D140: =IF('DF raw data'!H140="","",'DF raw data'!H140) -> -2.85548e-05 | F140: 1.063832931e-05 | G140: 3.379330571e-06 | H140: -8.570986836e-06 | J140: 7.578338906e-05 | K140: 0.001631647732 | L140: 4.491294322e-05 | M140: 0.002770345347 | N140: 3.368795185e-07
A141: =IF('DF raw data'!E141="","",'DF raw data'!E141) -> -263 | B141: =IF('DF raw data'!F141="","",'DF raw data'!F141) -> -2.19622e-05 | C141: =IF('DF raw data'!G141="","",'DF raw data'!G141) -> 1.74042e-05 | D141: =IF('DF raw data'!H141="","",'DF raw data'!H141) -> -2.5121e-05 | F141: 1.700960297e-05 | G141: 7.403468307e-07 | H141: -5.121391356e-06 | J141: 8.428819055e-05 | K141: 0.001673791827 | L141: 4.528311663e-05 | M141: 0.002792986906 | N141: 3.414570484e-07
A142: =IF('DF raw data'!E142="","",'DF raw data'!E142) -> -262.5 | B142: =IF('DF raw data'!F142="","",'DF raw data'!F142) -> -3.97121e-05 | C142: =IF('DF raw data'!G142="","",'DF raw data'!G142) -> 1.53561e-05 | D142: =IF('DF raw data'!H142="","",'DF raw data'!H142) -> -2.66514e-05 | F142: -8.219465683e-07 | G142: -1.317174429e-06 | H142: -6.658831196e-06 | J142: 8.387721726e-05 | K142: 0.001715730435 | L142: 4.462452942e-05 | M142: 0.00281529917 | N142: 3.459704165e-07
A143: =IF('DF raw data'!E143="","",'DF raw data'!E143) -> -262 | B143: =IF('DF raw data'!F143="","",'DF raw data'!F143) -> -2.51081e-05 | C143: =IF('DF raw data'!G143="","",'DF raw data'!G143) -> 1.17378e-05 | D143: =IF('DF raw data'!H143="","",'DF raw data'!H143) -> -1.58528e-05 | F143: 1.384923183e-05 | G143: -4.952118609e-06 | H143: 4.189442364e-06 | J143: 9.080183318e-05 | K143: 0.001761131352 | L143: 4.214847011e-05 | M143: 0.002836373405 | N143: 3.509811497e-07
A144: =IF('DF raw data'!E144="","",'DF raw data'!E144) -> -261.5 | B144: =IF('DF raw data'!F144="","",'DF raw data'!F144) -> -4.24749e-05 | C144: =IF('DF raw data'!G144="","",'DF raw data'!G144) -> 8.88077e-06 | D144: =IF('DF raw data'!H144="","",'DF raw data'!H144) -> -1.53346e-05 | F144: -3.597455448e-06 | G144: -7.822290947e-06 | H144: 4.710026084e-06 | J144: 8.900310546e-05 | K144: 0.001805632905 | L144: 3.823732464e-05 | M144: 0.002855492068 | N144: 3.556729726e-07
A145: =IF('DF raw data'!E145="","",'DF raw data'!E145) -> -261 | B145: =IF('DF raw data'!F145="","",'DF raw data'!F145) -> -2.76689e-05 | C145: =IF('DF raw data'!G145="","",'DF raw data'!G145) -> 1.32023e-05 | D145: =IF('DF raw data'!H145="","",'DF raw data'!H145) -> -1.92003e-05 | F145: 1.127665215e-05 | G145: -3.480881909e-06 | H145: 8.265438641e-07 | J145: 9.464143153e-05 | K145: 0.00185295362 | L145: 3.649688368e-05 | M145: 0.00287374051 | N145: 3.608174842e-07
A146: =IF('DF raw data'!E146="","",'DF raw data'!E146) -> -260.5 | B146: =IF('DF raw data'!F146="","",'DF raw data'!F146) -> -3.19628e-05 | C146: =IF('DF raw data'!G146="","",'DF raw data'!G146) -> 1.16561e-05 | D146: =IF('DF raw data'!H146="","",'DF raw data'!H146) -> -1.94982e-05 | F146: 6.963000212e-06 | G146: -5.034194429e-06 | H146: 5.272735241e-07 | J146: 9.812293164e-05 | K146: 0.001902015086 | L146: 3.397978647e-05 | M146: 0.002890730403 | N146: 3.66208852e-07
A147: =IF('DF raw data'!E147="","",'DF raw data'!E147) -> -260 | B147: =IF('DF raw data'!F147="","",'DF raw data'!F147) -> -2.52289e-05 | C147: =IF('DF raw data'!G147="","",'DF raw data'!G147) -> 2.11435e-06 | D147: =IF('DF raw data'!H147="","",'DF raw data'!H147) -> -2.71979e-05 | F147: 1.372787615e-05 | G147: -1.461983648e-05 | H147: -7.207845096e-06 | J147: 0.0001049868697 | K147: 0.001954508521 | L147: 2.666986823e-05 | M147: 0.002904065337 | N147: 3.720756143e-07
A148: =IF('DF raw data'!E148="","",'DF raw data'!E148) -> -259.5 | B148: =IF('DF raw data'!F148="","",'DF raw data'!F148) -> -5.03524e-05 | C148: =IF('DF raw data'!G148="","",'DF raw data'!G148) -> 2.35018e-06 | D148: =IF('DF raw data'!H148="","",'DF raw data'!H148) -> -2.23227e-05 | F148: -1.151119195e-05 | G148: -1.438292166e-05 | H148: -2.310219176e-06 | J148: 9.923127374e-05 | K148: 0.002004124158 | L148: 1.94784074e-05 | M148: 0.002913804541 | N148: 3.771887413e-07
A149: =IF('DF raw data'!E149="","",'DF raw data'!E149) -> -259 | B149: =IF('DF raw data'!F149="","",'DF raw data'!F149) -> -3.17039e-05 | C149: =IF('DF raw data'!G149="","",'DF raw data'!G149) -> 9.63466e-06 | D149: =IF('DF raw data'!H149="","",'DF raw data'!H149) -> -2.26009e-05 | F149: 7.223091152e-06 | G149: -7.064933053e-06 | H149: -2.589698896e-06 | J149: 0.0001028428193 | K149: 0.002055545568 | L149: 1.594594087e-05 | M149: 0.002921777511 | N149: 3.826042006e-07
A150: =IF('DF raw data'!E150="","",'DF raw data'!E150) -> -258.5 | B150: =IF('DF raw data'!F150="","",'DF raw data'!F150) -> -4.29208e-05 | C150: =IF('DF raw data'!G150="","",'DF raw data'!G150) -> 1.89005e-05 | D150: =IF('DF raw data'!H150="","",'DF raw data'!H150) -> -1.90459e-05 | F150: -4.045406588e-06 | G150: 2.243529811e-06 | H150: 9.816541041e-07 | J150: 0.000100820116 | K150: 0.002105955626 | L150: 1.706770578e-05 | M150: 0.002930311364 | N150: 3.878322018e-07
A151: =IF('DF raw data'!E151="","",'DF raw data'!E151) -> -258 | B151: =IF('DF raw data'!F151="","",'DF raw data'!F151) -> -3.56146e-05 | C151: =IF('DF raw data'!G151="","",'DF raw data'!G151) -> 1.94991e-05 | D151: =IF('DF raw data'!H151="","",'DF raw data'!H151) -> -2.00894e-05 | F151: 3.294401932e-06 | G151: 2.844883371e-06 | H151: -6.664599586e-08 | J151: 0.000102467317 | K151: 0.002157189284 | L151: 1.849014746e-05 | M151: 0.002939556438 | N151: 3.932529201e-07
A152: =IF('DF raw data'!E152="","",'DF raw data'!E152) -> -257.5 | B152: =IF('DF raw data'!F152="","",'DF raw data'!F152) -> -4.00989e-05 | C152: =IF('DF raw data'!G152="","",'DF raw data'!G152) -> 1.48754e-05 | D152: =IF('DF raw data'!H152="","",'DF raw data'!H152) -> -2.22821e-05 | F152: -1.210525848e-06 | G152: -1.800085649e-06 | H152: -2.269432416e-06 | J152: 0.0001018620541 | K152: 0.002208120311 | L152: 1.759010464e-05 | M152: 0.00294835149 | N152: 3.98595565e-07
A153: =IF('DF raw data'!E153="","",'DF raw data'!E153) -> -257 | B153: =IF('DF raw data'!F153="","",'DF raw data'!F153) -> -4.30488e-05 | C153: =IF('DF raw data'!G153="","",'DF raw data'!G153) -> 1.33689e-05 | D153: =IF('DF raw data'!H153="","",'DF raw data'!H153) -> -1.91202e-05 | F153: -4.173995388e-06 | G153: -3.313515549e-06 | H153: 9.070123241e-07 | J153: 9.977505637e-05 | K153: 0.002258007839 | L153: 1.593334686e-05 | M153: 0.002956318163 | N153: 4.037000317e-07
A154: =IF('DF raw data'!E154="","",'DF raw data'!E154) -> -256.5 | B154: =IF('DF raw data'!F154="","",'DF raw data'!F154) -> -3.5865e-05 | C154: =IF('DF raw data'!G154="","",'DF raw data'!G154) -> 4.21852e-06 | D154: =IF('DF raw data'!H154="","",'DF raw data'!H154) -> -2.97042e-05 | F154: 3.042850092e-06 | G154: -1.25059873e-05 | H154: -9.725674076e-06 | J154: 0.0001012964814 | K154: 0.00230865608 | L154: 9.680353214e-06 | M154: 0.00296115834 | N154: 4.088773749e-07
A155: =IF('DF raw data'!E155="","",'DF raw data'!E155) -> -256 | B155: =IF('DF raw data'!F155="","",'DF raw data'!F155) -> -4.26593e-05 | C155: =IF('DF raw data'!G155="","",'DF raw data'!G155) -> 1.29262e-05 | D155: =IF('DF raw data'!H155="","",'DF raw data'!H155) -> -2.67913e-05 | F155: -3.782703688e-06 | G155: -3.758251969e-06 | H155: -6.799374736e-06 | J155: 9.940512957e-05 | K155: 0.002358358645 | L155: 7.80122723e-06 | M155: 0.002965058954 | N155: 4.138484943e-07
A156: =IF('DF raw data'!E156="","",'DF raw data'!E156) -> -255.5 | B156: =IF('DF raw data'!F156="","",'DF raw data'!F156) -> -4.74727e-05 | C156: =IF('DF raw data'!G156="","",'DF raw data'!G156) -> 2.07893e-05 | D156: =IF('DF raw data'!H156="","",'DF raw data'!H156) -> -1.5445e-05 | F156: -8.618245328e-06 | G156: 4.141018291e-06 | H156: 4.599118244e-06 | J156: 9.509600691e-05 | K156: 0.002405906648 | L156: 9.871736375e-06 | M156: 0.002969994822 | N156: 4.184188452e-07
A157: =IF('DF raw data'!E157="","",'DF raw data'!E157) -> -255 | B157: =IF('DF raw data'!F157="","",'DF raw data'!F157) -> -4.62494e-05 | C157: =IF('DF raw data'!G157="","",'DF raw data'!G157) -> 2.88765e-05 | D157: =IF('DF raw data'!H157="","",'DF raw data'!H157) -> -2.41341e-05 | F157: -7.389318148e-06 | G157: 1.226541941e-05 | H157: -4.129951616e-06 | J157: 9.140134783e-05 | K157: 0.002451607322 | L157: 1.600444608e-05 | M157: 0.002977997045 | N157: 4.227240195e-07
A158: =IF('DF raw data'!E158="","",'DF raw data'!E158) -> -254.5 | B158: =IF('DF raw data'!F158="","",'DF raw data'!F158) -> -4.92655e-05 | C158: =IF('DF raw data'!G158="","",'DF raw data'!G158) -> 1.82056e-05 | D158: =IF('DF raw data'!H158="","",'DF raw data'!H158) -> -1.7658e-05 | F158: -1.041929221e-05 | G158: 1.545433271e-06 | H158: 2.375938444e-06 | J158: 8.619170173e-05 | K158: 0.002494703173 | L158: 1.677716272e-05 | M158: 0.002986385626 | N158: 4.265792609e-07
A159: =IF('DF raw data'!E159="","",'DF raw data'!E159) -> -254 | B159: =IF('DF raw data'!F159="","",'DF raw data'!F159) -> -3.81812e-05 | C159: =IF('DF raw data'!G159="","",'DF raw data'!G159) -> 1.70611e-05 | D159: =IF('DF raw data'!H159="","",'DF raw data'!H159) -> -1.52224e-05 | F159: 7.159955717e-07 | G159: 3.956685707e-07 | H159: 4.822742204e-06 | J159: 8.654969951e-05 | K159: 0.002537978023 | L159: 1.6974997e-05 | M159: 0.002994873125 | N159: 4.304687614e-07
A160: =IF('DF raw data'!E160="","",'DF raw data'!E160) -> -253.5 | B160: =IF('DF raw data'!F160="","",'DF raw data'!F160) -> -3.88856e-05 | C160: =IF('DF raw data'!G160="","",'DF raw data'!G160) -> 1.94595e-05 | D160: =IF('DF raw data'!H160="","",'DF raw data'!H160) -> -1.61622e-05 | F160: 8.355331707e-09 | G160: 2.805101211e-06 | H160: 3.878619124e-06 | J160: 8.655387718e-05 | K160: 0.002581254961 | L160: 1.837754761e-05 | M160: 0.003004061899 | N160: 4.343834153e-07
A161: =IF('DF raw data'!E161="","",'DF raw data'!E161) -> -253 | B161: =IF('DF raw data'!F161="","",'DF raw data'!F161) -> -4.97742e-05 | C161: =IF('DF raw data'!G161="","",'DF raw data'!G161) -> 1.35119e-05 | D161: =IF('DF raw data'!H161="","",'DF raw data'!H161) -> -2.39623e-05 | F161: -1.093033223e-05 | G161: -3.169857749e-06 | H161: -3.957361336e-06 | J161: 8.108871107e-05 | K161: 0.002621799317 | L161: 1.679261873e-05 | M161: 0.003012458208 | N161: 4.378121009e-07
A162: =IF('DF raw data'!E162="","",'DF raw data'!E162) -> -252.5 | B162: =IF('DF raw data'!F162="","",'DF raw data'!F162) -> -4.30431e-05 | C162: =IF('DF raw data'!G162="","",'DF raw data'!G162) -> 1.9021e-05 | D162: =IF('DF raw data'!H162="","",'DF raw data'!H162) -> -2.80544e-05 | F162: -4.168269168e-06 | G162: 2.364584111e-06 | H162: -8.068284996e-06 | J162: 7.900457648e-05 | K162: 0.002661301605 | L162: 1.797491079e-05 | M162: 0.003021445663 | N162: 4.410945111e-07
A163: =IF('DF raw data'!E163="","",'DF raw data'!E163) -> -252 | B163: =IF('DF raw data'!F163="","",'DF raw data'!F163) -> -4.51534e-05 | C163: =IF('DF raw data'!G163="","",'DF raw data'!G163) -> 2.10955e-05 | D163: =IF('DF raw data'!H163="","",'DF raw data'!H163) -> -3.46704e-05 | F163: -6.288276548e-06 | G163: 4.448626811e-06 | H163: -1.47147186e-05 | J163: 7.586043821e-05 | K163: 0.002699231824 | L163: 2.019922419e-05 | M163: 0.003031545275 | N163: 4.441759185e-07
A164: =IF('DF raw data'!E164="","",'DF raw data'!E164) -> -251.5 | B164: =IF('DF raw data'!F164="","",'DF raw data'!F164) -> -3.67096e-05 | C164: =IF('DF raw data'!G164="","",'DF raw data'!G164) -> 1.77186e-05 | D164: =IF('DF raw data'!H164="","",'DF raw data'!H164) -> -1.17524e-05 | F164: 2.194364932e-06 | G164: 1.056193071e-06 | H164: 8.308704204e-06 | J164: 7.695762067e-05 | K164: 0.002737710635 | L164: 2.072732073e-05 | M164: 0.003041908936 | N164: 4.473519671e-07
A165: =IF('DF raw data'!E165="","",'DF raw data'!E165) -> -251 | B165: =IF('DF raw data'!F165="","",'DF raw data'!F165) -> -3.41466e-05 | C165: =IF('DF raw data'!G165="","",'DF raw data'!G165) -> 1.99533e-05 | D165: =IF('DF raw data'!H165="","",'DF raw data'!H165) -> -1.14857e-05 | F165: 4.769154732e-06 | G165: 3.301172691e-06 | H165: 8.576631024e-06 | J165: 7.934219804e-05 | K165: 0.002777381734 | L165: 2.237790707e-05 | M165: 0.003053097889 | N165: 4.507499447e-07
A166: =IF('DF raw data'!E166="","",'DF raw data'!E166) -> -250.5 | B166: =IF('DF raw data'!F166="","",'DF raw data'!F166) -> -3.58074e-05 | C166: =IF('DF raw data'!G166="","",'DF raw data'!G166) -> 2.3233e-05 | D166: =IF('DF raw data'!H166="","",'DF raw data'!H166) -> -1.9534e-05 | F166: 3.100715052e-06 | G166: 6.595959311e-06 | H166: 4.913088441e-07 | J166: 8.089255557e-05 | K166: 0.002817828012 | L166: 2.567588673e-05 | M166: 0.003065935833 | N166: 4.54351373e-07
A167: =IF('DF raw data'!E167="","",'DF raw data'!E167) -> -250 | B167: =IF('DF raw data'!F167="","",'DF raw data'!F167) -> -4.25376e-05 | C167: =IF('DF raw data'!G167="","",'DF raw data'!G167) -> 2.68686e-05 | D167: =IF('DF raw data'!H167="","",'DF raw data'!H167) -> -1.6879e-05 | F167: -3.660443868e-06 | G167: 1.024828307e-05 | H167: 3.158521844e-06 | J167: 7.906233363e-05 | K167: 0.002857359178 | L167: 3.080002826e-05 | M167: 0.003081335847 | N167: 4.579511202e-07
A168: =IF('DF raw data'!E168="","",'DF raw data'!E168) -> -249.5 | B168: =IF('DF raw data'!F168="","",'DF raw data'!F168) -> -4.09293e-05 | C168: =IF('DF raw data'!G168="","",'DF raw data'!G168) -> 1.87089e-05 | D168: =IF('DF raw data'!H168="","",'DF raw data'!H168) -> -2.66375e-05 | F168: -2.044745688e-06 | G168: 2.051048451e-06 | H168: -6.644867256e-06 | J168: 7.803996079e-05 | K168: 0.002896379159 | L168: 3.182555249e-05 | M168: 0.003097248623 | N168: 4.615026708e-07
A169: =IF('DF raw data'!E169="","",'DF raw data'!E169) -> -249 | B169: =IF('DF raw data'!F169="","",'DF raw data'!F169) -> -3.99681e-05 | C169: =IF('DF raw data'!G169="","",'DF raw data'!G169) -> 1.04866e-05 | D169: =IF('DF raw data'!H169="","",'DF raw data'!H169) -> -2.63928e-05 | F169: -1.079124168e-06 | G169: -6.209074129e-06 | H169: -6.399041636e-06 | J169: 7.75003987e-05 | K169: 0.002935129358 | L169: 2.872101542e-05 | M169: 0.003111609131 | N169: 4.649182751e-07
A170: =IF('DF raw data'!E170="","",'DF raw data'!E170) -> -248.5 | B170: =IF('DF raw data'!F170="","",'DF raw data'!F170) -> -4.3563e-05 | C170: =IF('DF raw data'!G170="","",'DF raw data'!G170) -> 1.9099e-05 | D170: =IF('DF raw data'!H170="","",'DF raw data'!H170) -> -1.68738e-05 | F170: -4.690560708e-06 | G170: 2.442942911e-06 | H170: 3.163745764e-06 | J170: 7.515511835e-05 | K170: 0.002972706917 | L170: 2.994248688e-05 | M170: 0.003126580374 | N170: 4.681906973e-07
A171: =IF('DF raw data'!E171="","",'DF raw data'!E171) -> -248 | B171: =IF('DF raw data'!F171="","",'DF raw data'!F171) -> -4.66339e-05 | C171: =IF('DF raw data'!G171="","",'DF raw data'!G171) -> 1.81902e-05 | D171: =IF('DF raw data'!H171="","",'DF raw data'!H171) -> -2.41509e-05 | F171: -7.775586848e-06 | G171: 1.529962431e-06 | H171: -4.146828896e-06 | J171: 7.126732492e-05 | K171: 0.00300834058 | L171: 3.07074681e-05 | M171: 0.003141934108 | N171: 4.712016874e-07
A172: =IF('DF raw data'!E172="","",'DF raw data'!E172) -> -247.5 | B172: =IF('DF raw data'!F172="","",'DF raw data'!F172) -> -3.57442e-05 | C172: =IF('DF raw data'!G172="","",'DF raw data'!G172) -> 1.8812e-05 | D172: =IF('DF raw data'!H172="","",'DF raw data'!H172) -> -1.79741e-05 | F172: 3.164205772e-06 | G172: 2.154622711e-06 | H172: 2.058384384e-06 | J172: 7.284942781e-05 | K172: 0.003044765294 | L172: 3.178477945e-05 | M172: 0.003157826498 | N172: 4.74360343e-07
A173: =IF('DF raw data'!E173="","",'DF raw data'!E173) -> -247 | B173: =IF('DF raw data'!F173="","",'DF raw data'!F173) -> -3.80484e-05 | C173: =IF('DF raw data'!G173="","",'DF raw data'!G173) -> 1.11705e-05 | D173: =IF('DF raw data'!H173="","",'DF raw data'!H173) -> -2.23554e-05 | F173: 8.494064517e-07 | G173: -5.522028189e-06 | H173: -2.343069596e-06 | J173: 7.327413104e-05 | K173: 0.003081402359 | L173: 2.902376536e-05 | M173: 0.003172338381 | N173: 4.774660816e-07
A174: =IF('DF raw data'!E174="","",'DF raw data'!E174) -> -246.5 | B174: =IF('DF raw data'!F174="","",'DF raw data'!F174) -> -4.09916e-05 | C174: =IF('DF raw data'!G174="","",'DF raw data'!G174) -> 9.50684e-06 | D174: =IF('DF raw data'!H174="","",'DF raw data'!H174) -> -2.91638e-05 | F174: -2.107332268e-06 | G174: -7.193341025e-06 | H174: -9.182788236e-06 | J174: 7.22204649e-05 | K174: 0.003117512592 | L174: 2.542709484e-05 | M174: 0.003185051928 | N174: 4.80397248e-07
A175: =IF('DF raw data'!E175="","",'DF raw data'!E175) -> -246 | B175: =IF('DF raw data'!F175="","",'DF raw data'!F175) -> -3.92038e-05 | C175: =IF('DF raw data'!G175="","",'DF raw data'!G175) -> 6.85848e-06 | D175: =IF('DF raw data'!H175="","",'DF raw data'!H175) -> -1.93258e-05 | F175: -3.113083883e-07 | G175: -9.853883481e-06 | H175: 7.004665641e-07 | J175: 7.206481071e-05 | K175: 0.003153544997 | L175: 2.05001531e-05 | M175: 0.003195302005 | N175: 4.832040446e-07
A176: =IF('DF raw data'!E176="","",'DF raw data'!E176) -> -245.5 | B176: =IF('DF raw data'!F176="","",'DF raw data'!F176) -> -3.36972e-05 | C176: =IF('DF raw data'!G176="","",'DF raw data'!G176) -> 1.55495e-05 | D176: =IF('DF raw data'!H176="","",'DF raw data'!H176) -> -1.26293e-05 | F176: 5.220621972e-06 | G176: -1.122884789e-06 | H176: 7.427770464e-06 | J176: 7.467512169e-05 | K176: 0.003190882558 | L176: 1.993871071e-05 | M176: 0.00320527136 | N176: 4.861910076e-07
A177: =IF('DF raw data'!E177="","",'DF raw data'!E177) -> -245 | B177: =IF('DF raw data'!F177="","",'DF raw data'!F177) -> -4.45822e-05 | C177: =IF('DF raw data'!G177="","",'DF raw data'!G177) -> 1.14426e-05 | D177: =IF('DF raw data'!H177="","",'DF raw data'!H177) -> -2.61004e-05 | F177: -5.714449028e-06 | G177: -5.248676529e-06 | H177: -6.105296596e-06 | J177: 7.181789718e-05 | K177: 0.003226791506 | L177: 1.731437244e-05 | M177: 0.003213928546 | N177: 4.889198065e-07
A178: =IF('DF raw data'!E178="","",'DF raw data'!E178) -> -244.5 | B178: =IF('DF raw data'!F178="","",'DF raw data'!F178) -> -4.13231e-05 | C178: =IF('DF raw data'!G178="","",'DF raw data'!G178) -> 9.83965e-06 | D178: =IF('DF raw data'!H178="","",'DF raw data'!H178) -> -1.2216e-05 | F178: -2.440357168e-06 | G178: -6.859000099e-06 | H178: 7.842971644e-06 | J178: 7.05977186e-05 | K178: 0.003262090366 | L178: 1.388487239e-05 | M178: 0.003220870982 | N178: 4.915082203e-07
A179: =IF('DF raw data'!E179="","",'DF raw data'!E179) -> -244 | B179: =IF('DF raw data'!F179="","",'DF raw data'!F179) -> -4.04304e-05 | C179: =IF('DF raw data'!G179="","",'DF raw data'!G179) -> 1.29767e-05 | D179: =IF('DF raw data'!H179="","",'DF raw data'!H179) -> -5.42602e-06 | F179: -1.543550748e-06 | G179: -3.707519669e-06 | H179: 1.466418555e-05 | J179: 6.982594322e-05 | K179: 0.003297003337 | L179: 1.203111256e-05 | M179: 0.003226886539 | N179: 4.940184253e-07
A180: =IF('DF raw data'!E180="","",'DF raw data'!E180) -> -243.5 | B180: =IF('DF raw data'!F180="","",'DF raw data'!F180) -> -5.56669e-05 | C180: =IF('DF raw data'!G180="","",'DF raw data'!G180) -> 1.25573e-05 | D180: =IF('DF raw data'!H180="","",'DF raw data'!H180) -> -2.83315e-05 | F180: -1.685013865e-05 | G180: -4.128848909e-06 | H180: -8.346659656e-06 | J180: 6.14008739e-05 | K180: 0.003327703774 | L180: 9.966688104e-06 | M180: 0.003231869883 | N180: 4.959531264e-07
A181: =IF('DF raw data'!E181="","",'DF raw data'!E181) -> -243 | B181: =IF('DF raw data'!F181="","",'DF raw data'!F181) -> -4.20914e-05 | C181: =IF('DF raw data'!G181="","",'DF raw data'!G181) -> 1.15893e-05 | D181: =IF('DF raw data'!H181="","",'DF raw data'!H181) -> -1.31772e-05 | F181: -3.212191348e-06 | G181: -5.101301709e-06 | H181: 6.877350124e-06 | J181: 5.979477822e-05 | K181: 0.003357601163 | L181: 7.416037249e-06 | M181: 0.003235577901 | N181: 4.977683329e-07
A182: =IF('DF raw data'!E182="","",'DF raw data'!E182) -> -242.5 | B182: =IF('DF raw data'!F182="","",'DF raw data'!F182) -> -4.88792e-05 | C182: =IF('DF raw data'!G182="","",'DF raw data'!G182) -> 7.84718e-06 | D182: =IF('DF raw data'!H182="","",'DF raw data'!H182) -> -2.05618e-05 | F182: -1.003121523e-05 | G182: -8.860635461e-06 | H182: -5.412190359e-07 | J182: 5.477917061e-05 | K182: 0.003384990749 | L182: 2.985719519e-06 | M182: 0.003237070761 | N182: 4.99273169e-07
A183: =IF('DF raw data'!E183="","",'DF raw data'!E183) -> -242 | B183: =IF('DF raw data'!F183="","",'DF raw data'!F183) -> -5.28577e-05 | C183: =IF('DF raw data'!G183="","",'DF raw data'!G183) -> 1.81956e-05 | D183: =IF('DF raw data'!H183="","",'DF raw data'!H183) -> -1.2006e-05 | F183: -1.402801633e-05 | G183: 1.535387271e-06 | H183: 8.053937644e-06 | J183: 4.776516244e-05 | K183: 0.00340887333 | L183: 3.753413154e-06 | M183: 0.003238947468 | N183: 5.004209684e-07
A184: =IF('DF raw data'!E184="","",'DF raw data'!E184) -> -241.5 | B184: =IF('DF raw data'!F184="","",'DF raw data'!F184) -> -3.83039e-05 | C184: =IF('DF raw data'!G184="","",'DF raw data'!G184) -> 1.47594e-05 | D184: =IF('DF raw data'!H184="","",'DF raw data'!H184) -> -2.37218e-05 | F184: 5.927311517e-07 | G184: -1.916619249e-06 | H184: -3.715755036e-06 | J184: 4.806152802e-05 | K184: 0.003432904094 | L184: 2.795103529e-06 | M184: 0.003240345019 | N184: 5.015798299e-07
A185: =IF('DF raw data'!E185="","",'DF raw data'!E185) -> -241 | B185: =IF('DF raw data'!F185="","",'DF raw data'!F185) -> -3.43972e-05 | C185: =IF('DF raw data'!G185="","",'DF raw data'!G185) -> 1.53713e-05 | D185: =IF('DF raw data'!H185="","",'DF raw data'!H185) -> -2.03386e-05 | F185: 4.517401972e-06 | G185: -1.301904509e-06 | H185: -3.169923159e-07 | J185: 5.032022901e-05 | K185: 0.003458064208 | L185: 2.144151275e-06 | M185: 0.003241417095 | N185: 5.028481914e-07
A186: =IF('DF raw data'!E186="","",'DF raw data'!E186) -> -240.5 | B186: =IF('DF raw data'!F186="","",'DF raw data'!F186) -> -4.41316e-05 | C186: =IF('DF raw data'!G186="","",'DF raw data'!G186) -> 9.99107e-06 | D186: =IF('DF raw data'!H186="","",'DF raw data'!H186) -> -2.95231e-05 | F186: -5.261776268e-06 | G186: -6.706883567e-06 | H186: -9.543741016e-06 | J186: 4.768934087e-05 | K186: 0.003481908879 | L186: -1.209290509e-06 | M186: 0.00324081245 | N186: 5.039860592e-07
A187: =IF('DF raw data'!E187="","",'DF raw data'!E187) -> -240 | B187: =IF('DF raw data'!F187="","",'DF raw data'!F187) -> -3.87553e-05 | C187: =IF('DF raw data'!G187="","",'DF raw data'!G187) -> 6.09037e-06 | D187: =IF('DF raw data'!H187="","",'DF raw data'!H187) -> -1.95399e-05 | F187: 1.392547117e-07 | G187: -1.062552679e-05 | H187: 4.853817041e-07 | J187: 4.775896823e-05 | K187: 0.003505788363 | L187: -6.522053902e-06 | M187: 0.003237551423 | N187: 5.051477873e-07
A188: =IF('DF raw data'!E188="","",'DF raw data'!E188) -> -239.5 | B188: =IF('DF raw data'!F188="","",'DF raw data'!F188) -> -4.45843e-05 | C188: =IF('DF raw data'!G188="","",'DF raw data'!G188) -> 5.86984e-06 | D188: =IF('DF raw data'!H188="","",'DF raw data'!H188) -> -2.29299e-05 | F188: -5.716558688e-06 | G188: -1.084707123e-05 | H188: -2.920212296e-06 | J188: 4.490068888e-05 | K188: 0.003528238707 | L188: -1.194558952e-05 | M188: 0.003231578628 | N188: 5.062271718e-07
A189: =IF('DF raw data'!E189="","",'DF raw data'!E189) -> -239 | B189: =IF('DF raw data'!F189="","",'DF raw data'!F189) -> -4.24073e-05 | C189: =IF('DF raw data'!G189="","",'DF raw data'!G189) -> 1.19039e-05 | D189: =IF('DF raw data'!H189="","",'DF raw data'!H189) -> -2.04235e-05 | F189: -3.529544488e-06 | G189: -4.785254549e-06 | H189: -4.022828559e-07 | J189: 4.313591664e-05 | K189: 0.003549806666 | L189: -1.433821679e-05 | M189: 0.00322440952 | N189: 5.072603177e-07
A190: =IF('DF raw data'!E190="","",'DF raw data'!E190) -> -238.5 | B190: =IF('DF raw data'!F190="","",'DF raw data'!F190) -> -3.70252e-05 | C190: =IF('DF raw data'!G190="","",'DF raw data'!G190) -> 1.93686e-05 | D190: =IF('DF raw data'!H190="","",'DF raw data'!H190) -> -1.93197e-05 | F190: 1.877313172e-06 | G190: 2.713783071e-06 | H190: 7.065946241e-07 | J190: 4.407457323e-05 | K190: 0.003571843952 | L190: -1.298132525e-05 | M190: 0.003217918857 | N190: 5.083158591e-07
A191: =IF('DF raw data'!E191="","",'DF raw data'!E191) -> -238 | B191: =IF('DF raw data'!F191="","",'DF raw data'!F191) -> -3.53613e-05 | C191: =IF('DF raw data'!G191="","",'DF raw data'!G191) -> 1.70331e-05 | D191: =IF('DF raw data'!H191="","",'DF raw data'!H191) -> -1.5568e-05 | F191: 3.548867112e-06 | G191: 3.675397707e-07 | H191: 4.475552444e-06 | J191: 4.584900678e-05 | K191: 0.003594768456 | L191: -1.279755537e-05 | M191: 0.003211520079 | N191: 5.094488135e-07
A192: =IF('DF raw data'!E192="","",'DF raw data'!E192) -> -237.5 | B192: =IF('DF raw data'!F192="","",'DF raw data'!F192) -> -3.19593e-05 | C192: =IF('DF raw data'!G192="","",'DF raw data'!G192) -> 1.02559e-05 | D192: =IF('DF raw data'!H192="","",'DF raw data'!H192) -> -2.44413e-05 | F192: 6.966516312e-06 | G192: -6.440835349e-06 | H192: -4.438564736e-06 | J192: 4.933226494e-05 | K192: 0.003619434588 | L192: -1.601797304e-05 | M192: 0.003203511093 | N192: 5.107939374e-07
A193: =IF('DF raw data'!E193="","",'DF raw data'!E193) -> -237 | B193: =IF('DF raw data'!F193="","",'DF raw data'!F193) -> -5.20826e-05 | C193: =IF('DF raw data'!G193="","",'DF raw data'!G193) -> 2.43935e-06 | D193: =IF('DF raw data'!H193="","",'DF raw data'!H193) -> -2.16324e-05 | F193: -1.324935087e-05 | G193: -1.429334148e-05 | H193: -1.616743796e-06 | J193: 4.27075895e-05 | K193: 0.003640788383 | L193: -2.316464378e-05 | M193: 0.003191928771 | N193: 5.119742069e-07
A194: =IF('DF raw data'!E194="","",'DF raw data'!E194) -> -236.5 | B194: =IF('DF raw data'!F194="","",'DF raw data'!F194) -> -4.9966e-05 | C194: =IF('DF raw data'!G194="","",'DF raw data'!G194) -> 7.77064e-06 | D194: =IF('DF raw data'!H194="","",'DF raw data'!H194) -> -2.45273e-05 | F194: -1.112301451e-05 | G194: -8.937527545e-06 | H194: -4.524960336e-06 | J194: 3.714608225e-05 | K194: 0.003659361424 | L194: -2.763340756e-05 | M194: 0.003178112067 | N194: 5.130459252e-07
A195: =IF('DF raw data'!E195="","",'DF raw data'!E195) -> -236 | B195: =IF('DF raw data'!F195="","",'DF raw data'!F195) -> -4.26626e-05 | C195: =IF('DF raw data'!G195="","",'DF raw data'!G195) -> 9.61554e-07 | D195: =IF('DF raw data'!H195="","",'DF raw data'!H195) -> -2.19795e-05 | F195: =(1-$G$1*($B$54-$G$2))*(B195-F$5) -> -3.786018868e-06 | G195: =(1-$G$1*($B$54-$G$2))*(C195-G$5) -> -1.577793534e-05 | H195: =(1-$G$1*($B$54-$G$2))*(D195-H$5) -> -1.965440456e-06 | J195: 3.525307282e-05 | K195: 0.00367698796 | L195: -3.552237523e-05 | M195: 0.00316035088 | N195: 5.142982343e-07
A196: =IF('DF raw data'!E196="","",'DF raw data'!E196) -> -235.5 | B196: =IF('DF raw data'!F196="","",'DF raw data'!F196) -> -3.38217e-05 | C196: =IF('DF raw data'!G196="","",'DF raw data'!G196) -> 8.11294e-06 | D196: =IF('DF raw data'!H196="","",'DF raw data'!H196) -> -1.83085e-05 | F196: 5.095549272e-06 | G196: -8.593652965e-06 | H196: 1.722446144e-06 | J196: =F196*$G$3+J195 -> 3.780084745e-05 | K196: =J196*$G$3+K195 -> 0.003695888384 | L196: =G196*$G$3+L195 -> -3.981920171e-05 | M196: =L196*$G$3+M195 -> 0.003140441279 | N196: =(J196^2+L196^2)*$G$3+N195 -> 5.158054708e-07
A197: =IF('DF raw data'!E197="","",'DF raw data'!E197) -> -235 | B197: =IF('DF raw data'!F197="","",'DF raw data'!F197) -> -4.05468e-05 | C197: =IF('DF raw data'!G197="","",'DF raw data'!G197) -> 7.52131e-06 | D197: =IF('DF raw data'!H197="","",'DF raw data'!H197) -> -2.36772e-05 | F197: -1.660486188e-06 | G197: -9.188004463e-06 | H197: -3.670949876e-06 | J197: 3.697060436e-05 | K197: 0.003714373686 | L197: -4.441320394e-05 | M197: 0.003118234677 | N197: 5.174751499e-07
A198: =IF('DF raw data'!E198="","",'DF raw data'!E198) -> -234.5 | B198: =IF('DF raw data'!F198="","",'DF raw data'!F198) -> -4.6511e-05 | C198: =IF('DF raw data'!G198="","",'DF raw data'!G198) -> 1.2483e-06 | D198: =IF('DF raw data'!H198="","",'DF raw data'!H198) -> -1.60419e-05 | F198: -7.652121508e-06 | G198: -1.548987031e-05 | H198: 3.999472504e-06 | J198: 3.31445436e-05 | K198: 0.003730945958 | L198: -5.21581391e-05 | M198: 0.003092155607 | N198: 5.19384666e-07
A199: =IF('DF raw data'!E199="","",'DF raw data'!E199) -> -234 | B199: =IF('DF raw data'!F199="","",'DF raw data'!F199) -> -4.62519e-05 | C199: =IF('DF raw data'!G199="","",'DF raw data'!G199) -> 1.25207e-05 | D199: =IF('DF raw data'!H199="","",'DF raw data'!H199) -> -2.06079e-05 | F199: -7.391829648e-06 | G199: -4.165617269e-06 | H199: -5.875310959e-07 | J199: 2.944862878e-05 | K199: 0.003745670273 | L199: -5.424094773e-05 | M199: 0.003065035133 | N199: 5.212893171e-07
A200: =IF('DF raw data'!E200="","",'DF raw data'!E200) -> -233.5 | B200: =IF('DF raw data'!F200="","",'DF raw data'!F200) -> -5.45865e-05 | C200: =IF('DF raw data'!G200="","",'DF raw data'!G200) -> 7.6745e-06 | D200: =IF('DF raw data'!H200="","",'DF raw data'!H200) -> -1.42095e-05 | F200: -1.576476881e-05 | G200: -9.034109789e-06 | H200: 5.840301544e-06 | J200: 2.156624437e-05 | K200: 0.003756453395 | L200: -5.875800262e-05 | M200: 0.003035656132 | N200: 5.2324812e-07
... 1079 more rows

Sheet 20 mm
A1: =IF('DF raw data'!I1="","",'DF raw data'!I1) -> Number of header lines | B1: =IF('DF raw data'!J1="","",'DF raw data'!J1) -> 54 | C1: =IF('DF raw data'!C1="","",'DF raw data'!C1) ->  | D1: =IF('DF raw data'!D1="","",'DF raw data'!D1) ->  | F1: T_coeff | G1: -0.001 | H1: /degC | J1: IBy total | K1: =J1267*1000 -> 7.47546111 | L1: muTm | M1: =L1267*1000 -> -16.08558787 | R1: DF ref | S1: 1
A2: =IF('DF raw data'!I2="","",'DF raw data'!I2) -> Measured by | B2: =IF('DF raw data'!J2="","",'DF raw data'!J2) -> Danfysik | C2: =IF('DF raw data'!C2="","",'DF raw data'!C2) ->  | D2: =IF('DF raw data'!D2="","",'DF raw data'!D2) ->  | F2: Tcorr | G2: 20 | H2: degC | J2: JBy total | K2: =K1267 -> 1.923850655 | L2: muTm^2 | M2: =M1267 -> -4.106650595
A3: =IF('DF raw data'!I3="","",'DF raw data'!I3) -> Operator | B3: =IF('DF raw data'!J3="","",'DF raw data'!J3) -> PMHA | C3: =IF('DF raw data'!C3="","",'DF raw data'!C3) ->  | D3: =IF('DF raw data'!D3="","",'DF raw data'!D3) ->  | F3: Step | G3: =A68-A67 -> 0.5 | H3: mm | J3: PI total | K3: =N1267 -> 5019.745567 | L3: T^2mm^3
A4: =IF('DF raw data'!I4="","",'DF raw data'!I4) -> Data-time | B4: =IF('DF raw data'!J4="","",'DF raw data'!J4) -> 17-09-2024, 15:30:57 | C4: =IF('DF raw data'!C4="","",'DF raw data'!C4) ->  | D4: =IF('DF raw data'!D4="","",'DF raw data'!D4) -> 
A5: =IF('DF raw data'!I5="","",'DF raw data'!I5) -> Project | B5: =IF('DF raw data'!J5="","",'DF raw data'!J5) -> 504314 | C5: =IF('DF raw data'!C5="","",'DF raw data'!C5) ->  | D5: Bamb avr | F5: =(AVERAGE(B67:B107) + AVERAGE(B1227:B1267))/2 -> -3.709336098e-05 | G5: =(AVERAGE(C67:C107) + AVERAGE(C1227:C1267))/2 -> 2.920062634e-05 | H5: =(AVERAGE(D67:D107) + AVERAGE(D1227:D1267))/2 -> -1.661890793e-05
A6: =IF('DF raw data'!I6="","",'DF raw data'!I6) -> Magnet type | B6: =IF('DF raw data'!J6="","",'DF raw data'!J6) -> Dipole | C6: =IF('DF raw data'!C6="","",'DF raw data'!C6) -> 
A7: =IF('DF raw data'!I7="","",'DF raw data'!I7) -> Magnet nr. | B7: =IF('DF raw data'!J7="","",'DF raw data'!J7) -> 2410097 | C7: =IF('DF raw data'!C7="","",'DF raw data'!C7) -> 
A8: =IF('DF raw data'!I8="","",'DF raw data'!I8) -> Meas. number | B8: =IF('DF raw data'!J8="","",'DF raw data'!J8) -> 564 | C8: =IF('DF raw data'!C8="","",'DF raw data'!C8) -> 
A9: =IF('DF raw data'!I9="","",'DF raw data'!I9) -> Add. info | B9: =IF('DF raw data'!J9="","",'DF raw data'!J9) ->  | C9: =IF('DF raw data'!C9="","",'DF raw data'!C9) ->  | D9: =IF('DF raw data'!D9="","",'DF raw data'!D9) -> 
A10: =IF('DF raw data'!I10="","",'DF raw data'!I10) -> Device | B10: =IF('DF raw data'!J10="","",'DF raw data'!J10) -> (HAL) HALL-PROBE | C10: =IF('DF raw data'!C10="","",'DF raw data'!C10) ->  | D10: =IF('DF raw data'!D10="","",'DF raw data'!D10) -> 
A11: =IF('DF raw data'!I11="","",'DF raw data'!I11) -> Goal | B11: =IF('DF raw data'!J11="","",'DF raw data'!J11) -> (AXI) AXis Integral (Line, EFB) | C11: =IF('DF raw data'!C11="","",'DF raw data'!C11) ->  | D11: =IF('DF raw data'!D11="","",'DF raw data'!D11) -> 
A12: =IF('DF raw data'!I12="","",'DF raw data'!I12) -> Power supply mode | B12: =IF('DF raw data'!J12="","",'DF raw data'!J12) -> (PM) Permanent Magnet (no MPS in use) | C12: =IF('DF raw data'!C12="","",'DF raw data'!C12) ->  | D12: =IF('DF raw data'!D12="","",'DF raw data'!D12) -> 
A13: =IF('DF raw data'!I13="","",'DF raw data'!I13) -> Data format | B13: =IF('DF raw data'!J13="","",'DF raw data'!J13) -> Raw data text file | C13: =IF('DF raw data'!C13="","",'DF raw data'!C13) ->  | D13: =IF('DF raw data'!D13="","",'DF raw data'!D13) -> 
A14: =IF('DF raw data'!I14="","",'DF raw data'!I14) -> Direction of the pos. x-axis | B14: =IF('DF raw data'!J14="","",'DF raw data'!J14) -> See test program | C14: =IF('DF raw data'!C14="","",'DF raw data'!C14) ->  | D14: =IF('DF raw data'!D14="","",'DF raw data'!D14) -> 
A15: =IF('DF raw data'!I15="","",'DF raw data'!I15) -> Direction of the pos. y-axis | B15: =IF('DF raw data'!J15="","",'DF raw data'!J15) -> Vertical up | C15: =IF('DF raw data'!C15="","",'DF raw data'!C15) ->  | D15: =IF('DF raw data'!D15="","",'DF raw data'!D15) -> 
A16: =IF('DF raw data'!I16="","",'DF raw data'!I16) -> Direction of the pos. z-axis | B16: =IF('DF raw data'!J16="","",'DF raw data'!J16) -> See test program | C16: =IF('DF raw data'!C16="","",'DF raw data'!C16) ->  | D16: =IF('DF raw data'!D16="","",'DF raw data'!D16) -> 
A17: =IF('DF raw data'!I17="","",'DF raw data'!I17) -> Mapper type | B17: =IF('DF raw data'!J17="","",'DF raw data'!J17) -> Precision Hall Mapper | C17: =IF('DF raw data'!C17="","",'DF raw data'!C17) ->  | D17: =IF('DF raw data'!D17="","",'DF raw data'!D17) -> 
A18: =IF('DF raw data'!I18="","",'DF raw data'!I18) -> Mapper Danfysik Reg. Number | B18: =IF('DF raw data'!J18="","",'DF raw data'!J18) -> 2033-D (mapper 1) | C18: =IF('DF raw data'!C18="","",'DF raw data'!C18) ->  | D18: =IF('DF raw data'!D18="","",'DF raw data'!D18) -> 
A19: =IF('DF raw data'!I19="","",'DF raw data'!I19) -> Measurement consept | B19: =IF('DF raw data'!J19="","",'DF raw data'!J19) -> Square line grid | C19: =IF('DF raw data'!C19="","",'DF raw data'!C19) ->  | D19: =IF('DF raw data'!D19="","",'DF raw data'!D19) -> 
A20: =IF('DF raw data'!I20="","",'DF raw data'!I20) -> Mode | B20: =IF('DF raw data'!J20="","",'DF raw data'!J20) -> On-the-fly measurement | C20: =IF('DF raw data'!C20="","",'DF raw data'!C20) ->  | D20: =IF('DF raw data'!D20="","",'DF raw data'!D20) -> 
A21: =IF('DF raw data'!I21="","",'DF raw data'!I21) ->  | B21: =IF('DF raw data'!J21="","",'DF raw data'!J21) ->  | C21: =IF('DF raw data'!C21="","",'DF raw data'!C21) ->  | D21: =IF('DF raw data'!D21="","",'DF raw data'!D21) -> 
A22: =IF('DF raw data'!I22="","",'DF raw data'!I22) -> Probe Name | B22: =IF('DF raw data'!J22="","",'DF raw data'!J22) -> ID12_By | C22: =IF('DF raw data'!C22="","",'DF raw data'!C22) ->  | D22: =IF('DF raw data'!D22="","",'DF raw data'!D22) -> 
A23: =IF('DF raw data'!I23="","",'DF raw data'!I23) -> Probe Type | B23: =IF('DF raw data'!J23="","",'DF raw data'!J23) -> DF_ID_3D_Bxyz | C23: =IF('DF raw data'!C23="","",'DF raw data'!C23) ->  | D23: =IF('DF raw data'!D23="","",'DF raw data'!D23) -> 
A24: =IF('DF raw data'!I24="","",'DF raw data'!I24) -> Probe Danfysik Reg. Number | B24: =IF('DF raw data'!J24="","",'DF raw data'!J24) -> 2277 | C24: =IF('DF raw data'!C24="","",'DF raw data'!C24) ->  | D24: =IF('DF raw data'!D24="","",'DF raw data'!D24) -> 
A25: =IF('DF raw data'!I25="","",'DF raw data'!I25) -> Probe Axis | B25: =IF('DF raw data'!J25="","",'DF raw data'!J25) -> By | C25: =IF('DF raw data'!C25="","",'DF raw data'!C25) ->  | D25: =IF('DF raw data'!D25="","",'DF raw data'!D25) -> 
A26: =IF('DF raw data'!I26="","",'DF raw data'!I26) -> Probe Current Supply | B26: =IF('DF raw data'!J26="","",'DF raw data'!J26) -> 1825-D | C26: =IF('DF raw data'!C26="","",'DF raw data'!C26) ->  | D26: =IF('DF raw data'!D26="","",'DF raw data'!D26) -> 
A27: =IF('DF raw data'!I27="","",'DF raw data'!I27) -> Probe Gain Correction | B27: =IF('DF raw data'!J27="","",'DF raw data'!J27) -> 0.99606 | C27: =IF('DF raw data'!C27="","",'DF raw data'!C27) ->  | D27: =IF('DF raw data'!D27="","",'DF raw data'!D27) -> 
A28: =IF('DF raw data'!I28="","",'DF raw data'!I28) -> Probe Offset Correction | B28: =IF('DF raw data'!J28="","",'DF raw data'!J28) -> 0.0027513 | C28: =IF('DF raw data'!C28="","",'DF raw data'!C28) ->  | D28: =IF('DF raw data'!D28="","",'DF raw data'!D28) -> 
A29: =IF('DF raw data'!I29="","",'DF raw data'!I29) -> DVM Number | B29: =IF('DF raw data'!J29="","",'DF raw data'!J29) -> 2 | C29: =IF('DF raw data'!C29="","",'DF raw data'!C29) ->  | D29: =IF('DF raw data'!D29="","",'DF raw data'!D29) -> 
A30: =IF('DF raw data'!I30="","",'DF raw data'!I30) -> DVM Type | B30: =IF('DF raw data'!J30="","",'DF raw data'!J30) -> K2701 | C30: =IF('DF raw data'!C30="","",'DF raw data'!C30) ->  | D30: =IF('DF raw data'!D30="","",'DF raw data'!D30) -> 
A31: =IF('DF raw data'!I31="","",'DF raw data'!I31) -> DVM Danfysik Reg. Number | B31: =IF('DF raw data'!J31="","",'DF raw data'!J31) -> 1743-D | C31: =IF('DF raw data'!C31="","",'DF raw data'!C31) ->  | D31: =IF('DF raw data'!D31="","",'DF raw data'!D31) -> 
A32: =IF('DF raw data'!I32="","",'DF raw data'!I32) -> Probe Name | B32: =IF('DF raw data'!J32="","",'DF raw data'!J32) -> ID12_Bx | C32: =IF('DF raw data'!C32="","",'DF raw data'!C32) ->  | D32: =IF('DF raw data'!D32="","",'DF raw data'!D32) -> 
A33: =IF('DF raw data'!I33="","",'DF raw data'!I33) -> Probe Type | B33: =IF('DF raw data'!J33="","",'DF raw data'!J33) -> DF_ID_3D_Bxyz | C33: =IF('DF raw data'!C33="","",'DF raw data'!C33) ->  | D33: =IF('DF raw data'!D33="","",'DF raw data'!D33) -> 
A34: =IF('DF raw data'!I34="","",'DF raw data'!I34) -> Probe Danfysik Reg. Number | B34: =IF('DF raw data'!J34="","",'DF raw data'!J34) -> 2277 | C34: =IF('DF raw data'!C34="","",'DF raw data'!C34) ->  | D34: =IF('DF raw data'!D34="","",'DF raw data'!D34) -> 
A35: =IF('DF raw data'!I35="","",'DF raw data'!I35) -> Probe Axis | B35: =IF('DF raw data'!J35="","",'DF raw data'!J35) -> Bx | C35: =IF('DF raw data'!C35="","",'DF raw data'!C35) ->  | D35: =IF('DF raw data'!D35="","",'DF raw data'!D35) -> 
A36: =IF('DF raw data'!I36="","",'DF raw data'!I36) -> Probe Current Supply | B36: =IF('DF raw data'!J36="","",'DF raw data'!J36) -> 1825-D | C36: =IF('DF raw data'!C36="","",'DF raw data'!C36) ->  | D36: =IF('DF raw data'!D36="","",'DF raw data'!D36) -> 
A37: =IF('DF raw data'!I37="","",'DF raw data'!I37) -> Probe Gain Correction | B37: =IF('DF raw data'!J37="","",'DF raw data'!J37) -> 1 | C37: =IF('DF raw data'!C37="","",'DF raw data'!C37) ->  | D37: =IF('DF raw data'!D37="","",'DF raw data'!D37) -> 
A38: =IF('DF raw data'!I38="","",'DF raw data'!I38) -> Probe Offset Correction | B38: =IF('DF raw data'!J38="","",'DF raw data'!J38) -> -0.17549 | C38: =IF('DF raw data'!C38="","",'DF raw data'!C38) ->  | D38: =IF('DF raw data'!D38="","",'DF raw data'!D38) -> 
A39: =IF('DF raw data'!I39="","",'DF raw data'!I39) -> DVM Number | B39: =IF('DF raw data'!J39="","",'DF raw data'!J39) -> 3 | C39: =IF('DF raw data'!C39="","",'DF raw data'!C39) ->  | D39: =IF('DF raw data'!D39="","",'DF raw data'!D39) -> 
A40: =IF('DF raw data'!I40="","",'DF raw data'!I40) -> DVM Type | B40: =IF('DF raw data'!J40="","",'DF raw data'!J40) -> K2701 | C40: =IF('DF raw data'!C40="","",'DF raw data'!C40) ->  | D40: =IF('DF raw data'!D40="","",'DF raw data'!D40) -> 
A41: =IF('DF raw data'!I41="","",'DF raw data'!I41) -> DVM Danfysik Reg. Number | B41: =IF('DF raw data'!J41="","",'DF raw data'!J41) -> 1744-D | C41: =IF('DF raw data'!C41="","",'DF raw data'!C41) ->  | D41: =IF('DF raw data'!D41="","",'DF raw data'!D41) -> 
A42: =IF('DF raw data'!I42="","",'DF raw data'!I42) -> Probe Name | B42: =IF('DF raw data'!J42="","",'DF raw data'!J42) -> ID12_Bz | C42: =IF('DF raw data'!C42="","",'DF raw data'!C42) ->  | D42: =IF('DF raw data'!D42="","",'DF raw data'!D42) -> 
A43: =IF('DF raw data'!I43="","",'DF raw data'!I43) -> Probe Type | B43: =IF('DF raw data'!J43="","",'DF raw data'!J43) -> DF_ID_3D_Bxyz | C43: =IF('DF raw data'!C43="","",'DF raw data'!C43) ->  | D43: =IF('DF raw data'!D43="","",'DF raw data'!D43) -> 
A44: =IF('DF raw data'!I44="","",'DF raw data'!I44) -> Probe Danfysik Reg. Number | B44: =IF('DF raw data'!J44="","",'DF raw data'!J44) -> 2277 | C44: =IF('DF raw data'!C44="","",'DF raw data'!C44) ->  | D44: =IF('DF raw data'!D44="","",'DF raw data'!D44) -> 
A45: =IF('DF raw data'!I45="","",'DF raw data'!I45) -> Probe Axis | B45: =IF('DF raw data'!J45="","",'DF raw data'!J45) -> Bz | C45: =IF('DF raw data'!C45="","",'DF raw data'!C45) ->  | D45: =IF('DF raw data'!D45="","",'DF raw data'!D45) -> 
A46: =IF('DF raw data'!I46="","",'DF raw data'!I46) -> Probe Current Supply | B46: =IF('DF raw data'!J46="","",'DF raw data'!J46) -> 1825-D | C46: =IF('DF raw data'!C46="","",'DF raw data'!C46) ->  | D46: =IF('DF raw data'!D46="","",'DF raw data'!D46) -> 
A47: =IF('DF raw data'!I47="","",'DF raw data'!I47) -> Probe Gain Correction | B47: =IF('DF raw data'!J47="","",'DF raw data'!J47) -> 1 | C47: =IF('DF raw data'!C47="","",'DF raw data'!C47) ->  | D47: =IF('DF raw data'!D47="","",'DF raw data'!D47) -> 
A48: =IF('DF raw data'!I48="","",'DF raw data'!I48) -> Probe Offset Correction | B48: =IF('DF raw data'!J48="","",'DF raw data'!J48) -> 0.0073313 | C48: =IF('DF raw data'!C48="","",'DF raw data'!C48) ->  | D48: =IF('DF raw data'!D48="","",'DF raw data'!D48) -> 
A49: =IF('DF raw data'!I49="","",'DF raw data'!I49) -> DVM Number | B49: =IF('DF raw data'!J49="","",'DF raw data'!J49) -> 8 | C49: =IF('DF raw data'!C49="","",'DF raw data'!C49) ->  | D49: =IF('DF raw data'!D49="","",'DF raw data'!D49) -> 
A50: =IF('DF raw data'!I50="","",'DF raw data'!I50) -> DVM Type | B50: =IF('DF raw data'!J50="","",'DF raw data'!J50) -> K2700 | C50: =IF('DF raw data'!C50="","",'DF raw data'!C50) ->  | D50: =IF('DF raw data'!D50="","",'DF raw data'!D50) -> 
A51: =IF('DF raw data'!I51="","",'DF raw data'!I51) -> DVM Danfysik Reg. Number | B51: =IF('DF raw data'!J51="","",'DF raw data'!J51) -> 1756-D | C51: =IF('DF raw data'!C51="","",'DF raw data'!C51) ->  | D51: =IF('DF raw data'!D51="","",'DF raw data'!D51) -> 
A52: =IF('DF raw data'!I52="","",'DF raw data'!I52) -> NTC voltage | B52: =IF('DF raw data'!J52="","",'DF raw data'!J52) -> 0.41683 | C52: =IF('DF raw data'!C52="","",'DF raw data'!C52) ->  | D52: =IF('DF raw data'!D52="","",'DF raw data'!D52) -> 
A53: =IF('DF raw data'!I53="","",'DF raw data'!I53) -> PS-Gap: | B53: =IF('DF raw data'!J53="","",'DF raw data'!J53) -> 20 | C53: =IF('DF raw data'!C53="","",'DF raw data'!C53) ->  | D53: =IF('DF raw data'!D53="","",'DF raw data'!D53) -> 
A54: =IF('DF raw data'!I54="","",'DF raw data'!I54) -> PS-Temperature: | B54: =IF('DF raw data'!J54="","",'DF raw data'!J54) -> 24.6 | C54: =IF('DF raw data'!C54="","",'DF raw data'!C54) ->  | D54: =IF('DF raw data'!D54="","",'DF raw data'!D54) -> 
A55: =IF('DF raw data'!I55="","",'DF raw data'!I55) -> PS-Encoder: | B55: =IF('DF raw data'!J55="","",'DF raw data'!J55) -> 29.6804 | C55: =IF('DF raw data'!C55="","",'DF raw data'!C55) ->  | D55: =IF('DF raw data'!D55="","",'DF raw data'!D55) -> 
A56: =IF('DF raw data'!I56="","",'DF raw data'!I56) ->  | B56: =IF('DF raw data'!J56="","",'DF raw data'!J56) -> 
A57: =IF('DF raw data'!I57="","",'DF raw data'!I57) -> Monitor-Index | B57: =IF('DF raw data'!J57="","",'DF raw data'!J57) -> [1,1,4]
A58: =IF('DF raw data'!I58="","",'DF raw data'!I58) ->  | B58: =IF('DF raw data'!J58="","",'DF raw data'!J58) -> 
A59: =IF('DF raw data'!I59="","",'DF raw data'!I59) -> Time [s] | B59: =IF('DF raw data'!J59="","",'DF raw data'!J59) -> Y [mm]
A60: =IF('DF raw data'!I60="","",'DF raw data'!I60) ->  | B60: =IF('DF raw data'!J60="","",'DF raw data'!J60) -> 
A61: =IF('DF raw data'!I61="","",'DF raw data'!I61) -> 209.4 | B61: =IF('DF raw data'!J61="","",'DF raw data'!J61) -> 31.56
A62: =IF('DF raw data'!I62="","",'DF raw data'!I62) ->  | B62: =IF('DF raw data'!J62="","",'DF raw data'!J62) -> 
A63: =IF('DF raw data'!I63="","",'DF raw data'!I63) -> Measurement-Index | B63: =IF('DF raw data'!J63="","",'DF raw data'!J63) -> [1,1,1201,2]
A64: =IF('DF raw data'!I64="","",'DF raw data'!I64) ->  | B64: =IF('DF raw data'!J64="","",'DF raw data'!J64) -> 
A65: =IF('DF raw data'!I65="","",'DF raw data'!I65) -> Z [mm] | B65: =IF('DF raw data'!J65="","",'DF raw data'!J65) -> By [T] | C65: =IF('DF raw data'!K65="","",'DF raw data'!K65) -> Bx [T] | D65: =IF('DF raw data'!L65="","",'DF raw data'!L65) -> Bz [T] | F65: By_corr | G65: Bx_corr | H65: Bz_corr | J65: Iy | K65: Jy | L65: Ix | M65: Jx | N65: PI
A66: =IF('DF raw data'!I66="","",'DF raw data'!I66) -> [1, 0, 0, 0] | B66: =IF('DF raw data'!J66="","",'DF raw data'!J66) ->  | C66: =IF('DF raw data'!K66="","",'DF raw data'!K66) ->  | D66: =IF('DF raw data'!L66="","",'DF raw data'!L66) -> 
A67: =IF('DF raw data'!I67="","",'DF raw data'!I67) -> -300 | B67: =IF('DF raw data'!J67="","",'DF raw data'!J67) -> -2.95318e-05 | C67: =IF('DF raw data'!K67="","",'DF raw data'!K67) -> 6.4017e-05 | D67: =IF('DF raw data'!L67="","",'DF raw data'!L67) -> -1.49634e-05 | F67: =(1-$G$1*($B$54-$G$2))*(B67-F$5) -> 7.596344156e-06 | G67: =(1-$G$1*($B$54-$G$2))*(C67-G$5) -> 3.497652898e-05 | H67: =(1-$G$1*($B$54-$G$2))*(D67-H$5) -> 1.663123263e-06 | J67: =F67*$G$3+J66 -> 3.798172078e-06 | K67: =J67*$G$3+K66 -> 1.899086039e-06 | L67: =G67*$G$3+L66 -> 1.748826449e-05 | M67: =L67*$G$3+M66 -> 8.744132244e-06 | N67: =(J67^2+L67^2)*$G$3+N66 -> 1.60132753e-10
A68: =IF('DF raw data'!I68="","",'DF raw data'!I68) -> -299.5 | B68: =IF('DF raw data'!J68="","",'DF raw data'!J68) -> -3.21606e-05 | C68: =IF('DF raw data'!K68="","",'DF raw data'!K68) -> 6.03271e-05 | D68: =IF('DF raw data'!L68="","",'DF raw data'!L68) -> -1.43853e-05 | F68: 4.955451676e-06 | G68: 3.126965544e-05 | H68: 2.243882523e-06 | J68: =F68*$G$3+J67 -> 6.275897916e-06 | K68: =J68*$G$3+K67 -> 5.037034997e-06 | L68: =G68*$G$3+L67 -> 3.312309221e-05 | M68: =L68*$G$3+M67 -> 2.530567835e-05 | N68: =(J68^2+L68^2)*$G$3+N67 -> 7.28395819e-10
A69: =IF('DF raw data'!I69="","",'DF raw data'!I69) -> -299 | B69: =IF('DF raw data'!J69="","",'DF raw data'!J69) -> -5.56142e-05 | C69: =IF('DF raw data'!K69="","",'DF raw data'!K69) -> 6.21001e-05 | D69: =IF('DF raw data'!L69="","",'DF raw data'!L69) -> -1.24754e-05 | F69: -1.860603488e-05 | G69: 3.305081124e-05 | H69: 4.162568063e-06 | J69: -3.027119526e-06 | K69: 3.523475234e-06 | L69: 4.964849783e-05 | M69: 5.012992726e-05 | N69: 1.965464213e-09
A70: =IF('DF raw data'!I70="","",'DF raw data'!I70) -> -298.5 | B70: =IF('DF raw data'!J70="","",'DF raw data'!J70) -> -3.61359e-05 | C70: =IF('DF raw data'!K70="","",'DF raw data'!K70) -> 6.87869e-05 | D70: =IF('DF raw data'!L70="","",'DF raw data'!L70) -> -1.07105e-05 | F70: 9.618652961e-07 | G70: 3.976837052e-05 | H70: 5.935586603e-06 | J70: -2.546186878e-06 | K70: 2.250381795e-06 | L70: 6.953268308e-05 | M70: 8.48962688e-05 | N70: 4.386102756e-09
A71: =IF('DF raw data'!I71="","",'DF raw data'!I71) -> -298 | B71: =IF('DF raw data'!J71="","",'DF raw data'!J71) -> -2.76134e-05 | C71: =IF('DF raw data'!K71="","",'DF raw data'!K71) -> 7.13507e-05 | D71: =IF('DF raw data'!L71="","",'DF raw data'!L71) -> -1.09511e-05 | F71: 9.523568796e-06 | G71: 4.2343964e-05 | H71: 5.693879843e-06 | J71: 2.21559752e-06 | K71: 3.358180555e-06 | L71: 9.070466508e-05 | M71: 0.0001302486013 | N71: 8.502225326e-09
A72: =IF('DF raw data'!I72="","",'DF raw data'!I72) -> -297.5 | B72: =IF('DF raw data'!J72="","",'DF raw data'!J72) -> -2.36394e-05 | C72: =IF('DF raw data'!K72="","",'DF raw data'!K72) -> 6.29003e-05 | D72: =IF('DF raw data'!L72="","",'DF raw data'!L72) -> -1.26537e-05 | F72: 1.35158492e-05 | G72: 3.385469216e-05 | H72: 3.983447883e-06 | J72: 8.973522118e-06 | K72: 7.844941615e-06 | L72: 0.0001076320112 | M72: 0.0001840646069 | N72: 1.433481229e-08
A73: =IF('DF raw data'!I73="","",'DF raw data'!I73) -> -297 | B73: =IF('DF raw data'!J73="","",'DF raw data'!J73) -> -3.1072e-05 | C73: =IF('DF raw data'!K73="","",'DF raw data'!K73) -> 6.85419e-05 | D73: =IF('DF raw data'!L73="","",'DF raw data'!L73) -> -1.35917e-05 | F73: 6.049059236e-06 | G73: 3.952224352e-05 | H73: 3.041133083e-06 | J73: 1.199805174e-05 | K73: 1.384396748e-05 | L73: 0.0001273931329 | M73: 0.0002477611734 | N73: 2.252129407e-08
A74: =IF('DF raw data'!I74="","",'DF raw data'!I74) -> -296.5 | B74: =IF('DF raw data'!J74="","",'DF raw data'!J74) -> -4.15169e-05 | C74: =IF('DF raw data'!K74="","",'DF raw data'!K74) -> 6.89943e-05 | D74: =IF('DF raw data'!L74="","",'DF raw data'!L74) -> -1.30918e-05 | F74: -4.443887304e-06 | G74: 3.997672456e-05 | H74: 3.543332623e-06 | J74: 9.776108084e-06 | K74: 1.873202152e-05 | L74: 0.0001473814952 | M74: 0.000321451921 | N74: 3.342973278e-08
A75: =IF('DF raw data'!I75="","",'DF raw data'!I75) -> -296 | B75: =IF('DF raw data'!J75="","",'DF raw data'!J75) -> -3.35076e-05 | C75: =IF('DF raw data'!K75="","",'DF raw data'!K75) -> 6.83281e-05 | D75: =IF('DF raw data'!L75="","",'DF raw data'!L75) -> -1.24115e-05 | F75: 3.602255476e-06 | G75: 3.930746004e-05 | H75: 4.226762003e-06 | J75: 1.157723582e-05 | K75: 2.452063944e-05 | L75: 0.0001670352252 | M75: 0.0004049695336 | N75: 4.74471322e-08
A76: =IF('DF raw data'!I76="","",'DF raw data'!I76) -> -295.5 | B76: =IF('DF raw data'!J76="","",'DF raw data'!J76) -> -3.54298e-05 | C76: =IF('DF raw data'!K76="","",'DF raw data'!K76) -> 6.61862e-05 | D76: =IF('DF raw data'!L76="","",'DF raw data'!L76) -> -1.23855e-05 | F76: 1.671213356e-06 | G76: 3.71557073e-05 | H76: 4.252881603e-06 | J76: 1.24128425e-05 | K76: 3.072706069e-05 | L76: 0.0001856130789 | M76: 0.000497776073 | N76: 6.475027906e-08
A77: =IF('DF raw data'!I77="","",'DF raw data'!I77) -> -295 | B77: =IF('DF raw data'!J77="","",'DF raw data'!J77) -> -3.40842e-05 | C77: =IF('DF raw data'!K77="","",'DF raw data'!K77) -> 6.03033e-05 | D77: =IF('DF raw data'!L77="","",'DF raw data'!L77) -> -1.27417e-05 | F77: 3.023003116e-06 | G77: 3.124574596e-05 | H77: 3.895043083e-06 | J77: 1.392434406e-05 | K77: 3.768923272e-05 | L77: 0.0002012359518 | M77: 0.000598394049 | N77: 8.509517689e-08
A78: =IF('DF raw data'!I78="","",'DF raw data'!I78) -> -294.5 | B78: =IF('DF raw data'!J78="","",'DF raw data'!J78) -> -3.77364e-05 | C78: =IF('DF raw data'!K78="","",'DF raw data'!K78) -> 6.31134e-05 | D78: =IF('DF raw data'!L78="","",'DF raw data'!L78) -> -1.29604e-05 | F78: -6.459970039e-07 | G78: 3.406877242e-05 | H78: 3.675337063e-06 | J78: 1.360134556e-05 | K78: 4.448990549e-05 | L78: 0.0002182703381 | M78: 0.000707529218 | N78: 1.090086454e-07
A79: =IF('DF raw data'!I79="","",'DF raw data'!I79) -> -294 | B79: =IF('DF raw data'!J79="","",'DF raw data'!J79) -> -3.70316e-05 | C79: =IF('DF raw data'!K79="","",'DF raw data'!K79) -> 5.70618e-05 | D79: =IF('DF raw data'!L79="","",'DF raw data'!L79) -> -1.27538e-05 | F79: 6.20450761e-08 | G79: 2.798933506e-05 | H79: 3.882887423e-06 | J79: 1.363236809e-05 | K79: 5.130608954e-05 | L79: 0.0002322650056 | M79: 0.0008236617208 | N79: 1.360750826e-07
A80: =IF('DF raw data'!I80="","",'DF raw data'!I80) -> -293.5 | B80: =IF('DF raw data'!J80="","",'DF raw data'!J80) -> -4.45931e-05 | C80: =IF('DF raw data'!K80="","",'DF raw data'!K80) -> 6.46648e-05 | D80: =IF('DF raw data'!L80="","",'DF raw data'!L80) -> -1.20269e-05 | F80: -7.534237824e-06 | G80: 3.562730886e-05 | H80: 4.613131163e-06 | J80: 9.865249183e-06 | K80: 5.623871413e-05 | L80: 0.00025007866 | M80: 0.0009487010508 | N80: 1.673934122e-07
A81: =IF('DF raw data'!I81="","",'DF raw data'!I81) -> -293 | B81: =IF('DF raw data'!J81="","",'DF raw data'!J81) -> -3.37003e-05 | C81: =IF('DF raw data'!K81="","",'DF raw data'!K81) -> 7.25994e-05 | D81: =IF('DF raw data'!L81="","",'DF raw data'!L81) -> -1.14665e-05 | F81: 3.408669056e-06 | G81: 4.359840802e-05 | H81: 5.176109003e-06 | J81: 1.156958371e-05 | K81: 6.202350599e-05 | L81: 0.000271877864 | M81: 0.001084639983 | N81: 2.044191263e-07
A82: =IF('DF raw data'!I82="","",'DF raw data'!I82) -> -292.5 | B82: =IF('DF raw data'!J82="","",'DF raw data'!J82) -> -3.35082e-05 | C82: =IF('DF raw data'!K82="","",'DF raw data'!K82) -> 7.44666e-05 | D82: =IF('DF raw data'!L82="","",'DF raw data'!L82) -> -1.14226e-05 | F82: 3.601652716e-06 | G82: 4.547419714e-05 | H82: 5.220210943e-06 | J82: 1.337041007e-05 | K82: 6.870871102e-05 | L82: 0.0002946149626 | M82: 0.001231947464 | N82: 2.479074984e-07
A83: =IF('DF raw data'!I83="","",'DF raw data'!I83) -> -292 | B83: =IF('DF raw data'!J83="","",'DF raw data'!J83) -> -2.85742e-05 | C83: =IF('DF raw data'!K83="","",'DF raw data'!K83) -> 6.67242e-05 | D83: =IF('DF raw data'!L83="","",'DF raw data'!L83) -> -1.16269e-05 | F83: 8.558349116e-06 | G83: 3.76961821e-05 | H83: 5.014971163e-06 | J83: 1.764958463e-05 | K83: 7.753350334e-05 | L83: 0.0003134630536 | M83: 0.001388678991 | N83: 2.971927953e-07
A84: =IF('DF raw data'!I84="","",'DF raw data'!I84) -> -291.5 | B84: =IF('DF raw data'!J84="","",'DF raw data'!J84) -> -2.88296e-05 | C84: =IF('DF raw data'!K84="","",'DF raw data'!K84) -> 6.16189e-05 | D84: =IF('DF raw data'!L84="","",'DF raw data'!L84) -> -1.30618e-05 | F84: 8.301774276e-06 | G84: 3.256739772e-05 | H84: 3.573470623e-06 | J84: 2.180047176e-05 | K84: 8.843373922e-05 | L84: 0.0003297467525 | M84: 0.001553552367 | N84: 3.51796886e-07
A85: =IF('DF raw data'!I85="","",'DF raw data'!I85) -> -291 | B85: =IF('DF raw data'!J85="","",'DF raw data'!J85) -> -2.31247e-05 | C85: =IF('DF raw data'!K85="","",'DF raw data'!K85) -> 5.2993e-05 | D85: =IF('DF raw data'!L85="","",'DF raw data'!L85) -> -1.59822e-05 | F85: 1.403291682e-05 | G85: 2.390181858e-05 | H85: 6.396367833e-07 | J85: 2.881693017e-05 | K85: 0.0001028422043 | L85: 0.0003416976618 | M85: 0.001724401198 | N85: 4.105907397e-07
A86: =IF('DF raw data'!I86="","",'DF raw data'!I86) -> -290.5 | B86: =IF('DF raw data'!J86="","",'DF raw data'!J86) -> -2.64582e-05 | C86: =IF('DF raw data'!K86="","",'DF raw data'!K86) -> 5.1235e-05 | D86: =IF('DF raw data'!L86="","",'DF raw data'!L86) -> -1.38829e-05 | F86: 1.068408272e-05 | G86: 2.213573178e-05 | H86: 2.748593563e-06 | J86: 3.415897153e-05 | K86: 0.0001199216901 | L86: 0.0003527655277 | M86: 0.001900783962 | N86: 4.733959162e-07
A87: =IF('DF raw data'!I87="","",'DF raw data'!I87) -> -290 | B87: =IF('DF raw data'!J87="","",'DF raw data'!J87) -> -4.34958e-05 | C87: =IF('DF raw data'!K87="","",'DF raw data'!K87) -> 5.47175e-05 | D87: =IF('DF raw data'!L87="","",'DF raw data'!L87) -> -2.46889e-05 | F87: -6.431890244e-06 | G87: 2.563425128e-05 | H87: -8.107114037e-06 | J87: 3.094302641e-05 | K87: 0.0001353932033 | L87: 0.0003655826533 | M87: 0.002083575289 | N87: 5.406999898e-07
A88: =IF('DF raw data'!I88="","",'DF raw data'!I88) -> -289.5 | B88: =IF('DF raw data'!J88="","",'DF raw data'!J88) -> -2.97848e-05 | C88: =IF('DF raw data'!K88="","",'DF raw data'!K88) -> 5.54943e-05 | D88: =IF('DF raw data'!L88="","",'DF raw data'!L88) -> -2.19667e-05 | F88: 7.342180356e-06 | G88: 2.641462456e-05 | H88: -5.372391917e-06 | J88: 3.461411659e-05 | K88: 0.0001527002616 | L88: 0.0003787899656 | M88: 0.002272970271 | N88: 6.130399773e-07
A89: =IF('DF raw data'!I89="","",'DF raw data'!I89) -> -289 | B89: =IF('DF raw data'!J89="","",'DF raw data'!J89) -> -2.49122e-05 | C89: =IF('DF raw data'!K89="","",'DF raw data'!K89) -> 5.85233e-05 | D89: =IF('DF raw data'!L89="","",'DF raw data'!L89) -> -2.61045e-05 | F89: 1.223719432e-05 | G89: 2.945755796e-05 | H89: -9.529225797e-06 | J89: 4.073271375e-05 | K89: 0.0001730666184 | L89: 0.0003935187446 | M89: 0.002469729644 | N89: 6.912980555e-07
A90: =IF('DF raw data'!I90="","",'DF raw data'!I90) -> -288.5 | B90: =IF('DF raw data'!J90="","",'DF raw data'!J90) -> -3.27948e-05 | C90: =IF('DF raw data'!K90="","",'DF raw data'!K90) -> 6.79603e-05 | D90: =IF('DF raw data'!L90="","",'DF raw data'!L90) -> -2.45278e-05 | F90: 4.318334356e-06 | G90: 3.893796816e-05 | H90: -7.945272977e-06 | J90: 4.289188092e-05 | K90: 0.0001945125589 | L90: 0.0004129877286 | M90: 0.002676223508 | N90: 7.774973442e-07
A91: =IF('DF raw data'!I91="","",'DF raw data'!I91) -> -288 | B91: =IF('DF raw data'!J91="","",'DF raw data'!J91) -> -3.04884e-05 | C91: =IF('DF raw data'!K91="","",'DF raw data'!K91) -> 6.52366e-05 | D91: =IF('DF raw data'!L91="","",'DF raw data'!L91) -> -2.4025e-05 | F91: 6.635343796e-06 | G91: 3.620173914e-05 | H91: -7.440160097e-06 | J91: 4.620955282e-05 | K91: 0.0002176173353 | L91: 0.0004310885982 | M91: 0.002891767807 | N91: 8.714836954e-07
A92: =IF('DF raw data'!I92="","",'DF raw data'!I92) -> -287.5 | B92: =IF('DF raw data'!J92="","",'DF raw data'!J92) -> -3.65114e-05 | C92: =IF('DF raw data'!K92="","",'DF raw data'!K92) -> 7.30332e-05 | D92: =IF('DF raw data'!L92="","",'DF raw data'!L92) -> -2.44365e-05 | F92: 5.846379961e-07 | G92: 4.40342035e-05 | H92: -7.853552997e-06 | J92: 4.650187182e-05 | K92: 0.0002408682712 | L92: 0.0004531057 | M92: 0.003118320657 | N92: 9.752172951e-07
A93: =IF('DF raw data'!I93="","",'DF raw data'!I93) -> -287 | B93: =IF('DF raw data'!J93="","",'DF raw data'!J93) -> -4.17688e-05 | C93: =IF('DF raw data'!K93="","",'DF raw data'!K93) -> 6.92304e-05 | D93: =IF('DF raw data'!L93="","",'DF raw data'!L93) -> -2.00352e-05 | F93: -4.696946044e-06 | G93: 4.021391062e-05 | H93: -3.432007017e-06 | J93: 4.41533988e-05 | K93: 0.0002629449706 | L93: 0.0004732126553 | M93: 0.003354926985 | N93: 1.088157165e-06
A94: =IF('DF raw data'!I94="","",'DF raw data'!I94) -> -286.5 | B94: =IF('DF raw data'!J94="","",'DF raw data'!J94) -> -3.95308e-05 | C94: =IF('DF raw data'!K94="","",'DF raw data'!K94) -> 6.94621e-05 | D94: =IF('DF raw data'!L94="","",'DF raw data'!L94) -> -1.24297e-05 | F94: -2.448651244e-06 | G94: 4.044667644e-05 | H94: 4.208478283e-06 | J94: 4.292907318e-05 | K94: 0.0002844095072 | L94: 0.0004934359935 | M94: 0.003601644981 | N94: 1.210818157e-06
A95: =IF('DF raw data'!I95="","",'DF raw data'!I95) -> -286 | B95: =IF('DF raw data'!J95="","",'DF raw data'!J95) -> -3.29956e-05 | C95: =IF('DF raw data'!K95="","",'DF raw data'!K95) -> 7.04859e-05 | D95: =IF('DF raw data'!L95="","",'DF raw data'!L95) -> -1.15568e-05 | F95: 4.116610676e-06 | G95: 4.147518592e-05 | H95: 5.085393623e-06 | J95: 4.498737851e-05 | K95: 0.0003069031965 | L95: 0.0005141735865 | M95: 0.003858731775 | N95: 1.344017328e-06
A96: =IF('DF raw data'!I96="","",'DF raw data'!I96) -> -285.5 | B96: =IF('DF raw data'!J96="","",'DF raw data'!J96) -> -3.12584e-05 | C96: =IF('DF raw data'!K96="","",'DF raw data'!K96) -> 8.28016e-05 | D96: =IF('DF raw data'!L96="","",'DF raw data'!L96) -> -2.2339e-05 | F96: 5.861801796e-06 | G96: 5.384753814e-05 | H96: -5.746404497e-06 | J96: 4.791827941e-05 | K96: 0.0003308623362 | L96: 0.0005410973555 | M96: 0.004129280452 | N96: 1.491558583e-06
A97: =IF('DF raw data'!I97="","",'DF raw data'!I97) -> -285 | B97: =IF('DF raw data'!J97="","",'DF raw data'!J97) -> -2.62564e-05 | C97: =IF('DF raw data'!K97="","",'DF raw data'!K97) -> 7.50887e-05 | D97: =IF('DF raw data'!L97="","",'DF raw data'!L97) -> -2.85239e-05 | F97: 1.0886811e-05 | G97: 4.60991588e-05 | H97: -1.195975504e-05 | J97: 5.336168491e-05 | K97: 0.0003575431786 | L97: 0.0005641469349 | M97: 0.00441135392 | N97: 1.6521132e-06
A98: =IF('DF raw data'!I98="","",'DF raw data'!I98) -> -284.5 | B98: =IF('DF raw data'!J98="","",'DF raw data'!J98) -> -3.72201e-05 | C98: =IF('DF raw data'!K98="","",'DF raw data'!K98) -> 6.47317e-05 | D98: =IF('DF raw data'!L98="","",'DF raw data'!L98) -> -1.85929e-05 | F98: -1.273220239e-07 | G98: 3.56945166e-05 | H98: -1.983072437e-06 | J98: 5.32980239e-05 | K98: 0.0003841921906 | L98: 0.0005819941932 | M98: 0.004702351016 | N98: 1.82289216e-06
A99: =IF('DF raw data'!I99="","",'DF raw data'!I99) -> -284 | B99: =IF('DF raw data'!J99="","",'DF raw data'!J99) -> -3.79842e-05 | C99: =IF('DF raw data'!K99="","",'DF raw data'!K99) -> 6.13131e-05 | D99: =IF('DF raw data'!L99="","",'DF raw data'!L99) -> -2.63377e-05 | F99: -8.949368839e-07 | G99: 3.226019104e-05 | H99: -9.763498517e-06 | J99: 5.285055546e-05 | K99: 0.0004106174683 | L99: 0.0005981242887 | M99: 0.005001413161 | N99: 2.003165083e-06
A100: =IF('DF raw data'!I100="","",'DF raw data'!I100) -> -283.5 | B100: =IF('DF raw data'!J100="","",'DF raw data'!J100) -> -3.40069e-05 | C100: =IF('DF raw data'!K100="","",'DF raw data'!K100) -> 6.89777e-05 | D100: =IF('DF raw data'!L100="","",'DF raw data'!L100) -> -3.28868e-05 | F100: 3.100658696e-06 | G100: 3.99600482e-05 | H100: -1.634272438e-05 | J100: 5.44008848e-05 | K100: 0.0004378179107 | L100: 0.0006181043128 | M100: 0.005310465317 | N100: 2.195671282e-06
A101: =IF('DF raw data'!I101="","",'DF raw data'!I101) -> -283 | B101: =IF('DF raw data'!J101="","",'DF raw data'!J101) -> -3.79205e-05 | C101: =IF('DF raw data'!K101="","",'DF raw data'!K101) -> 7.55524e-05 | D101: =IF('DF raw data'!L101="","",'DF raw data'!L101) -> -2.54809e-05 | F101: -8.309438639e-07 | G101: 4.656499182e-05 | H101: -8.902757237e-06 | J101: 5.398541287e-05 | K101: 0.0004648106171 | L101: 0.0006413868087 | M101: 0.005631158722 | N101: 2.402817013e-06
A102: =IF('DF raw data'!I102="","",'DF raw data'!I102) -> -282.5 | B102: =IF('DF raw data'!J102="","",'DF raw data'!J102) -> -4.01028e-05 | C102: =IF('DF raw data'!K102="","",'DF raw data'!K102) -> 7.55706e-05 | D102: =IF('DF raw data'!L102="","",'DF raw data'!L102) -> -1.98761e-05 | F102: -3.023282444e-06 | G102: 4.658327554e-05 | H102: -3.272175157e-06 | J102: 5.247377165e-05 | K102: 0.000491047503 | L102: 0.0006646784465 | M102: 0.005963497945 | N102: 2.62509248e-06
A103: =IF('DF raw data'!I103="","",'DF raw data'!I103) -> -282 | B103: =IF('DF raw data'!J103="","",'DF raw data'!J103) -> -3.47159e-05 | C103: =IF('DF raw data'!K103="","",'DF raw data'!K103) -> 7.11166e-05 | D103: =IF('DF raw data'!L103="","",'DF raw data'!L103) -> -2.67491e-05 | F103: 2.388397296e-06 | G103: 4.210878714e-05 | H103: -1.017679096e-05 | J103: 5.36679703e-05 | K103: 0.0005178814881 | L103: 0.0006857328401 | M103: 0.006306364365 | N103: 2.86164737e-06
A104: =IF('DF raw data'!I104="","",'DF raw data'!I104) -> -281.5 | B104: =IF('DF raw data'!J104="","",'DF raw data'!J104) -> -2.92672e-05 | C104: =IF('DF raw data'!K104="","",'DF raw data'!K104) -> 7.38601e-05 | D104: =IF('DF raw data'!L104="","",'DF raw data'!L104) -> -2.96215e-05 | F104: 7.862161316e-06 | G104: 4.486490724e-05 | H104: -1.3062404e-05 | J104: 5.759905096e-05 | K104: 0.0005466810136 | L104: 0.0007081652937 | M104: 0.006660447012 | N104: 3.114055237e-06
A105: =IF('DF raw data'!I105="","",'DF raw data'!I105) -> -281 | B105: =IF('DF raw data'!J105="","",'DF raw data'!J105) -> -3.11909e-05 | C105: =IF('DF raw data'!K105="","",'DF raw data'!K105) -> 7.11801e-05 | D105: =IF('DF raw data'!L105="","",'DF raw data'!L105) -> -2.78996e-05 | F105: 5.929612296e-06 | G105: 4.217257924e-05 | H105: -1.133258326e-05 | J105: 6.05638571e-05 | K105: 0.0005769629421 | L105: 0.0007292515833 | M105: 0.007025072803 | N105: 3.381793163e-06
A106: =IF('DF raw data'!I106="","",'DF raw data'!I106) -> -280.5 | B106: =IF('DF raw data'!J106="","",'DF raw data'!J106) -> -3.10044e-05 | C106: =IF('DF raw data'!K106="","",'DF raw data'!K106) -> 7.80129e-05 | D106: =IF('DF raw data'!L106="","",'DF raw data'!L106) -> -1.87176e-05 | F106: 6.116970196e-06 | G106: 4.903681012e-05 | H106: -2.108346057e-06 | J106: 6.36223422e-05 | K106: 0.0006087741132 | L106: 0.0007537699884 | M106: 0.007401957798 | N106: 3.667901662e-06
A107: =IF('DF raw data'!I107="","",'DF raw data'!I107) -> -280 | B107: =IF('DF raw data'!J107="","",'DF raw data'!J107) -> -3.6898e-05 | C107: =IF('DF raw data'!K107="","",'DF raw data'!K107) -> 7.30438e-05 | D107: =IF('DF raw data'!L107="","",'DF raw data'!L107) -> -2.13268e-05 | F107: 1.962596361e-07 | G107: 4.404485226e-05 | H107: -4.729548377e-06 | J107: 6.372047202e-05 | K107: 0.0006406343493 | L107: 0.0007757924145 | M107: 0.007789854005 | N107: 3.970858746e-06
A108: =IF('DF raw data'!I108="","",'DF raw data'!I108) -> -279.5 | B108: =IF('DF raw data'!J108="","",'DF raw data'!J108) -> -4.45261e-05 | C108: =IF('DF raw data'!K108="","",'DF raw data'!K108) -> 7.60151e-05 | D108: =IF('DF raw data'!L108="","",'DF raw data'!L108) -> -1.68512e-05 | F108: -7.466929624e-06 | G108: 4.702982024e-05 | H108: -2.333606167e-07 | J108: 5.998700721e-05 | K108: 0.0006706278529 | L108: 0.0007993073246 | M108: 0.008189507667 | N108: 4.292104067e-06
A109: =IF('DF raw data'!I109="","",'DF raw data'!I109) -> -279 | B109: =IF('DF raw data'!J109="","",'DF raw data'!J109) -> -2.42118e-05 | C109: =IF('DF raw data'!K109="","",'DF raw data'!K109) -> 7.48571e-05 | D109: =IF('DF raw data'!L109="","",'DF raw data'!L109) -> -1.95358e-05 | F109: 1.294081616e-05 | G109: 4.586649344e-05 | H109: -2.930309777e-06 | J109: 6.645741529e-05 | K109: 0.0007038565605 | L109: 0.0008222405713 | M109: 0.008600627953 | N109: 4.632352139e-06
A110: =IF('DF raw data'!I110="","",'DF raw data'!I110) -> -278.5 | B110: =IF('DF raw data'!J110="","",'DF raw data'!J110) -> -4.07435e-05 | C110: =IF('DF raw data'!K110="","",'DF raw data'!K110) -> 7.90992e-05 | D110: =IF('DF raw data'!L110="","",'DF raw data'!L110) -> -1.99218e-05 | F110: -3.666929664e-06 | G110: 5.01281071e-05 | H110: -3.318085377e-06 | J110: 6.462395045e-05 | K110: 0.0007361685357 | L110: 0.0008473046249 | M110: 0.009024280265 | N110: 4.99340283e-06
A111: =IF('DF raw data'!I111="","",'DF raw data'!I111) -> -278 | B111: =IF('DF raw data'!J111="","",'DF raw data'!J111) -> -4.0683e-05 | C111: =IF('DF raw data'!K111="","",'DF raw data'!K111) -> 8.35483e-05 | D111: =IF('DF raw data'!L111="","",'DF raw data'!L111) -> -1.42595e-05 | F111: -3.606151364e-06 | G111: 5.459767296e-05 | H111: 2.370261203e-06 | J111: 6.282087477e-05 | K111: 0.0007675789731 | L111: 0.0008746034614 | M111: 0.009461581996 | N111: 5.377841669e-06
A112: =IF('DF raw data'!I112="","",'DF raw data'!I112) -> -277.5 | B112: =IF('DF raw data'!J112="","",'DF raw data'!J112) -> -4.06828e-05 | C112: =IF('DF raw data'!K112="","",'DF raw data'!K112) -> 8.13408e-05 | D112: =IF('DF raw data'!L112="","",'DF raw data'!L112) -> -1.46134e-05 | F112: -3.605950444e-06 | G112: 5.238001846e-05 | H112: 2.014733263e-06 | J112: 6.101789955e-05 | K112: 0.0007980879229 | L112: 0.0009007934706 | M112: 0.009911978731 | N112: 5.785417699e-06
A113: =IF('DF raw data'!I113="","",'DF raw data'!I113) -> -277 | B113: =IF('DF raw data'!J113="","",'DF raw data'!J113) -> -4.17094e-05 | C113: =IF('DF raw data'!K113="","",'DF raw data'!K113) -> 7.39494e-05 | D113: =IF('DF raw data'!L113="","",'DF raw data'!L113) -> -1.24519e-05 | F113: -4.637272804e-06 | G113: 4.495461802e-05 | H113: 4.186176163e-06 | J113: 5.869926315e-05 | K113: 0.0008274375545 | L113: 0.0009232707796 | M113: 0.01037361412 | N113: 6.213354967e-06
A114: =IF('DF raw data'!I114="","",'DF raw data'!I114) -> -276.5 | B114: =IF('DF raw data'!J114="","",'DF raw data'!J114) -> -3.81091e-05 | C114: =IF('DF raw data'!K114="","",'DF raw data'!K114) -> 6.53759e-05 | D114: =IF('DF raw data'!L114="","",'DF raw data'!L114) -> -3.11419e-05 | F114: -1.020411424e-06 | G114: 3.634167992e-05 | H114: -1.458979784e-05 | J114: 5.818905744e-05 | K114: 0.0008565320832 | L114: 0.0009414416196 | M114: 0.01084433493 | N114: 6.658204112e-06
A115: =IF('DF raw data'!I115="","",'DF raw data'!I115) -> -276 | B115: =IF('DF raw data'!J115="","",'DF raw data'!J115) -> -3.79845e-05 | C115: =IF('DF raw data'!K115="","",'DF raw data'!K115) -> 6.4763e-05 | D115: =IF('DF raw data'!L115="","",'DF raw data'!L115) -> -2.57432e-05 | F115: -8.952382639e-07 | G115: 3.572596058e-05 | H115: -9.166263817e-06 | J115: 5.77414383e-05 | K115: 0.0008854028023 | L115: 0.0009593045999 | M115: 0.01132398723 | N115: 7.120003806e-06
A116: =IF('DF raw data'!I116="","",'DF raw data'!I116) -> -275.5 | B116: =IF('DF raw data'!J116="","",'DF raw data'!J116) -> -3.5226e-05 | C116: =IF('DF raw data'!K116="","",'DF raw data'!K116) -> 7.19066e-05 | D116: =IF('DF raw data'!L116="","",'DF raw data'!L116) -> -3.05495e-05 | F116: 1.875950836e-06 | G116: 4.290242114e-05 | H116: -1.39946728e-05 | J116: 5.867941372e-05 | K116: 0.0009147425092 | L116: 0.0009807558104 | M116: 0.01181436514 | N116: 7.602666423e-06
A117: =IF('DF raw data'!I117="","",'DF raw data'!I117) -> -275 | B117: =IF('DF raw data'!J117="","",'DF raw data'!J117) -> -4.02959e-05 | C117: =IF('DF raw data'!K117="","",'DF raw data'!K117) -> 7.30596e-05 | D117: =IF('DF raw data'!L117="","",'DF raw data'!L117) -> -1.8387e-05 | F117: -3.217270704e-06 | G117: 4.406072494e-05 | H117: -1.776225297e-06 | J117: 5.707077837e-05 | K117: 0.0009432778984 | L117: 0.001002786173 | M117: 0.01231575822 | N117: 8.107085014e-06
A118: =IF('DF raw data'!I118="","",'DF raw data'!I118) -> -274.5 | B118: =IF('DF raw data'!J118="","",'DF raw data'!J118) -> -4.55485e-05 | C118: =IF('DF raw data'!K118="","",'DF raw data'!K118) -> 7.36002e-05 | D118: =IF('DF raw data'!L118="","",'DF raw data'!L118) -> -2.1133e-05 | F118: -8.494032664e-06 | G118: 4.46038117e-05 | H118: -4.534856897e-06 | J118: 5.282376204e-05 | K118: 0.0009696897794 | L118: 0.001025088079 | M118: 0.01282830226 | N118: 8.633882974e-06
A119: =IF('DF raw data'!I119="","",'DF raw data'!I119) -> -274 | B119: =IF('DF raw data'!J119="","",'DF raw data'!J119) -> -3.91404e-05 | C119: =IF('DF raw data'!K119="","",'DF raw data'!K119) -> 7.42578e-05 | D119: =IF('DF raw data'!L119="","",'DF raw data'!L119) -> -2.18077e-05 | F119: -2.056455404e-06 | G119: 4.526443666e-05 | H119: -5.212660517e-06 | J119: 5.179553434e-05 | K119: 0.0009955875466 | L119: 0.001047720297 | M119: 0.01335216241 | N119: 9.184083273e-06
A120: =IF('DF raw data'!I120="","",'DF raw data'!I120) -> -273.5 | B120: =IF('DF raw data'!J120="","",'DF raw data'!J120) -> -3.51042e-05 | C120: =IF('DF raw data'!K120="","",'DF raw data'!K120) -> 7.38785e-05 | D120: =IF('DF raw data'!L120="","",'DF raw data'!L120) -> -2.06887e-05 | F120: 1.998311116e-06 | G120: 4.488339188e-05 | H120: -4.088513117e-06 | J120: 5.279468989e-05 | K120: 0.001021984892 | L120: 0.001070161993 | M120: 0.01388724341 | N120: 9.758100258e-06
A121: =IF('DF raw data'!I121="","",'DF raw data'!I121) -> -273 | B121: =IF('DF raw data'!J121="","",'DF raw data'!J121) -> -3.97847e-05 | C121: =IF('DF raw data'!K121="","",'DF raw data'!K121) -> 6.63822e-05 | D121: =IF('DF raw data'!L121="","",'DF raw data'!L121) -> -1.63114e-05 | F121: -2.703719184e-06 | G121: 3.73526089e-05 | H121: 3.089224633e-07 | J121: 5.14428303e-05 | K121: 0.001047706307 | L121: 0.001088838297 | M121: 0.01443166256 | N121: 1.035220786e-05
A122: =IF('DF raw data'!I122="","",'DF raw data'!I122) -> -272.5 | B122: =IF('DF raw data'!J122="","",'DF raw data'!J122) -> -2.86393e-05 | C122: =IF('DF raw data'!K122="","",'DF raw data'!K122) -> 6.60514e-05 | D122: =IF('DF raw data'!L122="","",'DF raw data'!L122) -> -9.88766e-06 | F122: 8.492949656e-06 | G122: 3.702028722e-05 | H122: 6.762211667e-06 | J122: 5.568930513e-05 | K122: 0.001075550959 | L122: 0.001107348441 | M122: 0.01498533678 | N122: 1.096686879e-05
A123: =IF('DF raw data'!I123="","",'DF raw data'!I123) -> -272 | B123: =IF('DF raw data'!J123="","",'DF raw data'!J123) -> -4.69515e-05 | C123: =IF('DF raw data'!K123="","",'DF raw data'!K123) -> 7.53523e-05 | D123: =IF('DF raw data'!L123="","",'DF raw data'!L123) -> -3.1545e-05 | F123: -9.903486464e-06 | G123: 4.636397136e-05 | H123: -1.49947521e-05 | J123: 5.07375619e-05 | K123: 0.00110091974 | L123: 0.001130530427 | M123: 0.01555060199 | N123: 1.160720547e-05
A124: =IF('DF raw data'!I124="","",'DF raw data'!I124) -> -271.5 | B124: =IF('DF raw data'!J124="","",'DF raw data'!J124) -> -4.5423e-05 | C124: =IF('DF raw data'!K124="","",'DF raw data'!K124) -> 7.20207e-05 | D124: =IF('DF raw data'!L124="","",'DF raw data'!L124) -> -1.70607e-05 | F124: -8.367955364e-06 | G124: 4.3017046e-05 | H124: -4.438243167e-07 | J124: 4.655358422e-05 | K124: 0.001124196532 | L124: 0.00115203895 | M124: 0.01612662146 | N124: 1.227188596e-05
A125: =IF('DF raw data'!I125="","",'DF raw data'!I125) -> -271 | B125: =IF('DF raw data'!J125="","",'DF raw data'!J125) -> -3.10064e-05 | C125: =IF('DF raw data'!K125="","",'DF raw data'!K125) -> 6.20831e-05 | D125: =IF('DF raw data'!L125="","",'DF raw data'!L125) -> -1.59168e-05 | F125: 6.114960996e-06 | G125: 3.303373304e-05 | H125: 7.053376233e-07 | J125: 4.961106471e-05 | K125: 0.001149002065 | L125: 0.001168555816 | M125: 0.01671089937 | N125: 1.295587793e-05
A126: =IF('DF raw data'!I126="","",'DF raw data'!I126) -> -270.5 | B126: =IF('DF raw data'!J126="","",'DF raw data'!J126) -> -3.07496e-05 | C126: =IF('DF raw data'!K126="","",'DF raw data'!K126) -> 6.28414e-05 | D126: =IF('DF raw data'!L126="","",'DF raw data'!L126) -> -1.64905e-05 | F126: 6.372942276e-06 | G126: 3.379552122e-05 | H126: 1.289986033e-07 | J126: 5.279753585e-05 | K126: 0.001175400833 | L126: 0.001185453577 | M126: 0.01730362616 | N126: 1.365992181e-05
A127: =IF('DF raw data'!I127="","",'DF raw data'!I127) -> -270 | B127: =IF('DF raw data'!J127="","",'DF raw data'!J127) -> -4.33771e-05 | C127: =IF('DF raw data'!K127="","",'DF raw data'!K127) -> 6.27002e-05 | D127: =IF('DF raw data'!L127="","",'DF raw data'!L127) -> -1.04405e-05 | F127: -6.312644224e-06 | G127: 3.36536717e-05 | H127: 6.206828603e-06 | J127: 4.964121374e-05 | K127: 0.001200221439 | L127: 0.001202280413 | M127: 0.01790476637 | N127: 1.438389303e-05
A128: =IF('DF raw data'!I128="","",'DF raw data'!I128) -> -269.5 | B128: =IF('DF raw data'!J128="","",'DF raw data'!J128) -> -3.7475e-05 | C128: =IF('DF raw data'!K128="","",'DF raw data'!K128) -> 6.04942e-05 | D128: =IF('DF raw data'!L128="","",'DF raw data'!L128) -> -2.07437e-05 | F128: -3.833945639e-07 | G128: 3.14375241e-05 | H128: -4.143766117e-06 | J128: 4.944951646e-05 | K128: 0.001224946198 | L128: 0.001217999175 | M128: 0.01851376595 | N128: 1.512687666e-05
A129: =IF('DF raw data'!I129="","",'DF raw data'!I129) -> -269 | B129: =IF('DF raw data'!J129="","",'DF raw data'!J129) -> -3.59964e-05 | C129: =IF('DF raw data'!K129="","",'DF raw data'!K129) -> 6.52099e-05 | D129: =IF('DF raw data'!L129="","",'DF raw data'!L129) -> -2.84899e-05 | F129: 1.102006996e-06 | G129: 3.617491632e-05 | H129: -1.192559864e-05 | J129: 5.000051996e-05 | K129: 0.001249946458 | L129: 0.001236086633 | M129: 0.01913180927 | N129: 1.589208176e-05
A130: =IF('DF raw data'!I130="","",'DF raw data'!I130) -> -268.5 | B130: =IF('DF raw data'!J130="","",'DF raw data'!J130) -> -2.58138e-05 | C130: =IF('DF raw data'!K130="","",'DF raw data'!K130) -> 7.11336e-05 | D130: =IF('DF raw data'!L130="","",'DF raw data'!L130) -> -1.9364e-05 | F130: 1.133144696e-05 | G130: 4.212586534e-05 | H130: -2.757719497e-06 | J130: 5.566624344e-05 | K130: 0.001277779579 | L130: 0.001257149566 | M130: 0.01976038405 | N130: 1.668384365e-05
A131: =IF('DF raw data'!I131="","",'DF raw data'!I131) -> -268 | B131: =IF('DF raw data'!J131="","",'DF raw data'!J131) -> -4.18926e-05 | C131: =IF('DF raw data'!K131="","",'DF raw data'!K131) -> 6.78297e-05 | D131: =IF('DF raw data'!L131="","",'DF raw data'!L131) -> -2.68244e-05 | F131: =(1-$G$1*($B$54-$G$2))*(B131-F$5) -> -4.821315524e-06 | G131: =(1-$G$1*($B$54-$G$2))*(C131-G$5) -> 3.88067674e-05 | H131: =(1-$G$1*($B$54-$G$2))*(D131-H$5) -> -1.025243734e-05 | J131: 5.325558567e-05 | K131: 0.001304407372 | L131: 0.001276552949 | M131: 0.02039866053 | N131: 1.750005544e-05
A132: =IF('DF raw data'!I132="","",'DF raw data'!I132) -> -267.5 | B132: =IF('DF raw data'!J132="","",'DF raw data'!J132) -> -3.8112e-05 | C132: =IF('DF raw data'!K132="","",'DF raw data'!K132) -> 6.71e-05 | D132: =IF('DF raw data'!L132="","",'DF raw data'!L132) -> -2.6486e-05 | F132: -1.023324764e-06 | G132: 3.807371078e-05 | H132: -9.912480697e-06 | J132: =F132*$G$3+J131 -> 5.274392329e-05 | K132: =J132*$G$3+K131 -> 0.001330779334 | L132: =G132*$G$3+L131 -> 0.001295589805 | M132: =L132*$G$3+M131 -> 0.02104645543 | N132: =(J132^2+L132^2)*$G$3+N131 -> 1.834072287e-05
A133: =IF('DF raw data'!I133="","",'DF raw data'!I133) -> -267 | B133: =IF('DF raw data'!J133="","",'DF raw data'!J133) -> -3.5362e-05 | C133: =IF('DF raw data'!K133="","",'DF raw data'!K133) -> 6.91573e-05 | D133: =IF('DF raw data'!L133="","",'DF raw data'!L133) -> -1.8634e-05 | F133: 1.739325236e-06 | G133: 4.014047436e-05 | H133: -2.024361497e-06 | J133: 5.361358591e-05 | K133: 0.001357586127 | L133: 0.001315660042 | M133: 0.02170428545 | N133: 1.920764075e-05
A134: =IF('DF raw data'!I134="","",'DF raw data'!I134) -> -266.5 | B134: =IF('DF raw data'!J134="","",'DF raw data'!J134) -> -3.06247e-05 | C134: =IF('DF raw data'!K134="","",'DF raw data'!K134) -> 6.95126e-05 | D134: =IF('DF raw data'!L134="","",'DF raw data'!L134) -> -1.14542e-05 | F134: 6.498416816e-06 | G134: 4.049740874e-05 | H134: 5.188465583e-06 | J134: 5.686279432e-05 | K134: 0.001386017524 | L134: 0.001335908746 | M134: 0.02237223982 | N134: 2.010158353e-05
A135: =IF('DF raw data'!I135="","",'DF raw data'!I135) -> -266 | B135: =IF('DF raw data'!J135="","",'DF raw data'!J135) -> -3.0176e-05 | C135: =IF('DF raw data'!K135="","",'DF raw data'!K135) -> 6.71591e-05 | D135: =IF('DF raw data'!L135="","",'DF raw data'!L135) -> -1.16995e-05 | F135: 6.949180836e-06 | G135: 3.813308264e-05 | H135: 4.942037203e-06 | J135: 6.033738474e-05 | K135: 0.001416186216 | L135: 0.001354975288 | M135: 0.02304972747 | N135: 2.102138285e-05
A136: =IF('DF raw data'!I136="","",'DF raw data'!I136) -> -265.5 | B136: =IF('DF raw data'!J136="","",'DF raw data'!J136) -> -3.64565e-05 | C136: =IF('DF raw data'!K136="","",'DF raw data'!K136) -> 6.52778e-05 | D136: =IF('DF raw data'!L136="","",'DF raw data'!L136) -> -1.00682e-05 | F136: 6.397905361e-07 | G136: 3.624312866e-05 | H136: 6.580841183e-06 | J136: 6.065728e-05 | K136: 0.001446514856 | L136: 0.001373096852 | M136: 0.02373627589 | N136: 2.196591998e-05
A137: =IF('DF raw data'!I137="","",'DF raw data'!I137) -> -265 | B137: =IF('DF raw data'!J137="","",'DF raw data'!J137) -> -4.35609e-05 | C137: =IF('DF raw data'!K137="","",'DF raw data'!K137) -> 5.24757e-05 | D137: =IF('DF raw data'!L137="","",'DF raw data'!L137) -> -2.31965e-05 | F137: -6.497289704e-06 | G137: 2.3382139e-05 | H137: -6.607848997e-06 | J137: 5.740863515e-05 | K137: 0.001475219174 | L137: 0.001384787921 | M137: 0.02442866986 | N137: 2.292638665e-05
A138: =IF('DF raw data'!I138="","",'DF raw data'!I138) -> -264.5 | B138: =IF('DF raw data'!J138="","",'DF raw data'!J138) -> -3.53017e-05 | C138: =IF('DF raw data'!K138="","",'DF raw data'!K138) -> 5.8301e-05 | D138: =IF('DF raw data'!L138="","",'DF raw data'!L138) -> -1.22799e-05 | F138: 1.799902616e-06 | G138: 2.923423538e-05 | H138: 4.358967363e-06 | J138: 5.830858646e-05 | K138: 0.001504373467 | L138: 0.001399405039 | M138: 0.02512837237 | N138: 2.390725383e-05
A139: =IF('DF raw data'!I139="","",'DF raw data'!I139) -> -264 | B139: =IF('DF raw data'!J139="","",'DF raw data'!J139) -> -3.55608e-05 | C139: =IF('DF raw data'!K139="","",'DF raw data'!K139) -> 6.79315e-05 | D139: =IF('DF raw data'!L139="","",'DF raw data'!L139) -> -8.16245e-06 | F139: 1.539610756e-06 | G139: 3.890903568e-05 | H139: 8.495357633e-06 | J139: 5.907839184e-05 | K139: 0.001533912663 | L139: 0.001418859557 | M139: 0.02583780215 | N139: 2.491558018e-05
A140: =IF('DF raw data'!I140="","",'DF raw data'!I140) -> -263.5 | B140: =IF('DF raw data'!J140="","",'DF raw data'!J140) -> -4.46502e-05 | C140: =IF('DF raw data'!K140="","",'DF raw data'!K140) -> 6.95717e-05 | D140: =IF('DF raw data'!L140="","",'DF raw data'!L140) -> -2.30933e-05 | F140: -7.591600484e-06 | G140: 4.05567806e-05 | H140: -6.504174277e-06 | J140: 5.52825916e-05 | K140: 0.001561553959 | L140: 0.001439137947 | M140: 0.02655737113 | N140: 2.595266727e-05
A141: =IF('DF raw data'!I141="","",'DF raw data'!I141) -> -263 | B141: =IF('DF raw data'!J141="","",'DF raw data'!J141) -> -4.65719e-05 | C141: =IF('DF raw data'!K141="","",'DF raw data'!K141) -> 6.84604e-05 | D141: =IF('DF raw data'!L141="","",'DF raw data'!L141) -> -2.41413e-05 | F141: -9.522140304e-06 | G141: 3.944036862e-05 | H141: -7.556995077e-06 | J141: 5.052152144e-05 | K141: 0.00158681472 | L141: 0.001458858132 | M141: 0.02728680019 | N141: 2.701807701e-05
A142: =IF('DF raw data'!I142="","",'DF raw data'!I142) -> -262.5 | B142: =IF('DF raw data'!J142="","",'DF raw data'!J142) -> -4.01669e-05 | C142: =IF('DF raw data'!K142="","",'DF raw data'!K142) -> 6.85837e-05 | D142: =IF('DF raw data'!L142="","",'DF raw data'!L142) -> -1.96687e-05 | F142: -3.087677304e-06 | G142: 3.95642358e-05 | H142: -3.063821117e-06 | J142: 4.897768279e-05 | K142: 0.001611303561 | L142: 0.001478640249 | M142: 0.02802612032 | N142: 2.811246491e-05
A143: =IF('DF raw data'!I143="","",'DF raw data'!I143) -> -262 | B143: =IF('DF raw data'!J143="","",'DF raw data'!J143) -> -4.10011e-05 | C143: =IF('DF raw data'!K143="","",'DF raw data'!K143) -> 5.74805e-05 | D143: =IF('DF raw data'!L143="","",'DF raw data'!L143) -> -1.81387e-05 | F143: -3.925714624e-06 | G143: 2.840996108e-05 | H143: -1.526783117e-06 | J143: 4.701482548e-05 | K143: 0.001634810974 | L143: 0.00149284523 | M143: 0.02877254293 | N143: 2.922786355e-05
A144: =IF('DF raw data'!I144="","",'DF raw data'!I144) -> -261.5 | B144: =IF('DF raw data'!J144="","",'DF raw data'!J144) -> -4.60674e-05 | C144: =IF('DF raw data'!K144="","",'DF raw data'!K144) -> 5.80126e-05 | D144: =IF('DF raw data'!L144="","",'DF raw data'!L144) -> -1.14388e-05 | F144: -9.015319604e-06 | G144: 2.894450874e-05 | H144: 5.203936423e-06 | J144: 4.250716568e-05 | K144: 0.001656064557 | L144: 0.001507317484 | M144: 0.02952620167 | N144: 3.036476998e-05
A145: =IF('DF raw data'!I145="","",'DF raw data'!I145) -> -261 | B145: =IF('DF raw data'!J145="","",'DF raw data'!J145) -> -4.08087e-05 | C145: =IF('DF raw data'!K145="","",'DF raw data'!K145) -> 6.87805e-05 | D145: =IF('DF raw data'!L145="","",'DF raw data'!L145) -> -1.82092e-05 | F145: -3.732429584e-06 | G145: 3.976194108e-05 | H145: -1.597607417e-06 | J145: 4.064095089e-05 | K145: 0.001676385032 | L145: 0.001527198455 | M145: 0.0302898009 | N145: 3.153176338e-05
A146: =IF('DF raw data'!I146="","",'DF raw data'!I146) -> -260.5 | B146: =IF('DF raw data'!J146="","",'DF raw data'!J146) -> -4.35559e-05 | C146: =IF('DF raw data'!K146="","",'DF raw data'!K146) -> 6.16291e-05 | D146: =IF('DF raw data'!L146="","",'DF raw data'!L146) -> -3.06973e-05 | F146: -6.492266704e-06 | G146: 3.257764464e-05 | H146: -1.414315268e-05 | J146: 3.739481753e-05 | K146: 0.001695082441 | L146: 0.001543487277 | M146: 0.03106154454 | N146: 3.272363905e-05
A147: =IF('DF raw data'!I147="","",'DF raw data'!I147) -> -260 | B147: =IF('DF raw data'!J147="","",'DF raw data'!J147) -> -3.50395e-05 | C147: =IF('DF raw data'!K147="","",'DF raw data'!K147) -> 6.2917e-05 | D147: =IF('DF raw data'!L147="","",'DF raw data'!L147) -> -2.16244e-05 | F147: 2.063308736e-06 | G147: 3.387146898e-05 | H147: -5.028517337e-06 | J147: 3.84264719e-05 | K147: 0.001714295677 | L147: 0.001560423012 | M147: 0.03184175605 | N147: 3.394183734e-05
A148: =IF('DF raw data'!I148="","",'DF raw data'!I148) -> -259.5 | B148: =IF('DF raw data'!J148="","",'DF raw data'!J148) -> -3.8628e-05 | C148: =IF('DF raw data'!K148="","",'DF raw data'!K148) -> 6.18727e-05 | D148: =IF('DF raw data'!L148="","",'DF raw data'!L148) -> -2.14086e-05 | F148: -1.541698364e-06 | G148: 3.28223652e-05 | H148: -4.811724657e-06 | J148: 3.765562272e-05 | K148: 0.001733123488 | L148: 0.001576834194 | M148: 0.03263017314 | N148: 3.518574935e-05
A149: =IF('DF raw data'!I149="","",'DF raw data'!I149) -> -259 | B149: =IF('DF raw data'!J149="","",'DF raw data'!J149) -> -3.31209e-05 | C149: =IF('DF raw data'!K149="","",'DF raw data'!K149) -> 4.83667e-05 | D149: =IF('DF raw data'!L149="","",'DF raw data'!L149) -> -1.61528e-05 | F149: 3.990734296e-06 | G149: 1.92542376e-05 | H149: 4.682520233e-07 | J149: 3.965098987e-05 | K149: 0.001752948983 | L149: 0.001586461313 | M149: 0.0334234038 | N149: 3.64449652e-05
A150: =IF('DF raw data'!I150="","",'DF raw data'!I150) -> -258.5 | B150: =IF('DF raw data'!J150="","",'DF raw data'!J150) -> -3.99128e-05 | C150: =IF('DF raw data'!K150="","",'DF raw data'!K150) -> 5.43983e-05 | D150: =IF('DF raw data'!L150="","",'DF raw data'!L150) -> -1.61853e-05 | F150: -2.832408444e-06 | G150: 2.531358296e-05 | H150: 4.356025233e-07 | J150: 3.823478565e-05 | K150: 0.001772066376 | L150: 0.001599118105 | M150: 0.03422296285 | N150: 3.77242855e-05
A151: =IF('DF raw data'!I151="","",'DF raw data'!I151) -> -258 | B151: =IF('DF raw data'!J151="","",'DF raw data'!J151) -> -3.93979e-05 | C151: =IF('DF raw data'!K151="","",'DF raw data'!K151) -> 5.36793e-05 | D151: =IF('DF raw data'!L151="","",'DF raw data'!L151) -> -2.0186e-05 | F151: -2.315139904e-06 | G151: 2.459127556e-05 | H151: -3.583500697e-06 | J151: 3.707721569e-05 | K151: 0.001790604984 | L151: 0.001611413742 | M151: 0.03502866972 | N151: 3.902329999e-05
A152: =IF('DF raw data'!I152="","",'DF raw data'!I152) -> -257.5 | B152: =IF('DF raw data'!J152="","",'DF raw data'!J152) -> -2.65139e-05 | C152: =IF('DF raw data'!K152="","",'DF raw data'!K152) -> 5.26738e-05 | D152: =IF('DF raw data'!L152="","",'DF raw data'!L152) -> -2.64629e-05 | F152: 1.06281265e-05 | G152: 2.358115026e-05 | H152: -9.889274437e-06 | J152: 4.239127894e-05 | K152: 0.001811800623 | L152: 0.001623204317 | M152: 0.03584027188 | N152: 4.034159463e-05
A153: =IF('DF raw data'!I153="","",'DF raw data'!I153) -> -257 | B153: =IF('DF raw data'!J153="","",'DF raw data'!J153) -> -3.84434e-05 | C153: =IF('DF raw data'!K153="","",'DF raw data'!K153) -> 5.61283e-05 | D153: =IF('DF raw data'!L153="","",'DF raw data'!L153) -> -9.80752e-06 | F153: -1.356249204e-06 | G153: 2.705154096e-05 | H153: 6.842720311e-06 | J153: 4.171315434e-05 | K153: 0.0018326572 | L153: 0.001636730088 | M153: 0.03665863693 | N153: 4.168190731e-05
A154: =IF('DF raw data'!I154="","",'DF raw data'!I154) -> -256.5 | B154: =IF('DF raw data'!J154="","",'DF raw data'!J154) -> -2.83813e-05 | C154: =IF('DF raw data'!K154="","",'DF raw data'!K154) -> 5.60254e-05 | D154: =IF('DF raw data'!L154="","",'DF raw data'!L154) -> -1.22887e-05 | F154: 8.752136456e-06 | G154: 2.694816762e-05 | H154: 4.350126883e-06 | J154: 4.608922257e-05 | K154: 0.001855701812 | L154: 0.001650204172 | M154: 0.03748373901 | N154: 4.304455632e-05
A155: =IF('DF raw data'!I155="","",'DF raw data'!I155) -> -256 | B155: =IF('DF raw data'!J155="","",'DF raw data'!J155) -> -4.35593e-05 | C155: =IF('DF raw data'!K155="","",'DF raw data'!K155) -> 5.47126e-05 | D155: =IF('DF raw data'!L155="","",'DF raw data'!L155) -> -2.6038e-05 | F155: -6.495682344e-06 | G155: 2.562932874e-05 | H155: -9.462419897e-06 | J155: 4.28413814e-05 | K155: 0.001877122502 | L155: 0.001663018836 | M155: 0.03831524843 | N155: 4.442828984e-05
A156: =IF('DF raw data'!I156="","",'DF raw data'!I156) -> -255.5 | B156: =IF('DF raw data'!J156="","",'DF raw data'!J156) -> -4.72129e-05 | C156: =IF('DF raw data'!K156="","",'DF raw data'!K156) -> 5.39169e-05 | D156: =IF('DF raw data'!L156="","",'DF raw data'!L156) -> -2.32925e-05 | F156: -1.01660889e-05 | G156: 2.482996852e-05 | H156: -6.704290597e-06 | J156: 3.775833694e-05 | K156: 0.001896001671 | L156: 0.00167543382 | M156: 0.03915296534 | N156: 4.583254193e-05
A157: =IF('DF raw data'!I157="","",'DF raw data'!I157) -> -255 | B157: =IF('DF raw data'!J157="","",'DF raw data'!J157) -> -3.81198e-05 | C157: =IF('DF raw data'!K157="","",'DF raw data'!K157) -> 5.98097e-05 | D157: =IF('DF raw data'!L157="","",'DF raw data'!L157) -> -1.52062e-05 | F157: -1.031160644e-06 | G157: 3.07498754e-05 | H157: 1.419206383e-06 | J157: 3.724275662e-05 | K157: 0.001914623049 | L157: 0.001690808758 | M157: 0.03999836972 | N157: 4.726265257e-05
A158: =IF('DF raw data'!I158="","",'DF raw data'!I158) -> -254.5 | B158: =IF('DF raw data'!J158="","",'DF raw data'!J158) -> -3.37617e-05 | C158: =IF('DF raw data'!K158="","",'DF raw data'!K158) -> 5.83034e-05 | D158: =IF('DF raw data'!L158="","",'DF raw data'!L158) -> -1.54928e-05 | F158: 3.346986616e-06 | G158: 2.923664642e-05 | H158: 1.131288023e-06 | J158: 3.891624993e-05 | K158: 0.001934081174 | L158: 0.001705427081 | M158: 0.04085108326 | N158: 4.871765057e-05
A159: =IF('DF raw data'!I159="","",'DF raw data'!I159) -> -254 | B159: =IF('DF raw data'!J159="","",'DF raw data'!J159) -> -2.92734e-05 | C159: =IF('DF raw data'!K159="","",'DF raw data'!K159) -> 6.64888e-05 | D159: =IF('DF raw data'!L159="","",'DF raw data'!L159) -> -2.07142e-05 | F159: 7.855932796e-06 | G159: 3.745969926e-05 | H159: -4.114130417e-06 | J159: 4.284421633e-05 | K159: 0.001955503282 | L159: 0.001724156931 | M159: 0.04171316173 | N159: 5.020492695e-05
A160: =IF('DF raw data'!I160="","",'DF raw data'!I160) -> -253.5 | B160: =IF('DF raw data'!J160="","",'DF raw data'!J160) -> -3.93358e-05 | C160: =IF('DF raw data'!K160="","",'DF raw data'!K160) -> 6.86616e-05 | D160: =IF('DF raw data'!L160="","",'DF raw data'!L160) -> -1.6263e-05 | F160: -2.252754244e-06 | G160: 3.964249414e-05 | H160: 3.575451033e-07 | J160: 4.171783921e-05 | K160: 0.001976362202 | L160: 0.001743978178 | M160: 0.04258515081 | N160: 5.172652708e-05
A161: =IF('DF raw data'!I161="","",'DF raw data'!I161) -> -253 | B161: =IF('DF raw data'!J161="","",'DF raw data'!J161) -> -3.95254e-05 | C161: =IF('DF raw data'!K161="","",'DF raw data'!K161) -> 5.65736e-05 | D161: =IF('DF raw data'!L161="","",'DF raw data'!L161) -> -2.14114e-05 | F161: -2.443226404e-06 | G161: 2.749888934e-05 | H161: -4.814537537e-06 | J161: 4.0496226e-05 | K161: 0.001996610315 | L161: 0.001757727623 | M161: 0.04346401463 | N161: 5.327215025e-05
A162: =IF('DF raw data'!I162="","",'DF raw data'!I162) -> -252.5 | B162: =IF('DF raw data'!J162="","",'DF raw data'!J162) -> -3.07446e-05 | C162: =IF('DF raw data'!K162="","",'DF raw data'!K162) -> 5.36151e-05 | D162: =IF('DF raw data'!L162="","",'DF raw data'!L162) -> -2.39095e-05 | F162: 6.377965276e-06 | G162: 2.452678024e-05 | H162: -7.324128797e-06 | J162: 4.368520864e-05 | K162: 0.002018452919 | L162: 0.001769991013 | M162: 0.04434901013 | N162: 5.483953854e-05
A163: =IF('DF raw data'!I163="","",'DF raw data'!I163) -> -252 | B163: =IF('DF raw data'!J163="","",'DF raw data'!J163) -> -3.57458e-05 | C163: =IF('DF raw data'!K163="","",'DF raw data'!K163) -> 5.62038e-05 | D163: =IF('DF raw data'!L163="","",'DF raw data'!L163) -> -2.0162e-05 | F163: 1.353759756e-06 | G163: 2.712738826e-05 | H163: -3.559390297e-06 | J163: 4.436208852e-05 | K163: 0.002040633963 | L163: 0.001783554707 | M163: 0.04524078749 | N163: 5.643105623e-05
A164: =IF('DF raw data'!I164="","",'DF raw data'!I164) -> -251.5 | B164: =IF('DF raw data'!J164="","",'DF raw data'!J164) -> -4.06101e-05 | C164: =IF('DF raw data'!K164="","",'DF raw data'!K164) -> 5.77222e-05 | D164: =IF('DF raw data'!L164="","",'DF raw data'!L164) -> -2.78079e-05 | F164: -3.532916024e-06 | G164: 2.86527729e-05 | H164: -1.124046144e-05 | J164: 4.259563051e-05 | K164: 0.002061931779 | L164: 0.001797881093 | M164: 0.04613972803 | N164: 5.804815164e-05
A165: =IF('DF raw data'!I165="","",'DF raw data'!I165) -> -251 | B165: =IF('DF raw data'!J165="","",'DF raw data'!J165) -> -2.89591e-05 | C165: =IF('DF raw data'!K165="","",'DF raw data'!K165) -> 6.42054e-05 | D165: =IF('DF raw data'!L165="","",'DF raw data'!L165) -> -1.13844e-05 | F165: 8.171678576e-06 | G165: 3.516579562e-05 | H165: 5.258586663e-06 | J165: 4.66814698e-05 | K165: 0.002085272514 | L165: 0.001815463991 | M165: 0.04704746003 | N165: 5.969719597e-05
A166: =IF('DF raw data'!I166="","",'DF raw data'!I166) -> -250.5 | B166: =IF('DF raw data'!J166="","",'DF raw data'!J166) -> -2.77433e-05 | C166: =IF('DF raw data'!K166="","",'DF raw data'!K166) -> 6.79393e-05 | D166: =IF('DF raw data'!L166="","",'DF raw data'!L166) -> -8.0477e-06 | F166: 9.393071256e-06 | G166: 3.891687156e-05 | H166: 8.610635483e-06 | J166: 5.137800542e-05 | K166: 0.002110961516 | L166: 0.001834922427 | M166: 0.04796492124 | N166: 6.138198598e-05
A167: =IF('DF raw data'!I167="","",'DF raw data'!I167) -> -250 | B167: =IF('DF raw data'!J167="","",'DF raw data'!J167) -> -2.76761e-05 | C167: =IF('DF raw data'!K167="","",'DF raw data'!K167) -> 6.87361e-05 | D167: =IF('DF raw data'!L167="","",'DF raw data'!L167) -> -1.34511e-05 | F167: 9.460580376e-06 | G167: 3.971733684e-05 | H167: 3.182379843e-06 | J167: 5.610829561e-05 | K167: 0.002139015664 | L167: 0.001854781095 | M167: 0.04889231179 | N167: 6.31036665e-05
A168: =IF('DF raw data'!I168="","",'DF raw data'!I168) -> -249.5 | B168: =IF('DF raw data'!J168="","",'DF raw data'!J168) -> -2.47175e-05 | C168: =IF('DF raw data'!K168="","",'DF raw data'!K168) -> 6.07417e-05 | D168: =IF('DF raw data'!L168="","",'DF raw data'!L168) -> -2.99335e-05 | F168: 1.243278994e-05 | G168: 3.16861626e-05 | H168: -1.33758392e-05 | J168: 6.232469058e-05 | K168: 0.002170178009 | L168: 0.001870624177 | M168: 0.04982762388 | N168: 6.485522609e-05
A169: =IF('DF raw data'!I169="","",'DF raw data'!I169) -> -249 | B169: =IF('DF raw data'!J169="","",'DF raw data'!J169) -> -3.91389e-05 | C169: =IF('DF raw data'!K169="","",'DF raw data'!K169) -> 6.06543e-05 | D169: =IF('DF raw data'!L169="","",'DF raw data'!L169) -> -2.45808e-05 | F169: -2.054948504e-06 | G169: 3.159836056e-05 | H169: -7.998516777e-06 | J169: 6.129721633e-05 | K169: 0.002200826618 | L169: 0.001886423357 | M169: 0.05077083556 | N169: 6.663640131e-05
A170: =IF('DF raw data'!I170="","",'DF raw data'!I170) -> -248.5 | B170: =IF('DF raw data'!J170="","",'DF raw data'!J170) -> -3.84321e-05 | C170: =IF('DF raw data'!K170="","",'DF raw data'!K170) -> 5.51752e-05 | D170: =IF('DF raw data'!L170="","",'DF raw data'!L170) -> -2.66749e-05 | F170: -1.344897224e-06 | G170: 2.60940567e-05 | H170: -1.010224964e-05 | J170: 6.062476772e-05 | K170: 0.002231139001 | L170: 0.001899470385 | M170: 0.05172057075 | N170: 6.844223286e-05
A171: =IF('DF raw data'!I171="","",'DF raw data'!I171) -> -248 | B171: =IF('DF raw data'!J171="","",'DF raw data'!J171) -> -4.27204e-05 | C171: =IF('DF raw data'!K171="","",'DF raw data'!K171) -> 4.60149e-05 | D171: =IF('DF raw data'!L171="","",'DF raw data'!L171) -> -3.53581e-05 | F171: -5.652923404e-06 | G171: 1.689161932e-05 | H171: -1.882539236e-05 | J171: 5.779830602e-05 | K171: 0.002260038154 | L171: 0.001907916195 | M171: 0.05267452885 | N171: 7.026397529e-05
A172: =IF('DF raw data'!I172="","",'DF raw data'!I172) -> -247.5 | B172: =IF('DF raw data'!J172="","",'DF raw data'!J172) -> -4.34972e-05 | C172: =IF('DF raw data'!K172="","",'DF raw data'!K172) -> 5.64542e-05 | D172: =IF('DF raw data'!L172="","",'DF raw data'!L172) -> -2.24317e-05 | F172: -6.433296684e-06 | G172: 2.73789401e-05 | H172: -5.839530917e-06 | J172: 5.458165767e-05 | K172: 0.002287328983 | L172: 0.001921605665 | M172: 0.05363533168 | N172: 7.211174903e-05
A173: =IF('DF raw data'!I173="","",'DF raw data'!I173) -> -247 | B173: =IF('DF raw data'!J173="","",'DF raw data'!J173) -> -4.20846e-05 | C173: =IF('DF raw data'!K173="","",'DF raw data'!K173) -> 5.42985e-05 | D173: =IF('DF raw data'!L173="","",'DF raw data'!L173) -> -2.73477e-05 | F173: -5.014198724e-06 | G173: 2.521332388e-05 | H173: -1.077814452e-05 | J173: 5.207455831e-05 | K173: 0.002313366262 | L173: 0.001934212327 | M173: 0.05460243784 | N173: 7.398369357e-05
A174: =IF('DF raw data'!I174="","",'DF raw data'!I174) -> -246.5 | B174: =IF('DF raw data'!J174="","",'DF raw data'!J174) -> -5.13781e-05 | C174: =IF('DF raw data'!K174="","",'DF raw data'!K174) -> 4.89065e-05 | D174: =IF('DF raw data'!L174="","",'DF raw data'!L174) -> -2.33593e-05 | F174: -1.435044882e-05 | G174: 1.979652068e-05 | H174: -6.771397877e-06 | J174: 4.48993339e-05 | K174: 0.002335815929 | L174: 0.001944110587 | M174: 0.05557449314 | N174: 7.587448454e-05
A175: =IF('DF raw data'!I175="","",'DF raw data'!I175) -> -246 | B175: =IF('DF raw data'!J175="","",'DF raw data'!J175) -> -4.42664e-05 | C175: =IF('DF raw data'!K175="","",'DF raw data'!K175) -> 4.87029e-05 | D175: =IF('DF raw data'!L175="","",'DF raw data'!L175) -> -2.2739e-05 | F175: -7.206035004e-06 | G175: 1.959198412e-05 | H175: -6.148244497e-06 | J175: 4.12963164e-05 | K175: 0.002356464088 | L175: 0.001953906579 | M175: 0.05655144642 | N175: 7.778421269e-05
A176: =IF('DF raw data'!I176="","",'DF raw data'!I176) -> -245.5 | B176: =IF('DF raw data'!J176="","",'DF raw data'!J176) -> -3.97167e-05 | C176: =IF('DF raw data'!K176="","",'DF raw data'!K176) -> 5.93726e-05 | D176: =IF('DF raw data'!L176="","",'DF raw data'!L176) -> -2.2284e-05 | F176: -2.635406384e-06 | G176: 3.031076474e-05 | H176: -5.691151497e-06 | J176: 3.997861321e-05 | K176: 0.002376453394 | L176: 0.001969061962 | M176: 0.05753597741 | N176: 7.972361434e-05
A177: =IF('DF raw data'!I177="","",'DF raw data'!I177) -> -245 | B177: =IF('DF raw data'!J177="","",'DF raw data'!J177) -> -4.33087e-05 | C177: =IF('DF raw data'!K177="","",'DF raw data'!K177) -> 5.92738e-05 | D177: =IF('DF raw data'!L177="","",'DF raw data'!L177) -> -1.73523e-05 | F177: -6.243929584e-06 | G177: 3.021151026e-05 | H177: -7.367656767e-07 | J177: 3.685664841e-05 | K177: 0.002394881718 | L177: 0.001984167717 | M177: 0.05852806126 | N177: 8.169275431e-05
A178: =IF('DF raw data'!I178="","",'DF raw data'!I178) -> -244.5 | B178: =IF('DF raw data'!J178="","",'DF raw data'!J178) -> -3.81883e-05 | C178: =IF('DF raw data'!K178="","",'DF raw data'!K178) -> 5.55072e-05 | D178: =IF('DF raw data'!L178="","",'DF raw data'!L178) -> -7.3583e-06 | F178: -1.099975744e-06 | G178: 2.64275839e-05 | H178: 9.303206723e-06 | J178: 3.630666054e-05 | K178: 0.002413035049 | L178: 0.001997381509 | M178: 0.05952675202 | N178: 8.368817984e-05
A179: =IF('DF raw data'!I179="","",'DF raw data'!I179) -> -244 | B179: =IF('DF raw data'!J179="","",'DF raw data'!J179) -> -3.38311e-05 | C179: =IF('DF raw data'!K179="","",'DF raw data'!K179) -> 5.88721e-05 | D179: =IF('DF raw data'!L179="","",'DF raw data'!L179) -> -8.41941e-06 | F179: 3.277267376e-06 | G179: 2.980796244e-05 | H179: 8.237215617e-06 | J179: 3.794529423e-05 | K179: 0.002432007696 | L179: 0.00201228549 | M179: 0.06053289476 | N179: 8.571354621e-05
A180: =IF('DF raw data'!I180="","",'DF raw data'!I180) -> -243.5 | B180: =IF('DF raw data'!J180="","",'DF raw data'!J180) -> -3.04883e-05 | C180: =IF('DF raw data'!K180="","",'DF raw data'!K180) -> 5.06654e-05 | D180: =IF('DF raw data'!L180="","",'DF raw data'!L180) -> -2.39409e-05 | F180: 6.635444256e-06 | G180: 2.156351162e-05 | H180: -7.355673237e-06 | J180: 4.126301636e-05 | K180: 0.002452639204 | L180: 0.002023067246 | M180: 0.06154442839 | N180: 8.776079807e-05
A181: =IF('DF raw data'!I181="","",'DF raw data'!I181) -> -243 | B181: =IF('DF raw data'!J181="","",'DF raw data'!J181) -> -3.67062e-05 | C181: =IF('DF raw data'!K181="","",'DF raw data'!K181) -> 4.78235e-05 | D181: =IF('DF raw data'!L181="","",'DF raw data'!L181) -> -2.15397e-05 | F181: 3.889419161e-07 | G181: 1.870853888e-05 | H181: -4.943427717e-06 | J181: 4.145748732e-05 | K181: 0.002473367948 | L181: 0.002032421515 | M181: 0.06256063914 | N181: 8.982702604e-05
A182: =IF('DF raw data'!I182="","",'DF raw data'!I182) -> -242.5 | B182: =IF('DF raw data'!J182="","",'DF raw data'!J182) -> -3.59417e-05 | C182: =IF('DF raw data'!K182="","",'DF raw data'!K182) -> 5.37774e-05 | D182: =IF('DF raw data'!L182="","",'DF raw data'!L182) -> -1.31131e-05 | F182: 1.156958616e-06 | G182: 2.468982682e-05 | H182: 3.521934643e-06 | J182: 4.203596662e-05 | K182: 0.002494385931 | L182: 0.002044766429 | M182: 0.06358302236 | N182: 9.191844442e-05
A183: =IF('DF raw data'!I183="","",'DF raw data'!I183) -> -242 | B183: =IF('DF raw data'!J183="","",'DF raw data'!J183) -> -4.39538e-05 | C183: =IF('DF raw data'!K183="","",'DF raw data'!K183) -> 5.27497e-05 | D183: =IF('DF raw data'!L183="","",'DF raw data'!L183) -> -1.09994e-05 | F183: -6.891997044e-06 | G183: 2.36573994e-05 | H183: 5.645357663e-06 | J183: 3.85899681e-05 | K183: 0.002513680915 | L183: 0.002056595128 | M183: 0.06461131992 | N183: 9.403398078e-05
A184: =IF('DF raw data'!I184="","",'DF raw data'!I184) -> -241.5 | B184: =IF('DF raw data'!J184="","",'DF raw data'!J184) -> -3.49219e-05 | C184: =IF('DF raw data'!K184="","",'DF raw data'!K184) -> 6.11291e-05 | D184: =IF('DF raw data'!L184="","",'DF raw data'!L184) -> -4.68274e-06 | F184: 2.181449696e-06 | G184: 3.207534464e-05 | H184: 1.19910743e-05 | J184: 3.968069295e-05 | K184: 0.002533521261 | L184: 0.002072632801 | M184: 0.06564763632 | N184: 9.618267142e-05
A185: =IF('DF raw data'!I185="","",'DF raw data'!I185) -> -241 | B185: =IF('DF raw data'!J185="","",'DF raw data'!J185) -> -3.47228e-05 | C185: =IF('DF raw data'!K185="","",'DF raw data'!K185) -> 6.21923e-05 | D185: =IF('DF raw data'!L185="","",'DF raw data'!L185) -> -1.70399e-05 | F185: 2.381465556e-06 | G185: 3.314343536e-05 | H185: -4.229286367e-07 | J185: 4.087142573e-05 | K185: 0.002553956974 | L185: 0.002089204518 | M185: 0.06669223858 | N185: 9.836589442e-05
A186: =IF('DF raw data'!I186="","",'DF raw data'!I186) -> -240.5 | B186: =IF('DF raw data'!J186="","",'DF raw data'!J186) -> -3.26066e-05 | C186: =IF('DF raw data'!K186="","",'DF raw data'!K186) -> 5.95069e-05 | D186: =IF('DF raw data'!L186="","",'DF raw data'!L186) -> -1.79842e-05 | F186: 4.507400076e-06 | G186: 3.044568252e-05 | H186: -1.371572417e-06 | J186: 4.312512577e-05 | K186: 0.002575519537 | L186: 0.00210442736 | M186: 0.06774445226 | N186: 0.0001005811316
A187: =IF('DF raw data'!I187="","",'DF raw data'!I187) -> -240 | B187: =IF('DF raw data'!J187="","",'DF raw data'!J187) -> -3.52311e-05 | C187: =IF('DF raw data'!K187="","",'DF raw data'!K187) -> 5.75089e-05 | D187: =IF('DF raw data'!L187="","",'DF raw data'!L187) -> -2.38537e-05 | F187: 1.870827376e-06 | G187: 2.843849172e-05 | H187: -7.268072117e-06 | J187: 4.406053945e-05 | K187: 0.002597549807 | L187: 0.002118646605 | M187: 0.06880377556 | N187: 0.0001028264339
A188: =IF('DF raw data'!I188="","",'DF raw data'!I188) -> -239.5 | B188: =IF('DF raw data'!J188="","",'DF raw data'!J188) -> -4.07382e-05 | C188: =IF('DF raw data'!K188="","",'DF raw data'!K188) -> 6.72805e-05 | D188: =IF('DF raw data'!L188="","",'DF raw data'!L188) -> -2.72481e-05 | F188: -3.661605284e-06 | G188: 3.825504108e-05 | H188: -1.067808636e-05 | J188: 4.222973681e-05 | K188: 0.002618664675 | L188: 0.002137774126 | M188: 0.06987266263 | N188: 0.0001051123647
A189: =IF('DF raw data'!I189="","",'DF raw data'!I189) -> -239 | B189: =IF('DF raw data'!J189="","",'DF raw data'!J189) -> -5.40063e-05 | C189: =IF('DF raw data'!K189="","",'DF raw data'!K189) -> 6.87373e-05 | D189: =IF('DF raw data'!L189="","",'DF raw data'!L189) -> -2.39363e-05 | F189: -1.699073854e-05 | G189: 3.971854236e-05 | H189: -7.351052077e-06 | J189: 3.373436754e-05 | K189: 0.002635531859 | L189: 0.002157633397 | M189: 0.07095147933 | N189: 0.0001074406247
A190: =IF('DF raw data'!I190="","",'DF raw data'!I190) -> -238.5 | B190: =IF('DF raw data'!J190="","",'DF raw data'!J190) -> -4.27304e-05 | C190: =IF('DF raw data'!K190="","",'DF raw data'!K190) -> 6.1462e-05 | D190: =IF('DF raw data'!L190="","",'DF raw data'!L190) -> -1.83994e-05 | F190: -5.662969404e-06 | G190: 3.240977598e-05 | H190: -1.788682337e-06 | J190: 3.090288284e-05 | K190: 0.0026509833 | L190: 0.002173838285 | M190: 0.07203839847 | N190: 0.0001098038886
A191: =IF('DF raw data'!I191="","",'DF raw data'!I191) -> -238 | B191: =IF('DF raw data'!J191="","",'DF raw data'!J191) -> -4.06789e-05 | C191: =IF('DF raw data'!K191="","",'DF raw data'!K191) -> 5.79744e-05 | D191: =IF('DF raw data'!L191="","",'DF raw data'!L191) -> -2.2125e-05 | F191: -3.602032504e-06 | G191: 2.890613302e-05 | H191: -5.531420097e-06 | J191: 2.910186659e-05 | K191: 0.002665534234 | L191: 0.002188291352 | M191: 0.07313254414 | N191: 0.0001121986216
A192: =IF('DF raw data'!I192="","",'DF raw data'!I192) -> -237.5 | B192: =IF('DF raw data'!J192="","",'DF raw data'!J192) -> -4.01067e-05 | C192: =IF('DF raw data'!K192="","",'DF raw data'!K192) -> 5.45728e-05 | D192: =IF('DF raw data'!L192="","",'DF raw data'!L192) -> -1.29652e-05 | F192: -3.027200384e-06 | G192: 2.548888566e-05 | H192: 3.670514983e-06 | J192: 2.758826639e-05 | K192: 0.002679328367 | L192: 0.002201035794 | M192: 0.07423306204 | N192: 0.0001146212814
A193: =IF('DF raw data'!I193="","",'DF raw data'!I193) -> -237 | B193: =IF('DF raw data'!J193="","",'DF raw data'!J193) -> -3.02977e-05 | C193: =IF('DF raw data'!K193="","",'DF raw data'!K193) -> 6.0709e-05 | D193: =IF('DF raw data'!L193="","",'DF raw data'!L193) -> -2.26716e-05 | F193: 6.826921016e-06 | G193: 3.165331218e-05 | H193: -6.080534457e-06 | J193: 3.10017269e-05 | K193: 0.00269482923 | L193: 0.002216862451 | M193: 0.07534149327 | N193: 0.0001170790015
A194: =IF('DF raw data'!I194="","",'DF raw data'!I194) -> -236.5 | B194: =IF('DF raw data'!J194="","",'DF raw data'!J194) -> -3.7788e-05 | C194: =IF('DF raw data'!K194="","",'DF raw data'!K194) -> 5.99601e-05 | D194: =IF('DF raw data'!L194="","",'DF raw data'!L194) -> -3.11377e-05 | F194: -6.978343639e-07 | G194: 3.090096724e-05 | H194: -1.458557852e-05 | J194: 3.065280972e-05 | K194: 0.002710155635 | L194: 0.002232312934 | M194: 0.07645764973 | N194: 0.0001195710819
A195: =IF('DF raw data'!I195="","",'DF raw data'!I195) -> -236 | B195: =IF('DF raw data'!J195="","",'DF raw data'!J195) -> -4.38816e-05 | C195: =IF('DF raw data'!K195="","",'DF raw data'!K195) -> 4.50327e-05 | D195: =IF('DF raw data'!L195="","",'DF raw data'!L195) -> -2.43261e-05 | F195: =(1-$G$1*($B$54-$G$2))*(B195-F$5) -> -6.819464924e-06 | G195: =(1-$G$1*($B$54-$G$2))*(C195-G$5) -> 1.59049012e-05 | H195: =(1-$G$1*($B$54-$G$2))*(D195-H$5) -> -7.742645157e-06 | J195: 2.724307726e-05 | K195: 0.002723777174 | L195: 0.002240265385 | M195: 0.07757778243 | N195: 0.0001220808474
A196: =IF('DF raw data'!I196="","",'DF raw data'!I196) -> -235.5 | B196: =IF('DF raw data'!J196="","",'DF raw data'!J196) -> -4.13806e-05 | C196: =IF('DF raw data'!K196="","",'DF raw data'!K196) -> 4.91631e-05 | D196: =IF('DF raw data'!L196="","",'DF raw data'!L196) -> -2.46426e-05 | F196: -4.306960324e-06 | G196: 2.005430104e-05 | H196: -8.060601057e-06 | J196: =F196*$G$3+J195 -> 2.50895971e-05 | K196: =J196*$G$3+K195 -> 0.002736321972 | L196: =G196*$G$3+L195 -> 0.002250292535 | M196: =L196*$G$3+M195 -> 0.07870292869 | N196: =(J196^2+L196^2)*$G$3+N195 -> 0.0001246130704
A197: =IF('DF raw data'!I197="","",'DF raw data'!I197) -> -235 | B197: =IF('DF raw data'!J197="","",'DF raw data'!J197) -> -4.42637e-05 | C197: =IF('DF raw data'!K197="","",'DF raw data'!K197) -> 5.31529e-05 | D197: =IF('DF raw data'!L197="","",'DF raw data'!L197) -> -2.80281e-05 | F197: -7.203322584e-06 | G197: 2.406245412e-05 | H197: -1.146167436e-05 | J197: 2.14879358e-05 | K197: 0.00274706594 | L197: 0.002262323762 | M197: 0.07983409058 | N197: 0.0001271723557
A198: =IF('DF raw data'!I198="","",'DF raw data'!I198) -> -234.5 | B198: =IF('DF raw data'!J198="","",'DF raw data'!J198) -> -4.53536e-05 | C198: =IF('DF raw data'!K198="","",'DF raw data'!K198) -> 5.26672e-05 | D198: =IF('DF raw data'!L198="","",'DF raw data'!L198) -> -2.43914e-05 | F198: -8.298236124e-06 | G198: 2.35745199e-05 | H198: -7.808245537e-06 | J198: 1.733881774e-05 | K198: 0.002755735349 | L198: 0.002274111022 | M198: 0.08097114609 | N198: 0.0001297582965
A199: =IF('DF raw data'!I199="","",'DF raw data'!I199) -> -234 | B199: =IF('DF raw data'!J199="","",'DF raw data'!J199) -> -2.98514e-05 | C199: =IF('DF raw data'!K199="","",'DF raw data'!K199) -> 6.05965e-05 | D199: =IF('DF raw data'!L199="","",'DF raw data'!L199) -> -1.95134e-05 | F199: 7.275273996e-06 | G199: 3.154029468e-05 | H199: -2.907806737e-06 | J199: 2.097645474e-05 | K199: 0.002766223577 | L199: 0.00228988117 | M199: 0.08211608667 | N199: 0.0001323802944
A200: =IF('DF raw data'!I200="","",'DF raw data'!I200) -> -233.5 | B200: =IF('DF raw data'!J200="","",'DF raw data'!J200) -> -3.38166e-05 | C200: =IF('DF raw data'!K200="","",'DF raw data'!K200) -> 5.84171e-05 | D200: =IF('DF raw data'!L200="","",'DF raw data'!L200) -> -2.93261e-05 | F200: 3.291834076e-06 | G200: 2.935086944e-05 | H200: -1.276564516e-05 | J200: 2.262237178e-05 | K200: 0.002777534762 | L200: 0.002304556604 | M200: 0.08326836497 | N200: 0.0001350360408
... 1079 more rows

Sheet 30 mm
A1: =IF('DF raw data'!M1="","",'DF raw data'!M1) -> Number of header lines | B1: =IF('DF raw data'!N1="","",'DF raw data'!N1) -> 54 | C1: =IF('DF raw data'!C1="","",'DF raw data'!C1) ->  | D1: =IF('DF raw data'!D1="","",'DF raw data'!D1) ->  | F1: T_coeff | G1: -0.001 | H1: /degC | J1: IBy total | K1: =J1267*1000 -> 10.80113371 | L1: muTm | M1: =L1267*1000 -> 2.55991976 | R1: DF ref | S1: 1
A2: =IF('DF raw data'!M2="","",'DF raw data'!M2) -> Measured by | B2: =IF('DF raw data'!N2="","",'DF raw data'!N2) -> Danfysik | C2: =IF('DF raw data'!C2="","",'DF raw data'!C2) ->  | D2: =IF('DF raw data'!D2="","",'DF raw data'!D2) ->  | F2: Tcorr | G2: 20 | H2: degC | J2: JBy total | K2: =K1267 -> 3.171049426 | L2: muTm^2 | M2: =M1267 -> 0.1970993684
A3: =IF('DF raw data'!M3="","",'DF raw data'!M3) -> Operator | B3: =IF('DF raw data'!N3="","",'DF raw data'!N3) -> PMHA | C3: =IF('DF raw data'!C3="","",'DF raw data'!C3) ->  | D3: =IF('DF raw data'!D3="","",'DF raw data'!D3) ->  | F3: Step | G3: =A68-A67 -> 0.5 | H3: mm | J3: PI total | K3: =N1267 -> 2478.467861 | L3: T^2mm^3
A4: =IF('DF raw data'!M4="","",'DF raw data'!M4) -> Data-time | B4: =IF('DF raw data'!N4="","",'DF raw data'!N4) -> 17-09-2024, 14:59:10 | C4: =IF('DF raw data'!C4="","",'DF raw data'!C4) ->  | D4: =IF('DF raw data'!D4="","",'DF raw data'!D4) -> 
A5: =IF('DF raw data'!M5="","",'DF raw data'!M5) -> Project | B5: =IF('DF raw data'!N5="","",'DF raw data'!N5) -> 504314 | C5: =IF('DF raw data'!C5="","",'DF raw data'!C5) ->  | D5: Bamb avr | F5: =(AVERAGE(B67:B107) + AVERAGE(B1227:B1267))/2 -> -3.532212927e-05 | G5: =(AVERAGE(C67:C107) + AVERAGE(C1227:C1267))/2 -> 3.478846707e-05 | H5: =(AVERAGE(D67:D107) + AVERAGE(D1227:D1267))/2 -> -1.784171573e-05
A6: =IF('DF raw data'!M6="","",'DF raw data'!M6) -> Magnet type | B6: =IF('DF raw data'!N6="","",'DF raw data'!N6) -> Dipole | C6: =IF('DF raw data'!C6="","",'DF raw data'!C6) -> 
A7: =IF('DF raw data'!M7="","",'DF raw data'!M7) -> Magnet nr. | B7: =IF('DF raw data'!N7="","",'DF raw data'!N7) -> 2410097 | C7: =IF('DF raw data'!C7="","",'DF raw data'!C7) -> 
A8: =IF('DF raw data'!M8="","",'DF raw data'!M8) -> Meas. number | B8: =IF('DF raw data'!N8="","",'DF raw data'!N8) -> 560 | C8: =IF('DF raw data'!C8="","",'DF raw data'!C8) -> 
A9: =IF('DF raw data'!M9="","",'DF raw data'!M9) -> Add. info | B9: =IF('DF raw data'!N9="","",'DF raw data'!N9) -> X-alignment scan 3) | C9: =IF('DF raw data'!C9="","",'DF raw data'!C9) ->  | D9: =IF('DF raw data'!D9="","",'DF raw data'!D9) -> 
A10: =IF('DF raw data'!M10="","",'DF raw data'!M10) -> Device | B10: =IF('DF raw data'!N10="","",'DF raw data'!N10) -> (HAL) HALL-PROBE | C10: =IF('DF raw data'!C10="","",'DF raw data'!C10) ->  | D10: =IF('DF raw data'!D10="","",'DF raw data'!D10) -> 
A11: =IF('DF raw data'!M11="","",'DF raw data'!M11) -> Goal | B11: =IF('DF raw data'!N11="","",'DF raw data'!N11) -> (AXI) AXis Integral (Line, EFB) | C11: =IF('DF raw data'!C11="","",'DF raw data'!C11) ->  | D11: =IF('DF raw data'!D11="","",'DF raw data'!D11) -> 
A12: =IF('DF raw data'!M12="","",'DF raw data'!M12) -> Power supply mode | B12: =IF('DF raw data'!N12="","",'DF raw data'!N12) -> (PM) Permanent Magnet (no MPS in use) | C12: =IF('DF raw data'!C12="","",'DF raw data'!C12) ->  | D12: =IF('DF raw data'!D12="","",'DF raw data'!D12) -> 
A13: =IF('DF raw data'!M13="","",'DF raw data'!M13) -> Data format | B13: =IF('DF raw data'!N13="","",'DF raw data'!N13) -> Raw data text file | C13: =IF('DF raw data'!C13="","",'DF raw data'!C13) ->  | D13: =IF('DF raw data'!D13="","",'DF raw data'!D13) -> 
A14: =IF('DF raw data'!M14="","",'DF raw data'!M14) -> Direction of the pos. x-axis | B14: =IF('DF raw data'!N14="","",'DF raw data'!N14) -> See test program | C14: =IF('DF raw data'!C14="","",'DF raw data'!C14) ->  | D14: =IF('DF raw data'!D14="","",'DF raw data'!D14) -> 
A15: =IF('DF raw data'!M15="","",'DF raw data'!M15) -> Direction of the pos. y-axis | B15: =IF('DF raw data'!N15="","",'DF raw data'!N15) -> Vertical up | C15: =IF('DF raw data'!C15="","",'DF raw data'!C15) ->  | D15: =IF('DF raw data'!D15="","",'DF raw data'!D15) -> 
A16: =IF('DF raw data'!M16="","",'DF raw data'!M16) -> Direction of the pos. z-axis | B16: =IF('DF raw data'!N16="","",'DF raw data'!N16) -> See test program | C16: =IF('DF raw data'!C16="","",'DF raw data'!C16) ->  | D16: =IF('DF raw data'!D16="","",'DF raw data'!D16) -> 
A17: =IF('DF raw data'!M17="","",'DF raw data'!M17) -> Mapper type | B17: =IF('DF raw data'!N17="","",'DF raw data'!N17) -> Precision Hall Mapper | C17: =IF('DF raw data'!C17="","",'DF raw data'!C17) ->  | D17: =IF('DF raw data'!D17="","",'DF raw data'!D17) -> 
A18: =IF('DF raw data'!M18="","",'DF raw data'!M18) -> Mapper Danfysik Reg. Number | B18: =IF('DF raw data'!N18="","",'DF raw data'!N18) -> 2033-D (mapper 1) | C18: =IF('DF raw data'!C18="","",'DF raw data'!C18) ->  | D18: =IF('DF raw data'!D18="","",'DF raw data'!D18) -> 
A19: =IF('DF raw data'!M19="","",'DF raw data'!M19) -> Measurement consept | B19: =IF('DF raw data'!N19="","",'DF raw data'!N19) -> Square line grid | C19: =IF('DF raw data'!C19="","",'DF raw data'!C19) ->  | D19: =IF('DF raw data'!D19="","",'DF raw data'!D19) -> 
A20: =IF('DF raw data'!M20="","",'DF raw data'!M20) -> Mode | B20: =IF('DF raw data'!N20="","",'DF raw data'!N20) -> On-the-fly measurement | C20: =IF('DF raw data'!C20="","",'DF raw data'!C20) ->  | D20: =IF('DF raw data'!D20="","",'DF raw data'!D20) -> 
A21: =IF('DF raw data'!M21="","",'DF raw data'!M21) ->  | B21: =IF('DF raw data'!N21="","",'DF raw data'!N21) ->  | C21: =IF('DF raw data'!C21="","",'DF raw data'!C21) ->  | D21: =IF('DF raw data'!D21="","",'DF raw data'!D21) -> 
A22: =IF('DF raw data'!M22="","",'DF raw data'!M22) -> Probe Name | B22: =IF('DF raw data'!N22="","",'DF raw data'!N22) -> ID12_By | C22: =IF('DF raw data'!C22="","",'DF raw data'!C22) ->  | D22: =IF('DF raw data'!D22="","",'DF raw data'!D22) -> 
A23: =IF('DF raw data'!M23="","",'DF raw data'!M23) -> Probe Type | B23: =IF('DF raw data'!N23="","",'DF raw data'!N23) -> DF_ID_3D_Bxyz | C23: =IF('DF raw data'!C23="","",'DF raw data'!C23) ->  | D23: =IF('DF raw data'!D23="","",'DF raw data'!D23) -> 
A24: =IF('DF raw data'!M24="","",'DF raw data'!M24) -> Probe Danfysik Reg. Number | B24: =IF('DF raw data'!N24="","",'DF raw data'!N24) -> 2277 | C24: =IF('DF raw data'!C24="","",'DF raw data'!C24) ->  | D24: =IF('DF raw data'!D24="","",'DF raw data'!D24) -> 
A25: =IF('DF raw data'!M25="","",'DF raw data'!M25) -> Probe Axis | B25: =IF('DF raw data'!N25="","",'DF raw data'!N25) -> By | C25: =IF('DF raw data'!C25="","",'DF raw data'!C25) ->  | D25: =IF('DF raw data'!D25="","",'DF raw data'!D25) -> 
A26: =IF('DF raw data'!M26="","",'DF raw data'!M26) -> Probe Current Supply | B26: =IF('DF raw data'!N26="","",'DF raw data'!N26) -> 1825-D | C26: =IF('DF raw data'!C26="","",'DF raw data'!C26) ->  | D26: =IF('DF raw data'!D26="","",'DF raw data'!D26) -> 
A27: =IF('DF raw data'!M27="","",'DF raw data'!M27) -> Probe Gain Correction | B27: =IF('DF raw data'!N27="","",'DF raw data'!N27) -> 0.99606 | C27: =IF('DF raw data'!C27="","",'DF raw data'!C27) ->  | D27: =IF('DF raw data'!D27="","",'DF raw data'!D27) -> 
A28: =IF('DF raw data'!M28="","",'DF raw data'!M28) -> Probe Offset Correction | B28: =IF('DF raw data'!N28="","",'DF raw data'!N28) -> 0.0027513 | C28: =IF('DF raw data'!C28="","",'DF raw data'!C28) ->  | D28: =IF('DF raw data'!D28="","",'DF raw data'!D28) -> 
A29: =IF('DF raw data'!M29="","",'DF raw data'!M29) -> DVM Number | B29: =IF('DF raw data'!N29="","",'DF raw data'!N29) -> 2 | C29: =IF('DF raw data'!C29="","",'DF raw data'!C29) ->  | D29: =IF('DF raw data'!D29="","",'DF raw data'!D29) -> 
A30: =IF('DF raw data'!M30="","",'DF raw data'!M30) -> DVM Type | B30: =IF('DF raw data'!N30="","",'DF raw data'!N30) -> K2701 | C30: =IF('DF raw data'!C30="","",'DF raw data'!C30) ->  | D30: =IF('DF raw data'!D30="","",'DF raw data'!D30) -> 
A31: =IF('DF raw data'!M31="","",'DF raw data'!M31) -> DVM Danfysik Reg. Number | B31: =IF('DF raw data'!N31="","",'DF raw data'!N31) -> 1743-D | C31: =IF('DF raw data'!C31="","",'DF raw data'!C31) ->  | D31: =IF('DF raw data'!D31="","",'DF raw data'!D31) -> 
A32: =IF('DF raw data'!M32="","",'DF raw data'!M32) -> Probe Name | B32: =IF('DF raw data'!N32="","",'DF raw data'!N32) -> ID12_Bx | C32: =IF('DF raw data'!C32="","",'DF raw data'!C32) ->  | D32: =IF('DF raw data'!D32="","",'DF raw data'!D32) -> 
A33: =IF('DF raw data'!M33="","",'DF raw data'!M33) -> Probe Type | B33: =IF('DF raw data'!N33="","",'DF raw data'!N33) -> DF_ID_3D_Bxyz | C33: =IF('DF raw data'!C33="","",'DF raw data'!C33) ->  | D33: =IF('DF raw data'!D33="","",'DF raw data'!D33) -> 
A34: =IF('DF raw data'!M34="","",'DF raw data'!M34) -> Probe Danfysik Reg. Number | B34: =IF('DF raw data'!N34="","",'DF raw data'!N34) -> 2277 | C34: =IF('DF raw data'!C34="","",'DF raw data'!C34) ->  | D34: =IF('DF raw data'!D34="","",'DF raw data'!D34) -> 
A35: =IF('DF raw data'!M35="","",'DF raw data'!M35) -> Probe Axis | B35: =IF('DF raw data'!N35="","",'DF raw data'!N35) -> Bx | C35: =IF('DF raw data'!C35="","",'DF raw data'!C35) ->  | D35: =IF('DF raw data'!D35="","",'DF raw data'!D35) -> 
A36: =IF('DF raw data'!M36="","",'DF raw data'!M36) -> Probe Current Supply | B36: =IF('DF raw data'!N36="","",'DF raw data'!N36) -> 1825-D | C36: =IF('DF raw data'!C36="","",'DF raw data'!C36) ->  | D36: =IF('DF raw data'!D36="","",'DF raw data'!D36) -> 
A37: =IF('DF raw data'!M37="","",'DF raw data'!M37) -> Probe Gain Correction | B37: =IF('DF raw data'!N37="","",'DF raw data'!N37) -> 1 | C37: =IF('DF raw data'!C37="","",'DF raw data'!C37) ->  | D37: =IF('DF raw data'!D37="","",'DF raw data'!D37) -> 
A38: =IF('DF raw data'!M38="","",'DF raw data'!M38) -> Probe Offset Correction | B38: =IF('DF raw data'!N38="","",'DF raw data'!N38) -> -0.17549 | C38: =IF('DF raw data'!C38="","",'DF raw data'!C38) ->  | D38: =IF('DF raw data'!D38="","",'DF raw data'!D38) -> 
A39: =IF('DF raw data'!M39="","",'DF raw data'!M39) -> DVM Number | B39: =IF('DF raw data'!N39="","",'DF raw data'!N39) -> 3 | C39: =IF('DF raw data'!C39="","",'DF raw data'!C39) ->  | D39: =IF('DF raw data'!D39="","",'DF raw data'!D39) -> 
A40: =IF('DF raw data'!M40="","",'DF raw data'!M40) -> DVM Type | B40: =IF('DF raw data'!N40="","",'DF raw data'!N40) -> K2701 | C40: =IF('DF raw data'!C40="","",'DF raw data'!C40) ->  | D40: =IF('DF raw data'!D40="","",'DF raw data'!D40) -> 
A41: =IF('DF raw data'!M41="","",'DF raw data'!M41) -> DVM Danfysik Reg. Number | B41: =IF('DF raw data'!N41="","",'DF raw data'!N41) -> 1744-D | C41: =IF('DF raw data'!C41="","",'DF raw data'!C41) ->  | D41: =IF('DF raw data'!D41="","",'DF raw data'!D41) -> 
A42: =IF('DF raw data'!M42="","",'DF raw data'!M42) -> Probe Name | B42: =IF('DF raw data'!N42="","",'DF raw data'!N42) -> ID12_Bz | C42: =IF('DF raw data'!C42="","",'DF raw data'!C42) ->  | D42: =IF('DF raw data'!D42="","",'DF raw data'!D42) -> 
A43: =IF('DF raw data'!M43="","",'DF raw data'!M43) -> Probe Type | B43: =IF('DF raw data'!N43="","",'DF raw data'!N43) -> DF_ID_3D_Bxyz | C43: =IF('DF raw data'!C43="","",'DF raw data'!C43) ->  | D43: =IF('DF raw data'!D43="","",'DF raw data'!D43) -> 
A44: =IF('DF raw data'!M44="","",'DF raw data'!M44) -> Probe Danfysik Reg. Number | B44: =IF('DF raw data'!N44="","",'DF raw data'!N44) -> 2277 | C44: =IF('DF raw data'!C44="","",'DF raw data'!C44) ->  | D44: =IF('DF raw data'!D44="","",'DF raw data'!D44) -> 
A45: =IF('DF raw data'!M45="","",'DF raw data'!M45) -> Probe Axis | B45: =IF('DF raw data'!N45="","",'DF raw data'!N45) -> Bz | C45: =IF('DF raw data'!C45="","",'DF raw data'!C45) ->  | D45: =IF('DF raw data'!D45="","",'DF raw data'!D45) -> 
A46: =IF('DF raw data'!M46="","",'DF raw data'!M46) -> Probe Current Supply | B46: =IF('DF raw data'!N46="","",'DF raw data'!N46) -> 1825-D | C46: =IF('DF raw data'!C46="","",'DF raw data'!C46) ->  | D46: =IF('DF raw data'!D46="","",'DF raw data'!D46) -> 
A47: =IF('DF raw data'!M47="","",'DF raw data'!M47) -> Probe Gain Correction | B47: =IF('DF raw data'!N47="","",'DF raw data'!N47) -> 1 | C47: =IF('DF raw data'!C47="","",'DF raw data'!C47) ->  | D47: =IF('DF raw data'!D47="","",'DF raw data'!D47) -> 
A48: =IF('DF raw data'!M48="","",'DF raw data'!M48) -> Probe Offset Correction | B48: =IF('DF raw data'!N48="","",'DF raw data'!N48) -> 0.0073313 | C48: =IF('DF raw data'!C48="","",'DF raw data'!C48) ->  | D48: =IF('DF raw data'!D48="","",'DF raw data'!D48) -> 
A49: =IF('DF raw data'!M49="","",'DF raw data'!M49) -> DVM Number | B49: =IF('DF raw data'!N49="","",'DF raw data'!N49) -> 8 | C49: =IF('DF raw data'!C49="","",'DF raw data'!C49) ->  | D49: =IF('DF raw data'!D49="","",'DF raw data'!D49) -> 
A50: =IF('DF raw data'!M50="","",'DF raw data'!M50) -> DVM Type | B50: =IF('DF raw data'!N50="","",'DF raw data'!N50) -> K2700 | C50: =IF('DF raw data'!C50="","",'DF raw data'!C50) ->  | D50: =IF('DF raw data'!D50="","",'DF raw data'!D50) -> 
A51: =IF('DF raw data'!M51="","",'DF raw data'!M51) -> DVM Danfysik Reg. Number | B51: =IF('DF raw data'!N51="","",'DF raw data'!N51) -> 1756-D | C51: =IF('DF raw data'!C51="","",'DF raw data'!C51) ->  | D51: =IF('DF raw data'!D51="","",'DF raw data'!D51) -> 
A52: =IF('DF raw data'!M52="","",'DF raw data'!M52) -> NTC voltage | B52: =IF('DF raw data'!N52="","",'DF raw data'!N52) -> 0.41683 | C52: =IF('DF raw data'!C52="","",'DF raw data'!C52) ->  | D52: =IF('DF raw data'!D52="","",'DF raw data'!D52) -> 
A53: =IF('DF raw data'!M53="","",'DF raw data'!M53) -> PS-Gap: | B53: =IF('DF raw data'!N53="","",'DF raw data'!N53) -> 30 | C53: =IF('DF raw data'!C53="","",'DF raw data'!C53) ->  | D53: =IF('DF raw data'!D53="","",'DF raw data'!D53) -> 
A54: =IF('DF raw data'!M54="","",'DF raw data'!M54) -> PS-Temperature: | B54: =IF('DF raw data'!N54="","",'DF raw data'!N54) -> 24.8 | C54: =IF('DF raw data'!C54="","",'DF raw data'!C54) ->  | D54: =IF('DF raw data'!D54="","",'DF raw data'!D54) -> 
A55: =IF('DF raw data'!M55="","",'DF raw data'!M55) -> PS-Encoder: | B55: =IF('DF raw data'!N55="","",'DF raw data'!N55) -> 39.6772 | C55: =IF('DF raw data'!C55="","",'DF raw data'!C55) ->  | D55: =IF('DF raw data'!D55="","",'DF raw data'!D55) -> 
A56: =IF('DF raw data'!M56="","",'DF raw data'!M56) ->  | B56: =IF('DF raw data'!N56="","",'DF raw data'!N56) -> 
A57: =IF('DF raw data'!M57="","",'DF raw data'!M57) -> Monitor-Index | B57: =IF('DF raw data'!N57="","",'DF raw data'!N57) -> [1,1,4]
A58: =IF('DF raw data'!M58="","",'DF raw data'!M58) ->  | B58: =IF('DF raw data'!N58="","",'DF raw data'!N58) -> 
A59: =IF('DF raw data'!M59="","",'DF raw data'!M59) -> Time [s] | B59: =IF('DF raw data'!N59="","",'DF raw data'!N59) -> Y [mm]
A60: =IF('DF raw data'!M60="","",'DF raw data'!M60) ->  | B60: =IF('DF raw data'!N60="","",'DF raw data'!N60) -> 
A61: =IF('DF raw data'!M61="","",'DF raw data'!M61) -> 209.1 | B61: =IF('DF raw data'!N61="","",'DF raw data'!N61) -> 31.56
A62: =IF('DF raw data'!M62="","",'DF raw data'!M62) ->  | B62: =IF('DF raw data'!N62="","",'DF raw data'!N62) -> 
A63: =IF('DF raw data'!M63="","",'DF raw data'!M63) -> Measurement-Index | B63: =IF('DF raw data'!N63="","",'DF raw data'!N63) -> [1,1,1201,2]
A64: =IF('DF raw data'!M64="","",'DF raw data'!M64) ->  | B64: =IF('DF raw data'!N64="","",'DF raw data'!N64) -> 
A65: =IF('DF raw data'!M65="","",'DF raw data'!M65) -> Z [mm] | B65: =IF('DF raw data'!N65="","",'DF raw data'!N65) -> By [T] | C65: =IF('DF raw data'!O65="","",'DF raw data'!O65) -> Bx [T] | D65: =IF('DF raw data'!P65="","",'DF raw data'!P65) -> Bz [T] | F65: By_corr | G65: Bx_corr | H65: Bz_corr | J65: Iy | K65: Jy | L65: Ix | M65: Jx | N65: PI
B66: =IF('DF raw data'!N66="","",'DF raw data'!N66) ->  | C66: =IF('DF raw data'!O66="","",'DF raw data'!O66) ->  | D66: =IF('DF raw data'!P66="","",'DF raw data'!P66) -> 
A67: =IF('DF raw data'!M67="","",'DF raw data'!M67) -> -300 | B67: =IF('DF raw data'!N67="","",'DF raw data'!N67) -> -3.84461e-05 | C67: =IF('DF raw data'!O67="","",'DF raw data'!O67) -> 2.73297e-05 | D67: =IF('DF raw data'!P67="","",'DF raw data'!P67) -> -2.16141e-05 | F67: =(1-$G$1*($B$54-$G$2))*(B67-F$5) -> -3.138965791e-06 | G67: =(1-$G$1*($B$54-$G$2))*(C67-G$5) -> -7.494569155e-06 | H67: =(1-$G$1*($B$54-$G$2))*(D67-H$5) -> -3.790491713e-06 | J67: =F67*$G$3+J66 -> -1.569482896e-06 | K67: =J67*$G$3+K66 -> -7.847414478e-07 | L67: =G67*$G$3+L66 -> -3.747284578e-06 | M67: =L67*$G$3+M66 -> -1.873642289e-06 | N67: =(J67^2+L67^2)*$G$3+N66 -> 8.252709132e-12
A68: =IF('DF raw data'!M68="","",'DF raw data'!M68) -> -299.5 | B68: =IF('DF raw data'!N68="","",'DF raw data'!N68) -> -3.44735e-05 | C68: =IF('DF raw data'!O68="","",'DF raw data'!O68) -> 3.28265e-05 | D68: =IF('DF raw data'!P68="","",'DF raw data'!P68) -> -2.1718e-05 | F68: 8.527026888e-07 | G68: -1.971384515e-06 | H68: -3.894890433e-06 | J68: =F68*$G$3+J67 -> -1.143131551e-06 | K68: =J68*$G$3+K67 -> -1.356307223e-06 | L68: =G68*$G$3+L67 -> -4.732976835e-06 | M68: =L68*$G$3+M67 -> -4.240130706e-06 | N68: =(J68^2+L68^2)*$G$3+N67 -> 2.010661887e-11
A69: =IF('DF raw data'!M69="","",'DF raw data'!M69) -> -299 | B69: =IF('DF raw data'!N69="","",'DF raw data'!N69) -> -3.37685e-05 | C69: =IF('DF raw data'!O69="","",'DF raw data'!O69) -> 3.31452e-05 | D69: =IF('DF raw data'!P69="","",'DF raw data'!P69) -> -2.21436e-05 | F69: 1.561086689e-06 | G69: -1.651154755e-06 | H69: -4.322533313e-06 | J69: -3.625882068e-07 | K69: -1.537601327e-06 | L69: -5.558554213e-06 | M69: -7.019407813e-06 | N69: 3.562111644e-11
A70: =IF('DF raw data'!M70="","",'DF raw data'!M70) -> -298.5 | B70: =IF('DF raw data'!N70="","",'DF raw data'!N70) -> -2.76134e-05 | C70: =IF('DF raw data'!O70="","",'DF raw data'!O70) -> 3.75777e-05 | D70: =IF('DF raw data'!P70="","",'DF raw data'!P70) -> -2.29416e-05 | F70: 7.745731169e-06 | G70: 2.802621245e-06 | H70: -5.124363713e-06 | J70: 3.510277378e-06 | K70: 2.17537362e-07 | L70: -4.15724359e-06 | M70: -9.098029608e-06 | N70: 5.04234772e-11
A71: =IF('DF raw data'!M71="","",'DF raw data'!M71) -> -298 | B71: =IF('DF raw data'!N71="","",'DF raw data'!N71) -> -3.60102e-05 | C71: =IF('DF raw data'!O71="","",'DF raw data'!O71) -> 3.90047e-05 | D71: =IF('DF raw data'!P71="","",'DF raw data'!P71) -> -2.33029e-05 | F71: -6.913734712e-07 | G71: 4.236470845e-06 | H71: -5.487397953e-06 | J71: 3.164590642e-06 | K71: 1.799832683e-06 | L71: -2.039008168e-06 | M71: -1.011753369e-05 | N71: 5.750957132e-11
A72: =IF('DF raw data'!M72="","",'DF raw data'!M72) -> -297.5 | B72: =IF('DF raw data'!N72="","",'DF raw data'!N72) -> -3.88271e-05 | C72: =IF('DF raw data'!O72="","",'DF raw data'!O72) -> 5.0803e-05 | D72: =IF('DF raw data'!P72="","",'DF raw data'!P72) -> -2.26399e-05 | F72: -3.521794591e-06 | G72: 1.609140268e-05 | H72: -4.821215553e-06 | J72: 1.403693346e-06 | K72: 2.501679356e-06 | L72: 6.006693175e-06 | M72: -7.114187104e-06 | N72: 7.653493028e-11
A73: =IF('DF raw data'!M73="","",'DF raw data'!M73) -> -297 | B73: =IF('DF raw data'!N73="","",'DF raw data'!N73) -> -3.95997e-05 | C73: =IF('DF raw data'!O73="","",'DF raw data'!O73) -> 5.17041e-05 | D73: =IF('DF raw data'!P73="","",'DF raw data'!P73) -> -2.19896e-05 | F73: -4.298103071e-06 | G73: 1.699682796e-05 | H73: -4.167794113e-06 | J73: -7.453581893e-07 | K73: 2.129000261e-06 | L73: 1.450510716e-05 | M73: 1.383664741e-07 | N73: 1.820117765e-10
A74: =IF('DF raw data'!M74="","",'DF raw data'!M74) -> -296.5 | B74: =IF('DF raw data'!N74="","",'DF raw data'!N74) -> -2.3385e-05 | C74: =IF('DF raw data'!O74="","",'DF raw data'!O74) -> 4.32368e-05 | D74: =IF('DF raw data'!P74="","",'DF raw data'!P74) -> -2.2639e-05 | F74: 1.199442749e-05 | G74: 8.488884925e-06 | H74: -4.820311233e-06 | J74: 5.251855555e-06 | K74: 4.754928039e-06 | L74: 1.874954962e-05 | M74: 9.513141284e-06 | N74: 3.715755754e-10
A75: =IF('DF raw data'!M75="","",'DF raw data'!M75) -> -296 | B75: =IF('DF raw data'!N75="","",'DF raw data'!N75) -> -3.601e-05 | C75: =IF('DF raw data'!O75="","",'DF raw data'!O75) -> 4.1435e-05 | D75: =IF('DF raw data'!P75="","",'DF raw data'!P75) -> -2.33371e-05 | F75: -6.911725112e-07 | G75: 6.678436285e-06 | H75: -5.521762113e-06 | J75: 4.9062693e-06 | K75: 7.208062689e-06 | L75: 2.208876776e-05 | M75: 2.055752516e-05 | N75: 6.275681452e-10
A76: =IF('DF raw data'!M76="","",'DF raw data'!M76) -> -295.5 | B76: =IF('DF raw data'!N76="","",'DF raw data'!N76) -> -4.3697e-05 | C76: =IF('DF raw data'!O76="","",'DF raw data'!O76) -> 4.46555e-05 | D76: =IF('DF raw data'!P76="","",'DF raw data'!P76) -> -2.29824e-05 | F76: -8.415070111e-06 | G76: 9.914394685e-06 | H76: -5.165359553e-06 | J76: 6.987342439e-07 | K76: 7.557429811e-06 | L76: 2.70459651e-05 | M76: 3.408050772e-05 | N76: 9.935543742e-10
A77: =IF('DF raw data'!M77="","",'DF raw data'!M77) -> -295 | B77: =IF('DF raw data'!N77="","",'DF raw data'!N77) -> -3.28702e-05 | C77: =IF('DF raw data'!O77="","",'DF raw data'!O77) -> 4.11649e-05 | D77: =IF('DF raw data'!P77="","",'DF raw data'!P77) -> -2.27661e-05 | F77: 2.463698529e-06 | G77: 6.407039805e-06 | H77: -4.948021313e-06 | J77: 1.930583508e-06 | K77: 8.522721565e-06 | L77: 3.024948501e-05 | M77: 4.920525022e-05 | N77: 1.452933622e-09
A78: =IF('DF raw data'!M78="","",'DF raw data'!M78) -> -294.5 | B78: =IF('DF raw data'!N78="","",'DF raw data'!N78) -> -3.58794e-05 | C78: =IF('DF raw data'!O78="","",'DF raw data'!O78) -> 3.4214e-05 | D78: =IF('DF raw data'!P78="","",'DF raw data'!P78) -> -2.32164e-05 | F78: -5.599456312e-07 | G78: -5.772245151e-07 | H78: -5.400482753e-06 | J78: 1.650610693e-06 | K78: 9.348026911e-06 | L78: 2.996087275e-05 | M78: 6.41856866e-05 | N78: 1.903122828e-09
A79: =IF('DF raw data'!M79="","",'DF raw data'!M79) -> -294 | B79: =IF('DF raw data'!N79="","",'DF raw data'!N79) -> -4.4148e-05 | C79: =IF('DF raw data'!O79="","",'DF raw data'!O79) -> 4.05784e-05 | D79: =IF('DF raw data'!P79="","",'DF raw data'!P79) -> -2.31119e-05 | F79: -8.868234911e-06 | G79: 5.817724605e-06 | H79: -5.295481153e-06 | J79: -2.783506763e-06 | K79: 7.95627353e-06 | L79: 3.286973505e-05 | M79: 8.062055412e-05 | N79: 2.447206524e-09
A80: =IF('DF raw data'!M80="","",'DF raw data'!M80) -> -293.5 | B80: =IF('DF raw data'!N80="","",'DF raw data'!N80) -> -4.38898e-05 | C80: =IF('DF raw data'!O80="","",'DF raw data'!O80) -> 4.55052e-05 | D80: =IF('DF raw data'!P80="","",'DF raw data'!P80) -> -2.23088e-05 | F80: -8.608795551e-06 | G80: 1.076817324e-05 | H80: -4.488526273e-06 | J80: -7.087904539e-06 | K80: 4.41232126e-06 | L80: 3.825382167e-05 | M80: 9.974746496e-05 | N80: 3.204003156e-09
A81: =IF('DF raw data'!M81="","",'DF raw data'!M81) -> -293 | B81: =IF('DF raw data'!N81="","",'DF raw data'!N81) -> -3.85097e-05 | C81: =IF('DF raw data'!O81="","",'DF raw data'!O81) -> 4.35208e-05 | D81: =IF('DF raw data'!P81="","",'DF raw data'!P81) -> -2.20426e-05 | F81: -3.202871071e-06 | G81: 8.774248125e-06 | H81: -4.221048513e-06 | J81: -8.689340074e-06 | K81: 6.765122341e-08 | L81: 4.264094574e-05 | M81: 0.0001210679378 | N81: 4.150880598e-09
A82: =IF('DF raw data'!M82="","",'DF raw data'!M82) -> -292.5 | B82: =IF('DF raw data'!N82="","",'DF raw data'!N82) -> -3.29327e-05 | C82: =IF('DF raw data'!O82="","",'DF raw data'!O82) -> 4.02733e-05 | D82: =IF('DF raw data'!P82="","",'DF raw data'!P82) -> -2.23637e-05 | F82: 2.400898529e-06 | G82: 5.511160125e-06 | H82: -4.543689793e-06 | J82: -7.48889081e-06 | K82: -3.676794181e-06 | L82: 4.53965258e-05 | M82: 0.0001437662007 | N82: 5.209344618e-09
A83: =IF('DF raw data'!M83="","",'DF raw data'!M83) -> -292 | B83: =IF('DF raw data'!N83="","",'DF raw data'!N83) -> -4.47893e-05 | C83: =IF('DF raw data'!O83="","",'DF raw data'!O83) -> 3.97766e-05 | D83: =IF('DF raw data'!P83="","",'DF raw data'!P83) -> -2.23937e-05 | F83: -9.512613151e-06 | G83: 5.012075965e-06 | H83: -4.573833793e-06 | J83: -1.224519739e-05 | K83: -9.799392874e-06 | L83: 4.790256378e-05 | M83: 0.0001677174826 | N83: 6.431644856e-09
A84: =IF('DF raw data'!M84="","",'DF raw data'!M84) -> -291.5 | B84: =IF('DF raw data'!N84="","",'DF raw data'!N84) -> -3.19065e-05 | C84: =IF('DF raw data'!O84="","",'DF raw data'!O84) -> 3.85733e-05 | D84: =IF('DF raw data'!P84="","",'DF raw data'!P84) -> -2.4032e-05 | F84: 3.432024289e-06 | G84: 3.803000125e-06 | H84: -6.219997633e-06 | J84: -1.052918524e-05 | K84: -1.506398549e-05 | L84: 4.980406384e-05 | M84: 0.0001926195145 | N84: 7.727299114e-09
A85: =IF('DF raw data'!M85="","",'DF raw data'!M85) -> -291 | B85: =IF('DF raw data'!N85="","",'DF raw data'!N85) -> -3.46647e-05 | C85: =IF('DF raw data'!O85="","",'DF raw data'!O85) -> 4.10919e-05 | D85: =IF('DF raw data'!P85="","",'DF raw data'!P85) -> -2.24646e-05 | F85: 6.605849288e-07 | G85: 6.333689405e-06 | H85: -4.645074113e-06 | J85: -1.019889278e-05 | K85: -2.016343188e-05 | L85: 5.297090855e-05 | M85: 0.0002191049688 | N85: 9.182266398e-09
A86: =IF('DF raw data'!M86="","",'DF raw data'!M86) -> -290.5 | B86: =IF('DF raw data'!N86="","",'DF raw data'!N86) -> -4.50437e-05 | C86: =IF('DF raw data'!O86="","",'DF raw data'!O86) -> 4.5077e-05 | D86: =IF('DF raw data'!P86="","",'DF raw data'!P86) -> -2.1155e-05 | F86: -9.768234271e-06 | G86: 1.033791788e-05 | H86: -3.329188033e-06 | J86: -1.508300991e-05 | K86: -2.770493684e-05 | L86: 5.813986749e-05 | M86: 0.0002481749026 | N86: 1.098613709e-08
A87: =IF('DF raw data'!M87="","",'DF raw data'!M87) -> -290 | B87: =IF('DF raw data'!N87="","",'DF raw data'!N87) -> -3.50562e-05 | C87: =IF('DF raw data'!O87="","",'DF raw data'!O87) -> 4.23179e-05 | D87: =IF('DF raw data'!P87="","",'DF raw data'!P87) -> -1.16156e-05 | F87: 2.672057288e-07 | G87: 7.565574205e-06 | H87: 6.256001087e-06 | J87: -1.494940705e-05 | K87: -3.517964036e-05 | L87: 6.192265459e-05 | M87: 0.0002791362299 | N87: 1.301508705e-08
A88: =IF('DF raw data'!M88="","",'DF raw data'!M88) -> -289.5 | B88: =IF('DF raw data'!N88="","",'DF raw data'!N88) -> -3.30635e-05 | C88: =IF('DF raw data'!O88="","",'DF raw data'!O88) -> 4.57055e-05 | D88: =IF('DF raw data'!P88="","",'DF raw data'!P88) -> -1.85237e-05 | F88: 2.269470689e-06 | G88: 1.096943468e-05 | H88: -6.852577928e-07 | J88: -1.38146717e-05 | K88: -4.208697621e-05 | L88: 6.740737193e-05 | M88: 0.0003128399158 | N88: 1.538238652e-08
A89: =IF('DF raw data'!M89="","",'DF raw data'!M89) -> -289 | B89: =IF('DF raw data'!N89="","",'DF raw data'!N89) -> -4.4727e-05 | C89: =IF('DF raw data'!O89="","",'DF raw data'!O89) -> 4.37485e-05 | D89: =IF('DF raw data'!P89="","",'DF raw data'!P89) -> -1.95266e-05 | F89: -9.450014111e-06 | G89: 9.003041085e-06 | H89: -1.692971713e-06 | J89: -1.853967876e-05 | K89: -5.135681559e-05 | L89: 7.190889248e-05 | M89: 0.0003487943621 | N89: 1.813969077e-08
A90: =IF('DF raw data'!M90="","",'DF raw data'!M90) -> -288.5 | B90: =IF('DF raw data'!N90="","",'DF raw data'!N90) -> -3.60759e-05 | C90: =IF('DF raw data'!O90="","",'DF raw data'!O90) -> 4.08243e-05 | D90: =IF('DF raw data'!P90="","",'DF raw data'!P90) -> -1.72967e-05 | F90: -7.573888312e-07 | G90: 6.064804925e-06 | H90: 5.476318072e-07 | J90: -1.891837317e-05 | K90: -6.081600218e-05 | L90: 7.494129494e-05 | M90: 0.0003862650095 | N90: 2.112674204e-08
A91: =IF('DF raw data'!M91="","",'DF raw data'!M91) -> -288 | B91: =IF('DF raw data'!N91="","",'DF raw data'!N91) -> -4.18499e-05 | C91: =IF('DF raw data'!O91="","",'DF raw data'!O91) -> 3.12383e-05 | D91: =IF('DF raw data'!P91="","",'DF raw data'!P91) -> -9.21843e-06 | F91: -6.559104031e-06 | G91: -3.567207875e-06 | H91: 8.664677503e-06 | J91: -2.219792519e-05 | K91: -7.191496478e-05 | L91: 7.3157691e-05 | M91: 0.000422843855 | N91: 2.404913986e-08
A92: =IF('DF raw data'!M92="","",'DF raw data'!M92) -> -287.5 | B92: =IF('DF raw data'!N92="","",'DF raw data'!N92) -> -3.6204e-05 | C92: =IF('DF raw data'!O92="","",'DF raw data'!O92) -> 2.95494e-05 | D92: =IF('DF raw data'!P92="","",'DF raw data'!P92) -> -1.77058e-05 | F92: -8.861037112e-07 | G92: -5.264214595e-06 | H92: 1.365681272e-07 | J92: -2.264097705e-05 | K92: -8.32354533e-05 | L92: 7.05255837e-05 | M92: 0.0004581066469 | N92: 2.679237576e-08
A93: =IF('DF raw data'!M93="","",'DF raw data'!M93) -> -287 | B93: =IF('DF raw data'!N93="","",'DF raw data'!N93) -> -3.48575e-05 | C93: =IF('DF raw data'!O93="","",'DF raw data'!O93) -> 2.54117e-05 | D93: =IF('DF raw data'!P93="","",'DF raw data'!P93) -> -2.09018e-05 | F93: 4.668594888e-07 | G93: -9.421775555e-06 | H93: -3.074772673e-06 | J93: -2.24075473e-05 | K93: -9.443922695e-05 | L93: 6.581469593e-05 | M93: 0.0004910139948 | N93: 2.920921194e-08
A94: =IF('DF raw data'!M94="","",'DF raw data'!M94) -> -286.5 | B94: =IF('DF raw data'!N94="","",'DF raw data'!N94) -> -3.06161e-05 | C94: =IF('DF raw data'!O94="","",'DF raw data'!O94) -> 3.97496e-05 | D94: =IF('DF raw data'!P94="","",'DF raw data'!P94) -> -3.79293e-05 | F94: 4.728618209e-06 | G94: 4.984946365e-06 | H94: -2.018400467e-05 | J94: -2.00432382e-05 | K94: -0.000104460846 | L94: 6.830716911e-05 | M94: 0.0005251675794 | N94: 3.174301232e-08
A95: =IF('DF raw data'!M95="","",'DF raw data'!M95) -> -286 | B95: =IF('DF raw data'!N95="","",'DF raw data'!N95) -> -4.76745e-05 | C95: =IF('DF raw data'!O95="","",'DF raw data'!O95) -> 4.16455e-05 | D95: =IF('DF raw data'!P95="","",'DF raw data'!P95) -> -1.87684e-05 | F95: -1.241166211e-05 | G95: 6.889946685e-06 | H95: -9.311323528e-07 | J95: -2.624906925e-05 | K95: -0.0001175853807 | L95: 7.175214245e-05 | M95: 0.0005610436506 | N95: 3.466170411e-08
A96: =IF('DF raw data'!M96="","",'DF raw data'!M96) -> -285.5 | B96: =IF('DF raw data'!N96="","",'DF raw data'!N96) -> -3.8888e-05 | C96: =IF('DF raw data'!O96="","",'DF raw data'!O96) -> 3.71439e-05 | D96: =IF('DF raw data'!P96="","",'DF raw data'!P96) -> -2.88695e-05 | F96: -3.582986911e-06 | G96: 2.366739005e-06 | H96: -1.108071763e-05 | J96: -2.804056271e-05 | K96: -0.000131605662 | L96: 7.293551195e-05 | M96: 0.0005975114066 | N96: 3.771463514e-08
A97: =IF('DF raw data'!M97="","",'DF raw data'!M97) -> -285 | B97: =IF('DF raw data'!N97="","",'DF raw data'!N97) -> -3.45942e-05 | C97: =IF('DF raw data'!O97="","",'DF raw data'!O97) -> 3.7035e-05 | D97: =IF('DF raw data'!P97="","",'DF raw data'!P97) -> -3.13727e-05 | F97: 7.314233288e-07 | G97: 2.257316285e-06 | H97: -1.359593299e-05 | J97: -2.767485104e-05 | K97: -0.0001454430876 | L97: 7.40641701e-05 | M97: 0.0006345434916 | N97: 4.084033448e-08
A98: =IF('DF raw data'!M98="","",'DF raw data'!M98) -> -284.5 | B98: =IF('DF raw data'!N98="","",'DF raw data'!N98) -> -3.37628e-05 | C98: =IF('DF raw data'!O98="","",'DF raw data'!O98) -> 4.83584e-05 | D98: =IF('DF raw data'!P98="","",'DF raw data'!P98) -> -2.80362e-05 | F98: 1.566814049e-06 | G98: 1.36350686e-05 | H98: -1.024341779e-05 | J98: -2.689144402e-05 | K98: -0.0001588888096 | L98: 8.08817044e-05 | M98: 0.0006749843438 | N98: 4.447283441e-08
A99: =IF('DF raw data'!M99="","",'DF raw data'!M99) -> -284 | B99: =IF('DF raw data'!N99="","",'DF raw data'!N99) -> -3.73622e-05 | C99: =IF('DF raw data'!O99="","",'DF raw data'!O99) -> 4.70931e-05 | D99: =IF('DF raw data'!P99="","",'DF raw data'!P99) -> -1.17647e-05 | F99: -2.049863071e-06 | G99: 1.236369516e-05 | H99: 6.106185407e-06 | J99: -2.791637556e-05 | K99: -0.0001728469973 | L99: 8.706355198e-05 | M99: 0.0007185161198 | N99: 4.865252746e-08
A100: =IF('DF raw data'!M100="","",'DF raw data'!M100) -> -283.5 | B100: =IF('DF raw data'!N100="","",'DF raw data'!N100) -> -3.08224e-05 | C100: =IF('DF raw data'!O100="","",'DF raw data'!O100) -> 5.3321e-05 | D100: =IF('DF raw data'!P100="","",'DF raw data'!P100) -> -1.67936e-05 | F100: 4.521327969e-06 | G100: 1.862148908e-05 | H100: 1.053146687e-06 | J100: -2.565571157e-05 | K100: -0.0001856748531 | L100: 9.637429652e-05 | M100: 0.0007667032681 | N100: 5.362563775e-08
A101: =IF('DF raw data'!M101="","",'DF raw data'!M101) -> -283 | B101: =IF('DF raw data'!N101="","",'DF raw data'!N101) -> -3.28032e-05 | C101: =IF('DF raw data'!O101="","",'DF raw data'!O101) -> 4.64724e-05 | D101: =IF('DF raw data'!P101="","",'DF raw data'!P101) -> -2.63667e-05 | F101: 2.531020129e-06 | G101: 1.17400158e-05 | H101: -8.565904193e-06 | J101: -2.439020151e-05 | K101: -0.0001978699539 | L101: 0.0001022443044 | M101: 0.0008178254203 | N101: 5.915002761e-08
A102: =IF('DF raw data'!M102="","",'DF raw data'!M102) -> -282.5 | B102: =IF('DF raw data'!N102="","",'DF raw data'!N102) -> -3.92106e-05 | C102: =IF('DF raw data'!O102="","",'DF raw data'!O102) -> 4.39017e-05 | D102: =IF('DF raw data'!P102="","",'DF raw data'!P102) -> -2.60922e-05 | F102: -3.907135391e-06 | G102: 9.156976445e-06 | H102: -8.290086593e-06 | J102: -2.63437692e-05 | K102: -0.0002110418385 | L102: 0.0001068227926 | M102: 0.0008712368166 | N102: 6.520257921e-08
A103: =IF('DF raw data'!M103="","",'DF raw data'!M103) -> -282 | B103: =IF('DF raw data'!N103="","",'DF raw data'!N103) -> -3.50547e-05 | C103: =IF('DF raw data'!O103="","",'DF raw data'!O103) -> 5.0732e-05 | D103: =IF('DF raw data'!P103="","",'DF raw data'!P103) -> -1.26156e-05 | F103: 2.687129288e-07 | G103: 1.602006188e-05 | H103: 5.251201087e-06 | J103: -2.620941274e-05 | K103: -0.0002241465448 | L103: 0.0001148328236 | M103: 0.0009286532284 | N103: 7.213933455e-08
A104: =IF('DF raw data'!M104="","",'DF raw data'!M104) -> -281.5 | B104: =IF('DF raw data'!N104="","",'DF raw data'!N104) -> -3.58807e-05 | C104: =IF('DF raw data'!O104="","",'DF raw data'!O104) -> 5.21875e-05 | D104: =IF('DF raw data'!P104="","",'DF raw data'!P104) -> -2.26411e-05 | F104: -5.612518712e-07 | G104: 1.748254828e-05 | H104: -4.822421313e-06 | J104: -2.649003867e-05 | K104: -0.0002373915642 | L104: 0.0001235740977 | M104: 0.0009904402773 | N104: 8.012547444e-08
A105: =IF('DF raw data'!M105="","",'DF raw data'!M105) -> -281 | B105: =IF('DF raw data'!N105="","",'DF raw data'!N105) -> -3.69108e-05 | C105: =IF('DF raw data'!O105="","",'DF raw data'!O105) -> 4.18067e-05 | D105: =IF('DF raw data'!P105="","",'DF raw data'!P105) -> -1.65139e-05 | F105: -1.596296351e-06 | G105: 7.051920445e-06 | H105: 1.334189247e-06 | J105: -2.728818685e-05 | K105: -0.0002510356576 | L105: 0.000127100058 | M105: 0.001053990306 | N105: 8.857500938e-08
A106: =IF('DF raw data'!M106="","",'DF raw data'!M106) -> -280.5 | B106: =IF('DF raw data'!N106="","",'DF raw data'!N106) -> -2.71741e-05 | C106: =IF('DF raw data'!O106="","",'DF raw data'!O106) -> 3.54129e-05 | D106: =IF('DF raw data'!P106="","",'DF raw data'!P106) -> -1.05111e-05 | F106: 8.187139809e-06 | G106: 6.274302049e-07 | H106: 7.365802687e-06 | J106: -2.319461694e-05 | K106: -0.0002626329661 | L106: 0.0001274137731 | M106: 0.001117697193 | N106: 9.696113929e-08
A107: =IF('DF raw data'!M107="","",'DF raw data'!M107) -> -280 | B107: =IF('DF raw data'!N107="","",'DF raw data'!N107) -> -3.88954e-05 | C107: =IF('DF raw data'!O107="","",'DF raw data'!O107) -> 4.58314e-05 | D107: =IF('DF raw data'!P107="","",'DF raw data'!P107) -> -1.86628e-05 | F107: -3.590422431e-06 | G107: 1.1095939e-05 | H107: -8.250254728e-07 | J107: -2.498982816e-05 | K107: -0.0002751278802 | L107: 0.0001329617426 | M107: 0.001184178064 | N107: 1.061127975e-07
A108: =IF('DF raw data'!M108="","",'DF raw data'!M108) -> -279.5 | B108: =IF('DF raw data'!N108="","",'DF raw data'!N108) -> -2.88345e-05 | C108: =IF('DF raw data'!O108="","",'DF raw data'!O108) -> 4.28164e-05 | D108: =IF('DF raw data'!P108="","",'DF raw data'!P108) -> -1.92247e-05 | F108: 6.518769889e-06 | G108: 8.066467005e-06 | H108: -1.389622593e-06 | J108: -2.173044322e-05 | K108: -0.0002859931018 | L108: 0.0001369949761 | M108: 0.001252675552 | N108: 1.157327154e-07
A109: =IF('DF raw data'!M109="","",'DF raw data'!M109) -> -279 | B109: =IF('DF raw data'!N109="","",'DF raw data'!N109) -> -3.62676e-05 | C109: =IF('DF raw data'!O109="","",'DF raw data'!O109) -> 4.54969e-05 | D109: =IF('DF raw data'!P109="","",'DF raw data'!P109) -> -1.96585e-05 | F109: -9.500089912e-07 | G109: 1.07598334e-05 | H109: -1.825504833e-06 | J109: -2.220544771e-05 | K109: -0.0002970958256 | L109: 0.0001423748928 | M109: 0.001323862998 | N109: 1.261145614e-07
A110: =IF('DF raw data'!M110="","",'DF raw data'!M110) -> -278.5 | B110: =IF('DF raw data'!N110="","",'DF raw data'!N110) -> -4.76733e-05 | C110: =IF('DF raw data'!O110="","",'DF raw data'!O110) -> 4.78531e-05 | D110: =IF('DF raw data'!P110="","",'DF raw data'!P110) -> -1.89369e-05 | F110: -1.241045635e-05 | G110: 1.312734316e-05 | H110: -1.100441153e-06 | J110: -2.841067589e-05 | K110: -0.0003113011636 | L110: 0.0001489385643 | M110: 0.001398332281 | N110: 1.376094926e-07
A111: =IF('DF raw data'!M111="","",'DF raw data'!M111) -> -278 | B111: =IF('DF raw data'!N111="","",'DF raw data'!N111) -> -2.88304e-05 | C111: =IF('DF raw data'!O111="","",'DF raw data'!O111) -> 5.17395e-05 | D111: =IF('DF raw data'!P111="","",'DF raw data'!P111) -> -2.63539e-05 | F111: 6.522889569e-06 | G111: 1.703239788e-05 | H111: -8.553042753e-06 | J111: -2.51492311e-05 | K111: -0.0003238757791 | L111: 0.0001574547633 | M111: 0.001477059662 | N111: 1.503217357e-07
A112: =IF('DF raw data'!M112="","",'DF raw data'!M112) -> -277.5 | B112: =IF('DF raw data'!N112="","",'DF raw data'!N112) -> -3.61335e-05 | C112: =IF('DF raw data'!O112="","",'DF raw data'!O112) -> 5.81453e-05 | D112: =IF('DF raw data'!P112="","",'DF raw data'!P112) -> -2.77544e-05 | F112: -8.152653112e-07 | G112: 2.346894572e-05 | H112: -9.960265153e-06 | J112: -2.555686376e-05 | K112: -0.000336654211 | L112: 0.0001691892362 | M112: 0.00156165428 | N112: 1.649608112e-07
A113: =IF('DF raw data'!M113="","",'DF raw data'!M113) -> -277 | B113: =IF('DF raw data'!N113="","",'DF raw data'!N113) -> -3.84455e-05 | C113: =IF('DF raw data'!O113="","",'DF raw data'!O113) -> 5.14107e-05 | D113: =IF('DF raw data'!P113="","",'DF raw data'!P113) -> -2.13432e-05 | F113: -3.138362911e-06 | G113: 1.670201964e-05 | H113: -3.518291393e-06 | J113: -2.712604521e-05 | K113: -0.0003502172336 | L113: 0.000177540246 | M113: 0.001650424403 | N113: 1.810889918e-07
A114: =IF('DF raw data'!M114="","",'DF raw data'!M114) -> -276.5 | B114: =IF('DF raw data'!N114="","",'DF raw data'!N114) -> -4.01761e-05 | C114: =IF('DF raw data'!O114="","",'DF raw data'!O114) -> 5.43151e-05 | D114: =IF('DF raw data'!P114="","",'DF raw data'!P114) -> -1.9506e-05 | F114: -4.877269791e-06 | G114: 1.962036076e-05 | H114: -1.672272833e-06 | J114: -2.956468011e-05 | K114: -0.0003649995737 | L114: 0.0001873504264 | M114: 0.001744099617 | N114: 1.990761181e-07
A115: =IF('DF raw data'!M115="","",'DF raw data'!M115) -> -276 | B115: =IF('DF raw data'!N115="","",'DF raw data'!N115) -> -4.69062e-05 | C115: =IF('DF raw data'!O115="","",'DF raw data'!O115) -> 5.02005e-05 | D115: =IF('DF raw data'!P115="","",'DF raw data'!P115) -> -1.77076e-05 | F115: -1.163967427e-05 | G115: 1.548601068e-05 | H115: 1.347594872e-07 | J115: -3.538451724e-05 | K115: -0.0003826918323 | L115: 0.0001950934317 | M115: 0.001841646332 | N115: 2.187328737e-07
A116: =IF('DF raw data'!M116="","",'DF raw data'!M116) -> -275.5 | B116: =IF('DF raw data'!N116="","",'DF raw data'!N116) -> -3.65848e-05 | C116: =IF('DF raw data'!O116="","",'DF raw data'!O116) -> 4.65201e-05 | D116: =IF('DF raw data'!P116="","",'DF raw data'!P116) -> -2.39858e-05 | F116: -1.268731551e-06 | G116: 1.178794476e-05 | H116: -6.173575873e-06 | J116: -3.601888302e-05 | K116: -0.0004007012738 | L116: 0.0002009874041 | M116: 0.001942140034 | N116: 2.39579522e-07
A117: =IF('DF raw data'!M117="","",'DF raw data'!M117) -> -275 | B117: =IF('DF raw data'!N117="","",'DF raw data'!N117) -> -5.32532e-05 | C117: =IF('DF raw data'!O117="","",'DF raw data'!O117) -> 4.18337e-05 | D117: =IF('DF raw data'!P117="","",'DF raw data'!P117) -> -1.24386e-05 | F117: -1.801713987e-05 | G117: 7.079050045e-06 | H117: 5.429050687e-06 | J117: -4.502745296e-05 | K117: -0.0004232150003 | L117: 0.0002045269291 | M117: 0.002044403499 | N117: 2.615088901e-07
A118: =IF('DF raw data'!M118="","",'DF raw data'!M118) -> -274.5 | B118: =IF('DF raw data'!N118="","",'DF raw data'!N118) -> -2.85118e-05 | C118: =IF('DF raw data'!O118="","",'DF raw data'!O118) -> 3.81947e-05 | D118: =IF('DF raw data'!P118="","",'DF raw data'!P118) -> -2.27984e-05 | F118: 6.843018849e-06 | G118: 3.422582845e-06 | H118: -4.980476353e-06 | J118: -4.160594353e-05 | K118: -0.000444017972 | L118: 0.0002062382205 | M118: 0.002147522609 | N118: 2.836415191e-07
A119: =IF('DF raw data'!M119="","",'DF raw data'!M119) -> -274 | B119: =IF('DF raw data'!N119="","",'DF raw data'!N119) -> -3.19765e-05 | C119: =IF('DF raw data'!O119="","",'DF raw data'!O119) -> 3.59415e-05 | D119: =IF('DF raw data'!P119="","",'DF raw data'!P119) -> -1.61938e-05 | F119: 3.361688289e-06 | G119: 1.158567485e-06 | H119: 1.655825727e-06 | J119: -3.992509939e-05 | K119: -0.0004639805217 | L119: 0.0002068175043 | M119: 0.002250931361 | N119: 3.05825266e-07
A120: =IF('DF raw data'!M120="","",'DF raw data'!M120) -> -273.5 | B120: =IF('DF raw data'!N120="","",'DF raw data'!N120) -> -3.82415e-05 | C120: =IF('DF raw data'!O120="","",'DF raw data'!O120) -> 4.84074e-05 | D120: =IF('DF raw data'!P120="","",'DF raw data'!P120) -> -3.82446e-05 | F120: -2.933383711e-06 | G120: 1.36843038e-05 | H120: -2.050081811e-05 | J120: -4.139179124e-05 | K120: -0.0004846764174 | L120: 0.0002136596562 | M120: 0.002357761189 | N120: 3.295071305e-07
A121: =IF('DF raw data'!M121="","",'DF raw data'!M121) -> -273 | B121: =IF('DF raw data'!N121="","",'DF raw data'!N121) -> -5.10657e-05 | C121: =IF('DF raw data'!O121="","",'DF raw data'!O121) -> 5.93527e-05 | D121: =IF('DF raw data'!P121="","",'DF raw data'!P121) -> -2.54655e-05 | F121: -1.581913987e-05 | G121: 2.468214124e-05 | H121: -7.660378433e-06 | J121: -4.930136118e-05 | K121: -0.0005093270979 | L121: 0.0002260007268 | M121: 0.002470761553 | N121: 3.562606069e-07
A122: =IF('DF raw data'!M122="","",'DF raw data'!M122) -> -272.5 | B122: =IF('DF raw data'!N122="","",'DF raw data'!N122) -> -4.18421e-05 | C122: =IF('DF raw data'!O122="","",'DF raw data'!O122) -> 5.80241e-05 | D122: =IF('DF raw data'!P122="","",'DF raw data'!P122) -> -1.97645e-05 | F122: -6.551266591e-06 | G122: 2.334716396e-05 | H122: -1.932013633e-06 | J122: -5.257699447e-05 | K122: -0.0005356155952 | L122: 0.0002376743088 | M122: 0.002589598707 | N122: 3.858873156e-07
A123: =IF('DF raw data'!M123="","",'DF raw data'!M123) -> -272 | B123: =IF('DF raw data'!N123="","",'DF raw data'!N123) -> -3.17807e-05 | C123: =IF('DF raw data'!O123="","",'DF raw data'!O123) -> 5.43329e-05 | D123: =IF('DF raw data'!P123="","",'DF raw data'!P123) -> -2.17581e-05 | F123: 3.558428129e-06 | G123: 1.96382462e-05 | H123: -3.935182913e-06 | J123: -5.079778041e-05 | K123: -0.0005610144854 | L123: 0.0002474934319 | M123: 0.002713345423 | N123: 4.178040222e-07
A124: =IF('DF raw data'!M124="","",'DF raw data'!M124) -> -271.5 | B124: =IF('DF raw data'!N124="","",'DF raw data'!N124) -> -3.01143e-05 | C124: =IF('DF raw data'!O124="","",'DF raw data'!O124) -> 5.47554e-05 | D124: =IF('DF raw data'!P124="","",'DF raw data'!P124) -> -2.19811e-05 | F124: 5.232826849e-06 | G124: 2.00627742e-05 | H124: -4.159253313e-06 | J124: -4.818136699e-05 | K124: -0.0005851051689 | L124: 0.000257524819 | M124: 0.002842107833 | N124: 4.521242605e-07
A125: =IF('DF raw data'!M125="","",'DF raw data'!M125) -> -271 | B125: =IF('DF raw data'!N125="","",'DF raw data'!N125) -> -4.20908e-05 | C125: =IF('DF raw data'!O125="","",'DF raw data'!O125) -> 4.80469e-05 | D125: =IF('DF raw data'!P125="","",'DF raw data'!P125) -> -3.16444e-05 | F125: -6.801160351e-06 | G125: 1.33220734e-05 | H125: -1.386893715e-05 | J125: -5.158194716e-05 | K125: -0.0006108961425 | L125: 0.0002641858557 | M125: 0.002974200761 | N125: 4.883516923e-07
A126: =IF('DF raw data'!M126="","",'DF raw data'!M126) -> -270.5 | B126: =IF('DF raw data'!N126="","",'DF raw data'!N126) -> -2.91521e-05 | C126: =IF('DF raw data'!O126="","",'DF raw data'!O126) -> 4.63256e-05 | D126: =IF('DF raw data'!P126="","",'DF raw data'!P126) -> -2.38393e-05 | F126: 6.199645409e-06 | G126: 1.159251116e-05 | H126: -6.026372673e-06 | J126: -4.848212446e-05 | K126: -0.0006351372047 | L126: 0.0002699821113 | M126: 0.003109191816 | N126: 5.259721207e-07
A127: =IF('DF raw data'!M127="","",'DF raw data'!M127) -> -270 | B127: =IF('DF raw data'!N127="","",'DF raw data'!N127) -> -4.14602e-05 | C127: =IF('DF raw data'!O127="","",'DF raw data'!O127) -> 5.68049e-05 | D127: =IF('DF raw data'!P127="","",'DF raw data'!P127) -> -1.59747e-05 | F127: -6.167533471e-06 | G127: 2.21221118e-05 | H127: 1.875977407e-06 | J127: -5.156589119e-05 | K127: -0.0006609201503 | L127: 0.0002810431672 | M127: 0.0032497134 | N127: 5.667942722e-07
A128: =IF('DF raw data'!M128="","",'DF raw data'!M128) -> -269.5 | B128: =IF('DF raw data'!N128="","",'DF raw data'!N128) -> -2.88387e-05 | C128: =IF('DF raw data'!O128="","",'DF raw data'!O128) -> 5.51535e-05 | D128: =IF('DF raw data'!P128="","",'DF raw data'!P128) -> -1.28199e-05 | F128: 6.514549729e-06 | G128: 2.046278508e-05 | H128: 5.045920447e-06 | J128: -4.830861633e-05 | K128: -0.0006850744584 | L128: 0.0002912745597 | M128: 0.00339535068 | N128: 6.103815679e-07
A129: =IF('DF raw data'!M129="","",'DF raw data'!M129) -> -269 | B129: =IF('DF raw data'!N129="","",'DF raw data'!N129) -> -3.55008e-05 | C129: =IF('DF raw data'!O129="","",'DF raw data'!O129) -> 5.65784e-05 | D129: =IF('DF raw data'!P129="","",'DF raw data'!P129) -> -1.6036e-05 | F129: -1.795283512e-07 | G129: 2.18945246e-05 | H129: 1.814383167e-06 | J129: -4.83983805e-05 | K129: -0.0007092736487 | L129: 0.000302221822 | M129: 0.003546461591 | N129: 6.572217844e-07
A130: =IF('DF raw data'!M130="","",'DF raw data'!M130) -> -268.5 | B130: =IF('DF raw data'!N130="","",'DF raw data'!N130) -> -2.81984e-05 | C130: =IF('DF raw data'!O130="","",'DF raw data'!O130) -> 5.91253e-05 | D130: =IF('DF raw data'!P130="","",'DF raw data'!P130) -> -1.21224e-05 | F130: 7.157923169e-06 | G130: 2.445364972e-05 | H130: 5.746768447e-06 | J130: -4.481941892e-05 | K130: -0.0007316833582 | L130: 0.0003144486469 | M130: 0.003703685914 | N130: 7.076651503e-07
A131: =IF('DF raw data'!M131="","",'DF raw data'!M131) -> -268 | B131: =IF('DF raw data'!N131="","",'DF raw data'!N131) -> -3.723e-05 | C131: =IF('DF raw data'!O131="","",'DF raw data'!O131) -> 5.46041e-05 | D131: =IF('DF raw data'!P131="","",'DF raw data'!P131) -> -1.7488e-05 | F131: =(1-$G$1*($B$54-$G$2))*(B131-F$5) -> -1.917028511e-06 | G131: =(1-$G$1*($B$54-$G$2))*(C131-G$5) -> 1.991074796e-05 | H131: =(1-$G$1*($B$54-$G$2))*(D131-H$5) -> 3.554135672e-07 | J131: -4.577793317e-05 | K131: -0.0007545723247 | L131: 0.0003244040209 | M131: 0.003865887924 | N131: 7.613319443e-07
A132: =IF('DF raw data'!M132="","",'DF raw data'!M132) -> -267.5 | B132: =IF('DF raw data'!N132="","",'DF raw data'!N132) -> -5.4275e-05 | C132: =IF('DF raw data'!O132="","",'DF raw data'!O132) -> 5.77343e-05 | D132: =IF('DF raw data'!P132="","",'DF raw data'!P132) -> -1.71218e-05 | F132: -1.904384451e-05 | G132: 2.305597292e-05 | H132: 7.233713272e-07 | J132: =F132*$G$3+J131 -> -5.529985543e-05 | K132: =J132*$G$3+K131 -> -0.0007822222525 | L132: =G132*$G$3+L131 -> 0.0003359320073 | M132: =L132*$G$3+M131 -> 0.004033853928 | N132: =(J132^2+L132^2)*$G$3+N131 -> 8.19286138e-07
A133: =IF('DF raw data'!M133="","",'DF raw data'!M133) -> -267 | B133: =IF('DF raw data'!N133="","",'DF raw data'!N133) -> -3.54343e-05 | C133: =IF('DF raw data'!O133="","",'DF raw data'!O133) -> 6.76156e-05 | D133: =IF('DF raw data'!P133="","",'DF raw data'!P133) -> -2.00152e-05 | F133: -1.127091512e-07 | G133: 3.298470316e-05 | H133: -2.183916993e-06 | J133: -5.535621001e-05 | K133: -0.0008099003575 | L133: 0.0003524243589 | M133: 0.004210066108 | N133: 8.829197574e-07
A134: =IF('DF raw data'!M134="","",'DF raw data'!M134) -> -266.5 | B134: =IF('DF raw data'!N134="","",'DF raw data'!N134) -> -3.42091e-05 | C134: =IF('DF raw data'!O134="","",'DF raw data'!O134) -> 6.50564e-05 | D134: =IF('DF raw data'!P134="","",'DF raw data'!P134) -> -3.17106e-05 | F134: 1.118371809e-06 | G134: 3.0413219e-05 | H134: -1.393545491e-05 | J134: -5.47970241e-05 | K134: -0.0008372988695 | L134: 0.0003676309684 | M134: 0.004393881592 | N134: 9.519973788e-07
A135: =IF('DF raw data'!M135="","",'DF raw data'!M135) -> -266 | B135: =IF('DF raw data'!N135="","",'DF raw data'!N135) -> -4.14558e-05 | C135: =IF('DF raw data'!O135="","",'DF raw data'!O135) -> 6.013e-05 | D135: =IF('DF raw data'!P135="","",'DF raw data'!P135) -> -2.27114e-05 | F135: -6.163112351e-06 | G135: 2.546317228e-05 | H135: -4.893058753e-06 | J135: -5.787858028e-05 | K135: -0.0008662381596 | L135: 0.0003803625545 | M135: 0.004584062869 | N135: 1.02601018e-06
A136: =IF('DF raw data'!M136="","",'DF raw data'!M136) -> -265.5 | B136: =IF('DF raw data'!N136="","",'DF raw data'!N136) -> -3.38294e-05 | C136: =IF('DF raw data'!O136="","",'DF raw data'!O136) -> 6.43527e-05 | D136: =IF('DF raw data'!P136="","",'DF raw data'!P136) -> -2.42737e-05 | F136: 1.499894369e-06 | G136: 2.970614124e-05 | H136: -6.462857793e-06 | J136: -5.712863309e-05 | K136: -0.0008948024762 | L136: 0.0003952156252 | M136: 0.004781670682 | N136: 1.105739716e-06
A137: =IF('DF raw data'!M137="","",'DF raw data'!M137) -> -265 | B137: =IF('DF raw data'!N137="","",'DF raw data'!N137) -> -3.86379e-05 | C137: =IF('DF raw data'!O137="","",'DF raw data'!O137) -> 6.60098e-05 | D137: =IF('DF raw data'!P137="","",'DF raw data'!P137) -> -2.02631e-05 | F137: -3.331686431e-06 | G137: 3.137119532e-05 | H137: -2.433006913e-06 | J137: -5.879447631e-05 | K137: -0.0009241997143 | L137: 0.0004109012228 | M137: 0.004987121293 | N137: 1.191888019e-06
A138: =IF('DF raw data'!M138="","",'DF raw data'!M138) -> -264.5 | B138: =IF('DF raw data'!N138="","",'DF raw data'!N138) -> -3.51726e-05 | C138: =IF('DF raw data'!O138="","",'DF raw data'!O138) -> 6.5105e-05 | D138: =IF('DF raw data'!P138="","",'DF raw data'!P138) -> -2.82505e-05 | F138: 1.502470088e-07 | G138: 3.046205228e-05 | H138: -1.045874643e-05 | J138: -5.87193528e-05 | K138: -0.0009535593908 | L138: 0.000426132249 | M138: 0.005200187418 | N138: 1.284406347e-06
A139: =IF('DF raw data'!M139="","",'DF raw data'!M139) -> -264 | B139: =IF('DF raw data'!N139="","",'DF raw data'!N139) -> -5.04924e-05 | C139: =IF('DF raw data'!O139="","",'DF raw data'!O139) -> 7.16265e-05 | D139: =IF('DF raw data'!P139="","",'DF raw data'!P139) -> -2.02945e-05 | F139: -1.524308803e-05 | G139: 3.701485548e-05 | H139: -2.464557633e-06 | J139: -6.634089682e-05 | K139: -0.0009867298392 | L139: 0.0004446396767 | M139: 0.005422507256 | N139: 1.385459125e-06
A140: =IF('DF raw data'!M140="","",'DF raw data'!M140) -> -263.5 | B140: =IF('DF raw data'!N140="","",'DF raw data'!N140) -> -4.33874e-05 | C140: =IF('DF raw data'!O140="","",'DF raw data'!O140) -> 7.45934e-05 | D140: =IF('DF raw data'!P140="","",'DF raw data'!P140) -> -8.25162e-06 | F140: -8.103984031e-06 | G140: 3.99959966e-05 | H140: 9.636128191e-06 | J140: -7.039288884e-05 | K140: -0.001021926284 | L140: 0.000464637675 | M140: 0.005654826093 | N140: 1.495880789e-06
A141: =IF('DF raw data'!M141="","",'DF raw data'!M141) -> -263 | B141: =IF('DF raw data'!N141="","",'DF raw data'!N141) -> -4.22932e-05 | C141: =IF('DF raw data'!O141="","",'DF raw data'!O141) -> 7.83556e-05 | D141: =IF('DF raw data'!P141="","",'DF raw data'!P141) -> -1.57476e-05 | F141: -7.004531871e-06 | G141: 4.377625516e-05 | H141: 2.104167487e-06 | J141: -7.389515477e-05 | K141: -0.001058873861 | L141: 0.0004865258026 | M141: 0.005898088995 | N141: 1.616964714e-06
A142: =IF('DF raw data'!M142="","",'DF raw data'!M142) -> -262.5 | B142: =IF('DF raw data'!N142="","",'DF raw data'!N142) -> -2.10163e-05 | C142: =IF('DF raw data'!O142="","",'DF raw data'!O142) -> 6.96767e-05 | D142: =IF('DF raw data'!P142="","",'DF raw data'!P142) -> -2.05246e-05 | F142: 1.437449725e-05 | G142: 3.505569644e-05 | H142: -2.695762113e-06 | J142: -6.670790615e-05 | K142: -0.001092227814 | L142: 0.0005040536508 | M142: 0.00615011582 | N142: 1.746224728e-06
A143: =IF('DF raw data'!M143="","",'DF raw data'!M143) -> -262 | B143: =IF('DF raw data'!N143="","",'DF raw data'!N143) -> -3.19747e-05 | C143: =IF('DF raw data'!O143="","",'DF raw data'!O143) -> 6.22125e-05 | D143: =IF('DF raw data'!P143="","",'DF raw data'!P143) -> -1.876e-05 | F143: 3.363496929e-06 | G143: 2.755566828e-05 | H143: -9.226920328e-07 | J143: -6.502615768e-05 | K143: -0.001124740893 | L143: 0.000517831485 | M143: 0.006409031563 | N143: 1.882413652e-06
A144: =IF('DF raw data'!M144="","",'DF raw data'!M144) -> -261.5 | B144: =IF('DF raw data'!N144="","",'DF raw data'!N144) -> -4.15216e-05 | C144: =IF('DF raw data'!O144="","",'DF raw data'!O144) -> 6.03807e-05 | D144: =IF('DF raw data'!P144="","",'DF raw data'!P144) -> -1.98434e-05 | F144: -6.229228191e-06 | G144: 2.571507564e-05 | H144: -2.011292353e-06 | J144: -6.814077178e-05 | K144: -0.001158811279 | L144: 0.0005306890228 | M144: 0.006674376074 | N144: 2.025550654e-06
A145: =IF('DF raw data'!M145="","",'DF raw data'!M145) -> -261 | B145: =IF('DF raw data'!N145="","",'DF raw data'!N145) -> -4.1389e-05 | C145: =IF('DF raw data'!O145="","",'DF raw data'!O145) -> 5.68162e-05 | D145: =IF('DF raw data'!P145="","",'DF raw data'!P145) -> -2.67394e-05 | F145: -6.095991711e-06 | G145: 2.213346604e-05 | H145: -8.940393153e-06 | J145: -7.118876763e-05 | K145: -0.001194405663 | L145: 0.0005417557558 | M145: 0.006945253952 | N145: 2.174834224e-06
A146: =IF('DF raw data'!M146="","",'DF raw data'!M146) -> -260.5 | B146: =IF('DF raw data'!N146="","",'DF raw data'!N146) -> -3.81901e-05 | C146: =IF('DF raw data'!O146="","",'DF raw data'!O146) -> 5.64337e-05 | D146: =IF('DF raw data'!P146="","",'DF raw data'!P146) -> -1.91204e-05 | F146: -2.881736991e-06 | G146: 2.174913004e-05 | H146: -1.284821953e-06 | J146: -7.262963613e-05 | K146: -0.001230720481 | L146: 0.0005526303208 | M146: 0.007221569112 | N146: 2.330171891e-06
A147: =IF('DF raw data'!M147="","",'DF raw data'!M147) -> -260 | B147: =IF('DF raw data'!N147="","",'DF raw data'!N147) -> -3.90286e-05 | C147: =IF('DF raw data'!O147="","",'DF raw data'!O147) -> 5.95309e-05 | D147: =IF('DF raw data'!P147="","",'DF raw data'!P147) -> -1.0587e-05 | F147: -3.724261791e-06 | G147: 2.48611966e-05 | H147: 7.289538367e-06 | J147: -7.449176702e-05 | K147: -0.001267966364 | L147: 0.0005650609191 | M147: 0.007504099572 | N147: 2.492593324e-06
A148: =IF('DF raw data'!M148="","",'DF raw data'!M148) -> -259.5 | B148: =IF('DF raw data'!N148="","",'DF raw data'!N148) -> -4.47238e-05 | C148: =IF('DF raw data'!O148="","",'DF raw data'!O148) -> 6.07215e-05 | D148: =IF('DF raw data'!P148="","",'DF raw data'!P148) -> -2.26131e-05 | F148: -9.446798751e-06 | G148: 2.605751148e-05 | H148: -4.794286913e-06 | J148: -7.92151664e-05 | K148: -0.001307573947 | L148: 0.0005780896749 | M148: 0.007793144409 | N148: 2.662824682e-06
A149: =IF('DF raw data'!M149="","",'DF raw data'!M149) -> -259 | B149: =IF('DF raw data'!N149="","",'DF raw data'!N149) -> -4.01162e-05 | C149: =IF('DF raw data'!O149="","",'DF raw data'!O149) -> 6.01647e-05 | D149: =IF('DF raw data'!P149="","",'DF raw data'!P149) -> -1.3287e-05 | F149: -4.817082271e-06 | G149: 2.549803884e-05 | H149: 4.576578367e-06 | J149: -8.162370754e-05 | K149: -0.001348385801 | L149: 0.0005908386943 | M149: 0.008088563757 | N149: 2.840701078e-06
A150: =IF('DF raw data'!M150="","",'DF raw data'!M150) -> -258.5 | B150: =IF('DF raw data'!N150="","",'DF raw data'!N150) -> -5.31233e-05 | C150: =IF('DF raw data'!O150="","",'DF raw data'!O150) -> 5.24124e-05 | D150: =IF('DF raw data'!P150="","",'DF raw data'!P150) -> -1.44948e-05 | F150: -1.788661635e-05 | G150: 1.77085278e-05 | H150: 3.362980927e-06 | J150: -9.056701571e-05 | K150: -0.001393669309 | L150: 0.0005996929582 | M150: 0.008388410236 | N150: 3.024618092e-06
A151: =IF('DF raw data'!M151="","",'DF raw data'!M151) -> -258 | B151: =IF('DF raw data'!N151="","",'DF raw data'!N151) -> -4.38899e-05 | C151: =IF('DF raw data'!O151="","",'DF raw data'!O151) -> 5.42615e-05 | D151: =IF('DF raw data'!P151="","",'DF raw data'!P151) -> -2.39327e-05 | F151: -8.608896031e-06 | G151: 1.956650348e-05 | H151: -6.120220993e-06 | J151: -9.487146373e-05 | K151: -0.001441105041 | L151: 0.0006094762099 | M151: 0.008693148341 | N151: 3.214849014e-06
A152: =IF('DF raw data'!M152="","",'DF raw data'!M152) -> -257.5 | B152: =IF('DF raw data'!N152="","",'DF raw data'!N152) -> -5.40177e-05 | C152: =IF('DF raw data'!O152="","",'DF raw data'!O152) -> 6.24538e-05 | D152: =IF('DF raw data'!P152="","",'DF raw data'!P152) -> -1.85436e-05 | F152: -1.878530947e-05 | G152: 2.779812652e-05 | H152: -7.052533128e-07 | J152: -0.0001042641185 | K152: -0.0014932371 | L152: 0.0006233752732 | M152: 0.009004835977 | N152: 3.414582883e-06
A153: =IF('DF raw data'!M153="","",'DF raw data'!M153) -> -257 | B153: =IF('DF raw data'!N153="","",'DF raw data'!N153) -> -4.51696e-05 | C153: =IF('DF raw data'!O153="","",'DF raw data'!O153) -> 6.81902e-05 | D153: =IF('DF raw data'!P153="","",'DF raw data'!P153) -> -2.67148e-05 | F153: -9.894738591e-06 | G153: 3.356206124e-05 | H153: -8.915675073e-06 | J153: -0.0001092114878 | K153: -0.001547842844 | L153: 0.0006401563038 | M153: 0.009324914129 | N153: 3.625446504e-06
A154: =IF('DF raw data'!M154="","",'DF raw data'!M154) -> -256.5 | B154: =IF('DF raw data'!N154="","",'DF raw data'!N154) -> -2.78084e-05 | C154: =IF('DF raw data'!O154="","",'DF raw data'!O154) -> 6.26189e-05 | D154: =IF('DF raw data'!P154="","",'DF raw data'!P154) -> -2.07605e-05 | F154: 7.549795169e-06 | G154: 2.7964019e-05 | H154: -2.932794433e-06 | J154: -0.0001054365902 | K154: -0.001600561139 | L154: 0.0006541383133 | M154: 0.009651983286 | N154: 3.844953408e-06
A155: =IF('DF raw data'!M155="","",'DF raw data'!M155) -> -256 | B155: =IF('DF raw data'!N155="","",'DF raw data'!N155) -> -5.44688e-05 | C155: =IF('DF raw data'!O155="","",'DF raw data'!O155) -> 5.51261e-05 | D155: =IF('DF raw data'!P155="","",'DF raw data'!P155) -> -1.46486e-05 | F155: -1.923857475e-05 | G155: 2.043525356e-05 | H155: 3.208442687e-06 | J155: -0.0001150558775 | K155: -0.001658089078 | L155: 0.0006643559401 | M155: 0.009984161256 | N155: 4.072256743e-06
A156: =IF('DF raw data'!M156="","",'DF raw data'!M156) -> -255.5 | B156: =IF('DF raw data'!N156="","",'DF raw data'!N156) -> -4.07525e-05 | C156: =IF('DF raw data'!O156="","",'DF raw data'!O156) -> 5.82982e-05 | D156: =IF('DF raw data'!P156="","",'DF raw data'!P156) -> -2.01136e-05 | F156: -5.456436511e-06 | G156: 2.362257964e-05 | H156: -2.282789313e-06 | J156: -0.0001177840958 | K156: -0.001716981126 | L156: 0.0006761672299 | M156: 0.01032224487 | N156: 4.307794351e-06
A157: =IF('DF raw data'!M157="","",'DF raw data'!M157) -> -255 | B157: =IF('DF raw data'!N157="","",'DF raw data'!N157) -> -5.35008e-05 | C157: =IF('DF raw data'!O157="","",'DF raw data'!O157) -> 5.8761e-05 | D157: =IF('DF raw data'!P157="","",'DF raw data'!P157) -> -2.54217e-05 | F157: -1.826592835e-05 | G157: 2.408760108e-05 | H157: -7.616368193e-06 | J157: -0.00012691706 | K157: -0.001780439656 | L157: 0.0006882110305 | M157: 0.01066635039 | N157: 4.552665533e-06
A158: =IF('DF raw data'!M158="","",'DF raw data'!M158) -> -254.5 | B158: =IF('DF raw data'!N158="","",'DF raw data'!N158) -> -5.03688e-05 | C158: =IF('DF raw data'!O158="","",'DF raw data'!O158) -> 6.31554e-05 | D158: =IF('DF raw data'!P158="","",'DF raw data'!P158) -> -1.31826e-05 | F158: -1.511889475e-05 | G158: 2.85030942e-05 | H158: 4.681479487e-06 | J158: -0.0001344765074 | K158: -0.001847677909 | L158: 0.0007024625776 | M158: 0.01101758167 | N158: 4.808434335e-06
A159: =IF('DF raw data'!M159="","",'DF raw data'!M159) -> -254 | B159: =IF('DF raw data'!N159="","",'DF raw data'!N159) -> -5.61964e-05 | C159: =IF('DF raw data'!O159="","",'DF raw data'!O159) -> 6.41937e-05 | D159: =IF('DF raw data'!P159="","",'DF raw data'!P159) -> -1.84497e-05 | F159: -2.097446723e-05 | G159: 2.954637804e-05 | H159: -6.109025928e-07 | J159: -0.000144963741 | K159: -0.00192015978 | L159: 0.0007172357666 | M159: 0.01137619956 | N159: 5.07615515e-06
A160: =IF('DF raw data'!M160="","",'DF raw data'!M160) -> -253.5 | B160: =IF('DF raw data'!N160="","",'DF raw data'!N160) -> -5.60631e-05 | C160: =IF('DF raw data'!O160="","",'DF raw data'!O160) -> 6.38355e-05 | D160: =IF('DF raw data'!P160="","",'DF raw data'!P160) -> -2.62633e-05 | F160: -2.084052739e-05 | G160: 2.918645868e-05 | H160: -8.462007873e-06 | J160: -0.0001553840047 | K160: -0.001997851782 | L160: 0.0007318289959 | M160: 0.01174211406 | N160: 5.356014084e-06
A161: =IF('DF raw data'!M161="","",'DF raw data'!M161) -> -253 | B161: =IF('DF raw data'!N161="","",'DF raw data'!N161) -> -4.75482e-05 | C161: =IF('DF raw data'!O161="","",'DF raw data'!O161) -> 6.21987e-05 | D161: =IF('DF raw data'!P161="","",'DF raw data'!P161) -> -1.48725e-05 | F161: -1.228475587e-05 | G161: 2.754180204e-05 | H161: 2.983467967e-06 | J161: -0.0001615263826 | K161: -0.002078614974 | L161: 0.000745599897 | M161: 0.012114914 | N161: 5.647019074e-06
